Workbook

Sheet SourceTypeAgeDistribution
A1: sourceTypeID | B1: yearID | C1: ageID | D1: ageFraction

Sheet Inputs
A1: Welcome (READ FIRST)
A2: Welcome to the Age Distribution Projection Tool for MOVES4. This macro-based excel file projects a base year age distribution by source type to a future distribution using a similar algorithm to what was used to generate the national projected age distributions in MOVES4. It also generates charts on new worksheets allowing you to visually inspect the differences between the base year and analysis year age distributions. YOU MUST ENABLE MACROS FOR THIS TOOL TO WORK. Instructions: First, enter the future analysis year (Step 1). Then, enter the base year age distribution by source type in the space provided (Step 2). The base year age distributions should be formatted as they are accepted into MOVES; see step 2 below. After inputing the base year age distribution, click the green button labeled "Start" to run the tool. Lastly, if the your analysis requires multiple analysis years, click the red button labeled "Reset" to clear the previous results and generated graphs. NOTE: This calculator will only work with base year age distributions from 2011 or later. The output page "SourceTypeAgeDistribution" contains the future year age distribution formatted for use in MOVES. This tool is a macro-enabled Excel template (.xltm). Therefore, MOVES cannot import it directly into an input database. To import the projected age distribution, users can either 1) copy the calculated SourceTypeAgeDistribution into a blank spreadsheet and import from there; or 2) re-save this file by selecting File > Save As, choosing either an .xls or .xlsx file, and then selecting "Yes" when prompted to confirm saving a macro-free version of this workbook. Updated 8/23/2023
A4: Calculation Inputs: follow the numbered steps below and make your selection or input data into the black outlined boxes.
A5: 1) Please specify an analysis year: | E5: 2) Enter a base year age distribution by source type below (max 403 rows):
E6: sourceTypeID | F6: yearID | G6: ageID | H6: ageFraction
A7: 3) Once you have completed step 2, click "Start"

Sheet 11 (hidden)
D1: 2011 | E1: 2012 | F1: 2013 | G1: 2014 | H1: 2015 | I1: 2016 | J1: 2017 | K1: 2018 | L1: 2019 | M1: 2020 | N1: 2021 | O1: 2022 | P1: 2023 | Q1: 2024 | R1: 2025 | S1: 2026 | T1: 2027 | U1: 2028 | V1: 2029 | W1: 2030 | X1: 2031 | Y1: 2032 | Z1: 2033 | AA1: 2034 | AB1: 2035 | AC1: 2036 | AD1: 2037 | AE1: 2038 | AF1: 2039 | AG1: 2040 | AH1: 2041 | AI1: 2042 | AJ1: 2043 | AK1: 2044 | AL1: 2045 | AM1: 2046 | AN1: 2047 | AO1: 2048 | AP1: 2049 | AQ1: 2050 | AR1: 2051 | AS1: 2052 | AT1: 2053 | AU1: 2054 | AV1: 2055 | AW1: 2056 | AX1: 2057 | AY1: 2058 | AZ1: 2059 | BA1: 2060
C2: sales (age 0 pop) | D2: 0.03530578024 | E2: 0.04686505556 | F2: 0.04875729898 | G2: 0.0519262448 | H2: 0.05047279052 | I2: 0.04964833369 | J2: 0.04666999889 | K2: 0.04600440528 | L2: 0.05085557988 | M2: 0.04906317841 | N2: 0.04906317841 | O2: 0.05380525574 | P2: 0.05493792066 | Q2: 0.05646151825 | R2: 0.0569747318 | S2: 0.0570789104 | T2: 0.05654916013 | U2: 0.05578924455 | V2: 0.05575388045 | W2: 0.05525659107 | X2: 0.05485646015 | Y2: 0.05453994609 | Z2: 0.05420624649 | AA2: 0.054211237 | AB2: 0.05446923091 | AC2: 0.05481423724 | AD2: 0.05504121338 | AE2: 0.05531435485 | AF2: 0.05548423513 | AG2: 0.05570226687 | AH2: 0.05559160383 | AI2: 0.0554886207 | AJ2: 0.05531046433 | AK2: 0.05516562278 | AL2: 0.05529856548 | AM2: 0.05541215801 | AN2: 0.05530697766 | AO2: 0.05512963986 | AP2: 0.05512479726 | AQ2: 0.05528934521 | AR2: 0.05528934521 | AS2: 0.05528934521 | AT2: 0.05528934521 | AU2: 0.05528934521 | AV2: 0.05528934521 | AW2: 0.05528934521 | AX2: 0.05528934521 | AY2: 0.05528934521 | AZ2: 0.05528934521 | BA2: 0.05528934521
C3: scrappage k factor | D3: 0 | E3: 0.8098697383 | F3: 0.9647291964 | G3: 0.8615221831 | H3: 0.5157997175 | I3: 0.7344515407 | J3: 0.8196086943 | K3: 0.9845127564 | L3: 1.023924737 | M3: 0 | N3: 0.8558562855 | O3: 0.9669511167 | P3: 0.9648042655 | Q3: 0.9637644106 | R3: 0.9636589331 | S3: 0.9616943588 | T3: 0.9596661537 | U3: 0.95842417 | V3: 0.9580096631 | W3: 0.9595284615 | X3: 0.9587039232 | Y3: 0.9586012416 | Z3: 0.962664503 | AA3: 0.9621418219 | AB3: 0.9591746983 | AC3: 0.955021286 | AD3: 0.949037507 | AE3: 0.9420042874 | AF3: 0.9345846334 | AG3: 0.9279125711 | AH3: 0.9219153874 | AI3: 0.9163790474 | AJ3: 0.9113371942 | AK3: 0.9112747595 | AL3: 0.9121242082 | AM3: 0.911299394 | AN3: 0.9098749027 | AO3: 0.9088581414 | AP3: 0.9072688334 | AQ3: 0.9073843057 | AR3: 0.9075128094 | AS3: 0.9075632797 | AT3: 0.9075768753 | AU3: 0.9075965416 | AV3: 0.907608218 | AW3: 0.9076139327 | AX3: 0.9076142123 | AY3: 0.9076121307 | AZ3: 0.9076139153
A5: default
A6: scrappage | C6: age | D6: 2011 | E6: 2012 | F6: 2013 | G6: 2014 | H6: 2015 | I6: 2016 | J6: 2017 | K6: 2018 | L6: 2019 | M6: 2020 | N6: 2021 | O6: 2022 | P6: 2023 | Q6: 2024 | R6: 2025 | S6: 2026 | T6: 2027 | U6: 2028 | V6: 2029 | W6: 2030 | X6: 2031 | Y6: 2032 | Z6: 2033 | AA6: 2034 | AB6: 2035 | AC6: 2036 | AD6: 2037 | AE6: 2038 | AF6: 2039 | AG6: 2040 | AH6: 2041 | AI6: 2042 | AJ6: 2043 | AK6: 2044 | AL6: 2045 | AM6: 2046 | AN6: 2047 | AO6: 2048 | AP6: 2049 | AQ6: 2050 | AR6: 2051 | AS6: 2052 | AT6: 2053 | AU6: 2054 | AV6: 2055 | AW6: 2056 | AX6: 2057 | AY6: 2058 | AZ6: 2059 | BA6: 2060
A7: 0 | C7: 0 | D7: 0.03530578024 | E7: =E41 -> 0.04686505556 | F7: =F41 -> 0.04875729898 | G7: 0.0519262448 | H7: 0.05047279052 | I7: 0.04964833369 | J7: 0.04666999889 | K7: 0.04600440528 | L7: 0.05085557988 | M7: 0.04906317841 | N7: 0.04906317841 | O7: 0.05380525574 | P7: 0.05493792066 | Q7: 0.05646151825 | R7: 0.0569747318 | S7: 0.0570789104 | T7: 0.05654916013 | U7: 0.05578924455 | V7: 0.05575388045 | W7: 0.05525659107 | X7: 0.05485646015 | Y7: 0.05453994609 | Z7: 0.05420624649 | AA7: 0.054211237 | AB7: 0.05446923091 | AC7: 0.05481423724 | AD7: 0.05504121338 | AE7: 0.05531435485 | AF7: 0.05548423513 | AG7: 0.05570226687 | AH7: 0.05559160383 | AI7: 0.0554886207 | AJ7: 0.05531046433 | AK7: 0.05516562278 | AL7: 0.05529856548 | AM7: 0.05541215801 | AN7: 0.05530697766 | AO7: 0.05512963986 | AP7: 0.05512479726 | AQ7: 0.05528934521 | AR7: =AR41 -> 0.05528934521 | AS7: 0.05528934521 | AT7: 0.05528934521 | AU7: 0.05528934521 | AV7: 0.05528934521 | AW7: 0.05528934521 | AX7: 0.05528934521 | AY7: 0.05528934521 | AZ7: 0.05528934521 | BA7: 0.05528934521
A8: 0.02100002766 | C8: 1 | D8: 0.02986297875 | E8: =E42*(1-E$41-E$71)/SUM(E$42:E$70) -> 0.0336457251 | F8: =F42*(1-F$41-F$71)/SUM(F$42:F$70) -> 0.04666650373 | G8: 0.04878342145 | H8: 0.05171651103 | I8: 0.04933745851 | J8: 0.0493065181 | K8: 0.04661763756 | L8: 0.04614656771 | M8: 0.05121774118 | N8: 0.04664127608 | O8: 0.04869932459 | P8: 0.05372271194 | Q8: 0.05475024694 | R8: 0.05626773952 | S8: 0.05681082958 | T8: 0.05696043046 | U8: 0.05654339806 | V8: 0.05591622946 | W8: 0.05607813317 | X8: 0.05575723948 | Y8: 0.05553848874 | Z8: 0.05550878495 | AA8: 0.05508662632 | AB8: 0.05534622281 | AC8: 0.05568654657 | AD8: 0.05596824616 | AE8: 0.05577333801 | AF8: 0.05575688409 | AG8: 0.05535254738 | AH8: 0.05561750217 | AI8: 0.05567772597 | AJ8: 0.0555979163 | AK8: 0.05544610418 | AL8: 0.05526674978 | AM8: 0.05539572327 | AN8: 0.05547782636 | AO8: 0.05537567314 | AP8: 0.05523891149 | AQ8: 0.05517718613 | AR8: =AR42*(1-AR$41-AR$71)/SUM(AR$42:AR$70) -> 0.05537724244 | AS8: 0.05545331867 | AT8: 0.05547576242 | AU8: 0.05550605042 | AV8: 0.05552249493 | AW8: 0.05553281631 | AX8: 0.05553315307 | AY8: 0.05552824244 | AZ8: 0.05553218895 | BA8: 0.05552619227
A9: 0.06000000238 | C9: 2 | D9: 0.06559730749 | E9: =E43*(1-E$41-E$71)/SUM(E$42:E$70) -> 0.02845884065 | F9: 0.03293338105 | G9: 0.04574556694 | H9: 0.04770735745 | I9: 0.05000562024 | J9: 0.04824206578 | K9: 0.04840349669 | L9: 0.04579490654 | M9: 0.04547586397 | N9: 0.04868948332 | O9: 0.04546331597 | P9: 0.04763724249 | Q9: 0.05245443646 | R9: 0.05345804983 | S9: 0.05497046425 | T9: 0.05554795839 | U9: 0.055806819 | V9: 0.05553146392 | W9: 0.05510994845 | X9: 0.05544600564 | Y9: 0.05531396095 | Z9: 0.05538717909 | AA9: 0.05526992974 | AB9: 0.05510361133 | AC9: 0.05544340117 | AD9: 0.05571858772 | AE9: 0.05558242802 | AF9: 0.05510739778 | AG9: 0.05453284496 | AH9: 0.054191346 | AI9: 0.05462522764 | AJ9: 0.05471382226 | AK9: 0.05466761286 | AL9: 0.05448473952 | AM9: 0.05430337737 | AN9: 0.05439999054 | AO9: 0.05448538049 | AP9: 0.05442643491 | AQ9: 0.05423795982 | AR9: 0.05421182701 | AS9: 0.05448297855 | AT9: 0.05457984861 | AU9: 0.05463173385 | AV9: 0.05467773233 | AW9: 0.05470408513 | AX9: 0.05471457948 | AY9: 0.05471007266 | AZ9: 0.05470912526 | BA9: 0.05470710325
A10: 0.06000000238 | C10: 3 | D10: 0.07963787373 | E10: 0.06251296418 | F10: 0.02696125141 | G10: 0.03104369655 | H10: 0.04320569901 | I10: 0.04519099548 | J10: 0.04747291368 | K10: 0.04581822527 | L10: 0.0456850055 | M10: 0.04328756107 | N10: 0.043231042 | O10: 0.0458466708 | P10: 0.04275996784 | Q10: 0.04472629204 | R10: 0.04925159715 | S10: 0.05022223629 | T10: 0.05169105757 | U10: 0.05234417438 | V10: 0.05271734291 | W10: 0.05264387836 | X10: 0.05240774755 | Y10: 0.05290633228 | Z10: 0.05305859264 | AA10: 0.05303562395 | AB10: 0.05316962932 | AC10: 0.05309299201 | AD10: 0.05336679292 | AE10: 0.05324477859 | AF10: 0.05286043557 | AG10: 0.05189378692 | AH10: 0.05141837714 | AI10: 0.05127306476 | AJ10: 0.05172346179 | AK10: 0.05184889752 | AL10: 0.05177331451 | AM10: 0.05159341739 | AN10: 0.05139501474 | AO10: 0.05149403943 | AP10: 0.05161631702 | AQ10: 0.05151257977 | AR10: 0.05136661066 | AS10: 0.05141197459 | AT10: 0.05168986872 | AU10: 0.05180999917 | AV10: 0.05187455066 | AW10: 0.05192784056 | AX10: 0.05195316421 | AY10: 0.05195853496 | AZ10: 0.05195795452 | BA10: 0.05195143828
A11: 0.06000000238 | C11: 4 | D11: 0.1009184364 | E11: 0.075893352 | F11: 0.0592233452 | G11: 0.02541424174 | H11: 0.02932010027 | I11: 0.04092678055 | J11: 0.04290214214 | K11: 0.0450877179 | L11: 0.04324493098 | M11: 0.04318367729 | N11: 0.04115076014 | O11: 0.04070692921 | P11: 0.04312052756 | Q11: 0.04014705111 | R11: 0.04199532902 | S11: 0.04627040002 | T11: 0.04722609755 | U11: 0.04870972417 | V11: 0.04944639095 | W11: 0.04997608908 | X11: 0.05006259605 | Y11: 0.05000723991 | Z11: 0.05074913248 | AA11: 0.05080590152 | AB11: 0.0510202289 | AC11: 0.05122957709 | AD11: 0.0511044173 | AE11: 0.05099739942 | AF11: 0.05063726593 | AG11: 0.04977785725 | AH11: 0.0489300404 | AI11: 0.04864942423 | AJ11: 0.04854937032 | AK11: 0.04901511829 | AL11: 0.04910383202 | AM11: 0.0490258786 | AN11: 0.04883019391 | AO11: 0.04864958412 | AP11: 0.04878249248 | AQ11: 0.04885290855 | AR11: 0.0487855118 | AS11: 0.04871370378 | AT11: 0.04877630204 | AU11: 0.04906668164 | AV11: 0.04919522477 | AW11: 0.04926563852 | AX11: 0.0493165295 | AY11: 0.04933621577 | AZ11: 0.04934482929 | BA11: 0.049338944
A12: 0.06000000238 | C12: 5 | D12: 0.09970253872 | E12: 0.09617331628 | F12: 0.07189961703 | G12: 0.05582516883 | H12: 0.0240032019 | I12: 0.0277735886 | J12: 0.03885390303 | K12: 0.04074659701 | L12: 0.04255545118 | M12: 0.04087720081 | N12: 0.04105200437 | O12: 0.03874810791 | P12: 0.03828640624 | Q12: 0.04048557824 | R12: 0.03769569405 | S12: 0.03945335349 | T12: 0.0435100184 | U12: 0.04450228519 | V12: 0.04601314459 | W12: 0.04687522364 | X12: 0.04752561622 | Y12: 0.04776950676 | Z12: 0.04796824753 | AA12: 0.04859449334 | AB12: 0.04887523766 | AC12: 0.04915860394 | AD12: 0.04931079577 | AE12: 0.04883546937 | AF12: 0.0484999458 | AG12: 0.04768433267 | AH12: 0.04693495524 | AI12: 0.04629508797 | AJ12: 0.04606510112 | AK12: 0.04600722858 | AL12: 0.04642008316 | AM12: 0.04649805657 | AN12: 0.04640016653 | AO12: 0.04622177147 | AP12: 0.04608781905 | AQ12: 0.04617079989 | AR12: 0.04626664317 | AS12: 0.04626590971 | AT12: 0.04621636006 | AU12: 0.0463009743 | AV12: 0.04659035844 | AW12: 0.04672106321 | AX12: 0.04678820242 | AY12: 0.04683239178 | AZ12: 0.04685442242 | BA12: 0.04685753686
A13: 0.06000000238 | C13: 6 | D13: 0.08954243121 | E13: 0.09501458932 | F13: 0.09111238899 | G13: 0.06777408885 | H13: 0.05272566509 | I13: 0.0227371342 | J13: 0.02636689971 | K13: 0.03690175479 | L13: 0.03845814116 | M13: 0.04022547115 | N13: 0.03885938233 | O13: 0.03865511815 | P13: 0.03644406072 | Q13: 0.0359468537 | R13: 0.0380135509 | S13: 0.03541397525 | T13: 0.0370996606 | U13: 0.04100053461 | V13: 0.04203863023 | W13: 0.04362050297 | X13: 0.04457679523 | Y13: 0.04534873188 | Z13: 0.04582175559 | AA13: 0.04593167551 | AB13: 0.04674786472 | AC13: 0.04709187909 | AD13: 0.04731739001 | AE13: 0.04712148154 | AF13: 0.04644389017 | AG13: 0.04567165126 | AH13: 0.04496099557 | AI13: 0.04440744099 | AJ13: 0.04383583038 | AK13: 0.04365304066 | AL13: 0.04357144185 | AM13: 0.04395672525 | AN13: 0.04400772878 | AO13: 0.04392155185 | AP13: 0.04378784893 | AQ13: 0.04362039253 | AR13: 0.04372652492 | AS13: 0.04387713188 | AT13: 0.04389405394 | AU13: 0.04387094573 | AV13: 0.04396423229 | AW13: 0.04424720269 | AX13: 0.04437158694 | AY13: 0.04443141982 | AZ13: 0.04447655 | BA13: 0.04449266229
A14: 0.06000000238 | C14: 7 | D14: 0.07049078065 | E14: 0.08533220355 | F14: 0.0900146377 | G14: 0.08588445115 | H14: 0.06401116172 | I14: 0.04994460855 | J14: 0.02158553387 | K14: 0.0250421397 | L14: 0.03482923726 | M14: 0.0363524955 | N14: 0.03823982396 | O14: 0.03659051581 | P14: 0.03635660034 | Q14: 0.03421708767 | R14: 0.0337519584 | S14: 0.03571259224 | T14: 0.03330126202 | U14: 0.0349599006 | V14: 0.03873073723 | W14: 0.03985265973 | X14: 0.04148166297 | Y14: 0.04253497999 | Z14: 0.04349968525 | AA14: 0.04387631647 | AB14: 0.04418623604 | AC14: 0.04504212969 | AD14: 0.04532807343 | AE14: 0.04521657955 | AF14: 0.04481384006 | AG14: 0.04373549537 | AH14: 0.04306326198 | AI14: 0.04253978186 | AJ14: 0.04204845776 | AK14: 0.04154049898 | AL14: 0.04134189304 | AM14: 0.04125925177 | AN14: 0.04160250525 | AO14: 0.04165691388 | AP14: 0.0416087531 | AQ14: 0.04144355705 | AR14: 0.04131113573 | AS14: 0.04146820191 | AT14: 0.04162773856 | AU14: 0.04166649333 | AV14: 0.04165684368 | AW14: 0.04175315155 | AX14: 0.04202213019 | AY14: 0.0421365324 | AZ14: 0.04219635577 | BA14: 0.04223464972
A15: 0.06000000238 | C15: 8 | D15: 0.07282324237 | E15: 0.06717634937 | F15: 0.080841768 | G15: 0.08484968773 | H15: 0.08111600739 | I15: 0.06063484282 | J15: =J49*(1-J$41-J$71)/SUM(J$42:J$70) -> 0.04741499213 | K15: 0.02050100545 | L15: 0.0236356951 | M15: 0.03292227998 | N15: 0.03455802975 | O15: 0.03600713134 | P15: 0.03441476377 | Q15: 0.0341349717 | R15: 0.03212781095 | S15: 0.03170895376 | T15: 0.03358206423 | U15: 0.03138057846 | V15: 0.03302451387 | W15: 0.03671677416 | X15: 0.03789856804 | Y15: 0.03958161853 | Z15: 0.04080066112 | AA15: 0.0416528335 | AB15: 0.04220898224 | AC15: 0.04257396966 | AD15: 0.04335509649 | AE15: 0.0433155852 | AF15: 0.04300222526 | AG15: 0.04220050231 | AH15: 0.0412376834 | AI15: 0.04074424393 | AJ15: 0.04028001121 | AK15: 0.03984671674 | AL15: 0.03934119685 | AM15: 0.03914801763 | AN15: 0.03904950218 | AO15: 0.03938017313 | AP15: 0.03946336529 | AQ15: 0.03938112456 | AR15: =AR49*(1-AR$41-AR$71)/SUM(AR$42:AR$70) -> 0.03924954159 | AS15: 0.03917755918 | AT15: 0.03934230415 | AU15: 0.03951519022 | AV15: 0.03956364675 | AW15: 0.03956180779 | AX15: 0.03965349816 | AY15: 0.03990542085 | AZ15: 0.04001690964 | BA15: 0.04006939175
A16: 0.06000000238 | C16: 9 | D16: 0.05567851652 | E16: 0.06939914023 | F16: 0.06364132912 | G16: 0.07620314813 | H16: 0.08013869572 | I16: 0.07683748 | J16: 0.05756378273 | K16: 0.04503270653 | L16: 0.0193496051 | M16: 0.02234160243 | N16: 0.03129713972 | O16: 0.03254030451 | P16: 0.03386606861 | Q16: 0.03231179418 | R16: 0.03205070893 | S16: 0.03018311588 | T16: 0.02981727326 | U16: 0.03164518512 | V16: 0.02964334367 | W16: 0.03130726921 | X16: 0.03491644404 | Y16: 0.03616264527 | Z16: 0.03796771986 | AA16: 0.03906840094 | AB16: 0.04006999336 | AC16: 0.04066886185 | AD16: 0.04097938031 | AE16: 0.04143020503 | AF16: 0.04119432674 | AG16: 0.04049453259 | AH16: 0.03979035652 | AI16: 0.03901697536 | AJ16: 0.03857985467 | AK16: 0.03817086958 | AL16: 0.03773708948 | AM16: 0.03725349166 | AN16: 0.03705134083 | AO16: 0.03696354696 | AP16: 0.037306512 | AQ16: 0.03735059545 | AR16: 0.03729629395 | AS16: 0.0372224392 | AT16: 0.0371690929 | AU16: 0.03734573835 | AV16: 0.03752091674 | AW16: 0.03757388342 | AX16: 0.03757235116 | AY16: 0.03765609989 | AZ16: 0.03789803121 | BA16: 0.03799980353
A17: 0.06000000238 | C17: 10 | D17: 0.0448350442 | E17: 0.05306054839 | F17: 0.06574715009 | G17: 0.05998965325 | H17: 0.07197222599 | I17: 0.07591171739 | J17: 0.07294578164 | K17: 0.05467158842 | L17: 0.04250352941 | M17: 0.01829018281 | N17: 0.02123875543 | O17: 0.0294698067 | P17: 0.03060538688 | Q17: 0.03179662792 | R17: 0.03033885364 | S17: 0.03011068085 | T17: 0.02838246323 | U17: 0.02809753223 | V17: 0.02989330166 | W17: 0.02810191679 | X17: 0.02977218284 | Y17: 0.0333171158 | Z17: 0.03468815161 | AA17: 0.03635573693 | AB17: 0.03758377125 | AC17: 0.03860792035 | AD17: 0.03914562748 | AE17: 0.03915996655 | AF17: 0.03940127774 | AG17: 0.03879206242 | AH17: 0.03818181777 | AI17: 0.03764758909 | AJ17: 0.03694434094 | AK17: 0.03655973662 | AL17: 0.03614996764 | AM17: 0.03573450889 | AN17: 0.03525828127 | AO17: 0.03507212385 | AP17: 0.0350171393 | AQ17: 0.03530921469 | AR17: 0.03537326073 | AS17: 0.03537007002 | AT17: 0.03531420358 | AU17: 0.03528281447 | AV17: 0.03546095391 | AW17: 0.03563388786 | AX17: 0.03568439415 | AY17: 0.03567978298 | AZ17: 0.03576185939 | BA17: 0.03598773002
A18: 0.06000000238 | C18: 11 | D18: 0.03564470171 | E18: 0.04272692919 | F18: 0.05026834378 | G18: 0.06197464431 | H18: 0.05665893059 | I18: 0.06817599451 | J18: 0.07206690747 | K18: 0.06928074496 | L18: 0.05160106166 | M18: 0.04017639218 | N18: 0.01738732577 | O18: 0.01999869709 | P18: 0.02771746759 | Q18: 0.0287351954 | R18: 0.02985514315 | S18: 0.02850244409 | T18: 0.0283143495 | U18: 0.02674547631 | V18: 0.02654204751 | W18: 0.02833887719 | X18: 0.02672399816 | Y18: 0.02840848461 | Z18: 0.0319586456 | AA18: 0.03321540823 | AB18: 0.03497419059 | AC18: 0.03621241546 | AD18: 0.03716187764 | AE18: 0.03740762918 | AF18: 0.03724221778 | AG18: 0.03710357582 | AH18: 0.0365765787 | AI18: 0.03612567244 | AJ18: 0.03564769833 | AK18: 0.03500986165 | AL18: 0.03462413381 | AM18: 0.03423161027 | AN18: 0.03382065168 | AO18: 0.03337484635 | AP18: 0.03322531378 | AQ18: 0.03314240927 | AR18: 0.03343995035 | AS18: 0.03354635478 | AT18: 0.03355679746 | AU18: 0.03352205814 | AV18: 0.03350214276 | AW18: 0.03367752615 | AX18: 0.03384195573 | AY18: 0.03388692482 | AZ18: 0.03388495849 | BA18: 0.03395923481
A19: 0.06000000238 | C19: 12 | D19: 0.02643763318 | E19: 0.03396871071 | F19: 0.0404785105 | G19: 0.04738399644 | H19: 0.05853371174 | I19: 0.05367041088 | J19: 0.06472298687 | K19: 0.06844602833 | L19: 0.06538972245 | M19: 0.04877581977 | N19: 0.03819316768 | O19: 0.01637213924 | P19: 0.01880953086 | Q19: 0.02602374707 | R19: 0.02698064003 | S19: 0.02804801257 | T19: 0.02680205631 | U19: 0.0266812911 | V19: 0.02526484166 | W19: 0.02516188521 | X19: 0.02694933971 | Y19: 0.02549992033 | Z19: 0.02725015867 | AA19: 0.03060178795 | AB19: 0.03195319683 | AC19: 0.03369805311 | AD19: 0.03485609533 | AE19: 0.03551195441 | AF19: 0.03557569619 | AG19: 0.03507042234 | AH19: 0.03498452457 | AI19: 0.03460687779 | AJ19: 0.03420662794 | AK19: 0.03378111383 | AL19: 0.03315631474 | AM19: 0.03278674732 | AN19: 0.03239824482 | AO19: 0.03201401239 | AP19: 0.03161741066 | AQ19: 0.03144651361 | AR19: 0.03138785528 | AS19: 0.03171289316 | AT19: 0.03182657632 | AU19: 0.03185383787 | AV19: 0.03183024921 | AW19: 0.03181722894 | AX19: 0.03198397419 | AY19: 0.03213729242 | AZ19: 0.0321822877 | BA19: 0.03217694162
A20: 0.06000000238 | C20: 13 | D20: 0.01950099193 | E20: 0.02519455263 | F20: 0.03218117564 | G20: 0.03815589401 | H20: 0.04475316025 | I20: 0.05544630523 | J20: 0.05095208839 | K20: 0.06147109052 | L20: 0.0646018861 | M20: 0.061809529 | N20: 0.04636810231 | O20: 0.03596319916 | P20: 0.01539861606 | Q20: 0.01766014417 | R20: 0.02443475125 | S20: 0.02534750301 | T20: 0.02637473509 | U20: 0.02525622093 | V20: 0.02520420976 | W20: 0.0239510929 | X20: 0.02392812487 | Y20: 0.02571494023 | Z20: 0.02446018802 | AA20: 0.02609320769 | AB20: 0.02943889616 | AC20: 0.0307872893 | AD20: 0.03243590733 | AE20: 0.03330854486 | AF20: 0.03377285673 | AG20: 0.03350108464 | AH20: 0.03306748811 | AI20: 0.03310055805 | AJ20: 0.03276851371 | AK20: 0.03241550076 | AL20: 0.03199262121 | AM20: 0.03139682048 | AN20: 0.03103076537 | AO20: 0.03066758798 | AP20: 0.0303282348 | AQ20: 0.0299246936 | AR20: 0.02978174007 | AS20: 0.02976678167 | AT20: 0.03008710845 | AU20: 0.03021142298 | AV20: 0.03024622156 | AW20: 0.03022941946 | AX20: 0.0302172263 | AY20: 0.03037289981 | AZ20: 0.03052066825 | BA20: 0.03056009624
A21: 0.06000000238 | C21: 14 | D21: 0.01572971675 | E21: 0.0185840678 | F21: 0.02386873999 | G21: 0.03033465194 | H21: 0.03603741701 | I21: 0.04239261974 | J21: 0.05263803647 | K21: 0.04839208741 | L21: 0.05801868254 | M21: 0.06106482797 | N21: 0.05875842944 | O21: 0.04366082729 | P21: 0.03382474874 | Q21: 0.01445765882 | R21: 0.01658182539 | S21: 0.02295571678 | T21: 0.02383533148 | U21: 0.02485354589 | V21: 0.02385803174 | W21: 0.0238936138 | X21: 0.02277670122 | Y21: 0.02283211046 | Z21: 0.02466644071 | AA21: 0.02342168991 | AB21: 0.02510164546 | AC21: 0.02836473038 | AD21: 0.0296341649 | AE21: 0.03099580902 | AF21: 0.03167735294 | AG21: 0.03180337852 | AH21: 0.03158777808 | AI21: 0.03128675673 | AJ21: 0.03134221171 | AK21: =AK55*(1-AK$41-AK$71)/SUM(AK$42:AK$70) -> 0.03105268905 | AL21: 0.03069930857 | AM21: 0.03029488025 | AN21: 0.02971527978 | AO21: 0.02937315686 | AP21: 0.02905270973 | AQ21: 0.02870453699 | AR21: 0.02834048498 | AS21: 0.02824361672 | AT21: 0.02824076579 | AU21: 0.02856023063 | AV21: 0.02868669693 | AW21: 0.02872505687 | AX21: 0.02870926348 | AY21: 0.02869514532 | AZ21: 0.0288450311 | BA21: 0.02898223295
A22: 0.06000000238 | C22: 15 | D22: 0.01408045026 | E22: 0.01499011556 | F22: 0.01760611862 | G22: 0.02249917554 | H22: 0.02865042296 | I22: 0.0341365952 | J22: 0.04024549976 | K22: 0.04999332789 | L22: 0.04567423699 | M22: 0.05484206549 | N22: 0.05805048904 | O22: 0.05532772557 | P22: 0.04106465908 | Q22: 0.03175783297 | R22: 0.01357488205 | S22: 0.01557812819 | T22: 0.02158623351 | U22: 0.02246060492 | V22: 0.02347764887 | W22: 0.02261743581 | X22: 0.02272204049 | Y22: 0.02173342713 | Z22: 0.02190115528 | AA22: 0.0236191858 | AB22: 0.02253164744 | AC22: 0.02418573719 | AD22: 0.02730234186 | AE22: 0.02831845912 | AF22: 0.02947787681 | AG22: 0.02983007491 | AH22: 0.02998703098 | AI22: 0.0298867312 | AJ22: 0.02962476196 | AK22: 0.02970107107 | AL22: 0.02940864898 | AM22: 0.02907019937 | AN22: 0.02867235691 | AO22: 0.02812794218 | AP22: 0.0278264401 | AQ22: 0.02749730034 | AR22: 0.02718492327 | AS22: 0.02687679744 | AT22: 0.02679568701 | AU22: 0.02680758722 | AV22: 0.02711883783 | AW22: 0.02724396498 | AX22: 0.02728055123 | AY22: 0.02726314054 | AZ22: 0.02725167383 | BA22: 0.02739105854
A23: 0.06000000238 | C23: 16 | D23: 0.01171707986 | E23: 0.01341839653 | F23: 0.01420129088 | G23: 0.01659589713 | H23: 0.02124998489 | I23: 0.02713923394 | J23: 0.03240762997 | K23: 0.0382234331 | L23: 0.04718554682 | M23: 0.04317349838 | N23: 0.05213490036 | O23: 0.05466111939 | P23: 0.05203781809 | Q23: 0.03855533692 | R23: 0.02981871699 | S23: 0.012753195 | T23: 0.01464877424 | U23: 0.02034122592 | V23: 0.02121718157 | W23: 0.02225683251 | X23: 0.02150843722 | Y23: 0.0216812701 | Z23: 0.0208472696 | AA23: 0.02097130517 | AB23: 0.02272163833 | AC23: 0.02170951319 | AD23: 0.02327987102 | AE23: 0.026090165 | AF23: 0.02693164256 | AG23: 0.02775886214 | AH23: 0.02812642624 | AI23: 0.02837218661 | AJ23: 0.02829910768 | AK23: 0.02807355041 | AL23: 0.02812859046 | AM23: 0.02784803075 | AN23: 0.02751326708 | AO23: 0.0271407304 | AP23: 0.0266467953 | AQ23: 0.02633668212 | AR23: 0.02604159753 | AS23: 0.02578091648 | AT23: 0.02549893873 | AU23: 0.02543584413 | AV23: 0.02545464776 | AW23: 0.02575495777 | AX23: 0.02587393945 | AY23: 0.02590639439 | AZ23: 0.02589170417 | BA23: 0.02587801659
A24: 0.06000000238 | C24: 17 | D24: 0.009601575363 | E24: 0.01116615028 | F24: 0.0127122804 | G24: 0.013386435 | H24: 0.01567446605 | I24: 0.02012913778 | J24: 0.02576467413 | K24: 0.03077936375 | L24: 0.03607668599 | M24: 0.04460206154 | N24: 0.04104232792 | O24: 0.04909092171 | P24: 0.05141084977 | Q24: 0.04885796337 | R24: 0.03620116906 | S24: 0.02801379129 | T24: 0.01199236983 | U24: 0.01380389155 | V24: 0.01921513179 | W24: 0.02011390745 | X24: 0.02116551534 | Y24: 0.02052325525 | Z24: 0.02079723922 | AA24: 0.01996216397 | AB24: 0.02017437922 | AC24: 0.0218925717 | AD24: 0.02089639291 | AE24: 0.02224628492 | AF24: 0.02481247285 | AG24: 0.0253611126 | AH24: 0.02617350413 | AI24: 0.02661177809 | AJ24: 0.02686501774 | AK24: 0.02681731003 | AL24: 0.02658723655 | AM24: 0.02663590064 | AN24: 0.02635655497 | AO24: 0.02604355711 | AP24: 0.02571156762 | AQ24: 0.02522019255 | AR24: 0.02494242226 | AS24: 0.02469663955 | AT24: 0.0244592389 | AU24: 0.02420490397 | AV24: 0.02415213452 | AW24: 0.02417446433 | AX24: 0.0244598104 | AY24: 0.02457063547 | AZ24: 0.02460320734 | BA24: 0.02458659803
A25: 0.06000000238 | C25: 18 | D25: 0.008582040698 | E25: 0.00915011545 | F25: 0.01057855409 | G25: 0.01198286246 | H25: 0.01264319846 | I25: 0.01484770405 | J25: 0.01910962839 | K25: 0.02447017192 | L25: 0.02905069877 | M25: 0.03410142887 | N25: 0.04240037302 | O25: 0.03864600667 | P25: 0.04617186822 | Q25: 0.04826930696 | R25: 0.04587472275 | S25: 0.0340099138 | T25: 0.02634255537 | U25: 0.01130069791 | V25: 0.01303970549 | W25: 0.01821596243 | X25: 0.01912766412 | Y25: 0.02019604072 | Z25: 0.0196864412 | AA25: 0.01991425771 | AB25: 0.01920358618 | AC25: 0.01943825693 | AD25: 0.02107259504 | AE25: 0.01996862913 | AF25: 0.02115683594 | AG25: 0.02336552316 | AH25: 0.02391269433 | AI25: 0.02476402362 | AJ25: 0.0251981245 | AK25: 0.02545831189 | AL25: 0.02539750601 | AM25: 0.02517634121 | AN25: 0.02520934373 | AO25: 0.0249486345 | AP25: 0.02467216871 | AQ25: 0.02433503462 | AR25: 0.02388503948 | AS25: 0.02365423286 | AT25: 0.02343054822 | AU25: 0.02321796743 | AV25: 0.02298331809 | AW25: 0.02293745803 | AX25: 0.02295879572 | AY25: 0.02322773794 | AZ25: 0.02333464202 | BA25: 0.02336304961
A26: 0.06000000238 | C26: 19 | D26: 0.006185928817 | E26: 0.008178518651 | F26: 0.008668609032 | G26: 0.009971567225 | H26: 0.01131755453 | I26: 0.01197632305 | J26: 0.01409569103 | K26: 0.01814949763 | L26: 0.02309585081 | M26: 0.02746012586 | N26: 0.03241808237 | O26: 0.03992476016 | P26: 0.03634803065 | Q26: 0.04335046182 | R26: 0.04532200938 | S26: 0.04309792769 | T26: 0.03198096352 | U26: 0.02482322216 | V26: 0.01067508913 | W26: 0.01236165268 | X26: 0.01732278087 | Y26: 0.01825153214 | Z26: 0.01937256849 | AA26: 0.01885062048 | AB26: 0.0191575004 | AC26: 0.01850288616 | AD26: 0.01871020555 | AE26: 0.02013700819 | AF26: 0.01899072191 | AG26: 0.01992306624 | AH26: 0.02203107655 | AI26: 0.02262496165 | AJ26: 0.02344852524 | AK26: 0.02387870051 | AL26: 0.02411045809 | AM26: 0.02404974567 | AN26: 0.02382795491 | AO26: 0.02386270526 | AP26: 0.02363490199 | AQ26: 0.02335128253 | AR26: 0.02304674167 | AS26: 0.02265146022 | AT26: 0.02244158127 | AU26: 0.02224148133 | AV26: 0.02204619079 | AW26: 0.02182742456 | AX26: 0.02178399512 | AY26: 0.02180233132 | AZ26: 0.02205929718 | BA26: 0.02215842803
A27: 0.06000000238 | C27: 20 | D27: 0.005186978453 | E27: 0.005895070413 | F27: 0.007748140559 | G27: 0.008171212908 | H27: 0.00941792967 | I27: 0.01072060125 | J27: 0.01136974099 | K27: 0.01338747702 | L27: 0.01713016529 | M27: 0.02183131549 | N27: 0.02610461354 | O27: 0.03052530134 | P27: 0.03755074666 | Q27: 0.03412692568 | R27: 0.04070350624 | S27: 0.04257867003 | T27: 0.04052680819 | U27: 0.03013642949 | V27: 0.02344900387 | W27: 0.01011999422 | X27: 0.01175552493 | Y27: 0.01652932055 | Z27: 0.0175073452 | AA27: 0.01855007376 | AB27: 0.01813428221 | AC27: 0.01845848195 | AD27: 0.01780986868 | AE27: 0.01787950472 | AF27: 0.01915085508 | AG27: 0.01788327005 | AH27: 0.01878522448 | AI27: 0.02084467167 | AJ27: 0.02142309314 | AK27: 0.02222071375 | AL27: 0.02261447696 | AM27: 0.02283099706 | AN27: 0.02276169721 | AO27: 0.02255510778 | AP27: 0.02260615505 | AQ27: 0.02236954847 | AR27: 0.02211506927 | AS27: 0.02185645758 | AT27: 0.02149021651 | AU27: 0.02130270305 | AV27: 0.02111898651 | AW27: 0.02093742793 | AX27: 0.02072978224 | AY27: 0.02068670696 | AZ27: 0.02070559376 | BA27: 0.02094736866
A28: 0.06000000238 | C28: 21 | D28: 0.004892069262 | E28: 0.004943090054 | F28: 0.005584854192 | G28: 0.007303559996 | H28: 0.007717533939 | I28: 0.008921173588 | J28: 0.01017761954 | K28: 0.0107984877 | L28: 0.0126355946 | M28: 0.01619226093 | N28: 0.02075365775 | O28: 0.02458045437 | P28: 0.02871020021 | Q28: 0.03525614778 | R28: 0.03204315419 | S28: 0.0382397247 | T28: 0.04003852821 | U28: 0.03818938404 | V28: 0.02846807103 | W28: 0.02222967702 | X28: 0.009623781497 | Y28: 0.01121706967 | Z28: =Z62*(1-Z$41-Z$71)/SUM(Z$42:Z$70) -> 0.01585535497 | AA28: 0.01676404163 | AB28: 0.0178451565 | AC28: 0.01747259893 | AD28: 0.01776712762 | AE28: 0.01701914125 | AF28: 0.01700390647 | AG28: 0.01803406499 | AH28: 0.01686192467 | AI28: 0.01777361336 | AJ28: 0.01973737456 | AK28: 0.0203013373 | AL28: 0.02104426993 | AM28: 0.02141440262 | AN28: 0.02160822194 | AO28: 0.02154580768 | AP28: 0.02136741238 | AQ28: 0.02139587807 | AR28: 0.02118530805 | AS28: 0.02097290282 | AT28: 0.02073597026 | AU28: 0.02039961869 | AV28: 0.02022758698 | AW28: 0.02005685528 | AX28: 0.01988454115 | AY28: 0.01968559615 | AZ28: 0.01964608941 | BA28: 0.01966190048
A29: 0.06000000238 | C29: 22 | D29: 0.004616082825 | E29: 0.004662047304 | F29: 0.004682969884 | G29: 0.005264400839 | H29: 0.006898054522 | I29: 0.007310466563 | J29: 0.008469330079 | K29: 0.009666262363 | L29: 0.01019201098 | M29: 0.01194377528 | N29: 0.01539296346 | O29: 0.01954192261 | P29: 0.02311884684 | Q29: 0.02695581717 | R29: 0.03310342661 | S29: 0.0301035834 | T29: 0.035958434 | U29: 0.03772926609 | V29: 0.03607521248 | W29: 0.02698775726 | X29: 0.02113969137 | Y29: 0.009182969553 | Z29: 0.01075970551 | AA29: 0.01518218941 | AB29: 0.01612699498 | AC29: 0.01719402283 | AD29: 0.0168181704 | AE29: 0.01697829781 | AF29: 0.01618567687 | AG29: 0.01601231658 | AH29: 0.01700410744 | AI29: 0.01595388599 | AJ29: 0.01682945501 | AK29: 0.01870388631 | AL29: 0.01922651212 | AM29: 0.01992752121 | AN29: 0.02026749701 | AO29: 0.02045394901 | AP29: 0.02041125949 | AQ29: 0.02022345458 | AR29: 0.02026318362 | AS29: 0.02009116054 | AT29: 0.01989771158 | AU29: 0.01968364936 | AV29: 0.01937007996 | AW29: 0.01921028665 | AX29: 0.01904825011 | AY29: 0.01888293095 | AZ29: 0.01869533817 | BA29: 0.01865580188
A30: 0.06000000238 | C30: 23 | D30: 0.004380045076 | E30: 0.004399037572 | F30: 0.004416716444 | G30: 0.004414265752 | H30: 0.004972112782 | I30: 0.00653421123 | J30: 0.006940202849 | K30: 0.008043803 | L30: 0.00912337495 | M30: 0.009633981838 | N30: 0.01135419552 | O30: 0.01449422093 | P30: 0.01837991718 | Q30: 0.02170613245 | R30: 0.02530990966 | S30: 0.03109967757 | T30: 0.02830767547 | U30: 0.03388449539 | V30: 0.03564056675 | W30: 0.03419933428 | X30: 0.02566446911 | Y30: 0.0201713996 | Z30: 0.008808543672 | AA30: 0.01030288425 | AB30: 0.01460525438 | AC30: 0.01553855355 | AD30: 0.01655002825 | AE30: 0.01607147266 | AF30: 0.01614683363 | AG30: 0.01524180238 | AH30: 0.01509782468 | AI30: 0.01608841201 | AJ30: 0.01510639402 | AK30: 0.01594823122 | AL30: 0.01771363588 | AM30: 0.01820622569 | AN30: 0.0188602495 | AO30: 0.01918484323 | AP30: 0.01937689536 | AQ30: 0.01931849172 | AR30: 0.01915282804 | AS30: 0.01921666062 | AT30: 0.01906117247 | AU30: 0.01888793111 | AV30: 0.01869024455 | AW30: 0.01839590599 | AX30: 0.01824425314 | AY30: 0.01808876498 | AZ30: 0.01793304998 | BA30: 0.01775297453
A31: 0.06000000238 | C31: 24 | D31: 0.004156067694 | E31: 0.004174098167 | F31: 0.00416754707 | G31: 0.004163289668 | H31: 0.004169178571 | I31: 0.004709854796 | J31: 0.006203263636 | K31: 0.006591504166 | L31: 0.007592037959 | M31: 0.008623855362 | N31: 0.00915842025 | O31: 0.01069126285 | P31: 0.01363236288 | Q31: 0.01725678273 | R31: 0.02038076783 | S31: 0.02377790188 | T31: 0.02924434504 | U31: 0.026675002 | V31: 0.03200864329 | W31: 0.03378728973 | X31: 0.03252244156 | Y31: 0.02448892242 | Z31: 0.01934893209 | AA31: 0.008434562246 | AB31: 0.009911366615 | AC31: 0.01407233819 | AD31: 0.01495656385 | AE31: 0.01581523556 | AF31: 0.01528441768 | AG31: 0.0152052243 | AH31: 0.01437131592 | AI31: 0.0142847853 | AJ31: 0.01523377384 | AK31: 0.01431539314 | AL31: 0.015103875 | AM31: 0.01677363272 | AN31: 0.01723114258 | AO31: 0.01785276839 | AP31: 0.01817461751 | AQ31: 0.01833950486 | AR31: =AR65*(1-AR$41-AR$71)/SUM(AR$42:AR$70) -> 0.01829577378 | AS31: 0.01816365105 | AT31: 0.01823150443 | AU31: 0.01809384516 | AV31: 0.01793468503 | AW31: 0.01775026135 | AX31: 0.01747082549 | AY31: 0.01732526639 | AZ31: 0.01717883349 | BA31: 0.0170291105
A32: 0.06000000238 | C32: 25 | D32: 0.003931918381 | E32: 0.003960652058 | F32: 0.003954444648 | G32: 0.003928417383 | H32: 0.003932137086 | I32: 0.00394927198 | J32: 0.004471308007 | K32: 0.00589159121 | L32: 0.006221304753 | M32: 0.007176361557 | N32: 0.008198156578 | O32: 0.008623691394 | P32: 0.01005553699 | Q32: 0.01279933538 | R32: 0.01620309298 | S32: 0.0191471208 | T32: 0.02235936901 | U32: 0.02755764822 | V32: 0.02519826882 | W32: 0.03034422298 | X32: 0.03213060075 | Y32: 0.03103276926 | Z32: 0.02349041248 | AA32: 0.01852744088 | AB32: 0.008114042306 | AC32: 0.009549720894 | AD32: 0.01354526494 | AE32: 0.01429251823 | AF32: 0.01504072906 | AG32: 0.01439310049 | AH32: 0.01433682688 | AI32: 0.01359740007 | AJ32: 0.01352595821 | AK32: 0.0144361031 | AL32: 0.01355748518 | AM32: 0.01430236308 | AN32: 0.01587527595 | AO32: 0.01631068547 | AP32: 0.01691268639 | AQ32: 0.01720159396 | AR32: 0.01736861433 | AS32: 0.01735086066 | AT32: 0.01723247817 | AU32: 0.0173062816 | AV32: 0.01718067543 | AW32: 0.01703270097 | AX32: 0.01685764858 | AY32: 0.01659079729 | AZ32: 0.01645374168 | BA32: 0.0163129113
A33: 0.06000000238 | C33: 26 | D33: 0.003721091076 | E33: 0.003747042102 | F33: 0.003752230711 | G33: 0.003727542565 | H33: 0.003710305291 | I33: 0.003724733433 | J33: 0.003749247522 | K33: 0.004246654744 | L33: 0.00556070109 | M33: 0.005880678219 | N33: 0.006822115311 | O33: 0.007719494235 | P33: 0.008110907856 | Q33: 0.009441077204 | R33: 0.01201781494 | S33: 0.01522232043 | T33: 0.01800484928 | U33: 0.02106977006 | V33: 0.02603205158 | W33: 0.02388798179 | X33: 0.02885635756 | Y33: 0.0306588765 | Z33: 0.02976744088 | AA33: 0.0224930878 | AB33: 0.01782338368 | AC33: 0.007817977314 | AD33: 0.00919204029 | AE33: 0.01294387855 | AF33: 0.01359258251 | AG33: 0.01416362268 | AH33: 0.01357108491 | AI33: 0.01356476831 | AJ33: 0.01287508782 | AK33: 0.0128177121 | AL33: 0.01367180433 | AM33: 0.01283803498 | AN33: 0.01353636177 | AO33: 0.01502724684 | AP33: 0.01545180569 | AQ33: 0.01600722348 | AR33: 0.01629094425 | AS33: 0.01647158578 | AT33: 0.01646135607 | AU33: 0.01635795449 | AV33: 0.01643285904 | AW33: 0.01631661257 | AX33: 0.01617617238 | AY33: 0.0160085069 | AZ33: 0.01575621909 | BA33: 0.01562436872
A34: 0.06000000238 | C34: 27 | D34: 0.003509471426 | E34: 0.003546127761 | F34: 0.003549861549 | G34: 0.003536931462 | H34: 0.003520583368 | I34: 0.00351460233 | J34: 0.003536081502 | K34: 0.00356087296 | L34: 0.004008149381 | M34: 0.005256243678 | N34: 0.005590390701 | O34: 0.006423795315 | P34: 0.007260476237 | Q34: 0.007615277763 | R34: 0.008864610174 | S34: 0.0112903771 | T34: 0.01431419313 | U34: 0.0169664016 | V34: 0.01990334359 | W34: 0.0246784086 | X34: 0.02271668463 | Y34: 0.0275346082 | Z34: 0.02940879321 | AA34: 0.02850361449 | AB34: 0.02163833294 | AC34: 0.01717304446 | AD34: 0.007525158405 | AE34: 0.008783929565 | AF34: 0.01230998865 | AG34: 0.0127999254 | AH34: 0.01335471299 | AI34: 0.01284026264 | AJ34: 0.0128441895 | AK34: 0.01220092257 | AL34: 0.01213909672 | AM34: 0.01294628759 | AN34: 0.01215045967 | AO34: 0.01281327331 | AP34: 0.01423594971 | AQ34: 0.01462455467 | AR34: 0.01515980356 | AS34: 0.01544957361 | AT34: 0.01562715786 | AU34: 0.01562596574 | AV34: 0.01553239261 | AW34: 0.01560640589 | AX34: 0.01549609413 | AY34: 0.01536135754 | AZ34: 0.01520322004 | BA34: 0.01496200569
A35: 0.06000000238 | C35: 28 | D35: 0.003321974024 | E35: 0.003344458332 | F35: 0.003359519922 | G35: 0.003346174041 | H35: 0.003340555302 | I35: 0.003334887439 | J35: 0.003336593211 | K35: 0.003358417104 | L35: 0.003360883239 | M35: 0.003788696696 | N35: 0.004996780081 | O35: =O69*(1-O$41-O$71)/SUM(O$42:O$70) -> 0.005263986895 | P35: 0.006041822407 | Q35: 0.006816813138 | R35: 0.007150293052 | S35: 0.008328035689 | T35: 0.01061682015 | U35: 0.01348860774 | V35: 0.01602713839 | W35: 0.01886838784 | X35: 0.02346835452 | Y35: 0.02167615957 | Z35: 0.02641191364 | AA35: 0.0281601938 | AB35: 0.02742045492 | AC35: 0.02084879393 | AD35: 0.01652983562 | AE35: 0.00719105436 | AF35: 0.008353761421 | AG35: 0.01159212654 | AH35: 0.01206889888 | AI35: 0.01263554265 | AJ35: 0.01215817055 | AK35: 0.01217164215 | AL35: 0.01155496223 | AM35: 0.01149491562 | AN35: 0.01225291453 | AO35: 0.01150140365 | AP35: 0.01213855847 | AQ35: 0.01347379258 | AR35: =AR69*(1-AR$41-AR$71)/SUM(AR$42:AR$70) -> 0.01385033302 | AS35: 0.0143768524 | AT35: 0.0146575399 | AU35: 0.01483410189 | AV35: 0.01483734625 | AW35: 0.01475122636 | AX35: 0.01482160183 | AY35: 0.01471553571 | AZ35: 0.01458862468 | BA35: 0.01443688131
A36: 0.06000000238 | C36: 29 | D36: 0.003156295042 | E36: 0.003165776937 | F36: 0.00316846294 | G36: 0.003166754026 | H36: 0.003160389041 | I36: 0.003164355094 | J36: 0.003165980598 | K36: 0.003168951763 | L36: 0.003169797934 | M36: 0.003176869426 | N36: 0.00360167552 | O36: 0.00470503517 | P36: 0.00495097873 | Q36: 0.005672627114 | R36: 0.006400582243 | S36: 0.006717486111 | T36: 0.007831204958 | U36: 0.01000448444 | V36: 0.01274187585 | W36: 0.01519374179 | X36: 0.01794321596 | Y36: 0.02239339964 | Z36: 0.02079233706 | AA36: 0.02529055176 | AB36: 0.02709008448 | AC36: 0.02641993798 | AD36: 0.02006791151 | AE36: 0.01579593945 | AF36: 0.00683889278 | AG36: 0.007866608344 | AH36: 0.01093007956 | AI36: 0.01141897147 | AJ36: 0.01196432557 | AK36: 0.01152154452 | AL36: 0.01152723202 | AM36: 0.01094177919 | AN36: 0.01087927467 | AO36: 0.01159838554 | AP36: 0.01089576858 | AQ36: 0.01148869042 | AR36: =AR70*(1-AR$41-AR$71)/SUM(AR$42:AR$70) -> 0.0127604921 | AS36: 0.01313501147 | AT36: 0.01363981253 | AU36: 0.01391369066 | AV36: 0.01408544661 | AW36: 0.01409113578 | AX36: 0.01400942697 | AY36: 0.01407501847 | AZ36: 0.01397529007 | BA36: 0.01385326545
A37: 0.6999999881 | C37: 30 | D37: 0.06725295787 | E37: =D37 -> 0.06725295787 | F37: =E37 -> 0.06725295787 | G37: 0.06725295787 | H37: 0.06725295787 | I37: 0.06725295787 | J37: 0.06725295787 | K37: 0.06725295787 | L37: 0.06725295787 | M37: 0.06725295787 | N37: 0.06725295787 | O37: 0.06725295787 | P37: 0.06725295787 | Q37: 0.06725295787 | R37: 0.06725295787 | S37: 0.06725295787 | T37: 0.06725295787 | U37: 0.06725295787 | V37: 0.06725295787 | W37: 0.06725295787 | X37: 0.06725295787 | Y37: 0.06725295787 | Z37: 0.06725295787 | AA37: 0.06725295787 | AB37: 0.06725295787 | AC37: 0.06725295787 | AD37: 0.06725295787 | AE37: 0.06725295787 | AF37: 0.06725295787 | AG37: 0.06725295787 | AH37: 0.06725295787 | AI37: 0.06725295787 | AJ37: 0.06725295787 | AK37: 0.06725295787 | AL37: 0.06725295787 | AM37: 0.06725295787 | AN37: 0.06725295787 | AO37: 0.06725295787 | AP37: 0.06725295787 | AQ37: 0.06725295787 | AR37: =AQ37 -> 0.06725295787 | AS37: =AR37 -> 0.06725295787 | AT37: =AS37 -> 0.06725295787 | AU37: =AT37 -> 0.06725295787 | AV37: =AU37 -> 0.06725295787 | AW37: =AV37 -> 0.06725295787 | AX37: =AW37 -> 0.06725295787 | AY37: =AX37 -> 0.06725295787 | AZ37: =AY37 -> 0.06725295787 | BA37: =AZ37 -> 0.06725295787
C39: Intermediate table
C40: age | D40: 2011 | E40: 2012 | F40: 2013 | G40: 2014 | H40: 2015 | I40: 2016 | J40: 2017 | K40: 2018 | L40: 2019 | M40: 2020 | N40: 2021 | O40: 2022 | P40: 2023 | Q40: 2024 | R40: 2025 | S40: 2026 | T40: 2027 | U40: 2028 | V40: 2029 | W40: 2030 | X40: 2031 | Y40: 2032 | Z40: 2033 | AA40: 2034 | AB40: 2035 | AC40: 2036 | AD40: 2037 | AE40: 2038 | AF40: 2039 | AG40: 2040 | AH40: 2041 | AI40: 2042 | AJ40: 2043 | AK40: 2044 | AL40: 2045 | AM40: 2046 | AN40: 2047 | AO40: 2048 | AP40: 2049 | AQ40: 2050 | AR40: 2051 | AS40: 2052 | AT40: 2053 | AU40: 2054 | AV40: 2055 | AW40: 2056 | AX40: 2057 | AY40: 2058 | AZ40: 2059 | BA40: 2060
C41: 0 | D41: =D7 -> 0.03530578024 | E41: =E2 -> 0.04686505556 | F41: =F2 -> 0.04875729898 | G41: 0.0519262448 | H41: 0.05047279052 | I41: 0.04964833369 | J41: 0.04666999889 | K41: 0.04600440528 | L41: 0.05085557988 | M41: 0.04906317841 | N41: 0.04906317841 | O41: 0.05380525574 | P41: 0.05493792066 | Q41: 0.05646151825 | R41: 0.0569747318 | S41: 0.0570789104 | T41: 0.05654916013 | U41: 0.05578924455 | V41: 0.05575388045 | W41: 0.05525659107 | X41: 0.05485646015 | Y41: 0.05453994609 | Z41: 0.05420624649 | AA41: 0.054211237 | AB41: 0.05446923091 | AC41: 0.05481423724 | AD41: 0.05504121338 | AE41: 0.05531435485 | AF41: 0.05548423513 | AG41: 0.05570226687 | AH41: 0.05559160383 | AI41: 0.0554886207 | AJ41: 0.05531046433 | AK41: 0.05516562278 | AL41: 0.05529856548 | AM41: 0.05541215801 | AN41: 0.05530697766 | AO41: 0.05512963986 | AP41: 0.05512479726 | AQ41: 0.05528934521 | AR41: =AR2 -> 0.05528934521 | AS41: 0.05528934521 | AT41: 0.05528934521 | AU41: 0.05528934521 | AV41: 0.05528934521 | AW41: 0.05528934521 | AX41: 0.05528934521 | AY41: 0.05528934521 | AZ41: 0.05528934521 | BA41: 0.05528934521
C42: 1 | D42: =D8 -> 0.02986297875 | E42: =MAX(D7*(1-D$3*$A7),0) -> 0.03530578024 | F42: =MAX(E7*(1-E$3*$A7),0) -> 0.04686505556 | G42: 0.04875729898 | H42: 0.0519262448 | I42: 0.05047279052 | J42: 0.04964833369 | K42: 0.04666999889 | L42: 0.04600440528 | M42: 0.05085557988 | N42: 0.04906317841 | O42: 0.04906317841 | P42: 0.05380525574 | Q42: 0.05493792066 | R42: 0.05646151825 | S42: 0.0569747318 | T42: 0.0570789104 | U42: 0.05654916013 | V42: 0.05578924455 | W42: 0.05575388045 | X42: 0.05525659107 | Y42: 0.05485646015 | Z42: 0.05453994609 | AA42: 0.05420624649 | AB42: 0.054211237 | AC42: 0.05446923091 | AD42: 0.05481423724 | AE42: 0.05504121338 | AF42: 0.05531435485 | AG42: 0.05548423513 | AH42: 0.05570226687 | AI42: 0.05559160383 | AJ42: 0.0554886207 | AK42: 0.05531046433 | AL42: 0.05516562278 | AM42: 0.05529856548 | AN42: 0.05541215801 | AO42: 0.05530697766 | AP42: 0.05512963986 | AQ42: 0.05512479726 | AR42: =MAX(AQ7*(1-AQ$3*$A7),0) -> 0.05528934521 | AS42: 0.05528934521 | AT42: 0.05528934521 | AU42: 0.05528934521 | AV42: 0.05528934521 | AW42: 0.05528934521 | AX42: 0.05528934521 | AY42: 0.05528934521 | AZ42: 0.05528934521 | BA42: 0.05528934521
C43: 2 | D43: 0.06559730749 | E43: =MAX(D8*(1-D$3*$A8),0) -> 0.02986297875 | F43: 0.0330735026 | G43: 0.04572107117 | H43: 0.0479008323 | I43: 0.05115632769 | J43: 0.04857650209 | K43: 0.04845786392 | L43: 0.04565382745 | M43: =MAX(L8*(1-L$3*$A8),0) -> 0.04515430355 | N43: 0.05121774118 | O43: 0.04580299216 | P43: 0.0477104361 | Q43: 0.05263424057 | R43: 0.05364215235 | S43: 0.05512905692 | T43: 0.05566350033 | U43: 0.05581250601 | V43: 0.05540535281 | W43: 0.05479129393 | X43: 0.05494815182 | Y43: 0.05463468963 | Z43: 0.05442046272 | AA43: 0.0543866204 | AB43: 0.05397360077 | AC43: 0.05423140071 | AD43: 0.05456972651 | AE43: 0.05485280943 | AF43: 0.05467002336 | AG43: 0.05466258258 | AH43: 0.05427393714 | AI43: 0.0545407335 | AJ43: 0.05460626463 | AK43: 0.05453387747 | AL43: 0.05438504344 | AM43: 0.05420813544 | AN43: 0.05433559801 | AO43: 0.05441778945 | AP43: 0.05431877049 | AQ43: 0.05418646271 | AR43: 0.05412577958 | AS43: 0.05432187435 | AT43: 0.05439644197 | AU43: 0.05441844213 | AV43: 0.05444812994 | AW43: 0.05446424741 | AX43: 0.05447436541 | AY43: 0.05447469542 | AZ43: 0.05446988081 | BA43: 0.05447375002
C44: 3 | D44: 0.07963787373 | E44: 0.06559730749 | F44: 0.02707596336 | G44: 0.03102707332 | H44: 0.0433809176 | I44: 0.0462309109 | J44: 0.04780201786 | K44: 0.0458696887 | L44: 0.04554426498 | M44: 0.04298147416 | N44: 0.04547586397 | O44: 0.0461892112 | P44: 0.04282566762 | Q44: 0.0448796055 | R44: 0.0494212132 | S44: 0.05036713007 | T44: 0.05179857701 | U44: 0.05234950853 | V44: 0.05259762263 | W44: 0.05233948305 | X44: 0.05193717448 | Y44: 0.05225662733 | Z44: 0.05213251893 | AA44: 0.05218802269 | AB44: 0.05207927896 | AC44: 0.05193237182 | AD44: 0.05226642335 | AE44: 0.05254584582 | AF44: 0.05244089476 | AG44: 0.05201724603 | AH44: 0.0514967421 | AI44: 0.05119375574 | AJ44: 0.05162178268 | AK44: 0.05172205766 | AL44: 0.05167857979 | AM44: 0.05150292841 | AN44: 0.05133417916 | AO44: 0.05143015925 | AP44: 0.05151421147 | AQ44: 0.05146367031 | AR44: 0.05128507929 | AS44: 0.05125995124 | AT44: 0.05151617339 | AU44: 0.05160772398 | AV44: 0.05165671937 | AW44: 0.05170017466 | AX44: 0.05172507362 | AY44: 0.05173499556 | AZ44: 0.05173074101 | BA44: 0.05172983934
C45: 4 | D45: 0.1009184364 | E45: 0.07963787373 | F45: 0.05947532258 | G45: 0.02540063296 | H45: 0.0294390065 | I45: 0.04186856972 | J45: 0.04319955963 | K45: 0.04513836082 | L45: 0.04311170753 | M45: 0.04287832495 | N45: 0.04328756107 | O45: 0.04101106837 | P45: 0.04318678132 | Q45: 0.04028466778 | R45: 0.04213995543 | S45: 0.04640389254 | T45: 0.0473243297 | U45: 0.04871468795 | V45: 0.04933409895 | W45: 0.04968711935 | X45: 0.04961308026 | Y45: 0.04939313664 | Z45: 0.04986336761 | AA45: 0.04999393509 | AB45: 0.04997395631 | AC45: 0.05010969141 | AD45: 0.05005069564 | AE45: 0.05032796751 | AF45: 0.05023536989 | AG45: 0.04989628241 | AH45: 0.04900461297 | AI45: 0.04857417344 | AJ45: 0.04845393091 | AK45: 0.0488952108 | AL45: 0.04901398191 | AM45: 0.04893989279 | AN45: 0.04877239427 | AO45: 0.04858923259 | AP45: 0.0486859927 | AQ45: 0.04880652436 | AR45: 0.04870807727 | AS45: 0.04856965912 | AT45: 0.04861239727 | AU45: 0.04887511684 | AV45: 0.04898864449 | AW45: 0.04904964444 | AX45: 0.04910001455 | AY45: 0.04912395829 | AZ45: 0.04912904305 | BA45: 0.04912848866
C46: 5 | D46: 0.09970253872 | E46: 0.1009184364 | F46: 0.07220552811 | G46: 0.05579527565 | H46: 0.02410054571 | I46: 0.02841270226 | J46: 0.03912325626 | K46: 0.04079236394 | L46: 0.04242435179 | M46: 0.04058815759 | N46: 0.04318367729 | O46: 0.03903761186 | P46: 0.03834523248 | Q46: 0.04062435532 | R46: 0.03782551308 | S46: 0.03956717848 | T46: 0.04360052095 | U46: 0.0445068202 | V46: 0.04590864944 | W46: 0.04660418362 | X46: 0.04709888017 | Y46: 0.0471828835 | Z46: 0.04713101966 | AA46: 0.04781786906 | AB46: 0.04787295244 | AC46: 0.04808399002 | AD46: 0.04829405678 | AE46: 0.04819441666 | AF46: 0.04811501317 | AG46: 0.04779777718 | AH46: 0.04700648717 | AI46: 0.04622347887 | AJ46: 0.04597454534 | AK46: 0.0458946794 | AL46: 0.04633514377 | AM46: 0.04641650428 | AN46: 0.04634524328 | AO46: 0.04616443173 | AP46: 0.04599664978 | AQ46: 0.04612696227 | AR46: 0.0461932067 | AS46: 0.04612910309 | AT46: 0.04606105755 | AU46: 0.0461202073 | AV46: 0.0463947165 | AW46: 0.04651622525 | AX46: 0.04658278762 | AY46: 0.04663090641 | AZ46: 0.04664952679 | BA46: 0.04665766596
C47: 6 | D47: 0.08954243121 | E47: 0.09970253872 | F47: 0.09150004459 | G47: 0.06773779728 | H47: 0.05293949144 | I47: 0.02326035119 | J47: 0.02654968725 | K47: 0.03694320315 | L47: 0.03833966424 | M47: 0.03994103632 | N47: 0.04087720081 | O47: 0.03894392733 | P47: 0.03650005624 | Q47: 0.03607007287 | R47: 0.03814446458 | S47: 0.03551614642 | T47: 0.03717682935 | U47: 0.04100471278 | V47: 0.04194316114 | W47: 0.04336828226 | X47: 0.04417653686 | Y47: 0.04479183643 | Z47: 0.04502199214 | AA47: 0.04519760767 | AB47: 0.04578920557 | AC47: 0.04606244406 | AD47: 0.04634175304 | AE47: 0.04650292798 | AF47: 0.04607527597 | AG47: 0.04578030745 | AH47: 0.04502951906 | AI47: 0.04433875169 | AJ47: 0.04374965695 | AK47: 0.04354625062 | AL47: 0.04349171491 | AM47: 0.04387963016 | AN47: 0.04395563743 | AO47: 0.04386706561 | AP47: 0.04370122937 | AQ47: 0.04357897644 | AR47: 0.04365712024 | AS47: 0.04374738879 | AT47: 0.04374655516 | AU47: 0.04369966598 | AV47: 0.04377961796 | AW47: 0.04405321081 | AX47: 0.04417678183 | AY47: 0.04424026407 | AZ47: 0.04428205286 | BA47: 0.04430287877
C48: 7 | D48: 0.07049078065 | E48: 0.08954243121 | F48: 0.0903976227 | G48: 0.08583846187 | H48: 0.06427075585 | I48: 0.05109391203 | J48: 0.02173517477 | K48: 0.02507026724 | L48: 0.0347219398 | M48: 0.03609544654 | N48: 0.04022547115 | O48: 0.03686389946 | P48: 0.03641246148 | Q48: 0.03433437753 | R48: 0.03386819572 | S48: 0.03581562493 | T48: 0.03337052996 | U48: 0.0349634632 | V48: 0.03864278032 | W48: 0.03962222529 | X48: 0.04110919602 | Y48: 0.04201263822 | Z48: 0.04274045074 | AA48: 0.04317509683 | AB48: 0.04328010825 | AC48: 0.04405750247 | AD48: 0.04439345417 | AE48: 0.04462303123 | AF48: 0.04445816318 | AG48: 0.0438395453 | AH48: 0.0431288932 | AI48: 0.04247398145 | AJ48: 0.04196579798 | AK48: 0.04143887693 | AL48: 0.04126624572 | AM48: 0.04118688775 | AN48: 0.04155326093 | AO48: 0.04160523701 | AP48: 0.04152644416 | AQ48: 0.04140420779 | AR48: 0.04124556486 | AS48: 0.04134558194 | AT48: 0.04148785537 | AU48: 0.04150382015 | AV48: 0.04148191852 | AW48: 0.04157009428 | AX48: 0.04183763993 | AY48: 0.04195524987 | AZ48: 0.04201182999 | BA48: 0.04205449776
C49: 8 | D49: 0.07282324237 | E49: 0.07049078065 | F49: 0.08118572522 | G49: 0.08480425255 | H49: 0.08144496938 | I49: 0.06203014529 | J49: =MAX(I14*(1-I$3*$A14),0) -> 0.04774369478 | K49: 0.02052403235 | L49: 0.02356288128 | M49: 0.03268948611 | N49: 0.0363524955 | O49: 0.03627615626 | P49: 0.03446764132 | Q49: 0.03425198007 | R49: 0.03223845492 | S49: 0.03180043575 | T49: 0.03365191625 | U49: 0.0313837763 | V49: 0.0329495157 | W49: 0.03650447191 | X49: 0.03755827397 | Y49: 0.03909554489 | Z49: 0.04008853481 | AA49: 0.04098714898 | AB49: 0.04134340202 | AC49: 0.04164329676 | AD49: 0.04246115803 | AE49: 0.04274699082 | AF49: 0.04266092674 | AG49: 0.04230090038 | AH49: 0.04130053232 | AI49: 0.04068122085 | AJ49: 0.04020082788 | AK49: 0.03974923826 | AL49: 0.03926921039 | AM49: 0.03907935646 | AN49: 0.03900327982 | AO49: 0.03933132064 | AP49: 0.03938530027 | AQ49: 0.03934373352 | AR49: 0.03918724297 | AS49: 0.03906171255 | AT49: 0.03921010078 | AU49: 0.0393609161 | AV49: 0.03939751133 | AW49: 0.03938835797 | AX49: 0.03947940694 | AY49: 0.03973373714 | AZ49: 0.03984191463 | BA49: 0.0398984757
C50: 9 | D50: 0.05567851652 | E50: 0.07282324237 | F50: 0.06391210369 | G50: 0.07616234298 | H50: 0.08046369427 | I50: 0.07860563047 | J50: 0.05796284149 | K50: 0.04508328765 | L50: 0.01928999531 | M50: 0.02218362467 | N50: 0.03292227998 | O50: 0.03278342726 | P50: 0.0339181031 | Q50: 0.03242255304 | R50: 0.03216108737 | S50: 0.03027019575 | T50: 0.02987929437 | U50: 0.03164840993 | V50: 0.02957602409 | W50: 0.03112624559 | X50: 0.03460292669 | Y50: 0.0357185576 | Z50: 0.03730503912 | AA50: 0.03844402014 | AB50: 0.03924827742 | AC50: 0.03977983487 | AD50: 0.04013442673 | AE50: 0.04088635963 | AF50: 0.04086737709 | AG50: 0.04059087203 | AH50: 0.03985099962 | AI50: 0.03895662402 | AJ50: 0.03850401355 | AK50: 0.03807749078 | AL50: 0.03766803822 | AM50: 0.03718815328 | AN50: 0.03700748366 | AO50: 0.03691769238 | AP50: 0.03723271359 | AQ50: 0.03731513232 | AR50: 0.03723709562 | AS50: 0.0371123738 | AT50: 0.03704419225 | AU50: 0.03719993414 | AV50: 0.03736335914 | AW50: 0.03740914921 | AX50: 0.03740739682 | AY50: 0.03749409337 | AZ50: 0.03773230212 | BA50: 0.03783771531
C51: 10 | D51: 0.0448350442 | E51: 0.05567851652 | F51: 0.06602688429 | G51: 0.05995753008 | H51: 0.07226410582 | I51: 0.07765856462 | J51: 0.07345147553 | K51: 0.05473299601 | L51: 0.04237258998 | M51: 0.01816085269 | N51: 0.02234160243 | O51: 0.02968998843 | P51: 0.0306524114 | Q51: 0.03190562089 | R51: 0.03044333667 | S51: 0.03019755173 | T51: 0.02844149988 | U51: 0.02810039552 | V51: 0.02982541443 | W51: 0.02793942703 | X51: 0.02950485619 | Y51: 0.03290797205 | Z51: 0.03408271178 | AA51: 0.0357747092 | AB51: 0.0368130403 | AC51: 0.03776394584 | AD51: 0.03833848403 | AE51: 0.03864592209 | AF51: 0.03908855909 | AG51: 0.03888435156 | AH51: 0.03824000935 | AI51: 0.03758935592 | AJ51: 0.03687171495 | AK51: 0.0364702992 | AL51: 0.03608382049 | AM51: 0.03567183463 | AN51: 0.03521654652 | AO51: 0.03502861564 | AP51: 0.03494786965 | AQ51: 0.03527568978 | AR51: 0.03531711472 | AS51: 0.035265482 | AT51: 0.03519553598 | AU51: 0.03514506426 | AV51: 0.03531204649 | AW51: 0.03547765912 | AX51: 0.03552772853 | AY51: 0.03552627909 | AZ51: 0.03560547183 | BA51: 0.0358342243
C52: 11 | D52: 0.03564470171 | E52: 0.0448350442 | F52: 0.05048222034 | G52: 0.06194145822 | H52: 0.0568887081 | I52: 0.06974483067 | J52: 0.07256650859 | K52: 0.06935856169 | L52: 0.05144209572 | M52: 0.0398923044 | N52: 0.01829018281 | O52: 0.02014811605 | P52: 0.02776005488 | Q52: 0.02883369434 | R52: 0.02995796035 | S52: 0.02858467513 | T52: 0.02837324446 | U52: 0.02674820181 | V52: 0.02648177093 | W52: 0.02817501728 | X52: 0.02648404139 | Y52: 0.02805962026 | Z52: 0.03140084601 | AA52: 0.0326845684 | AB52: 0.03425697435 | AC52: 0.03542080702 | AD52: 0.03639563712 | AE52: 0.03691658727 | AF52: 0.03694663508 | AG52: 0.03719184793 | AH52: 0.03663232379 | AI52: 0.03606979336 | AJ52: 0.0355776213 | AK52: 0.03492421574 | AL52: 0.03456077863 | AM52: 0.03417157193 | AN52: 0.03378061863 | AO52: 0.03333344368 | AP52: 0.03315958865 | AQ52: 0.03311094168 | AR52: 0.03338687297 | AS52: 0.03344715942 | AT52: 0.03344403534 | AU52: 0.03339118223 | AV52: 0.03336146077 | AW52: 0.03352987464 | AX52: 0.03369337899 | AY52: 0.03374113428 | AZ52: 0.03373677867 | BA52: 0.03381438164
C53: 12 | D53: 0.02643763318 | E53: 0.03564470171 | F53: 0.04065073429 | G53: 0.04735862333 | H53: 0.05877109234 | I53: 0.05490545089 | J53: 0.06517167654 | K53: 0.06852290749 | L53: 0.06518827817 | M53: 0.04843092532 | N53: 0.04017639218 | O53: 0.01649446261 | P53: 0.0188384313 | Q53: 0.02611295167 | R53: 0.02707355782 | S53: 0.02812893256 | T53: 0.02685780564 | U53: 0.02668401006 | V53: 0.02520746559 | W53: 0.02501639517 | X53: 0.02670735957 | Y53: 0.02518677399 | Z53: 0.02677454003 | AA53: 0.03011271831 | AB53: 0.03129793215 | AC53: 0.03296140899 | AD53: 0.03413739772 | AE53: 0.03504579661 | AF53: 0.03529334027 | AG53: 0.03515385743 | AH53: 0.03503784327 | AI53: 0.03455334798 | AJ53: 0.03413938381 | AK53: 0.03369847385 | AL53: 0.03309564538 | AM53: 0.0327292431 | AN53: 0.03235989546 | AO53: 0.03197429788 | AP53: 0.03155486623 | AQ53: 0.03141665621 | AR53: 0.03133803508 | AS53: 0.03161911928 | AT53: 0.03171962832 | AU53: 0.03172947498 | AV53: 0.03169658782 | AW53: 0.03167773348 | AX53: 0.03184355456 | AY53: 0.03199902926 | AZ53: 0.0320415537 | BA53: 0.03203969083
C54: 13 | D54: 0.01950099193 | E54: 0.02643763318 | F54: 0.03231809679 | G54: 0.03813546235 | H54: 0.0449346545 | I54: 0.05672221135 | J54: 0.05130531183 | K54: 0.06154013538 | L54: 0.06440286889 | M54: 0.06137247303 | N54: 0.04877581977 | O54: 0.03623189584 | P54: 0.0154222757 | Q54: 0.01772067988 | R54: 0.02451890134 | S54: 0.02542063188 | T54: 0.02642959558 | U54: 0.02525879467 | V54: 0.02514697138 | W54: 0.02381260386 | X54: 0.02371327245 | Y54: 0.02539915338 | Z54: 0.02403326496 | AA54: 0.02567619298 | AB54: 0.02883519228 | AC54: 0.03011427488 | AD54: 0.03176711156 | AE54: 0.03287131075 | AF54: 0.03350480953 | AG54: 0.03358078617 | AH54: 0.03311788511 | AI54: 0.03304935821 | AJ54: 0.03270409665 | AK54: 0.03233620153 | AL54: 0.03193408117 | AM54: 0.03134175403 | AN54: 0.03099403467 | AO54: 0.03062954376 | AP54: 0.03026824057 | AQ54: 0.02989628111 | AR54: 0.02973446917 | AS54: 0.02967876237 | AT54: 0.02998600565 | AU54: 0.03009347237 | AV54: 0.03011921181 | AW54: 0.03009688539 | AX54: 0.03008456325 | AY54: 0.03024222754 | AZ54: 0.03038720056 | BA54: 0.0304297421
C55: 14 | D55: 0.01572971675 | E55: 0.01950099193 | F55: 0.02397029424 | G55: 0.03031840838 | H55: 0.03618356499 | I55: 0.04336814015 | J55: 0.05300294768 | K55: 0.04844644182 | L55: 0.05783994601 | M55: 0.06063303779 | N55: 0.061809529 | O55: 0.04398703631 | P55: 0.03387671974 | Q55: 0.014507217 | R55: 0.01663893102 | S55: 0.02302194522 | T55: 0.02388490991 | U55: 0.0248560786 | V55: 0.02380385051 | W55: 0.02375545711 | X55: 0.02257218752 | Y55: 0.02255172558 | Z55: 0.02423591776 | AA55: 0.02304737068 | AB55: 0.02458688565 | AC55: 0.02774467343 | AD55: 0.02902313824 | AE55: 0.0305889337 | AF55: 0.03142593726 | AG55: 0.03187904108 | AH55: 0.03163591991 | AI55: 0.03123836247 | AJ55: 0.03128059851 | AK55: =MAX(AJ20*(1-AJ$3*$A20),0) -> 0.03097672372 | AL55: 0.03064313503 | AM55: 0.03024174648 | AN55: 0.0296801062 | AO55: 0.02933671842 | AP55: 0.0289952387 | AQ55: 0.028677283 | AR55: 0.0282955017 | AS55: 0.02816010137 | AT55: 0.02814586732 | AU55: 0.02844872655 | AV55: 0.02856623593 | AW55: 0.02859911834 | AX55: 0.02858322086 | AY55: 0.02857169119 | AZ55: 0.02871889101 | BA55: 0.02885860919
C56: 15 | D56: 0.01408045026 | E56: 0.01572971675 | F56: 0.01768102732 | G56: 0.02248712771 | H56: 0.02876661334 | I56: 0.0349221316 | J56: 0.04052450017 | K56: 0.05004948082 | L56: 0.04553352965 | M56: 0.05445427654 | N56: 0.06106482797 | O56: 0.05574110305 | P56: 0.04112775405 | Q56: 0.03186669295 | R56: 0.01362163216 | S56: 0.0156230719 | T56: 0.02163113372 | U56: =MAX(T21*(1-T$3*$A21),0) -> 0.02246289378 | V56: 0.02342433149 | W56: 0.02248665819 | X56: 0.0225180176 | Y56: 0.0214665344 | Z56: 0.02151889704 | AA56: 0.02324171024 | AB56: 0.02206959061 | AC56: 0.02365703361 | AD56: 0.02673939504 | AE56: 0.02794672879 | AF56: 0.02924391785 | AG56: 0.02990104283 | AH56: 0.03003273317 | AI56: 0.02984050249 | AJ56: 0.02956652496 | AK56: 0.02962841224 | AL56: 0.02935483708 | AM56: 0.02901921355 | AN56: 0.02863841783 | AO56: 0.02809304847 | AP56: 0.02777139483 | AQ56: 0.02747119258 | AR56: 0.02714177415 | AS56: 0.02679732373 | AT56: 0.0267056445 | AU56: 0.02670292577 | AV56: 0.02700496057 | AW56: 0.02712451996 | AX56: 0.0271607811 | AY56: 0.02714584728 | AZ56: 0.02713250154 | BA56: 0.02727422194
C57: 16 | D57: 0.01171707986 | E57: 0.01408045026 | F57: 0.01426171307 | G57: 0.01658701038 | H57: 0.02133616316 | I57: 0.02776375012 | J57: 0.03263229465 | K57: 0.03826636599 | L57: 0.04704018363 | M57: 0.04286821802 | N57: 0.05484206549 | O57: 0.05506951636 | P57: 0.05211777308 | Q57: 0.03868749749 | R57: 0.02992140874 | S57: 0.01278998863 | T57: 0.01467924427 | U57: 0.0203432988 | V57: 0.02116899767 | W57: 0.02212813995 | X57: 0.02131531136 | Y57: 0.02141501788 | Z57: 0.02048340566 | AA57: 0.02063614734 | AB57: 0.02225568536 | AC57: 0.02123494022 | AD57: 0.0227998635 | AE57: 0.02574768501 | AF57: 0.02671789246 | AG57: 0.0278249025 | AH57: 0.02816929275 | AI57: 0.02832830059 | AJ57: 0.02824347668 | AK57: 0.02800487305 | AL57: 0.02807712082 | AM57: 0.02779918847 | AN57: 0.0274807 | AO57: 0.02710706137 | AP57: 0.02659408357 | AQ57: 0.02631167633 | AR57: 0.02600026315 | AS57: 0.02570468324 | AT57: 0.02541325372 | AU57: 0.0253365382 | AV57: 0.02534775876 | AW57: 0.02564204096 | AX57: 0.02576034479 | AY57: 0.02579493821 | AZ57: 0.02577847906 | BA57: 0.02576763387
C58: 17 | D58: 0.009601575363 | E58: 0.01171707986 | F58: 0.0127663673 | G58: 0.01337926685 | H58: 0.01573803308 | I58: 0.02059234069 | J58: 0.02594328676 | K58: 0.03081393539 | L58: 0.03596554556 | M58: 0.04428667979 | N58: 0.04317349838 | O58: 0.04945770132 | P58: 0.05148984144 | Q58: 0.04902543944 | R58: 0.03632584114 | S58: 0.02809461254 | T58: 0.01201731443 | U58: 0.01380529824 | V58: 0.01917149452 | W58: 0.01999760562 | X58: 0.0209754686 | Y58: 0.02027122378 | Z58: 0.0204342485 | AA58: 0.01964313397 | AB58: 0.01976066293 | AC58: 0.02141399704 | AD58: 0.02046553031 | AE58: 0.02195426272 | AF58: 0.0246155421 | AG58: 0.02542144854 | AH58: 0.02621339425 | AI58: 0.02657061507 | AJ58: 0.0268122059 | AK58: 0.02675170585 | AL58: 0.02653858728 | AM58: 0.0265891843 | AN58: 0.02632535707 | AO58: 0.02601124915 | AP58: 0.02566070592 | AQ58: 0.02519624683 | AR58: =MAX(AQ23*(1-AQ$3*$A23),0) -> 0.02490283254 | AS58: 0.02462361248 | AT58: 0.02437704764 | AU58: 0.02411040384 | AV58: 0.02405071502 | AW58: 0.02406847685 | AX58: 0.0243524242 | AY58: 0.02446492608 | AZ58: 0.02449561686 | BA58: 0.02448172385
C59: 18 | D59: 0.008582040698 | E59: =MAX(D24*(1-D$3*$A24),0) -> 0.009601575363 | F59: 0.01062356263 | G59: 0.01197644589 | H59: 0.01269447233 | I59: 0.01518937292 | J59: 0.01924210517 | K59: 0.02449765702 | L59: 0.0289612031 | M59: 0.03386029723 | N59: 0.04460206154 | O59: 0.03893474778 | P59: 0.0462428103 | Q59: 0.04843476522 | R59: 0.04603270928 | S59: 0.03410803418 | T59: 0.02639734892 | U59: 0.01130184951 | V59: 0.01301009252 | W59: 0.01811063483 | X59: 0.0189559154 | Y59: 0.01994802754 | Z59: 0.01934283813 | AA59: 0.01959599333 | AB59: 0.01880977795 | AC59: 0.01901333393 | AD59: 0.02063809933 | AE59: 0.01970650522 | AF59: 0.02098891913 | AG59: 0.02342111144 | AH59: 0.02394913884 | AI59: 0.0247257187 | AJ59: 0.02514858948 | AK59: 0.02539603229 | AL59: 0.0253510337 | AM59: 0.02513218477 | AN59: 0.02517950378 | AO59: 0.02491768484 | AP59: 0.02462336312 | AQ59: 0.02431192933 | AR59: 0.02384712808 | AS59: 0.02358428815 | AT59: 0.0233518137 | AU59: 0.02312732047 | AV59: 0.02288680669 | AW59: 0.02283689392 | AX59: 0.02285799944 | AY59: 0.02312780605 | AZ59: 0.02323259901 | BA59: 0.02326339449
C60: 19 | D60: 0.006185928817 | E60: 0.008582040698 | F60: 0.008705491336 | G60: 0.009966227664 | H60: 0.01136345232 | I60: 0.01225191695 | J60: 0.01419340888 | K60: 0.0181698833 | L60: 0.02302470007 | M60: 0.02726595495 | N60: 0.03410142887 | O60: 0.04022305539 | P60: 0.03640387862 | Q60: 0.04349905919 | R60: 0.04547809244 | S60: 0.04322226746 | T60: 0.03204748519 | U60: 0.02482575178 | V60: 0.01065084617 | W60: 0.01229017563 | X60: 0.01716723833 | Y60: 0.01802739808 | Z60: 0.01903444369 | AA60: 0.01854935487 | AB60: 0.01876463725 | AC60: 0.01809841049 | AD60: 0.01832441994 | AE60: 0.01987267401 | AF60: 0.01883999703 | AG60: 0.01997046467 | AH60: 0.02206465335 | AI60: 0.02258996543 | AJ60: 0.02340242962 | AK60: 0.02382028516 | AL60: 0.02406634082 | AM60: 0.02400756515 | AN60: 0.02379975008 | AO60: 0.02383310273 | AP60: 0.02358814827 | AQ60: 0.02332911128 | AR60: 0.02301016086 | AS60: 0.02258448067 | AT60: 0.02236617002 | AU60: 0.02215464675 | AV60: 0.02195361456 | AW60: 0.02173172714 | AX60: 0.02168835659 | AY60: 0.02170853191 | AZ60: 0.02196283128 | BA60: 0.02206391122
C61: 20 | D61: 0.005186978453 | E61: 0.006185928817 | F61: 0.007781106549 | G61: 0.008166837399 | H61: 0.009456123622 | I61: 0.01096729903 | J61: 0.01144856129 | K61: 0.01340251395 | L61: 0.01707739287 | M61: 0.02167694598 | N61: 0.02746012586 | O61: 0.03075336913 | P61: 0.03760844258 | Q61: 0.03424390647 | R61: 0.04084368378 | S61: 0.04270151172 | T61: 0.04061110555 | U61: 0.03013950055 | V61: 0.02339575154 | W61: 0.01006147879 | X61: 0.0116499712 | Y61: 0.01632633575 | Z61: 0.01720177561 | AA61: 0.01825361141 | AB61: 0.01776240221 | AC61: 0.01805497697 | AD61: 0.01744264711 | AE61: 0.0176448043 | AF61: 0.01899885926 | AG61: 0.01792581565 | AH61: 0.01881385438 | AI61: 0.02081242919 | AJ61: 0.02138097915 | AK61: 0.0221663544 | AL61: 0.02257309703 | AM61: 0.02279095409 | AN61: 0.0227347545 | AO61: 0.02252712737 | AP61: 0.02256143637 | AQ61: 0.02234830934 | AR61: 0.02207996724 | AS61: 0.02179182882 | AT61: 0.02141800216 | AU61: 0.02121953361 | AV61: 0.02103030379 | AW61: 0.02084563251 | AX61: 0.02063877203 | AY61: 0.02059770726 | AZ61: 0.02061504765 | BA61: 0.02085801762
C62: 21 | D62: 0.004892069262 | E62: 0.005186978453 | F62: 0.005608616054 | G62: 0.007299649097 | H62: 0.00774883202 | I62: 0.009126463731 | J62: 0.0102481755 | K62: 0.01081061665 | L62: 0.01259666848 | M62: 0.01607776524 | N62: 0.02183131549 | O62: 0.02476410563 | P62: 0.02875431282 | Q62: 0.03537699934 | R62: 0.03215350661 | S62: 0.0383500483 | T62: 0.04012180993 | U62: 0.03819327573 | V62: 0.02840342048 | W62: 0.02210114148 | X62: 0.009537368845 | Y62: 0.01107932083 | Z62: 0.01557861888 | AA62: 0.01649612317 | AB62: 0.01747920561 | AC62: 0.01709064548 | AD62: 0.01740078732 | AE62: 0.01679573464 | AF62: 0.01686895047 | AG62: 0.01807696934 | AH62: 0.01688762334 | AI62: 0.01774612118 | AJ62: 0.0196985744 | AK62: 0.02025167339 | AL62: 0.02100576316 | AM62: 0.0213768442 | AN62: 0.02158264458 | AO62: 0.02151907934 | AP62: 0.02132514413 | AQ62: 0.02137556341 | AR62: 0.02115168179 | AS62: 0.0209108867 | AT62: 0.02066629043 | AU62: 0.02031997505 | AV62: 0.02014264742 | AW62: 0.01996892052 | AX62: 0.01979724181 | AY62: 0.0196009035 | AZ62: 0.01956017654 | BA62: 0.01957803262
C63: 22 | D63: 0.004616082825 | E63: 0.004892069262 | F63: 0.004702894502 | G63: 0.005261581865 | H63: 0.006926029244 | I63: 0.00747869182 | J63: =MAX(I28*(1-I$3*$A28),0) -> 0.008528043391 | K63: 0.009677119592 | L63: 0.01016061274 | M63: 0.01185932069 | N63: 0.01619226093 | O63: 0.01968792881 | P63: 0.02315436845 | Q63: 0.02704821672 | R63: 0.03321743047 | S63: 0.03019043381 | T63: 0.03603322896 | U63: 0.0377331109 | V63: 0.03599328623 | W63: 0.02683170974 | X63: 0.0209498765 | Y63: 0.00907020005 | Z63: 0.01057190783 | AA63: 0.01493955169 | AB63: 0.01579627846 | AC63: 0.0168181591 | AD63: 0.01647139665 | AE63: 0.01675542735 | AF63: 0.01605721497 | AG63: 0.01605041105 | AH63: 0.01703002281 | AI63: 0.01592920857 | AJ63: 0.0167963713 | AK63: 0.01865813031 | AL63: 0.01919133148 | AM63: 0.0198925706 | AN63: 0.02024350665 | AO63: 0.02042857516 | AP63: 0.02037088267 | AQ63: 0.02020425309 | AR63: 0.02023102099 | AS63: 0.0200317517 | AT63: 0.01983084858 | AU63: 0.01960680099 | AV63: 0.01928874124 | AW63: 0.01912606349 | AX63: 0.01896462235 | AY63: 0.01880169158 | AZ63: 0.01861358296 | BA63: 0.01857622552
C64: 23 | D64: 0.004380045076 | E64: 0.004616082825 | F64: 0.004435508234 | G64: 0.004411902007 | H64: 0.004992276942 | I64: 0.006684573639 | J64: 0.006988315544 | K64: 0.008052837868 | L64: 0.009095268825 | M64: 0.009565859829 | N64: 0.01194377528 | O64: 0.01460251356 | P64: 0.01840815753 | Q64: 0.02178053706 | R64: 0.02539707367 | S64: 0.03118940177 | T64: 0.02836655655 | U64: 0.03388794839 | V64: 0.03555962757 | W64: 0.03400158827 | X64: 0.02543402593 | Y64: 0.01992368902 | Z64: 0.008654801171 | AA64: 0.01013822629 | AB64: 0.01430574421 | AC64: 0.01519887861 | AD64: 0.01620878332 | AE64: 0.0158605059 | AF64: 0.01601868002 | AG64: 0.01527806374 | AH64: 0.01512083475 | AI64: 0.01606352651 | AJ64: 0.01507669754 | AK64: 0.01590921648 | AL64: 0.0176812235 | AM64: 0.01817429405 | AN64: 0.01883792488 | AO64: 0.01916104375 | AP64: 0.01933856468 | AQ64: 0.01930014947 | AR64: 0.01912242782 | AS64: 0.01915983765 | AT64: 0.01899712052 | AU64: 0.01881418937 | AV64: 0.01861176059 | AW64: 0.01831525329 | AX64: 0.01816415518 | AY64: 0.01801094232 | AZ64: 0.01785462828 | BA64: 0.01767724918
C65: 24 | D65: 0.004156067694 | E65: 0.004380045076 | F65: 0.004185278719 | G65: 0.004161060315 | H65: 0.004186086471 | I65: 0.004818235914 | J65: 0.006246267528 | K65: 0.0065989078 | L65: 0.007568649381 | M65: 0.00856287597 | N65: 0.009633981838 | O65: 0.01077114192 | P65: 0.01365330871 | Q65: 0.01731593579 | R65: 0.02045095652 | S65: 0.02384650237 | T65: 0.02930517443 | U65: 0.02667772032 | V65: 0.03193595215 | W65: 0.03359192623 | X65: 0.03223042013 | Y65: 0.02418819142 | Z65: 0.01901121983 | AA65: 0.008299763312 | AB65: 0.009708114074 | AC65: 0.01376471492 | AD65: 0.01464817456 | AE65: 0.01560763236 | AF65: 0.01516310886 | AG65: 0.01524139863 | AH65: 0.01439321874 | AI65: 0.01426268964 | AJ65: 0.01520382696 | AK65: 0.01428037286 | AL65: 0.01507623795 | AM65: 0.01674421367 | AN65: 0.01721074631 | AO65: 0.0178306214 | AP65: 0.01813866513 | AQ65: 0.01832209212 | AR65: 0.01826673391 | AS65: 0.01810994179 | AT65: 0.01817024045 | AU65: 0.01802320367 | AV65: 0.01785937381 | AW65: 0.01767243934 | AX65: 0.01739412312 | AY65: 0.0172507285 | AZ65: 0.01710370999 | BA65: 0.0169564728
C66: 25 | D66: 0.003931918381 | E66: 0.004156067694 | F66: 0.003971269611 | G66: 0.0039263138 | H66: 0.003948083675 | I66: 0.004040150898 | J66: 0.004502305181 | K66: 0.005898208695 | L66: 0.006202138954 | M66: 0.007125617412 | N66: 0.008623855362 | O66: 0.008688122739 | P66: 0.01007098711 | Q66: 0.01284320914 | R66: 0.01625889431 | S66: 0.01920236125 | T66: 0.02240587738 | U66: 0.02756045649 | V66: 0.02514104394 | W66: 0.03016876784 | X66: 0.03184209769 | Y66: 0.03065167794 | Z66: 0.02308041568 | AA66: 0.01823134024 | AB66: 0.007947647521 | AC66: 0.009340962667 | AD66: 0.0132659752 | AE66: 0.01410490341 | AF66: 0.01492135434 | AG66: 0.01442734273 | AH66: 0.01435867714 | AI66: 0.01357636765 | AJ66: 0.01349936859 | AK66: 0.01440078753 | AL66: 0.01353267772 | AM66: 0.01427727836 | AN66: 0.0158564846 | AO66: 0.01629045149 | AP66: 0.01687923032 | AQ66: 0.01718526163 | AR66: 0.01734104609 | AS66: 0.01729955479 | AT66: 0.01717457125 | AU66: 0.01723871488 | AV66: 0.01710853045 | AW66: 0.01695802494 | AX66: 0.01678363824 | AY66: 0.01651941928 | AZ66: 0.01638178903 | BA66: 0.01624332855
C67: 26 | D67: 0.003721091076 | E67: 0.003931918381 | F67: 0.003768195315 | G67: 0.003725546546 | H67: 0.003725352252 | I67: 0.003810445369 | J67: 0.003775239039 | K67: 0.004251424623 | L67: 0.005543570394 | M67: 0.005839095868 | N67: 0.007176361557 | O67: 0.007777169931 | P67: 0.008123370092 | Q67: 0.009473439472 | R67: 0.01205920272 | S67: 0.01526623762 | T67: 0.01804230007 | U67: 0.02107191718 | V67: 0.02597293319 | W67: 0.02374985766 | X67: 0.02859725418 | Y67: 0.0302823767 | Z67: 0.02924788612 | AA67: 0.02213360925 | AB67: 0.01745787929 | AC67: 0.007647075242 | AD67: 0.009002509669 | AE67: 0.01277396704 | AF67: 0.01348470139 | AG67: 0.01419731898 | AH67: 0.01359176813 | AI67: 0.01354378637 | AJ67: 0.01284977769 | AK67: 0.01278635566 | AL67: 0.01364678768 | AM67: 0.01281551853 | AN67: 0.01352033896 | AO67: 0.015008605 | AP67: 0.01542123948 | AQ67: 0.01599202516 | AR67: 0.01626508654 | AS67: 0.01642287989 | AT67: 0.01640604038 | AU67: 0.01629409021 | AV67: 0.01636385428 | AW67: 0.01624507606 | AX67: 0.01610515393 | AY67: 0.01593963406 | AZ67: 0.01568731672 | BA67: 0.01555772295
C68: 27 | D68: 0.003509471426 | E68: 0.003721091076 | F68: 0.003564965134 | G68: 0.003535037511 | H68: 0.003534860921 | I68: 0.003595478821 | J68: 0.003560595254 | K68: 0.003564872563 | L68: 0.003995801588 | M68: 0.005219076712 | N68: 0.005880678219 | O68: 0.006471790281 | P68: 0.007271631803 | Q68: 0.007641381528 | R68: 0.00889513873 | S68: 0.01132295043 | T68: 0.01434396722 | U68: 0.01696813057 | V68: 0.0198581434 | W68: 0.0245357141 | X68: 0.02251270983 | Y68: 0.0271964753 | Z68: 0.02889549821 | AA68: 0.02804807729 | AB68: 0.02119459532 | AC68: 0.01679763932 | AD68: 0.007369997211 | AE68: 0.008668624809 | AF68: 0.01221228718 | AG68: 0.01283037736 | AH68: 0.01337506644 | AI68: 0.01282040136 | AJ68: 0.01281894011 | AK68: 0.01217107501 | AL68: 0.01211688462 | AM68: 0.01292358128 | AN68: 0.01213607734 | AO68: 0.01279737799 | AP68: 0.01420778867 | AQ68: 0.01461066915 | AR68: 0.01513574124 | AS68: 0.01540388978 | AT68: 0.01557464536 | AU68: 0.01556495927 | AV68: 0.01546716908 | AW68: 0.01553798313 | AX68: 0.01542806144 | AY68: 0.0152952689 | AZ68: 0.01513673596 | BA68: 0.01489818523
C69: 28 | D69: 0.003321974024 | E69: 0.003509471426 | F69: 0.003373813661 | G69: 0.003344382236 | H69: 0.00335410276 | I69: 0.003411628409 | J69: 0.003359724018 | K69: 0.003362189306 | L69: 0.00335052946 | M69: 0.003761906773 | N69: 0.005256243678 | O69: 0.005303316429 | P69: 0.006051105537 | Q69: 0.006840179914 | R69: 0.007174917725 | S69: 0.008352062507 | T69: 0.01063890355 | U69: 0.0134899823 | V69: 0.015990741 | W69: 0.01875928781 | X69: 0.02325763042 | Y69: 0.0214099701 | Z69: 0.02595092556 | AA69: 0.02771014506 | AB69: 0.02685814325 | AC69: 0.0203930364 | AD69: 0.01618900704 | AE69: 0.007096658934 | AF69: 0.008287459587 | AG69: 0.01161970505 | AH69: 0.01208729267 | AI69: 0.01261599803 | AJ69: 0.01213426975 | AK69: =MAX(AJ34*(1-AJ$3*$A34),0) -> 0.01214186622 | AL69: 0.01153381898 | AM69: 0.01147475485 | AN69: 0.01223841092 | AO69: 0.01148713575 | AP69: 0.01211454641 | AQ69: 0.01346099967 | AR69: 0.01382834916 | AS69: 0.01433434057 | AT69: 0.01460828564 | AU69: 0.014776187 | AV69: 0.01477504136 | AW69: 0.01468655294 | AX69: 0.01475653037 | AY69: 0.01465222558 | AZ69: 0.01452482824 | BA69: 0.01437530077
C70: 29 | D70: 0.003156295042 | E70: =MAX(D35*(1-D$3*$A35),0) -> 0.003321974024 | F70: =MAX(E35*(1-E$3*$A35),0) -> 0.003181943789 | G70: 0.003165058297 | H70: 0.003173205844 | I70: 0.003237171849 | J70: 0.00318792864 | K70: 0.003172511156 | L70: 0.003160032827 | M70: 0.003154405741 | N70: 0.003788696696 | O70: 0.004740188532 | P70: 0.004958585803 | Q70: 0.005692071831 | R70: 0.006422625009 | S70: 0.00673686641 | T70: 0.007847494173 | U70: 0.01000550395 | V70: 0.01271293925 | W70: 0.01510588915 | X70: 0.01778210249 | Y70: 0.02211840226 | Z70: 0.02042943191 | AA70: 0.02488636488 | AB70: 0.02653454772 | AC70: 0.02584239446 | AD70: 0.01965413137 | AE70: 0.01558858954 | AF70: 0.006784614101 | AG70: 0.007885323579 | AH70: 0.01094673771 | AI70: 0.01140130864 | AJ70: 0.01194080583 | AK70: 0.01149335894 | AL70: 0.01150613951 | AM70: 0.01092258856 | AN70: 0.01086639702 | AO70: 0.01158399734 | AP70: 0.01087421496 | AQ70: 0.0114777823 | AR70: 0.01274023808 | AS70: 0.01309617171 | AT70: 0.01359397817 | AU70: 0.01385936921 | AV70: 0.01402629909 | AW70: 0.01402935638 | AX70: 0.01394792122 | AY70: 0.01401446401 | AZ70: 0.01391417576 | BA70: 0.01379417432
C71: 30 | D71: 0.06725295787 | E71: =E37 -> 0.06725295787 | F71: =F37 -> 0.06725295787 | G71: 0.06725295787 | H71: 0.06725295787 | I71: 0.06725295787 | J71: 0.06725295787 | K71: 0.06725295787 | L71: 0.06725295787 | M71: 0.06725295787 | N71: 0.06725295787 | O71: 0.06725295787 | P71: 0.06725295787 | Q71: 0.06725295787 | R71: 0.06725295787 | S71: 0.06725295787 | T71: 0.06725295787 | U71: 0.06725295787 | V71: 0.06725295787 | W71: 0.06725295787 | X71: 0.06725295787 | Y71: 0.06725295787 | Z71: 0.06725295787 | AA71: 0.06725295787 | AB71: 0.06725295787 | AC71: 0.06725295787 | AD71: 0.06725295787 | AE71: 0.06725295787 | AF71: 0.06725295787 | AG71: 0.06725295787 | AH71: 0.06725295787 | AI71: 0.06725295787 | AJ71: 0.06725295787 | AK71: 0.06725295787 | AL71: 0.06725295787 | AM71: 0.06725295787 | AN71: 0.06725295787 | AO71: 0.06725295787 | AP71: 0.06725295787 | AQ71: 0.06725295787 | AR71: =AR37 -> 0.06725295787 | AS71: 0.06725295787 | AT71: 0.06725295787 | AU71: 0.06725295787 | AV71: 0.06725295787 | AW71: 0.06725295787 | AX71: 0.06725295787 | AY71: 0.06725295787 | AZ71: 0.06725295787 | BA71: 0.06725295787

Sheet 21 (hidden)
D1: 2011 | E1: 2012 | F1: 2013 | G1: 2014 | H1: 2015 | I1: 2016 | J1: 2017 | K1: 2018 | L1: 2019 | M1: 2020 | N1: 2021 | O1: 2022 | P1: 2023 | Q1: 2024 | R1: 2025 | S1: 2026 | T1: 2027 | U1: 2028 | V1: 2029 | W1: 2030 | X1: 2031 | Y1: 2032 | Z1: 2033 | AA1: 2034 | AB1: 2035 | AC1: 2036 | AD1: 2037 | AE1: 2038 | AF1: 2039 | AG1: 2040 | AH1: 2041 | AI1: 2042 | AJ1: 2043 | AK1: 2044 | AL1: 2045 | AM1: 2046 | AN1: 2047 | AO1: 2048 | AP1: 2049 | AQ1: 2050 | AR1: 2051 | AS1: 2052 | AT1: 2053 | AU1: 2054 | AV1: 2055 | AW1: 2056 | AX1: 2057 | AY1: 2058 | AZ1: 2059 | BA1: 2060
C2: sales (age 0 pop) | D2: 0.03636595106 | E2: 0.05265433487 | F2: 0.05766837885 | G2: 0.05445957354 | H2: 0.05719314902 | I2: 0.0520545959 | J2: 0.05085500759 | K2: 0.04474929408 | L2: 0.0405051217 | M2: 0.03235676314 | N2: 0.03253300708 | O2: 0.04201141517 | P2: 0.04251810091 | Q2: 0.04400989496 | R2: 0.0438817376 | S2: 0.04452762515 | T2: 0.04494667069 | U2: 0.04506190941 | V2: 0.04617605665 | W2: 0.04698350038 | X2: 0.04781342823 | Y2: 0.04888939016 | Z2: 0.04980523281 | AA2: 0.05100889603 | AB2: 0.05233971747 | AC2: 0.05390666566 | AD2: 0.0550268154 | AE2: 0.05609563764 | AF2: 0.05699311802 | AG2: 0.057763551 | AH2: 0.05807463144 | AI2: 0.0583103517 | AJ2: 0.05823286566 | AK2: 0.05843534923 | AL2: 0.05879843973 | AM2: 0.05989314787 | AN2: 0.05984265104 | AO2: 0.06006632297 | AP2: 0.06019000298 | AQ2: 0.06071442799 | AR2: 0.06071442799 | AS2: 0.06071442799 | AT2: 0.06071442799 | AU2: 0.06071442799 | AV2: 0.06071442799 | AW2: 0.06071442799 | AX2: 0.06071442799 | AY2: 0.06071442799 | AZ2: 0.06071442799 | BA2: 0.06071442799
C3: scrappage k factor | D3: 0.8832074078 | E3: 1.764930642 | F3: 0.5342267844 | G3: 0.7374568086 | H3: 0.8393208911 | I3: 0.6775073564 | J3: 0.7795151594 | K3: 0.7995926363 | L3: 0.4907620048 | M3: 0.5614987519 | N3: 0.6442411141 | O3: 0.6446720714 | P3: 0.6507781849 | Q3: 0.659089301 | R3: 0.6658681883 | S3: 0.6714353836 | T3: 0.6775676105 | U3: 0.6855254451 | V3: 0.6952607849 | W3: 0.7080565612 | X3: 0.7231526537 | Y3: 0.7427444128 | Z3: 0.7674328506 | AA3: 0.7877104038 | AB3: 0.800003492 | AC3: 0.8048669544 | AD3: 0.8044343969 | AE3: 0.802043184 | AF3: 0.7959053603 | AG3: 0.7912534369 | AH3: 0.7867041659 | AI3: 0.7855237839 | AJ3: 0.786383946 | AK3: 0.7895695592 | AL3: 0.7951191211 | AM3: 0.7993560238 | AN3: 0.8032832881 | AO3: 0.8060851837 | AP3: 0.8083154361 | AQ3: 0.8108623258 | AR3: 0.8130330995 | AS3: 0.815461674 | AT3: 0.8175554636 | AU3: 0.819566055 | AV3: 0.8215347526 | AW3: 0.8235687276 | AX3: 0.8254898826 | AY3: 0.8269330049 | AZ3: 0.827928314
A5: default
A6: scrappage | C6: age | D6: 2011 | E6: 2012 | F6: 2013 | G6: 2014 | H6: 2015 | I6: 2016 | J6: 2017 | K6: 2018 | L6: 2019 | M6: 2020 | N6: 2021 | O6: 2022 | P6: 2023 | Q6: 2024 | R6: 2025 | S6: 2026 | T6: 2027 | U6: 2028 | V6: 2029 | W6: 2030 | X6: 2031 | Y6: 2032 | Z6: 2033 | AA6: 2034 | AB6: 2035 | AC6: 2036 | AD6: 2037 | AE6: 2038 | AF6: 2039 | AG6: 2040 | AH6: 2041 | AI6: 2042 | AJ6: 2043 | AK6: 2044 | AL6: 2045 | AM6: 2046 | AN6: 2047 | AO6: 2048 | AP6: 2049 | AQ6: 2050 | AR6: 2051 | AS6: 2052 | AT6: 2053 | AU6: 2054 | AV6: 2055 | AW6: 2056 | AX6: 2057 | AY6: 2058 | AZ6: 2059 | BA6: 2060
A7: 0.003300011158 | C7: 0 | D7: 0.03636595106 | E7: =E41 -> 0.05265433487 | F7: =F41 -> 0.05766837885 | G7: 0.05445957354 | H7: 0.05719314902 | I7: 0.0520545959 | J7: 0.05085500759 | K7: 0.04474929408 | L7: 0.0405051217 | M7: 0.03235676314 | N7: 0.03253300708 | O7: 0.04201141517 | P7: 0.04251810091 | Q7: 0.04400989496 | R7: 0.0438817376 | S7: 0.04452762515 | T7: 0.04494667069 | U7: 0.04506190941 | V7: 0.04617605665 | W7: 0.04698350038 | X7: 0.04781342823 | Y7: 0.04888939016 | Z7: 0.04980523281 | AA7: 0.05100889603 | AB7: 0.05233971747 | AC7: 0.05390666566 | AD7: 0.0550268154 | AE7: 0.05609563764 | AF7: 0.05699311802 | AG7: 0.057763551 | AH7: 0.05807463144 | AI7: 0.0583103517 | AJ7: 0.05823286566 | AK7: 0.05843534923 | AL7: 0.05879843973 | AM7: 0.05989314787 | AN7: 0.05984265104 | AO7: 0.06006632297 | AP7: 0.06019000298 | AQ7: 0.06071442799 | AR7: =AR41 -> 0.06071442799 | AS7: 0.06071442799 | AT7: 0.06071442799 | AU7: 0.06071442799 | AV7: 0.06071442799 | AW7: 0.06071442799 | AX7: 0.06071442799 | AY7: 0.06071442799 | AZ7: 0.06071442799 | BA7: 0.06071442799
A8: 0.003300011158 | C8: 1 | D8: 0.03760641906 | E8: =E42*(1-E$41-E$71)/SUM(E$42:E$70) -> 0.03734509693 | F8: =F42*(1-F$41-F$71)/SUM(F$42:F$70) -> 0.05847829118 | G8: 0.05681237511 | H8: 0.0544422939 | I8: 0.05799382069 | J8: 0.05213466708 | K8: 0.05173749258 | L8: 0.04582458146 | M8: 0.04081093817 | N8: 0.03285721494 | O8: 0.03297659418 | P8: 0.0425725554 | Q8: 0.04305196099 | R8: 0.04463773751 | S8: 0.04453042701 | T8: 0.04525022709 | U8: 0.04574597459 | V8: 0.04588325722 | W8: 0.04707589899 | X8: 0.04790478535 | Y8: 0.04873275542 | Z8: 0.04979742171 | AA8: 0.05064737844 | AB8: 0.05177521644 | AC8: 0.05297471833 | AD8: 0.05440979367 | AE8: 0.05535081043 | AF8: 0.05623592864 | AG8: 0.05700665482 | AH8: 0.0576702775 | AI8: 0.0579494788 | AJ8: 0.05812807265 | AK8: 0.05798842979 | AL8: 0.05814920424 | AM8: 0.05840688797 | AN8: 0.05947487125 | AO8: 0.05937488445 | AP8: 0.05956079813 | AQ8: 0.05961693356 | AR8: =AR42*(1-AR$41-AR$71)/SUM(AR$42:AR$70) -> 0.0601312944 | AS8: 0.06014900558 | AT8: 0.06014471873 | AU8: 0.06014308507 | AV8: 0.06013772992 | AW8: 0.06013403416 | AX8: 0.06012966357 | AY8: 0.06012468749 | AZ8: 0.06012206821 | BA8: 0.06011919693
A9: 0.003400027752 | C9: 2 | D9: 0.03428418072 | E9: =E43*(1-E$41-E$71)/SUM(E$42:E$70) -> 0.03861896428 | F9: 0.04147573904 | G9: 0.05761026547 | H9: 0.05679434895 | I9: 0.05520445516 | J9: 0.05808302767 | K9: 0.05303935795 | L9: 0.05298070042 | M9: 0.04617056022 | N9: 0.04144214801 | O9: 0.0333052226 | P9: 0.03341705765 | Q9: 0.04310709921 | R9: 0.04366613771 | S9: 0.04529760262 | T9: 0.04525307442 | U9: 0.04605492925 | V9: 0.04657979092 | W9: 0.04677739372 | X9: 0.04799899578 | Y9: 0.0488258691 | Z9: 0.04963787778 | AA9: 0.05063943527 | AB9: 0.05140826768 | AC9: 0.0524033686 | AD9: 0.05346914817 | AE9: 0.05473015571 | AF9: 0.05548923868 | AG9: 0.05624928559 | AH9: 0.05691460352 | AI9: 0.05754599625 | AJ9: 0.05776832784 | AK9: 0.05788407665 | AL9: 0.05770447327 | AM9: 0.05776197588 | AN9: 0.05799899096 | AO9: 0.05900997945 | AP9: 0.05887517884 | AQ9: 0.05899371938 | AR9: 0.05904434089 | AS9: 0.05957130261 | AT9: 0.05958460192 | AU9: 0.05957873696 | AV9: 0.05957181392 | AW9: 0.05956284899 | AX9: 0.05955485975 | AY9: 0.0595456031 | AZ9: 0.05953808152 | BA9: 0.05953264453
A10: 0.007000029087 | C10: 3 | D10: 0.04407654719 | E10: 0.03520415621 | F10: 0.04288288999 | G10: 0.04085790457 | H10: 0.05758772791 | I10: 0.0575845898 | J10: 0.05528561658 | K10: 0.05908632134 | L10: 0.05430949339 | M10: 0.05337808396 | N10: 0.04688202774 | O10: 0.04200449862 | P10: 0.03374789474 | Q10: 0.0338344373 | R10: 0.04371917409 | S10: 0.04430868241 | T10: 0.04602960172 | U10: 0.04605469898 | V10: 0.04689115437 | W10: 0.04748419115 | X10: 0.04769125169 | Y10: 0.0489183441 | Z10: 0.04972901731 | AA10: 0.05047330937 | AB10: 0.0513961451 | AC10: 0.05202779362 | AD10: 0.05288819668 | AE10: 0.05377963293 | AF10: 0.05486261876 | AG10: 0.05549798844 | AH10: 0.05615400132 | AI10: 0.05678747056 | AJ10: 0.05736158789 | AK10: 0.05752130563 | AL10: 0.05759607051 | AM10: 0.05731563608 | AN10: 0.05735398488 | AO10: 0.05754099994 | AP10: 0.05850861488 | AQ10: 0.05830990082 | AR10: 0.05842236126 | AS10: 0.05848970232 | AT10: 0.05900749377 | AU10: 0.05901905166 | AV10: 0.05900797589 | AW10: 0.05899748158 | AX10: 0.05898430367 | AY10: 0.0589715 | AZ10: 0.05895975682 | BA10: 0.05894948793
A11: 0.01020002365 | C11: 4 | D11: 0.0495161602 | E11: 0.04511495175 | F11: 0.03884117811 | G11: 0.04216270178 | H11: 0.04073321911 | I11: 0.05821207732 | J11: 0.05752826886 | K11: 0.05608234446 | L11: 0.0603266339 | M11: 0.05462001137 | N11: 0.05409084568 | O11: 0.04740774558 | P11: 0.04246379848 | Q11: 0.03408917687 | R11: 0.03423324779 | S11: 0.04425591541 | T11: 0.04491561948 | U11: 0.04673045167 | V11: 0.04677492781 | W11: 0.04768167206 | X11: 0.0482881575 | Y11: 0.04847785867 | Z11: 0.04968964426 | AA11: 0.05042591572 | AB11: 0.05108187774 | AC11: 0.05186531094 | AD11: 0.05235658302 | AE11: 0.05304083372 | AF11: 0.05375371301 | AG11: 0.05471362264 | AH11: 0.05524573214 | AI11: 0.05586946125 | AJ11: 0.05644499032 | AK11: 0.05695417614 | AL11: 0.05707197856 | AM11: 0.05704376611 | AN11: 0.05674658018 | AO11: 0.05673608877 | AP11: 0.05688610124 | AQ11: 0.05777776997 | AR11: 0.05757613529 | AS11: 0.05770370445 | AT11: 0.05776557638 | AU11: 0.05827491915 | AV11: 0.05828070648 | AW11: 0.05826576028 | AX11: 0.0582507218 | AY11: 0.0582324737 | AZ11: 0.05821698342 | BA11: 0.05820239457
A12: 0.01419997215 | C12: 5 | D12: 0.04878465818 | E12: 0.05053858366 | F12: 0.04949124137 | G12: 0.03812333784 | H12: 0.04193432544 | I12: 0.04106359496 | J12: 0.05802846035 | K12: 0.05821094813 | L12: 0.0571122646 | M12: 0.06057594603 | N12: 0.05524951288 | O12: 0.05458412732 | P12: 0.0478268102 | Q12: 0.04280348854 | R12: 0.0344179085 | S12: 0.03457934552 | T12: 0.04476528419 | U12: 0.04550016725 | V12: 0.04735663159 | W12: 0.04745714785 | X12: 0.04837856952 | Y12: 0.04897044584 | Z12: 0.04912456415 | AA12: 0.05026158563 | AB12: 0.0509045598 | AC12: 0.05141546797 | AD12: 0.05205788496 | AE12: 0.05237175584 | AF12: 0.05287843616 | AG12: 0.05347043038 | AH12: 0.05432625788 | AI12: 0.05482665458 | AJ12: 0.05539215512 | AK12: 0.05590227739 | AL12: 0.05636570829 | AM12: 0.05638007471 | AN12: 0.05633213101 | AO12: 0.05599011618 | AP12: 0.0559448468 | AQ12: 0.05602939279 | AR12: 0.05690182309 | AS12: 0.05671908783 | AT12: 0.05683974366 | AU12: 0.05689831251 | AV12: 0.05739409224 | AW12: 0.05739547621 | AX12: 0.05737577227 | AY12: 0.0573554477 | AZ12: 0.05733440487 | BA12: 0.05731601799
A13: 0.01880002022 | C13: 6 | D13: 0.05013029409 | E13: 0.049614474 | F13: 0.05504241425 | G13: 0.04847220175 | H13: 0.03780414652 | I13: 0.04213129213 | J13: 0.04082236601 | K13: 0.05853252692 | L13: 0.05908880298 | M13: 0.05723515032 | N13: 0.06113567807 | O13: 0.05560873805 | P13: 0.0549236904 | Q13: 0.04808307031 | R13: 0.04310155162 | S13: 0.03467264318 | T13: 0.03488275398 | U13: 0.0452241167 | V13: 0.04598253496 | W13: 0.04791276152 | X13: 0.04801339958 | Y13: 0.04891916494 | Z13: 0.04947516802 | AA13: 0.04953626488 | AB13: 0.05057750753 | AC13: 0.05107168617 | AD13: 0.05143885355 | AE13: 0.05190403001 | AF13: 0.05204252417 | AG13: 0.05243094009 | AH13: 0.05292246572 | AI13: 0.05374312699 | AJ13: 0.05418608123 | AK13: 0.05468560926 | AL13: 0.05514853098 | AM13: 0.05550382462 | AN13: 0.05549723613 | AO13: 0.05540112904 | AP13: 0.05502979057 | AQ13: 0.05492267471 | AR13: 0.05499948874 | AS13: 0.05587099334 | AT13: 0.05568610396 | AU13: 0.05580175465 | AV13: 0.05585303842 | AW13: 0.0563350214 | AX13: 0.05633101817 | AY13: 0.05630582324 | AZ13: 0.05628252735 | BA13: 0.05625857194
A14: 0.02389997244 | C14: 7 | D14: 0.04897515522 | E14: 0.05077323455 | F14: 0.05358596833 | G14: 0.05377558175 | H14: 0.04790158069 | I14: 0.03783330059 | J14: 0.04175198934 | K14: 0.04102766579 | L14: 0.05919418253 | M14: 0.05908132169 | N14: 0.05761361377 | O14: 0.06134913466 | P14: 0.05578720723 | Q14: 0.05505113326 | R14: 0.0482697156 | S14: 0.04328628808 | T14: 0.03486779955 | U14: 0.03512938758 | V14: 0.04555801723 | W14: 0.04637225478 | X14: 0.04831486447 | Y14: 0.04838673577 | Z14: 0.0492526958 | AA14: 0.04971174424 | AB14: 0.04966496137 | AC14: 0.05055467535 | AD14: 0.05090355311 | AE14: 0.05109485152 | AF14: 0.05138525363 | AG14: 0.05141101681 | AH14: 0.05170259913 | AI14: 0.05216279835 | AJ14: 0.05292111914 | AK14: 0.05329922124 | AL14: 0.0537501025 | AM14: 0.05410436467 | AN14: 0.05443150447 | AO14: 0.05437602448 | AP14: 0.05424666208 | AQ14: 0.05382112692 | AR14: 0.05370967513 | AS14: 0.05379879135 | AT14: 0.0546452804 | AU14: 0.0544611679 | AV14: 0.05456768346 | AW14: 0.0546127793 | AX14: 0.0550782874 | AY14: 0.05506814555 | AZ14: 0.05503986352 | BA14: 0.05501359944
A15: 0.02939999104 | C15: 8 | D15: 0.05319273321 | E15: 0.04937607922 | F15: 0.05432694876 | G15: 0.05220857323 | H15: 0.05293984988 | I15: 0.04773003128 | J15: =J49*(1-J$41-J$71)/SUM(J$42:J$70) -> 0.03736147392 | K15: 0.04179266384 | L15: 0.04131966571 | M15: 0.05903717226 | N15: 0.05929987088 | O15: 0.05762248793 | P15: 0.06134119354 | Q15: 0.0557287712 | R15: 0.05507673302 | S15: 0.04830989478 | T15: 0.04337896204 | U15: 0.03499142206 | V15: 0.03526341664 | W15: 0.04577907295 | X15: 0.04659029303 | Y15: 0.04850849688 | Z15: 0.04852948652 | AA15: 0.04929168233 | AB15: 0.04963766182 | AC15: 0.04943690784 | AD15: 0.05017823376 | AE15: 0.05035250646 | AF15: 0.05037408665 | AG15: 0.05055254613 | AH15: 0.0504891751 | AI15: 0.05075291164 | AJ15: 0.05115610252 | AK15: 0.05184306246 | AL15: 0.0521733009 | AM15: 0.05251533508 | AN15: 0.05283947677 | AO15: 0.05310998891 | AP15: 0.05302066951 | AQ15: 0.05283311082 | AR15: 0.05241143223 | AS15: 0.05231591279 | AT15: 0.05239630107 | AU15: 0.05321692984 | AV15: 0.05303066094 | AW15: 0.05312890957 | AX15: 0.05316667316 | AY15: 0.05361324721 | AZ15: 0.05359940995 | BA15: 0.05356820022
A16: 0.03519999981 | C16: 9 | D16: 0.05322315025 | E16: 0.0533620586 | F16: 0.05229657008 | G16: 0.05277297234 | H16: 0.05118498581 | I16: 0.05250176225 | J16: 0.0469562512 | K16: 0.03723448966 | L16: 0.04190139929 | M16: 0.04109751251 | N16: 0.05907007276 | O16: 0.05909556653 | P16: 0.05740754628 | Q16: 0.06105414652 | R16: 0.0555493405 | S16: 0.05491743892 | T16: 0.04823162233 | U16: 0.0433678595 | V16: 0.03499028366 | W16: 0.03529673175 | X16: 0.04581212202 | Y16: 0.04658769304 | Z16: 0.04844926794 | AA16: 0.04835907029 | AB16: 0.04900090037 | AC16: 0.04918809132 | AD16: 0.0488473121 | AE16: 0.04941112855 | AF16: 0.04941894937 | AG16: 0.0493366198 | AH16: 0.04942587766 | AI16: 0.04934321852 | AJ16: 0.04955427007 | AK16: 0.04989309989 | AL16: 0.05052328382 | AM16: 0.05074751678 | AN16: 0.05105772036 | AO16: 0.05132437374 | AP16: 0.05155208731 | AQ16: 0.05140496816 | AR16: 0.05121530852 | AS16: 0.05081854915 | AT16: 0.05071901476 | AU16: 0.05079271776 | AV16: 0.05158085674 | AW16: 0.05139444208 | AX16: 0.05148310852 | AY16: 0.05151278432 | AZ16: 0.05194119293 | BA16: 0.051923921
A17: 0.04089999199 | C17: 10 | D17: 0.05202430759 | E17: 0.05311177175 | F17: 0.05590809197 | G17: 0.05064075231 | H17: 0.05151211709 | I17: 0.05050805798 | J17: 0.05144353621 | K17: 0.04658011681 | L17: 0.03715406823 | M17: 0.04155575386 | N17: 0.04098425095 | O17: 0.05864235246 | P17: 0.05865073683 | Q17: 0.05691902801 | R17: 0.06062033092 | S17: 0.05517049485 | T17: 0.05461064084 | U17: 0.04802592934 | V17: 0.04319047461 | W17: 0.03487916133 | X17: 0.03517407054 | Y17: 0.04561325304 | Z17: 0.04632588331 | AA17: 0.04805927681 | AB17: 0.04784894689 | AC17: 0.04832636392 | AD17: 0.04836908108 | AE17: 0.04787069319 | AF17: 0.04826398512 | AG17: 0.0481723681 | AH17: 0.04801040518 | AI17: 0.04807843019 | AJ17: 0.04795318035 | AK17: 0.04810515981 | AL17: 0.04839500072 | AM17: 0.04891053569 | AN17: 0.04910471549 | AO17: 0.04935705849 | AP17: 0.04958027845 | AQ17: 0.0497411106 | AR17: 0.04959081855 | AS17: 0.04941887252 | AT17: 0.04902861402 | AU17: 0.04892788244 | AV17: 0.04899137546 | AW17: 0.04974528011 | AX17: 0.04955857627 | AY17: 0.04963682555 | AZ17: 0.04966091234 | BA17: 0.05006988643
A18: 0.04680001736 | C18: 11 | D18: 0.05527895746 | E18: 0.05164569525 | F18: 0.05504897912 | G18: 0.05396991169 | H18: 0.04921752029 | I18: 0.05058027854 | J18: 0.04929422795 | K18: 0.05079831556 | L18: 0.04626153673 | M18: 0.03674269651 | N18: 0.04130592082 | O18: 0.04053461 | P18: 0.05798210173 | Q18: 0.05793087277 | R18: 0.05629723727 | S18: 0.05997290478 | T18: 0.05464723281 | U18: 0.05416259809 | V18: 0.04763797724 | W18: 0.04287841027 | X18: 0.03461408539 | Y18: 0.03487325354 | Z18: 0.04515973945 | AA18: 0.04574638845 | AB18: 0.04733271981 | AC18: 0.04696884442 | AD18: 0.04729732815 | AE18: 0.04717833864 | AF18: 0.04653933586 | AG18: 0.04682695179 | AH18: 0.04665996856 | AI18: 0.04648616246 | AJ18: 0.04650886714 | AK18: 0.04633629144 | AL18: 0.04644474378 | AM18: 0.04663174218 | AN18: 0.04710532008 | AO18: 0.04724543386 | AP18: 0.04745434512 | AQ18: 0.04761170357 | AR18: 0.04775737903 | AS18: 0.0476230733 | AT18: 0.04745007324 | AU18: 0.04707023938 | AV18: 0.04696566524 | AW18: 0.04702011054 | AX18: 0.04773642202 | AY18: 0.04754975769 | AZ18: 0.04762007878 | BA18: 0.04763906124
A19: 0.08850002289 | C19: 12 | D19: 0.04965216076 | E19: 0.05457998287 | F19: 0.05292865206 | G19: 0.05296934385 | H19: 0.05221779337 | I19: 0.04807936599 | J19: 0.04916176304 | K19: 0.04844472361 | L19: 0.05020483078 | M19: 0.04561414573 | N19: 0.03639796414 | O19: 0.04069326557 | P19: 0.03992166416 | Q19: 0.05704453531 | R19: 0.05706904423 | S19: 0.05547104653 | T19: 0.05916212102 | U19: 0.05397604521 | V19: 0.05350150845 | W19: 0.04709409847 | X19: 0.04236947436 | Y19: 0.03416717273 | Z19: 0.03437048048 | AA19: 0.04438636901 | AB19: 0.04483843421 | AC19: 0.04623539106 | AD19: 0.04574299106 | AE19: 0.0459065654 | AF19: 0.04564183303 | AG19: 0.04493448315 | AH19: 0.04513796632 | AI19: 0.04496192824 | AJ19: 0.04475325046 | AK19: 0.04472523789 | AL19: 0.0445215695 | AM19: 0.04453554121 | AN19: 0.04469166617 | AO19: 0.04509964854 | AP19: 0.04520072473 | AQ19: 0.04534542155 | AR19: 0.04548669805 | AS19: 0.04563481874 | AT19: 0.04549822819 | AU19: 0.04532741146 | AV19: 0.04495646586 | AW19: 0.04484982587 | AX19: 0.04489441224 | AY19: 0.04557059645 | AZ19: 0.04538745167 | BA19: 0.0454503514
A20: 0.1456999779 | C20: 13 | D20: 0.04853429865 | E20: 0.04714093122 | F20: 0.05144843426 | G20: 0.04976546363 | H20: 0.04961734221 | I20: 0.04915191882 | J20: 0.04536750914 | K20: 0.04668457605 | L20: 0.04622025266 | M20: 0.04846538959 | N20: 0.0440996137 | O20: 0.03486483392 | P20: 0.03896699538 | Q20: 0.03817679759 | R20: 0.05460224658 | S20: 0.05461994122 | T20: 0.05313928879 | U20: 0.05673034086 | V20: 0.05174256459 | W20: 0.05130568637 | X20: 0.04511404043 | Y20: 0.0405170768 | Z20: 0.03259403504 | AA20: 0.03266051769 | AB20: 0.04202166474 | AC20: 0.04228095917 | AD20: 0.04345822925 | AE20: 0.04285034515 | AF20: 0.04286819995 | AG20: 0.04254876117 | AH20: 0.04182964981 | AI20: 0.04201388291 | AJ20: 0.04181383637 | AK20: 0.04157174929 | AL20: 0.04150441336 | AM20: 0.04122121715 | AN20: 0.04120463454 | AO20: 0.04129948509 | AP20: 0.04164058627 | AQ20: 0.04167885444 | AR20: 0.04179895363 | AS20: 0.04193315153 | AT20: 0.04205729791 | AU20: 0.04192219277 | AV20: 0.04175335036 | AW20: 0.04140159961 | AX20: 0.04129265073 | AY20: 0.0413229634 | AZ20: 0.04193794956 | BA20: 0.04176357727
A21: 0.168299973 | C21: 14 | D21: 0.04374760029 | E21: 0.04355430398 | F21: 0.03911978612 | G21: 0.04682216113 | H21: 0.04451252469 | I21: 0.04428200711 | J21: 0.04446755764 | K21: 0.04101824173 | L21: 0.04234863866 | M21: 0.04330947329 | N21: 0.04527258062 | O21: 0.04059131658 | P21: 0.03208021669 | Q21: 0.0357919546 | R21: 0.03507933189 | S21: 0.05014394469 | T21: 0.05018744629 | U21: 0.04885423589 | V21: 0.0521126963 | W21: 0.0475162654 | X21: 0.04702492441 | Y21: 0.04123510929 | Z21: 0.03689392927 | AA21: 0.02951378067 | AB21: 0.02942292771 | AC21: 0.03767345197 | AD21: 0.03777137735 | AE21: 0.03869326674 | AF21: 0.03803827374 | AG21: 0.03800588151 | AH21: 0.03768110748 | AI21: 0.03705139781 | AJ21: 0.03718544946 | AK21: =AK55*(1-AK$41-AK$71)/SUM(AK$42:AK$70) -> 0.03696348605 | AL21: 0.03670481258 | AM21: 0.03654770497 | AN21: 0.03626164525 | AO21: 0.03619367083 | AP21: 0.03623864047 | AQ21: 0.0364840611 | AR21: 0.03649945986 | AS21: 0.03660254666 | AT21: 0.03670300101 | AU21: 0.03679817441 | AV21: 0.03666474457 | AW21: 0.0365031761 | AX21: 0.03618108395 | AY21: 0.03607163868 | AZ21: 0.03608809098 | BA21: 0.03661750243
A22: 0.1869000196 | C22: 15 | D22: 0.03518994219 | E22: 0.03835940206 | F22: 0.03420270524 | G22: 0.03513598763 | H22: 0.04109788124 | I22: 0.03886756811 | J22: 0.03938117088 | K22: 0.03940553006 | L22: 0.03644752682 | M22: 0.03920766718 | N22: 0.03989719847 | O22: 0.0410013964 | P22: 0.0367487557 | Q22: 0.02898753749 | R22: 0.03234606219 | S22: 0.03167820727 | T22: 0.04529971263 | U22: 0.04535648305 | V22: 0.04410524199 | W22: 0.04701944725 | X22: 0.04277459489 | Y22: 0.04219650363 | Z22: 0.03684099177 | AA22: 0.03275495995 | AB22: 0.02605342712 | AC22: 0.0258385276 | AD22: 0.03296177775 | AE22: 0.03293737431 | AF22: 0.0336430523 | AG22: 0.03303761229 | AH22: 0.03297762886 | AI22: 0.03270650061 | AJ22: 0.03213586125 | AK22: 0.03221217779 | AL22: 0.03197798218 | AM22: 0.03166439613 | AN22: 0.03149305782 | AO22: 0.0311969152 | AP22: 0.03110293983 | AQ22: 0.03109360494 | AR22: 0.03128627567 | AS22: 0.03129567839 | AT22: 0.03136722325 | AU22: 0.03143982649 | AV22: 0.03150638811 | AW22: 0.03137835676 | AX22: 0.03122561413 | AY22: 0.03093610846 | AZ22: 0.03083263328 | BA22: 0.03083932222
A23: 0.201399982 | C23: 16 | D23: 0.03517907923 | E23: 0.03026036277 | F23: 0.02871647668 | G23: 0.03038423544 | H23: 0.03035743666 | I23: 0.03523357568 | J23: 0.03407431692 | K23: 0.03431576456 | L23: 0.03441279428 | M23: 0.03340848118 | N23: 0.03570197992 | O23: 0.035647512 | P23: 0.03662074159 | Q23: 0.03275462793 | R23: 0.02583552844 | S23: 0.0288025132 | T23: 0.02821495231 | U23: 0.04035687736 | V23: 0.04035728848 | W23: 0.03921178792 | X23: 0.0416944925 | Y23: 0.03779477678 | Z23: 0.03710470324 | AA23: 0.03217183266 | AB23: 0.02842620621 | AC23: 0.0224860912 | AD23: 0.02221553464 | AE23: 0.02824589457 | AF23: 0.02814451721 | AG23: 0.02872072622 | AH23: 0.02817995954 | AI23: 0.02814120234 | AJ23: 0.02788978136 | AK23: 0.02736864476 | AL23: 0.02739553121 | AM23: 0.02711565144 | AN23: 0.02681638715 | AO23: 0.0266262611 | AP23: 0.02634394771 | AQ23: 0.02622264307 | AR23: 0.02619808502 | AS23: 0.02635576543 | AT23: 0.02634790942 | AU23: 0.02639541657 | AV23: 0.02644259831 | AW23: 0.02648561123 | AX23: 0.02636439718 | AY23: 0.02622292354 | AZ23: 0.02597050689 | BA23: 0.02587679485
A24: 0.2128000259 | C24: 17 | D24: 0.02747448357 | E24: 0.02978701904 | F24: 0.02178830375 | G24: 0.02529097157 | H24: 0.02592633961 | I24: 0.02565003158 | J24: 0.03054104013 | K24: 0.0292986713 | L24: 0.02955941194 | M24: 0.03129627587 | N24: 0.03014459642 | O24: 0.03156037431 | P24: 0.03150048105 | Q24: 0.03228987257 | R24: 0.02887481177 | S24: 0.02275152747 | T24: 0.02536804807 | U24: 0.02485353904 | V24: 0.03549935058 | W24: 0.03546393355 | X24: 0.03435961624 | Y24: 0.03639375248 | Z24: 0.03281850771 | AA24: 0.03198118252 | AB24: 0.02754619069 | AC24: 0.02419935166 | AD24: 0.01906758627 | AE24: 0.01877578256 | AF24: 0.02380553081 | AG24: 0.02370094637 | AH24: 0.02416795631 | AI24: 0.02372555259 | AJ24: 0.02367646057 | AK24: 0.02343494918 | AL24: 0.02296362921 | AM24: 0.02291540281 | AN24: 0.02265116447 | AO24: 0.02236157411 | AP24: 0.02217488389 | AQ24: 0.0219037308 | AR24: =AR58*(1-AR$41-AR$71)/SUM(AR$42:AR$70) -> 0.02178785966 | AS24: 0.0217626452 | AT24: 0.02187944075 | AU24: 0.0218614406 | AV24: 0.0218884384 | AW24: 0.02191594683 | AX24: 0.02193937431 | AY24: 0.02182716866 | AZ24: 0.02170163221 | BA24: 0.02148661195
A25: 0.2211999893 | C25: 18 | D25: 0.02348846728 | E25: 0.02297843412 | F25: 0.02077797071 | G25: 0.01905828374 | H25: 0.02136727286 | I25: 0.02165380448 | J25: 0.02203500695 | K25: 0.02598377181 | L25: 0.0249635054 | M25: 0.02671553415 | N25: 0.02803493872 | O25: 0.02642278459 | P25: 0.02765327244 | Q25: 0.02753800551 | R25: 0.02821849489 | S25: 0.02520509334 | T25: 0.01986122486 | U25: 0.02214592123 | V25: 0.02166384093 | W25: 0.03090751397 | X25: 0.03078297416 | Y25: 0.02970198332 | Z25: 0.0312872978 | AA25: 0.02799411909 | AB25: 0.02709068895 | AC25: 0.02319524635 | AD25: 0.02029567313 | AE25: 0.01593888945 | AF25: 0.01565159781 | AG25: 0.01983040049 | AH25: 0.01972990124 | AI25: 0.02013088156 | AJ25: 0.01974902687 | AK25: 0.01968270774 | AL25: 0.01945261015 | AM25: 0.01900096275 | AN25: 0.01893455936 | AO25: 0.01868193696 | AP25: 0.01841886346 | AQ25: 0.01823442027 | AR25: 0.01799829497 | AS25: 0.01789848771 | AT25: 0.01786547233 | AU25: 0.01795130617 | AV25: 0.01792577015 | AW25: 0.01793781458 | AX25: 0.01794975341 | AY25: 0.01795866191 | AZ25: 0.01785946617 | BA25: 0.01775139612
A26: 0.2282999754 | C26: 19 | D26: 0.02090105243 | E26: 0.01946523387 | F26: 0.01564807442 | G26: 0.01808252387 | H26: 0.01598322927 | I26: 0.01769287169 | J26: 0.01847829523 | K26: 0.01859982531 | L26: 0.02195990598 | M26: 0.02245794033 | N26: 0.02380335702 | O26: 0.02441948624 | P26: 0.023006399 | Q26: 0.02402134647 | R26: 0.02391081163 | S26: 0.02447166866 | T26: 0.02185830995 | U26: 0.01722323898 | V26: 0.01917357459 | W26: 0.01873234322 | X26: 0.02664009537 | Y26: 0.02641913349 | Z26: 0.02534524242 | AA26: 0.02648237844 | AB26: 0.02352481616 | AC26: 0.02262694567 | AD26: 0.01929483859 | AE26: 0.01682714921 | AF26: 0.01317881112 | AG26: 0.01293309915 | AH26: 0.01637592298 | AI26: 0.01630373161 | AJ26: 0.01662408141 | AK26: 0.01628751029 | AL26: 0.01620775037 | AM26: 0.01596641694 | AN26: 0.01557310514 | AO26: 0.01548950292 | AP26: 0.01526223948 | AQ26: 0.01502164106 | AR26: 0.01485988692 | AS26: 0.01466330058 | AT26: 0.01457151445 | AU26: 0.01453612304 | AV26: 0.0145968285 | AW26: 0.01456751082 | AX26: 0.01456832288 | AY26: 0.01456933088 | AZ26: 0.01457030392 | BA26: 0.0144852756
A27: 0.2332000136 | C27: 20 | D27: 0.02018905634 | E27: 0.01718601778 | F27: 0.01298313689 | G27: 0.013559534 | H27: 0.01507002852 | I27: 0.01313784126 | J27: 0.01501279955 | K27: 0.01549328069 | L27: 0.01561102642 | M27: 0.01967858959 | N27: 0.01991878513 | O27: 0.0206230207 | P27: 0.02114861466 | Q27: 0.01987691635 | R27: 0.02074309198 | S27: 0.02062098993 | T27: 0.02110345353 | U27: 0.01884780536 | V27: 0.0148260464 | W27: 0.01648233998 | X27: 0.01604971507 | Y27: 0.02272381181 | Z27: 0.02240167002 | AA27: 0.02131207714 | AB27: 0.02210370141 | AC27: 0.01951302271 | AD27: 0.01869124371 | AE27: 0.01588621111 | AF27: 0.01381693754 | AG27: 0.01081512024 | AH27: 0.01060740981 | AI27: 0.01344067435 | AJ27: 0.01337274046 | AK27: 0.01361762222 | AL27: 0.01332087383 | AM27: 0.01321195567 | AN27: 0.01299578358 | AO27: 0.01265129185 | AP27: 0.01256603738 | AQ27: 0.01236024439 | AR27: 0.01215579678 | AS27: 0.01202121508 | AT27: 0.01185335694 | AU27: 0.01177200307 | AV27: 0.01173581673 | AW27: 0.0117776646 | AX27: 0.01174651639 | AY27: 0.01173992884 | AZ27: 0.01173551947 | BA27: 0.01173249408
A28: 0.2366999984 | C28: 21 | D28: 0.01756666234 | E28: 0.01651058668 | F28: 0.0112968851 | G28: 0.01121674329 | H28: 0.01125145325 | I28: 0.01232419078 | J28: 0.01110397365 | K28: 0.0125291177 | L28: 0.01294134497 | M28: 0.01395138128 | N28: 0.0173985928 | O28: 0.01719358862 | P28: 0.01779450992 | Q28: 0.0182034069 | R28: 0.01709901137 | S28: 0.01782027609 | T28: 0.01771367357 | U28: 0.01812544238 | V28: 0.01615988793 | W28: 0.01269342588 | X28: 0.01406348765 | Y28: 0.01363218883 | Z28: =Z62*(1-Z$41-Z$71)/SUM(Z$42:Z$70) -> 0.01918383693 | AA28: 0.01875103046 | AB28: 0.01770455943 | AC28: 0.01824632616 | AD28: 0.0160410704 | AE28: 0.01531493989 | AF28: 0.01298156829 | AG28: 0.01128475491 | AH28: 0.008828321626 | AI28: 0.008665211026 | AJ28: 0.0109726804 | AK28: 0.01090283857 | AL28: 0.01108471951 | AM28: 0.01080699156 | AN28: 0.0107022798 | AO28: 0.01050663726 | AP28: 0.01021382373 | AQ28: 0.01012727472 | AR28: 0.009953374894 | AS28: 0.009785579566 | AT28: 0.009669865098 | AU28: 0.009528898381 | AV28: 0.009457236491 | AW28: 0.009422296679 | AX28: 0.009449723623 | AY28: 0.009418786328 | AZ28: 0.009409215977 | BA28: 0.009402559211
A29: 0.2401999831 | C29: 22 | D29: 0.01571096768 | E29: 0.01431006857 | F29: 0.01073896989 | G29: 0.009739065001 | H29: 0.009278435561 | I29: 0.009167771635 | J29: 0.01038694984 | K29: 0.009236058596 | L29: 0.01042941538 | M29: 0.01154308699 | N29: 0.01230705563 | O29: 0.01497834684 | P29: 0.0147960384 | Q29: 0.01527527494 | R29: 0.01561670022 | S29: 0.01464913863 | T29: 0.01526517535 | U29: 0.01517116038 | V29: 0.01549616038 | W29: 0.01379522187 | X29: 0.01079846392 | Y29: 0.01190877541 | Z29: 0.01147234572 | AA29: 0.0160050524 | AB29: 0.0155244143 | AC29: 0.01456458304 | AD29: 0.01494773898 | AE29: 0.01309793159 | AF29: 0.01247153553 | AG29: 0.01056621488 | AH29: 0.00918039882 | AI29: 0.007187551763 | AJ29: 0.007050283112 | AK29: 0.008915909908 | AL29: 0.008844830018 | AM29: 0.008962115821 | AN29: 0.008724047084 | AO29: 0.00862248614 | AP29: 0.008452899044 | AQ29: 0.008202871333 | AR29: 0.008126682431 | AS29: 0.007984465311 | AT29: 0.007843778306 | AU29: 0.007746108671 | AV29: 0.007628053504 | AW29: 0.007565894217 | AX29: 0.007532940005 | AY29: 0.007550023093 | AZ29: 0.007521818634 | BA29: 0.007511640669
A30: 0.2427999973 | C30: 23 | D30: 0.01304451177 | E30: 0.0127483723 | F30: 0.009208939309 | G30: 0.009238268835 | H30: 0.00803091655 | I30: 0.00753242671 | J30: 0.007704867126 | K30: 0.008610748088 | L30: 0.007661687438 | M30: 0.009284482129 | N30: 0.01015952712 | O30: 0.01056688358 | P30: 0.01285537905 | Q30: 0.01266711046 | R30: 0.01306883859 | S30: 0.01334219213 | T30: 0.01251365881 | U30: 0.01303717738 | V30: 0.01293327929 | W30: 0.01319008552 | X30: 0.01170083707 | Y30: 0.009116073176 | Z30: 0.00999037431 | AA30: 0.009539949071 | AB30: 0.01320605003 | AC30: 0.01272698343 | AD30: 0.01189006271 | AE30: 0.01216275343 | AF30: 0.01062918424 | AG30: 0.01011623775 | AH30: 0.008566559498 | AI30: 0.00744890539 | AJ30: 0.005828263619 | AK30: 0.005709371554 | AL30: 0.007208369606 | AM30: 0.007126626169 | AN30: 0.007209789177 | AO30: 0.007004286581 | AP30: 0.00691285789 | AQ30: 0.006764897253 | AR30: 0.00655931721 | AS30: 0.00649614526 | AT30: 0.006377432549 | AU30: 0.006261016533 | AV30: 0.006178830367 | AW30: 0.006080744736 | AX30: 0.006027125583 | AY30: 0.005996963413 | AZ30: 0.00600773141 | BA30: 0.005983236812
A31: 0.2429000139 | C31: 24 | D31: 0.01071697592 | E31: 0.01055387505 | F31: 0.00813859151 | G31: 0.00790942648 | H31: 0.007600204716 | I31: 0.006501844723 | J31: 0.006317155985 | K31: 0.006371382331 | L31: 0.007124586873 | M31: 0.006810727235 | N31: 0.00815785005 | O31: 0.008705721276 | P31: 0.009051191416 | Q31: 0.01098361063 | R31: 0.01081534576 | S31: 0.01114240538 | T31: 0.01137351001 | U31: 0.01066476546 | V31: 0.01109036342 | W31: 0.01098471211 | X31: 0.01116275576 | Y31: 0.009855380782 | Z31: 0.007629576841 | AA31: 0.008287277555 | AB31: 0.007851696059 | AC31: 0.01079850245 | AD31: 0.0103629513 | AE31: 0.009649686053 | AF31: 0.009844777777 | AG31: 0.008599762802 | AH31: 0.008180907884 | AI31: 0.006933310709 | AJ31: 0.006024985534 | AK31: 0.004707873729 | AL31: 0.004604241176 | AM31: 0.005793224162 | AN31: 0.00571843848 | AO31: 0.005773552445 | AP31: 0.005600912659 | AQ31: 0.005517966194 | AR31: 0.005395297283 | AS31: 0.005229482571 | AT31: 0.005174985788 | AU31: 0.005077093297 | AV31: 0.004980967873 | AW31: 0.004912381191 | AX31: 0.004831098779 | AY31: 0.004785341303 | AZ31: 0.004759122364 | BA31: 0.004766014194
A32: 0.2455999851 | C32: 25 | D32: 0.009050347147 | E32: 0.008669769183 | F32: 0.006735538011 | G32: 0.006989690879 | H32: 0.006506398615 | I32: 0.006152490899 | J32: 0.005452404347 | K32: 0.005223340624 | L32: 0.005271198467 | M32: 0.006332927871 | N32: 0.005983885579 | O32: 0.006989945813 | P32: 0.007456420392 | Q32: 0.007732722375 | R32: 0.00937721546 | S32: 0.009220359749 | T32: 0.00949754657 | U32: 0.009692287441 | V32: 0.009071472483 | W32: 0.009418667511 | X32: 0.009295555495 | Y32: 0.009401340801 | Z32: 0.008247583007 | AA32: 0.006328337097 | AB32: 0.006820041207 | AC32: 0.006419643984 | AD32: 0.008791805165 | AE32: 0.008409478618 | AF32: 0.007809872321 | AG32: 0.007964336494 | AH32: 0.006953867371 | AI32: 0.006620541129 | AJ32: 0.005607406612 | AK32: 0.004866305908 | AL32: 0.003796226626 | AM32: 0.003699972948 | AN32: 0.004648049271 | AO32: 0.004578831423 | AP32: 0.00461630476 | AQ32: 0.004470298469 | AR32: 0.004400371595 | AS32: 0.004301019995 | AT32: 0.004165508126 | AU32: 0.004119401496 | AV32: 0.004038681349 | AW32: 0.003959633131 | AX32: 0.003902442279 | AY32: 0.003835338923 | AZ32: 0.003797199763 | BA32: 0.003775084539
A33: 0.2458000183 | C33: 26 | D33: 0.007280049751 | E33: 0.007299279972 | F33: 0.005486939713 | G33: 0.005775114235 | H33: 0.005735865187 | I33: 0.005252044481 | J33: 0.005148141506 | K33: 0.004496615958 | L33: 0.004309817771 | M33: 0.004678432741 | N33: 0.005554324911 | O33: 0.005116640174 | P33: 0.005974509132 | Q33: 0.006356963872 | R33: 0.006587794796 | S33: 0.007977171291 | T33: 0.00784221207 | U33: 0.008075903772 | V33: 0.008225972741 | W33: 0.007686691685 | X33: 0.007951924871 | Y33: 0.007810230672 | Z33: 0.007848363999 | AA33: 0.006823518603 | AB33: 0.005194228095 | AC33: 0.005561200809 | AD33: 0.005212556316 | AE33: 0.007115243162 | AF33: 0.006787818763 | AG33: 0.006301285324 | AH33: 0.006423022631 | AI33: 0.005612760288 | AJ33: 0.005340416148 | AK33: 0.004517146009 | AL33: 0.00391362928 | AM33: 0.003042534863 | AN33: 0.002960630612 | AO33: 0.003711727564 | AP33: 0.003651145078 | AQ33: 0.003674440452 | AR33: 0.003555176926 | AS33: 0.003498290373 | AT33: 0.003416541583 | AU33: 0.003306702315 | AV33: 0.003267811798 | AW33: 0.003201663289 | AX33: 0.003136826521 | AY33: 0.003089455257 | AZ33: 0.003034863833 | BA33: 0.003003629476
A34: 0.2466999888 | C34: 27 | D34: 0.006017901153 | E34: 0.005870176228 | F34: 0.00461670317 | G34: 0.004703975532 | H34: 0.00473830817 | I34: 0.004629081281 | J34: 0.004393971946 | K34: 0.004244870603 | L34: 0.003709453323 | M34: 0.003824735879 | N34: 0.004102707392 | O34: 0.004748608707 | P34: 0.004372670487 | Q34: 0.005092772679 | R34: 0.005414882872 | S34: 0.005603326439 | T34: 0.00678374915 | U34: 0.006667264231 | V34: 0.006852996337 | W34: 0.006969090386 | X34: 0.006488552125 | Y34: 0.006680121849 | Z34: 0.00651889931 | AA34: 0.006492002226 | AB34: 0.005599573354 | AC34: 0.004234636082 | AD34: 0.004514620363 | AE34: 0.004217696766 | AF34: 0.00574201255 | AG34: 0.005475572052 | AH34: 0.005080818361 | AI34: 0.005183281842 | AJ34: 0.004526614866 | AK34: 0.004301228384 | AL34: 0.003632112609 | AM34: 0.003136008791 | AN34: 0.002434079872 | AO34: 0.002363756035 | AP34: 0.002959124282 | AQ34: 0.00290561593 | AR34: 0.002921648353 | AS34: 0.002825787233 | AT34: 0.00277832158 | AU34: 0.002711595769 | AV34: 0.002622580713 | AW34: 0.002590023384 | AX34: 0.002535838036 | AY34: 0.002482824169 | AZ34: 0.002444146401 | BA34: 0.002400113779
A35: 0.247699976 | C35: 28 | D35: 0.005160630554 | E35: 0.004847532094 | F35: 0.003702396866 | G35: 0.003955727665 | H35: 0.003856342361 | I35: 0.003820372029 | J35: 0.003869954507 | K35: 0.003619880282 | L35: 0.003498641345 | M35: 0.0032902907 | N35: 0.003352099695 | O35: =O69*(1-O$41-O$71)/SUM(O$42:O$70) -> 0.003505148037 | P35: 0.004055353703 | Q35: 0.003724739586 | R35: 0.004334970021 | S35: 0.004602392237 | T35: 0.00476159407 | U35: 0.005763164287 | V35: 0.005653464571 | W35: 0.00580151542 | X35: 0.005878266136 | Y35: 0.005446481472 | Z35: 0.005571081492 | AA35: 0.005387706752 | AB35: 0.005322837988 | AC35: 0.004561005761 | AD35: 0.003434601901 | AE35: 0.003649671238 | AF35: 0.003400627888 | AG35: 0.004627820274 | AH35: 0.004411130617 | AI35: 0.00409654449 | AJ35: 0.004176583988 | AK35: 0.003642585673 | AL35: 0.003455449812 | AM35: 0.002907839648 | AN35: 0.002506614407 | AO35: 0.001941609401 | AP35: 0.00188276743 | AQ35: 0.002352761356 | AR35: =AR69*(1-AR$41-AR$71)/SUM(AR$42:AR$70) -> 0.002308229247 | AS35: 0.002320111516 | AT35: 0.002242163648 | AU35: 0.002203031251 | AV35: 0.002148608985 | AW35: 0.002076696254 | AX35: 0.002049489786 | AY35: 0.002005266093 | AZ35: 0.001962390428 | BA35: 0.001931138264
A36: 0.2480000257 | C36: 29 | D36: 0.003270337908 | E36: 0.00415229032 | F36: 0.003047844437 | G36: 0.003170371036 | H36: 0.003240001736 | I36: 0.003105975328 | J36: 0.003191268051 | K36: 0.003185102753 | L36: 0.002980549742 | M36: 0.00310156741 | N36: 0.002881818276 | O36: 0.002861672713 | P36: 0.002991132622 | Q36: 0.003451763985 | R36: 0.003168004384 | S36: 0.003681582207 | T36: 0.003907873033 | U36: 0.004041942445 | V36: 0.00488280686 | W36: 0.004782015917 | X36: 0.004889245621 | Y36: 0.004929865351 | Z36: 0.004538120746 | AA36: 0.004600000396 | AB36: 0.004413099531 | AC36: 0.004331275927 | AD36: 0.003695596675 | AE36: 0.0027737853 | AF36: 0.002939700245 | AG36: 0.002738048536 | AH36: 0.003724514882 | AI36: 0.003553119249 | AJ36: 0.003297696774 | AK36: 0.0033576353 | AL36: 0.002923450879 | AM36: 0.002763668515 | AN36: 0.002321924382 | AO36: 0.001997465461 | AP36: 0.001544965202 | AQ36: 0.001495452584 | AR36: =AR70*(1-AR$41-AR$71)/SUM(AR$42:AR$70) -> 0.001867145572 | AS36: 0.00183112482 | AT36: 0.001839048355 | AU36: 0.001776071583 | AV36: 0.001743840415 | AW36: 0.001699627695 | AX36: 0.001641594756 | AY36: 0.001618996255 | AZ36: 0.001583288511 | BA36: 0.001548886107
A37: 0.7 | C37: 30 | D37: 0.04436696082 | E37: =D37 -> 0.04436696082 | F37: =E37 -> 0.04436696082 | G37: 0.04436696082 | H37: 0.04436696082 | I37: 0.04436696082 | J37: 0.04436696082 | K37: 0.04436696082 | L37: 0.04436696082 | M37: 0.04436696082 | N37: 0.04436696082 | O37: 0.04436696082 | P37: 0.04436696082 | Q37: 0.04436696082 | R37: 0.04436696082 | S37: 0.04436696082 | T37: 0.04436696082 | U37: 0.04436696082 | V37: 0.04436696082 | W37: 0.04436696082 | X37: 0.04436696082 | Y37: 0.04436696082 | Z37: 0.04436696082 | AA37: 0.04436696082 | AB37: 0.04436696082 | AC37: 0.04436696082 | AD37: 0.04436696082 | AE37: 0.04436696082 | AF37: 0.04436696082 | AG37: 0.04436696082 | AH37: 0.04436696082 | AI37: 0.04436696082 | AJ37: 0.04436696082 | AK37: 0.04436696082 | AL37: 0.04436696082 | AM37: 0.04436696082 | AN37: 0.04436696082 | AO37: 0.04436696082 | AP37: 0.04436696082 | AQ37: 0.04436696082 | AR37: =AQ37 -> 0.04436696082 | AS37: =AR37 -> 0.04436696082 | AT37: =AS37 -> 0.04436696082 | AU37: =AT37 -> 0.04436696082 | AV37: =AU37 -> 0.04436696082 | AW37: =AV37 -> 0.04436696082 | AX37: =AW37 -> 0.04436696082 | AY37: =AX37 -> 0.04436696082 | AZ37: =AY37 -> 0.04436696082 | BA37: =AZ37 -> 0.04436696082
C39: Intermediate table
C40: age | D40: 2011 | E40: 2012 | F40: 2013 | G40: 2014 | H40: 2015 | I40: 2016 | J40: 2017 | K40: 2018 | L40: 2019 | M40: 2020 | N40: 2021 | O40: 2022 | P40: 2023 | Q40: 2024 | R40: 2025 | S40: 2026 | T40: 2027 | U40: 2028 | V40: 2029 | W40: 2030 | X40: 2031 | Y40: 2032 | Z40: 2033 | AA40: 2034 | AB40: 2035 | AC40: 2036 | AD40: 2037 | AE40: 2038 | AF40: 2039 | AG40: 2040 | AH40: 2041 | AI40: 2042 | AJ40: 2043 | AK40: 2044 | AL40: 2045 | AM40: 2046 | AN40: 2047 | AO40: 2048 | AP40: 2049 | AQ40: 2050 | AR40: 2051 | AS40: 2052 | AT40: 2053 | AU40: 2054 | AV40: 2055 | AW40: 2056 | AX40: 2057 | AY40: 2058 | AZ40: 2059 | BA40: 2060
C41: 0 | D41: =D7 -> 0.03636595106 | E41: =E2 -> 0.05265433487 | F41: =F2 -> 0.05766837885 | G41: 0.05445957354 | H41: 0.05719314902 | I41: 0.0520545959 | J41: 0.05085500759 | K41: 0.04474929408 | L41: 0.0405051217 | M41: 0.03235676314 | N41: 0.03253300708 | O41: 0.04201141517 | P41: 0.04251810091 | Q41: 0.04400989496 | R41: 0.0438817376 | S41: 0.04452762515 | T41: 0.04494667069 | U41: 0.04506190941 | V41: 0.04617605665 | W41: 0.04698350038 | X41: 0.04781342823 | Y41: 0.04888939016 | Z41: 0.04980523281 | AA41: 0.05100889603 | AB41: 0.05233971747 | AC41: 0.05390666566 | AD41: 0.0550268154 | AE41: 0.05609563764 | AF41: 0.05699311802 | AG41: 0.057763551 | AH41: 0.05807463144 | AI41: 0.0583103517 | AJ41: 0.05823286566 | AK41: 0.05843534923 | AL41: 0.05879843973 | AM41: 0.05989314787 | AN41: 0.05984265104 | AO41: 0.06006632297 | AP41: 0.06019000298 | AQ41: 0.06071442799 | AR41: =AR2 -> 0.06071442799 | AS41: 0.06071442799 | AT41: 0.06071442799 | AU41: 0.06071442799 | AV41: 0.06071442799 | AW41: 0.06071442799 | AX41: 0.06071442799 | AY41: 0.06071442799 | AZ41: 0.06071442799 | BA41: 0.06071442799
C42: 1 | D42: =D8 -> 0.03760641906 | E42: =MAX(D7*(1-D$3*$A7),0) -> 0.03625995907 | F42: =MAX(E7*(1-E$3*$A7),0) -> 0.05234766071 | G42: 0.05756671213 | H42: 0.05432703987 | I42: 0.05703473725 | J42: 0.05193821318 | K42: 0.05072418773 | L42: 0.0446312157 | M42: 0.04043952284 | N42: 0.03229680761 | O42: 0.03246384182 | P42: 0.04192203904 | Q42: 0.04242679009 | R42: 0.04391417335 | S42: 0.04378531308 | T42: 0.04442896332 | U42: 0.04484617081 | V42: 0.04495996849 | W42: 0.04607011176 | X42: 0.04687371899 | Y42: 0.0476993257 | Z42: 0.04876955909 | AA42: 0.04967909922 | AB42: 0.0508763008 | AC42: 0.05220153955 | AD42: 0.05376348579 | AE42: 0.05488073888 | AF42: 0.05594716643 | AG42: 0.05684342579 | AH42: 0.05761272198 | AI42: 0.057923862 | AJ42: 0.05815919744 | AK42: 0.05808174696 | AL42: 0.05828309077 | AM42: 0.05864415839 | AN42: 0.05973515671 | AO42: 0.05968401752 | AP42: 0.05990654114 | AQ42: 0.06002944916 | AR42: =MAX(AQ7*(1-AQ$3*$A7),0) -> 0.060551965 | AS42: 0.06055153006 | AT42: 0.06055104348 | AU42: 0.06055062397 | AV42: 0.06055022113 | AW42: 0.06054982669 | AX42: 0.06054941916 | AY42: 0.06054903424 | AZ42: 0.0605487451 | BA42: 0.06054854568
C43: 2 | D43: 0.03428418072 | E43: =MAX(D8*(1-D$3*$A8),0) -> 0.0374968116 | F43: 0.03712758823 | G43: 0.05837519662 | H43: 0.05667411562 | I43: 0.05429150136 | J43: 0.05786415916 | K43: 0.05200055541 | L43: 0.05160097469 | M43: 0.04575036763 | N43: 0.04073531745 | O43: 0.0327873604 | P43: 0.03290643895 | Q43: 0.04248112763 | R43: 0.04295832288 | S43: 0.04453965178 | T43: 0.04443175898 | U43: 0.04514904845 | V43: 0.04564248615 | W43: 0.04577798413 | X43: 0.0469659017 | Y43: 0.04779046481 | Z43: 0.04861330828 | AA43: 0.0496713079 | AB43: 0.05051572296 | AC43: 0.05163852881 | AD43: 0.05283401377 | AE43: 0.05426535512 | AF43: 0.05520431059 | AG43: 0.05608822517 | AH43: 0.05685780217 | AI43: 0.05752055781 | AJ43: 0.05779926 | AK43: 0.0579772259 | AL43: 0.05783733582 | AM43: 0.05799662643 | AN43: 0.05825281738 | AO43: 0.05931721266 | AP43: 0.0592169419 | AQ43: 0.05940192268 | AR43: 0.05945740731 | AS43: 0.05996996104 | AT43: 0.05998714264 | AU43: 0.05998245176 | AV43: 0.05998042346 | AW43: 0.05997469209 | AX43: 0.05997060273 | AY43: 0.0599658628 | AZ43: 0.05996061395 | BA43: 0.05995780434
C44: 3 | D44: 0.04407654719 | E44: 0.03418122773 | F44: 0.03838721909 | G44: 0.0414004031 | H44: 0.05746581501 | I44: 0.0566322741 | J44: 0.05507728927 | K44: 0.05792908597 | L44: 0.05289516318 | M44: 0.05289229658 | N44: 0.04608241548 | O44: 0.04135137157 | P44: 0.03323222079 | Q44: 0.03334311693 | R44: 0.04301049956 | S44: 0.04356727887 | T44: 0.04519419278 | U44: 0.04514882271 | V44: 0.04594758416 | W44: 0.04646968067 | X44: 0.04666478126 | Y44: 0.04788097877 | Z44: 0.04870256662 | AA44: 0.04950835801 | AB44: 0.05050381085 | AC44: 0.05126843544 | AD44: 0.05225996312 | AE44: 0.05332290474 | AF44: 0.05458090826 | AG44: 0.05533907923 | AH44: 0.05609795906 | AI44: 0.05676236742 | AJ44: 0.05739230225 | AK44: 0.05761387109 | AL44: 0.05772868347 | AM44: 0.05754847343 | AN44: 0.0576049885 | AO44: 0.05784058496 | AP44: 0.05884825009 | AQ44: 0.05871337248 | AR44: 0.05883107638 | AS44: 0.05888112255 | AT44: 0.05940613567 | AU44: 0.05941897393 | AV44: 0.05941271799 | AW44: 0.05940541549 | AX44: 0.05939606369 | AY44: 0.05938770781 | AZ44: 0.05937818497 | BA44: 0.05937048306
C45: 4 | D45: 0.0495161602 | E45: 0.04380404492 | F45: 0.03476922414 | G45: 0.042722525 | H45: 0.04064698711 | I45: 0.05724938442 | J45: 0.05731149079 | K45: 0.05498394349 | L45: 0.05875560505 | M45: 0.05412292137 | N45: 0.05316828099 | O45: 0.04667060355 | P45: 0.04181494395 | Q45: 0.03359415734 | R45: 0.03367833724 | S45: 0.04351539479 | T45: 0.04410042863 | U45: 0.04581128364 | V45: 0.04583369638 | W45: 0.04666294235 | X45: 0.04724883972 | Y45: 0.0474498343 | Z45: 0.04866400625 | AA45: 0.04946187043 | AB45: 0.05019499976 | AC45: 0.05110832423 | AD45: 0.05173466424 | AE45: 0.05259037985 | AF45: 0.05347769656 | AG45: 0.05455695933 | AH45: 0.05519059635 | AI45: 0.05584476393 | AJ45: 0.0564752139 | AK45: 0.05704582895 | AL45: 0.05720338481 | AM45: 0.05727549902 | AN45: 0.05699492556 | AO45: 0.05703148305 | AP45: 0.05721631796 | AQ45: 0.05817755959 | AR45: 0.05797893033 | AS45: 0.05808986468 | AT45: 0.05815582816 | AU45: 0.05866979907 | AV45: 0.05868046017 | AW45: 0.05866863476 | AX45: 0.0586573608 | AY45: 0.05864346563 | AZ45: 0.05863014022 | BA45: 0.05861805424
C46: 5 | D46: 0.04878465818 | E46: 0.04907008216 | F46: 0.04430277731 | G46: 0.03862952764 | H46: 0.0418455507 | I46: 0.04038449824 | J46: 0.05780979746 | K46: 0.05707085739 | L46: 0.0556249445 | M46: 0.0600246518 | N46: 0.05430718615 | O46: 0.05373539988 | P46: 0.04709600787 | Q46: 0.04218192579 | R46: 0.03386000466 | S46: 0.03400073998 | T46: 0.04395282183 | U46: 0.04460519839 | V46: 0.04640369479 | W46: 0.04644321516 | X46: 0.04733730579 | Y46: 0.04793197564 | Z46: 0.0481105899 | AA46: 0.04930068201 | AB46: 0.0500207604 | AC46: 0.05066504683 | AD46: 0.05143951427 | AE46: 0.05192698417 | AF46: 0.05260691411 | AG46: 0.05331732674 | AH46: 0.05427203972 | AI46: 0.05480241823 | AJ46: 0.05542181495 | AK46: 0.05599223744 | AL46: 0.05649548838 | AM46: 0.05660911146 | AN46: 0.0565786626 | AO46: 0.05628162659 | AP46: 0.05626959966 | AQ46: 0.05641708463 | AR46: 0.05729990073 | AS46: 0.05709865888 | AT46: 0.05722374071 | AU46: 0.05728386433 | AV46: 0.05778776454 | AW46: 0.05779233317 | AX46: 0.05777630339 | AY46: 0.05776024977 | AZ46: 0.05774129815 | BA46: 0.05772534749
C47: 6 | D47: 0.05013029409 | E47: 0.04817282439 | F47: 0.04927198739 | G47: 0.04911580054 | H47: 0.03772411535 | I47: 0.04143453817 | J47: 0.04066853913 | K47: 0.05738613789 | L47: 0.05755000978 | M47: 0.05671426026 | N47: 0.06009295786 | O47: 0.05474407896 | P47: 0.05408444646 | Q47: 0.04738484111 | R47: 0.04240288857 | S47: 0.03409247651 | T47: 0.03424965347 | U47: 0.04433457764 | V47: 0.0450572485 | W47: 0.04688909454 | X47: 0.04697999549 | Y47: 0.04788178221 | Z47: 0.048453957 | AA47: 0.04858922798 | AB47: 0.04969938638 | AC47: 0.05032628261 | AD47: 0.05082783605 | AE47: 0.05146323055 | AF47: 0.05177529439 | AG47: 0.05228081286 | AH47: 0.05286964856 | AI47: 0.05371936962 | AJ47: 0.05421509527 | AK47: 0.05477361141 | AL47: 0.05527550856 | AM47: 0.05572930172 | AN47: 0.05574011388 | AO47: 0.05568957291 | AP47: 0.05534923164 | AQ47: 0.05530270868 | AR47: 0.0553842579 | AS47: 0.05624488884 | AT47: 0.05606230727 | AU47: 0.05617987602 | AV47: 0.05623614047 | AW47: 0.05672454592 | AX47: 0.05672425603 | AY47: 0.0567032173 | AZ47: 0.05668195562 | BA47: 0.05666034956
C48: 7 | D48: 0.04897515522 | E48: 0.04929791479 | F48: 0.04796822945 | G48: 0.05448959717 | H48: 0.04780017331 | I48: 0.03720762545 | J48: 0.04159465946 | K48: 0.04022411828 | L48: 0.05765264504 | M48: 0.05854362985 | N48: 0.05663096532 | O48: 0.06039521827 | P48: 0.0549347686 | Q48: 0.05425171865 | R48: 0.04748727817 | S48: 0.04256199194 | T48: 0.03423497045 | U48: 0.03443840753 | V48: 0.04464127316 | W48: 0.04538150107 | X48: 0.04727497187 | Y48: 0.04736064376 | Z48: 0.0482360768 | AA48: 0.04876135251 | AB48: 0.04880268374 | AC48: 0.04981681768 | AD48: 0.05029889419 | AE48: 0.05066092407 | AF48: 0.05112139883 | AG48: 0.05126380996 | AH48: 0.05165099941 | AI48: 0.05213973958 | AJ48: 0.05294945585 | AK48: 0.05338499236 | AL48: 0.05387386025 | AM48: 0.05432415664 | AN48: 0.05466971817 | AO48: 0.05465913118 | AP48: 0.05456155719 | AQ48: 0.0541935388 | AR48: 0.05408542093 | AS48: 0.05415881942 | AT48: 0.05501445213 | AU48: 0.05483020524 | AV48: 0.05494196912 | AW48: 0.0549903955 | AX48: 0.05546278014 | AY48: 0.05545680434 | AZ48: 0.0554304728 | BA48: 0.05540648593
C49: 8 | D49: 0.05319273321 | E49: 0.04794135665 | F49: 0.04863152845 | G49: 0.05290178239 | H49: 0.05282777651 | I49: 0.04694068714 | J49: =MAX(I14*(1-I$3*$A14),0) -> 0.03722068839 | K49: 0.04097413346 | L49: 0.04024361717 | M49: 0.05849988222 | N49: 0.0582884619 | O49: 0.05672651709 | P49: 0.06040388899 | Q49: 0.0549195164 | R49: 0.05418395591 | S49: 0.04750154018 | T49: 0.04259166058 | U49: 0.03430315573 | V49: 0.03455382632 | W49: 0.0448009927 | X49: 0.0455875188 | Y49: 0.04747982279 | Z49: 0.04752779519 | AA49: 0.04834932138 | AB49: 0.04877585817 | AC49: 0.04871536426 | AD49: 0.04958219055 | AE49: 0.04992488344 | AF49: 0.05011542402 | AG49: 0.05040779737 | AH49: 0.0504387864 | AI49: 0.05073047611 | AJ49: 0.05118349415 | AK49: 0.05192649027 | AL49: 0.05229342812 | AM49: 0.05272867183 | AN49: 0.05307072313 | AO49: 0.05338650404 | AP49: 0.05332844788 | AQ49: 0.05319868619 | AR49: 0.0527780957 | AS49: 0.05266601726 | AT49: 0.05275027918 | AU49: 0.05357753604 | AV49: 0.05339440399 | AW49: 0.05349626566 | AX49: 0.05353782123 | AY49: 0.05399163765 | AZ49: 0.05397979656 | BA49: 0.05395076421
C50: 9 | D50: 0.05322315025 | E50: 0.05181151528 | F50: 0.04681400656 | G50: 0.05347367543 | H50: 0.05107662748 | I50: 0.05163350473 | J50: 0.04677931062 | K50: 0.03650523343 | L50: 0.04081020121 | M50: 0.04072348911 | N50: 0.05806258318 | O50: 0.05817669082 | P50: 0.05653034857 | Q50: 0.06016756029 | R50: 0.05464890257 | S50: 0.05399852232 | T50: 0.04735624807 | U50: 0.04251483223 | V50: 0.03428618947 | W50: 0.0345426091 | X50: 0.04482609655 | Y50: 0.04559975164 | Z50: 0.0474492324 | AA50: 0.04743453906 | AB50: 0.0481501521 | AC50: 0.04847017928 | AD50: 0.04826707827 | AE50: 0.04899150026 | AF50: 0.04916519122 | AG50: 0.04919535264 | AH50: 0.04937655014 | AI50: 0.04932140615 | AJ50: 0.04958080399 | AK50: 0.04997338975 | AL50: 0.05063961193 | AM50: 0.050953672 | AN50: 0.05128116905 | AO50: 0.05159159214 | AP50: 0.05185134074 | AQ50: 0.05176066158 | AR50: 0.05157360406 | AS50: 0.05115863308 | AT50: 0.05106166149 | AU50: 0.05113689712 | AV50: 0.05193465543 | AW50: 0.05174980532 | AX50: 0.05184250389 | AY50: 0.05187635016 | AZ50: 0.05230981143 | BA50: 0.05229474216
C51: 10 | D51: 0.05202430759 | E51: 0.05156850103 | F51: 0.05004691092 | G51: 0.05131314444 | H51: 0.05140306622 | I51: 0.04967277172 | J51: 0.05124968663 | K51: 0.04566782175 | L51: 0.03618650035 | M51: 0.04117756006 | N51: 0.04028523021 | O51: 0.05773052377 | P51: 0.05775454294 | Q51: 0.05609248912 | R51: 0.05963769378 | S51: 0.05424734394 | T51: 0.05361949132 | U51: 0.04708127982 | V51: 0.04232137156 | W51: 0.03413396017 | X51: 0.03441701045 | Y51: 0.04464597568 | Z51: 0.0453696763 | AA51: 0.04714047704 | AB51: 0.04701819871 | AC51: 0.047621029 | AD51: 0.04779452793 | AE51: 0.04746414718 | AF51: 0.04801615752 | AG51: 0.04803443458 | AH51: 0.04796249031 | AI51: 0.04805717693 | AJ51: 0.04797885697 | AK51: 0.04818257245 | AL51: 0.04850642853 | AM51: 0.04910922841 | AN51: 0.04931961706 | AO51: 0.04961403413 | AP51: 0.04986808578 | AQ51: 0.05008529107 | AR51: 0.04993774937 | AS51: 0.04974958965 | AT51: 0.04935984077 | AU51: 0.04925942538 | AV51: 0.04932741261 | AW51: 0.05008924033 | AX51: 0.04990453679 | AY51: 0.04998715129 | AZ51: 0.05001334805 | BA51: 0.05042746677
C52: 11 | D52: 0.05527895746 | E52: 0.05014502437 | F52: 0.04927786403 | G52: 0.05468650736 | H52: 0.04911332707 | I52: 0.04974379792 | J52: 0.0491084774 | K52: 0.04980340496 | L52: 0.04505679176 | M52: 0.03640830575 | N52: 0.04060141374 | O52: 0.03990433821 | P52: 0.05709612471 | Q52: 0.05708964057 | R52: 0.05538467616 | S52: 0.05896939662 | T52: 0.05365541918 | U52: 0.05309724292 | V52: 0.04667937905 | W52: 0.04196230334 | X52: 0.03386907799 | Y52: 0.03413372925 | Z52: 0.04422760267 | AA52: 0.0448718066 | AB52: 0.0465109343 | AC52: 0.04628332282 | AD52: 0.04673550584 | AE52: 0.04677767251 | AF52: 0.04630036404 | AG52: 0.04669287065 | AH52: 0.04661340144 | AI52: 0.04646561306 | AJ52: 0.0465337704 | AK52: 0.04641085755 | AL52: 0.04655168119 | AM52: 0.0468211776 | AN52: 0.04731147151 | AO52: 0.04749141541 | AP52: 0.04772981167 | AQ52: 0.04794114974 | AR52: 0.04809148335 | AS52: 0.04794177272 | AT52: 0.04777063571 | AU52: 0.04738919464 | AV52: 0.04728780783 | AW52: 0.04734522777 | AX52: 0.04806966237 | AY52: 0.04788535337 | AZ52: 0.04795803101 | BA52: 0.04797928155
C53: 12 | D53: 0.04965216076 | E53: 0.05299405029 | F53: 0.04737982359 | G53: 0.0536726543 | H53: 0.05210724859 | I53: 0.04728424466 | J53: 0.04897651164 | K53: 0.0474959093 | L53: 0.04889739437 | M53: 0.045199017 | N53: 0.03577716637 | O53: 0.04006052685 | P53: 0.0393116539 | Q53: 0.05621617389 | R53: 0.05614397237 | S53: 0.05454286658 | T53: 0.05808836494 | U53: 0.05291435945 | V53: 0.05242492098 | W53: 0.04608792241 | X53: 0.04145754584 | Y53: 0.03344262162 | Z53: 0.03366104351 | AA53: 0.04353778809 | AB53: 0.04405995422 | AC53: 0.04556057438 | AD53: 0.04519963198 | AE53: 0.04551669992 | AF53: 0.04540746974 | AG53: 0.04480582077 | AH53: 0.04509291818 | AI53: 0.04494205263 | AJ53: 0.04477721367 | AK53: 0.04479721143 | AL53: 0.04462407887 | AM53: 0.04471646108 | AN53: 0.0448872545 | AO53: 0.04533445814 | AP53: 0.04546310929 | AQ53: 0.04565918632 | AR53: 0.04580491699 | AS53: 0.04594021251 | AT53: 0.04580560441 | AU53: 0.04563455705 | AV53: 0.04526482713 | AW53: 0.04515993682 | AX53: 0.04520781298 | AY53: 0.04589222365 | AZ53: 0.04570955929 | BA53: 0.04577494076
C54: 13 | D54: 0.04853429865 | E54: 0.04577115544 | F54: 0.04605478592 | G54: 0.05042623395 | H54: 0.04951230257 | I54: 0.04833905995 | J54: 0.04519655526 | K54: 0.04577023511 | L54: 0.04501658281 | M54: 0.04802431204 | N54: 0.04334745784 | O54: 0.03432272136 | P54: 0.03837157263 | Q54: 0.03762242046 | R54: 0.05371716075 | S54: 0.05370600256 | T54: 0.0521748434 | U54: 0.05561447928 | V54: 0.05070137157 | W54: 0.05020952878 | X54: 0.04414303995 | Y54: 0.03965786925 | Z54: 0.03192126547 | AA54: 0.03203611221 | AB54: 0.0412920892 | AC54: 0.04166385839 | AD54: 0.04294200976 | AE54: 0.04248643488 | AF54: 0.04264807882 | AG54: 0.0424269299 | AH54: 0.0417879034 | AI54: 0.0419953105 | AJ54: 0.04183622566 | AK54: 0.04163864812 | AL54: 0.04159997584 | AM54: 0.041388673 | AN54: 0.04138496224 | AO54: 0.04151450928 | AP54: 0.04188230468 | AQ54: 0.04196724864 | AR54: 0.04209137359 | AS54: 0.04221377329 | AT54: 0.04234142794 | AU54: 0.04220626407 | AV54: 0.04203974112 | AW54: 0.04168786805 | AX54: 0.04158090814 | AY54: 0.04161461174 | AZ54: 0.04223557661 | BA54: 0.04206183707
C55: 14 | D55: 0.04374760029 | E55: 0.04228874495 | F55: 0.035018624 | G55: 0.0474438512 | H55: 0.04441829192 | I55: 0.0435496853 | J55: 0.04429999495 | K55: 0.0402148788 | L55: 0.04124579356 | M55: 0.0429153191 | N55: 0.04450041883 | O55: 0.03996016306 | P55: 0.03159002517 | Q55: 0.0352722085 | R55: 0.03451070658 | S55: 0.0493049015 | T55: 0.04927657503 | U55: 0.04789329393 | V55: 0.05106405529 | W55: 0.04650106965 | X55: 0.0460127955 | Y55: 0.0403606751 | Z55: 0.03613240609 | AA55: 0.02894953467 | AB55: 0.02891209005 | AC55: 0.03712359886 | AD55: 0.03732270925 | AE55: 0.03836466082 | AF55: 0.03784295348 | AG55: 0.03789705802 | AH55: 0.03764350135 | AI55: 0.03703501908 | AJ55: 0.03720536048 | AK55: =MAX(AJ20*(1-AJ$3*$A20),0) -> 0.03702296909 | AL55: 0.03678932414 | AM55: 0.03669617529 | AN55: 0.03642034048 | AO55: 0.0363821118 | AP55: 0.03644900125 | AQ55: 0.03673651025 | AR55: 0.03675480526 | AS55: 0.03684749537 | AT55: 0.03695095857 | AU55: 0.03704752456 | AV55: 0.03691623203 | AW55: 0.03675557473 | AX55: 0.03643365833 | AY55: 0.03632622433 | AZ55: 0.0363442025 | BA55: 0.0368790109
C56: 15 | D56: 0.03518994219 | E56: 0.03724479149 | F56: 0.03061703024 | G56: 0.03560251233 | H56: 0.04101087725 | I56: 0.03822478858 | J56: 0.03923277472 | K56: 0.0386337529 | L56: 0.03549835873 | M56: 0.03885084302 | N56: 0.03921671832 | O56: 0.04036386656 | P56: 0.03618722806 | Q56: 0.02856660045 | R56: 0.03182174236 | S56: 0.03114814558 | T56: 0.04447755073 | U56: 0.0444643404 | V56: 0.04321773148 | W56: 0.04601486613 | X56: 0.04185394686 | Y56: 0.04130168205 | Z56: 0.03608056127 | AA56: 0.03212874891 | AB56: 0.02560109037 | AC56: 0.02546140806 | AD56: 0.03257024058 | AE56: 0.03265765081 | AF56: 0.03347030077 | AG56: 0.03294301461 | AH56: 0.03294471686 | AI56: 0.03269204256 | AJ56: 0.03215306846 | AK56: 0.03226401484 | AL56: 0.03205161037 | AM56: 0.03179302864 | AN56: 0.03163088385 | AO56: 0.03135934075 | AP56: 0.03128348852 | AQ56: 0.03130875517 | AR56: 0.03150515033 | AS56: 0.03150511289 | AT56: 0.03157913345 | AU56: 0.03165286764 | AV56: 0.03172249384 | AW56: 0.03159532019 | AX56: 0.03144359517 | AY56: 0.03115444868 | AZ56: 0.03105144764 | BA56: 0.03105956509
C57: 16 | D57: 0.03517907923 | E57: 0.02938108629 | F57: 0.02570595597 | G57: 0.03078766785 | H57: 0.03029317014 | I57: 0.03465089397 | J57: 0.03394591805 | K57: 0.03364367302 | L57: 0.03351661478 | M57: 0.0331044347 | N57: 0.03509305274 | O57: 0.03509322959 | P57: 0.03606117002 | Q57: 0.03227898781 | R57: 0.02541674237 | S57: 0.02832056961 | T57: 0.02770286829 | U57: 0.03956307481 | V57: 0.0395451964 | W57: 0.0383740192 | X57: 0.04079709178 | Y57: 0.03699329848 | Z57: 0.0363388295 | AA57: 0.03155676988 | AB57: 0.02793267353 | AC57: 0.02215790128 | AD57: 0.02195164695 | AE57: 0.02800601387 | AF57: 0.02799999975 | AG57: 0.02863848922 | AH57: 0.02815183565 | AI57: 0.02812876241 | AJ57: 0.02790471499 | AK57: 0.02741268742 | AL57: 0.02745860847 | AM57: 0.02722580526 | AN57: 0.02693374622 | AO57: 0.02676488972 | AP57: 0.02649687104 | AQ57: 0.02640408899 | AR57: 0.02638136337 | AS57: 0.02653214142 | AT57: 0.02652591022 | AU57: 0.02657427602 | AV57: 0.02662397096 | AW57: 0.02666874411 | AX57: 0.02654844284 | AY57: 0.02640799913 | AZ57: 0.0261548155 | BA57: 0.02606159721
C58: 17 | D58: 0.02747448357 | E58: 0.02892149652 | F58: 0.01950410502 | G58: 0.02562677721 | H58: 0.0258714537 | I58: 0.02522583948 | J58: 0.03042595536 | K58: 0.02872484206 | L58: 0.02878962443 | M58: 0.03101145231 | N58: 0.02963045507 | O58: 0.03106964272 | P58: 0.031019148 | Q58: 0.0318209813 | R58: 0.02840675984 | S58: 0.02237083316 | T58: 0.02490763361 | U58: 0.02436468054 | V58: 0.03478501266 | W58: 0.03470623859 | X58: 0.03362008585 | Y58: 0.03562198439 | Z58: 0.03214110482 | AA58: 0.0313697646 | AB58: 0.02706793674 | AC58: 0.02384615629 | AD58: 0.01884109154 | AE58: 0.01861632761 | AF58: 0.02368329334 | AG58: 0.02363308267 | AH58: 0.02414383644 | AI58: 0.02371506462 | AJ58: 0.02368913817 | AK58: 0.02347266158 | AL58: 0.02301650217 | AM58: 0.02300849367 | AN58: 0.02275029488 | AO58: 0.0224779988 | AP58: 0.02230360633 | AQ58: 0.02205529227 | AR58: =MAX(AQ23*(1-AQ$3*$A23),0) -> 0.02194028465 | AS58: 0.02190828348 | AT58: 0.02202725353 | AU58: 0.02200957712 | AV58: 0.02203857357 | AW58: 0.02206748309 | AX58: 0.02209252958 | AY58: 0.02198121999 | AZ58: 0.02185564529 | BA58: 0.02164006127
C59: 18 | D59: 0.02348846728 | E59: 0.02231074891 | F59: 0.01859969126 | G59: 0.0193113337 | H59: 0.02132203846 | I59: 0.02129570072 | J59: 0.02195197462 | K59: 0.02547486655 | L59: 0.0243134047 | M59: 0.02647239936 | N59: 0.02755677935 | O59: 0.02601193727 | P59: 0.02723072543 | Q59: 0.02713811757 | R59: 0.02776108166 | S59: 0.02478334427 | T59: 0.01950075585 | U59: 0.02171032041 | V59: 0.02122790892 | W59: 0.03024716795 | X59: 0.03012042471 | Y59: 0.02907212129 | Z59: 0.03064150043 | AA59: 0.02745892606 | AB59: 0.02662034338 | AC59: 0.02285670614 | AD59: 0.02005459055 | AE59: 0.01580352705 | AF59: 0.01557122944 | AG59: 0.01977361945 | AH59: 0.0197102106 | AI59: 0.02012198262 | AJ59: 0.01975960152 | AK59: 0.0197143819 | AL59: 0.01949739911 | AM59: 0.0190781517 | AN59: 0.01901742445 | AO59: 0.01877920376 | AP59: 0.01852578266 | AQ59: 0.01836059219 | AR59: 0.01812420867 | AS59: 0.01801826657 | AT59: 0.01798616761 | AU59: 0.01807294702 | AV59: 0.01804872496 | AW59: 0.01806184433 | AX59: 0.01807505778 | AY59: 0.01808541017 | AZ59: 0.017986212 | BA59: 0.01787816993
C60: 19 | D60: 0.02090105243 | E60: 0.01889963185 | F60: 0.0140075928 | G60: 0.01832261799 | H60: 0.01594939286 | I60: 0.01740027258 | J60: 0.0184086653 | K60: 0.01823553836 | L60: 0.02138802514 | M60: 0.02225355338 | N60: 0.02339737083 | O60: 0.02403978816 | P60: 0.02265485705 | Q60: 0.02367252504 | R60: 0.02352322464 | S60: 0.02406219176 | T60: 0.02146159508 | U60: 0.01688446523 | V60: 0.01878775313 | W60: 0.01833212247 | X60: 0.02606671411 | Y60: 0.02585888777 | Z60: 0.0248220943 | AA60: 0.02597608695 | AB60: 0.02311638087 | AC60: 0.02229669994 | AD60: 0.01906564444 | AE60: 0.01668424319 | AF60: 0.01311114009 | AG60: 0.01289606738 | AH60: 0.01635957965 | AI60: 0.01629652448 | AJ60: 0.01663298281 | AK60: 0.01631372076 | AL60: 0.01624506815 | AM60: 0.01603127844 | AN60: 0.01564125918 | AO60: 0.01557014842 | AP60: 0.01535083488 | AQ60: 0.01512558235 | AR60: 0.01496384473 | AS60: 0.01476142918 | AT60: 0.01466995646 | AU60: 0.01463462207 | AV60: 0.01469694973 | AW60: 0.01466823685 | AX60: 0.01467002202 | AY60: 0.014672158 | AZ60: 0.01467370708 | BA60: 0.014588724
C61: 20 | D61: 0.02018905634 | E61: 0.01668664302 | F61: 0.01162203668 | G61: 0.01373957327 | H61: 0.01503812536 | I61: 0.0129205718 | J61: 0.0149562283 | K61: 0.01518983698 | L61: 0.01520448339 | M61: 0.01949949717 | N61: 0.01957905356 | O61: 0.02030235379 | P61: 0.02082546 | Q61: 0.01958827748 | R61: 0.02040685276 | S61: 0.02027594526 | T61: 0.02072043884 | U61: 0.01847707708 | V61: 0.01452770835 | W61: 0.01613019105 | X61: 0.01570427314 | Y61: 0.0222419293 | Z61: 0.02193927983 | AA61: 0.02090463173 | AB61: 0.02171993936 | AC61: 0.01922822544 | AD61: 0.01846921938 | AE61: 0.01575129608 | AF61: 0.01374598984 | AG61: 0.01078415295 | AH61: 0.01059682351 | AI61: 0.01343473284 | AJ61: 0.01337990092 | AK61: 0.01363953621 | AL61: 0.01335154468 | AM61: 0.01326562753 | AN61: 0.01305265824 | AO61: 0.01271716032 | AP61: 0.01263898166 | AQ61: 0.01244577031 | AR61: 0.01224083713 | AS61: 0.01210166252 | AT61: 0.01193343567 | AU61: 0.01185177199 | AV61: 0.01181631397 | AW61: 0.01185910043 | AX61: 0.01182851695 | AY61: 0.01182278666 | AZ61: 0.01181880461 | BA61: 0.01181628315
C62: 21 | D62: 0.01756666234 | E62: 0.01603083795 | F62: 0.01011256479 | G62: 0.01136567571 | H62: 0.01122763398 | I62: 0.01212037722 | J62: 0.01106213165 | K62: 0.01228372862 | L62: 0.01260432589 | M62: 0.01382441148 | N62: 0.01710184523 | O62: 0.01692624588 | P62: 0.01752260658 | Q62: 0.01793906957 | R62: 0.01682184159 | S62: 0.01752209489 | T62: 0.0173921813 | U62: 0.01776892267 | V62: 0.01583470957 | W62: 0.01242222797 | X62: 0.01376079578 | Y62: 0.01334310382 | Z62: =MAX(Y27*(1-Y$3*$A27),0) -> 0.01878786565 | AA62: 0.01839254728 | AB62: 0.0173971748 | AC62: 0.01798001663 | AD62: 0.01585052621 | AE62: 0.01518487644 | AF62: 0.01291491008 | AG62: 0.0112524429 | AH62: 0.008819510872 | AI62: 0.008661380534 | AJ62: 0.01097855574 | AK62: 0.01092038383 | AL62: 0.01111024169 | AM62: 0.01085089356 | AN62: 0.01074911719 | AO62: 0.01056133966 | AP62: 0.0102731137 | AQ62: 0.01019734975 | AR62: 0.01002300739 | AS62: 0.009851065858 | AT62: 0.009735192622 | AU62: 0.009593467679 | AV62: 0.009522104702 | AW62: 0.009487446483 | AX62: 0.009515690637 | AY62: 0.00948526204 | AZ62: 0.009475991707 | BA62: 0.009469708762
C63: 22 | D63: 0.01571096768 | E63: 0.01389426037 | F63: 0.009613139178 | G63: 0.009868377272 | H63: 0.009258793164 | I63: 0.009016157932 | J63: 0.01034780972 | K63: 0.009055165735 | L63: 0.01015781208 | M63: 0.01143803478 | N63: 0.01209714849 | O63: 0.01474544884 | P63: 0.01456995225 | Q63: 0.01505345793 | R63: 0.01536355825 | S63: 0.0144040191 | T63: 0.01498812181 | U63: 0.01487275014 | V63: 0.01518433792 | W63: 0.01350048383 | X63: 0.01056604595 | Y63: 0.01165623721 | Z63: 0.01123554641 | AA63: 0.01569906697 | AB63: 0.01525488112 | AC63: 0.01435200944 | AD63: 0.01477018194 | AE63: 0.01298669628 | AF63: 0.01240749626 | AG63: 0.01053596029 | AH63: 0.00917123669 | AI63: 0.007184374476 | AJ63: 0.007054058199 | AK63: 0.008930257726 | AL63: 0.008865194933 | AM63: 0.008998523256 | AN63: 0.008762226949 | AO63: 0.008667378785 | AP63: 0.008501967069 | AQ63: 0.008259630582 | AR63: 0.008183535628 | AS63: 0.008037898327 | AT63: 0.007896769181 | AU63: 0.007798597509 | AV63: 0.00768037515 | AW63: 0.007618208058 | AX63: 0.007585526258 | AY63: 0.007603309487 | AZ63: 0.007575199801 | BA63: 0.007565285989
C64: 23 | D64: 0.01304451177 | E64: 0.01237794238 | F64: 0.008243510895 | G64: 0.00936093169 | H64: 0.008013915144 | I64: 0.007407857822 | J64: 0.00767583364 | K64: 0.008442102249 | L64: 0.007462161438 | M64: 0.0091999852 | N64: 0.009986247871 | O64: 0.01040257933 | P64: 0.01265894652 | Q64: 0.01248316741 | R64: 0.01285699669 | S64: 0.01311894133 | T64: 0.0122865436 | U64: 0.01278074167 | V64: 0.01267302856 | W64: 0.01290827636 | X64: 0.01144899711 | Y64: 0.008922757183 | Z64: 0.009784164189 | AA64: 0.009357563826 | AB64: 0.01297676803 | AC64: 0.01254123004 | AD64: 0.01174882635 | AE64: 0.01205946019 | AF64: 0.01057460513 | AG64: 0.01008727159 | AH64: 0.008558009986 | AI64: 0.007445612571 | AJ64: 0.005831384374 | AK64: 0.005718559291 | AL64: 0.007224966627 | AM64: 0.007155577165 | AN64: 0.007241342053 | AO64: 0.007040754132 | AP64: 0.006952986168 | AQ64: 0.006811706531 | AR64: 0.006605205327 | AS64: 0.006539618257 | AT64: 0.006420517108 | AU64: 0.006303442155 | AV64: 0.006221211635 | AW64: 0.006122789616 | AX64: 0.006069199986 | AY64: 0.006039288655 | AZ64: 0.006050367338 | BA64: 0.006025966845
C65: 24 | D65: 0.01071697592 | E65: 0.01024721071 | F65: 0.007285374084 | G65: 0.00801444538 | H65: 0.007584115125 | I65: 0.006394319275 | J65: 0.006293351673 | K65: 0.006246595598 | L65: 0.006939048069 | M65: 0.006748743645 | N65: 0.008018711082 | O65: 0.008570356201 | P65: 0.008912887571 | Q65: 0.01082411421 | R65: 0.01064003229 | S65: 0.01095596294 | T65: 0.0111670878 | U65: 0.01045499407 | V65: 0.01086719688 | W65: 0.01075002125 | X65: 0.01092249705 | Y65: 0.009646386989 | Z65: 0.007472095659 | AA65: 0.00812884095 | AB65: 0.007715375771 | AC65: 0.0106408957 | AD65: 0.01023985476 | AE65: 0.009567735259 | AF65: 0.009794226467 | AG65: 0.008575138819 | AH65: 0.008172743255 | AI65: 0.006930245811 | AJ65: 0.006028211624 | AK65: 0.004715449817 | AL65: 0.004614842282 | AM65: 0.005816758385 | AN65: 0.005743464618 | AO65: 0.005803612226 | AP65: 0.005633425259 | AQ65: 0.005556147412 | AR65: 0.00543304207 | AS65: 0.005264478906 | AT65: 0.005209946876 | AU65: 0.005111496471 | AV65: 0.005015132871 | AW65: 0.004946347503 | AX65: 0.004864823909 | AY65: 0.004819115184 | AZ65: 0.004792897108 | BA65: 0.00480005128
C66: 25 | D66: 0.009050347147 | E66: 0.008417851379 | F66: 0.00602941111 | G66: 0.007082497817 | H66: 0.006492624605 | I66: 0.006050742954 | J66: 0.005431858592 | K66: 0.005121038867 | L66: 0.005133925685 | M66: 0.006275292673 | N66: 0.005881825397 | O66: 0.006881259294 | P66: 0.007342484937 | Q66: 0.007620433111 | R66: 0.009225213647 | S66: 0.009066078306 | T66: 0.009325171945 | U66: 0.009501644286 | V66: 0.008888931207 | W66: 0.00921743555 | X66: 0.00909548499 | Y66: 0.009201975406 | Z66: 0.008077345633 | AA66: 0.006207351618 | AB66: 0.006701632398 | AC66: 0.006325947733 | AD66: 0.008687371522 | AE66: 0.008338060393 | AF66: 0.007769769915 | AG66: 0.007941531948 | AH66: 0.006946927341 | AI66: 0.006617614492 | AJ66: 0.005610409109 | AK66: 0.004874136952 | AL66: 0.003804967306 | AM66: 0.003715003609 | AN66: 0.004668390965 | AO66: 0.004602670935 | AP66: 0.004643101833 | AQ66: 0.004501230416 | AR66: 0.004431156014 | AS66: 0.004329802946 | AT66: 0.004193649401 | AU66: 0.004147315202 | AV66: 0.004066383103 | AW66: 0.003987011735 | AX66: 0.003929684606 | AY66: 0.003862407897 | AZ66: 0.003824147894 | BA66: 0.003802044776
C67: 26 | D67: 0.007280049751 | E67: 0.007087184523 | F67: 0.00491171087 | G67: 0.005851794403 | H67: 0.005723722392 | I67: 0.005165187833 | J67: 0.005128742275 | K67: 0.004408547469 | L67: 0.004197581308 | M67: 0.0046358549 | N67: 0.005459591247 | O67: 0.005037081645 | P67: 0.005883217549 | Q67: 0.006264652425 | R67: 0.006481008644 | S67: 0.007843691739 | T67: 0.007699880748 | U67: 0.007917054193 | V67: 0.008060445087 | W67: 0.007522463779 | X67: 0.007780773655 | Y67: 0.007644606454 | Z67: 0.007686366857 | AA67: 0.006693066218 | AB67: 0.005104046475 | AC67: 0.005480033743 | AD67: 0.005150638856 | AE67: 0.007054816343 | AF67: 0.006752964433 | AG67: 0.006283242647 | AH67: 0.00641661239 | AI67: 0.005610279145 | AJ67: 0.005343275683 | AK67: 0.004524415171 | AL67: 0.003922640276 | AM67: 0.003054894767 | AN67: 0.002973587497 | AO67: 0.003731052533 | AP67: 0.00367233952 | AQ67: 0.00369986551 | AR67: 0.003580048475 | AS67: 0.003521701359 | AT67: 0.003439623001 | AU67: 0.003329109045 | AV67: 0.003290226074 | AW67: 0.003223800963 | AX67: 0.003158724207 | AY67: 0.003111259949 | AZ67: 0.003056401786 | BA67: 0.003025080271
C68: 27 | D68: 0.006017901153 | E68: 0.0056996063 | F68: 0.00413270645 | G68: 0.004766433454 | H68: 0.004728277198 | I68: 0.004552527001 | J68: 0.004377414578 | K68: 0.004161732674 | L68: 0.003612851576 | M68: 0.003789927428 | N68: 0.00403273228 | O68: 0.004674772691 | P68: 0.00430585529 | Q68: 0.005018818945 | R68: 0.005327109266 | S68: 0.005509567702 | T68: 0.006660628278 | U68: 0.006536121991 | V68: 0.006715096486 | W68: 0.006820194194 | X68: 0.006348897437 | Y68: 0.006538462786 | Z68: 0.006384343489 | AA68: 0.006367887788 | AB68: 0.005502354174 | AC68: 0.004172830548 | AD68: 0.00446099335 | AE68: 0.004181877611 | AF68: 0.005712528263 | AG68: 0.005459893667 | AH68: 0.005075747653 | AI68: 0.005180990552 | AJ68: 0.004529038651 | AK68: 0.004308150083 | AL68: 0.003640475422 | AM68: 0.003148748421 | AN68: 0.002444732364 | AO68: 0.002376062841 | AP68: 0.002976301629 | AQ68: 0.002925721156 | AR68: 0.002942087819 | AS68: 0.002844697746 | AT68: 0.002797091321 | AU68: 0.002729969963 | AV68: 0.002640569279 | AW68: 0.002607931918 | AX68: 0.002553540317 | AY68: 0.002500347393 | AZ68: 0.002461492125 | BA68: 0.002417254492
C69: 28 | D69: 0.005160630554 | E69: 0.004706677174 | F69: 0.003314252367 | G69: 0.004008250585 | H69: 0.003848178505 | I69: 0.003757191927 | J69: 0.003855371742 | K69: 0.003548983103 | L69: 0.003407529574 | M69: 0.003260346169 | N69: 0.003294926826 | O69: =MAX(N34*(1-N$3*$A34),0) -> 0.003450646565 | P69: 0.003993387164 | Q69: 0.003670651486 | R69: 0.004264701474 | S69: 0.004525381824 | T69: 0.004675174068 | U69: 0.005649805306 | V69: 0.005539702374 | W69: 0.005677564731 | X69: 0.005751746782 | Y69: 0.005330983061 | Z69: 0.005456089466 | AA69: 0.005284704293 | AB69: 0.005230423457 | AC69: 0.004494436783 | AD69: 0.00339380391 | AE69: 0.003618676089 | AF69: 0.003383166225 | AG69: 0.004614569284 | AH69: 0.004406728264 | AI69: 0.004094733596 | AJ69: 0.004178820347 | AK69: 0.00364844746 | AL69: 0.003463405865 | AM69: 0.00291965237 | AN69: 0.002517584338 | AO69: 0.001951718317 | AP69: 0.00189369666 | AQ69: 0.002369041139 | AR69: 0.002324377314 | AS69: 0.002335637985 | AT69: 0.002257311222 | AU69: 0.002217959334 | AV69: 0.002163346527 | AW69: 0.002091055424 | AX69: 0.002063796948 | AY69: 0.002019418817 | AZ69: 0.001976317205 | BA69: 0.001944929729
C70: 29 | D70: 0.003270337908 | E70: =MAX(D35*(1-D$3*$A35),0) -> 0.004031637066 | F70: =MAX(E35*(1-E$3*$A35),0) -> 0.0027283206 | G70: 0.003212466235 | H70: 0.00323314267 | I70: 0.003054609692 | J70: 0.003179242712 | K70: 0.003122720911 | L70: 0.002902930135 | M70: 0.003073340427 | N70: 0.002832666451 | O70: 0.002817176625 | P70: 0.002945427573 | Q70: 0.003401639848 | R70: 0.003116651995 | S70: 0.003619979424 | T70: 0.003836947543 | U70: 0.003962439163 | V70: 0.004784552271 | W70: 0.004679847065 | X70: 0.004784013197 | Y70: 0.004825322332 | Z70: 0.004444449939 | AA70: 0.004512057348 | AB70: 0.00433647978 | AC70: 0.004268059911 | AD70: 0.003651698452 | AE70: 0.002750228688 | AF70: 0.002924605369 | AG70: 0.002730208592 | AH70: 0.003720797779 | AI70: 0.003551548578 | AJ70: 0.003299462531 | AK70: 0.003363038534 | AL70: 0.002930182023 | AM70: 0.00277489556 | AN70: 0.002332086037 | AO70: 0.002007865189 | AP70: 0.001553933532 | AQ70: 0.001505800273 | AR70: 0.001880207876 | AS70: 0.001843378931 | AT70: 0.001851472569 | AU70: 0.001788106521 | AV70: 0.001755801605 | AW70: 0.001711379651 | AX70: 0.001653054467 | AY70: 0.001630422772 | AZ70: 0.001594524861 | BA70: 0.001559947671
C71: 30 | D71: =D37 -> 0.04436696082 | E71: =E37 -> 0.04436696082 | F71: =F37 -> 0.04436696082 | G71: 0.04436696082 | H71: 0.04436696082 | I71: 0.04436696082 | J71: 0.04436696082 | K71: 0.04436696082 | L71: 0.04436696082 | M71: 0.04436696082 | N71: 0.04436696082 | O71: 0.04436696082 | P71: 0.04436696082 | Q71: 0.04436696082 | R71: 0.04436696082 | S71: 0.04436696082 | T71: 0.04436696082 | U71: 0.04436696082 | V71: 0.04436696082 | W71: 0.04436696082 | X71: 0.04436696082 | Y71: 0.04436696082 | Z71: 0.04436696082 | AA71: 0.04436696082 | AB71: 0.04436696082 | AC71: 0.04436696082 | AD71: 0.04436696082 | AE71: 0.04436696082 | AF71: 0.04436696082 | AG71: 0.04436696082 | AH71: 0.04436696082 | AI71: 0.04436696082 | AJ71: 0.04436696082 | AK71: 0.04436696082 | AL71: 0.04436696082 | AM71: 0.04436696082 | AN71: 0.04436696082 | AO71: 0.04436696082 | AP71: 0.04436696082 | AQ71: 0.04436696082 | AR71: =AR37 -> 0.04436696082 | AS71: 0.04436696082 | AT71: 0.04436696082 | AU71: 0.04436696082 | AV71: 0.04436696082 | AW71: 0.04436696082 | AX71: 0.04436696082 | AY71: 0.04436696082 | AZ71: 0.04436696082 | BA71: 0.04436696082

Sheet 31 (hidden)
D1: 2011 | E1: 2012 | F1: 2013 | G1: 2014 | H1: 2015 | I1: 2016 | J1: 2017 | K1: 2018 | L1: 2019 | M1: 2020 | N1: 2021 | O1: 2022 | P1: 2023 | Q1: 2024 | R1: 2025 | S1: 2026 | T1: 2027 | U1: 2028 | V1: 2029 | W1: 2030 | X1: 2031 | Y1: 2032 | Z1: 2033 | AA1: 2034 | AB1: 2035 | AC1: 2036 | AD1: 2037 | AE1: 2038 | AF1: 2039 | AG1: 2040 | AH1: 2041 | AI1: 2042 | AJ1: 2043 | AK1: 2044 | AL1: 2045 | AM1: 2046 | AN1: 2047 | AO1: 2048 | AP1: 2049 | AQ1: 2050 | AR1: 2051 | AS1: 2052 | AT1: 2053 | AU1: 2054 | AV1: 2055 | AW1: 2056 | AX1: 2057 | AY1: 2058 | AZ1: 2059 | BA1: 2060
C2: sales (age 0 pop) | D2: 0.05133185021 | E2: 0.04656880063 | F2: 0.05181674492 | G2: 0.05627805417 | H2: 0.06311207928 | I2: 0.06267506153 | J2: 0.06594766683 | K2: 0.0660947696 | L2: 0.06408110321 | M2: 0.07217555129 | N2: 0.07252723189 | O2: 0.06353694313 | P2: 0.06478343052 | Q2: 0.06593240714 | R2: 0.06650664146 | S2: 0.06581942161 | T2: 0.06427720143 | U2: 0.06262197439 | V2: 0.06158864473 | W2: 0.06008013269 | X2: 0.05879004198 | Y2: 0.05756725556 | Z2: 0.0564716126 | AA2: 0.05579822849 | AB2: 0.0554875148 | AC2: 0.05523424378 | AD2: 0.05504768244 | AE2: 0.05497244391 | AF2: 0.05483920817 | AG2: 0.05483925484 | AH2: 0.05457128216 | AI2: 0.05434857281 | AJ2: 0.05414840825 | AK2: 0.05388467364 | AL2: 0.0539465997 | AM2: 0.05370252707 | AN2: 0.05359733173 | AO2: 0.05328998216 | AP2: 0.05325806177 | AQ2: 0.0533109048 | AR2: 0.0533109048 | AS2: 0.0533109048 | AT2: 0.0533109048 | AU2: 0.0533109048 | AV2: 0.0533109048 | AW2: 0.0533109048 | AX2: 0.0533109048 | AY2: 0.0533109048 | AZ2: 0.0533109048 | BA2: 0.0533109048
C3: scrappage k factor | D3: 0 | E3: 0 | F3: 1.200646733 | G3: 0.6867483937 | H3: 0.8234494617 | I3: 0.7745502846 | J3: 0.7905060754 | K3: 1.11403507 | L3: 1.091877998 | M3: 0.6128264166 | N3: 0.6412320608 | O3: 0.8291513305 | P3: 0.8204134677 | Q3: 0.8149016218 | R3: 0.8086313067 | S3: 0.7996322766 | T3: 0.7919165707 | U3: 0.7832909873 | V3: 0.7766223475 | W3: 0.7738828551 | X3: 0.7696117 | Y3: 0.7682952855 | Z3: 0.7740344742 | AA3: 0.7760977241 | AB3: 0.7768804543 | AC3: 0.7794718654 | AD3: 0.7807214472 | AE3: 0.7790390469 | AF3: 0.774474083 | AG3: 0.7706750683 | AH3: 0.7675154632 | AI3: 0.762916679 | AJ3: 0.7582698961 | AK3: 0.7587885066 | AL3: 0.7598519505 | AM3: 0.7592309518 | AN3: 0.7584801772 | AO3: 0.7583983156 | AP3: 0.7570725867 | AQ3: 0.7572150883 | AR3: 0.7576356396 | AS3: 0.7572794361 | AT3: 0.757173599 | AU3: 0.7572887117 | AV3: 0.7575797827 | AW3: 0.757897026 | AX3: 0.7581247138 | AY3: 0.7582582162 | AZ3: 0.7583402297
A5: default
A6: scrappage | C6: age | D6: 2011 | E6: 2012 | F6: 2013 | G6: 2014 | H6: 2015 | I6: 2016 | J6: 2017 | K6: 2018 | L6: 2019 | M6: 2020 | N6: 2021 | O6: 2022 | P6: 2023 | Q6: 2024 | R6: 2025 | S6: 2026 | T6: 2027 | U6: 2028 | V6: 2029 | W6: 2030 | X6: 2031 | Y6: 2032 | Z6: 2033 | AA6: 2034 | AB6: 2035 | AC6: 2036 | AD6: 2037 | AE6: 2038 | AF6: 2039 | AG6: 2040 | AH6: 2041 | AI6: 2042 | AJ6: 2043 | AK6: 2044 | AL6: 2045 | AM6: 2046 | AN6: 2047 | AO6: 2048 | AP6: 2049 | AQ6: 2050 | AR6: 2051 | AS6: 2052 | AT6: 2053 | AU6: 2054 | AV6: 2055 | AW6: 2056 | AX6: 2057 | AY6: 2058 | AZ6: 2059 | BA6: 2060
A7: 0.008599996567 | C7: 0 | D7: 0.05133185021 | E7: =E41 -> 0.04656880063 | F7: =F41 -> 0.05181674492 | G7: 0.05627805417 | H7: 0.06311207928 | I7: 0.06267506153 | J7: 0.06594766683 | K7: 0.0660947696 | L7: 0.06408110321 | M7: 0.07217555129 | N7: 0.07252723189 | O7: 0.06353694313 | P7: 0.06478343052 | Q7: 0.06593240714 | R7: 0.06650664146 | S7: 0.06581942161 | T7: 0.06427720143 | U7: 0.06262197439 | V7: 0.06158864473 | W7: 0.06008013269 | X7: 0.05879004198 | Y7: 0.05756725556 | Z7: 0.0564716126 | AA7: 0.05579822849 | AB7: 0.0554875148 | AC7: 0.05523424378 | AD7: 0.05504768244 | AE7: 0.05497244391 | AF7: 0.05483920817 | AG7: 0.05483925484 | AH7: 0.05457128216 | AI7: 0.05434857281 | AJ7: 0.05414840825 | AK7: 0.05388467364 | AL7: 0.0539465997 | AM7: 0.05370252707 | AN7: 0.05359733173 | AO7: 0.05328998216 | AP7: 0.05325806177 | AQ7: 0.0533109048 | AR7: =AR41 -> 0.0533109048 | AS7: 0.0533109048 | AT7: 0.0533109048 | AU7: 0.0533109048 | AV7: 0.0533109048 | AW7: 0.0533109048 | AX7: 0.0533109048 | AY7: 0.0533109048 | AZ7: 0.0533109048 | BA7: 0.0533109048
A8: 0.008700013161 | C8: 1 | D8: 0.04242629495 | E8: =E42*(1-E$41-E$71)/SUM(E$42:E$70) -> 0.04903447476 | F8: =F42*(1-F$41-F$71)/SUM(F$42:F$70) -> 0.04423196909 | G8: 0.0517911207 | H8: 0.05450543498 | I8: 0.06159140152 | J8: 0.06081876808 | K8: 0.06404033503 | L8: 0.06536535448 | M8: 0.0626951325 | N8: 0.06892277358 | O8: 0.07003938293 | P8: 0.06185207064 | Q8: 0.06300042536 | R8: 0.06404013881 | S8: 0.06456465977 | T8: 0.06405351314 | U8: 0.06260768658 | V8: 0.06109987463 | W8: 0.06020075424 | X8: 0.05881127215 | Y8: 0.05765560856 | Z8: 0.05653715034 | AA8: 0.05555617326 | AB8: 0.05489722516 | AC8: 0.05459211008 | AD8: 0.05436149731 | AE8: 0.05416643616 | AF8: 0.05397177716 | AG8: 0.05390281793 | AH8: 0.05397517031 | AI8: 0.05371674872 | AJ8: 0.05355313675 | AK8: 0.0533932965 | AL8: 0.05318722326 | AM8: 0.05327435725 | AN8: 0.05306954984 | AO8: 0.05299235861 | AP8: 0.0526811561 | AQ8: 0.05270037671 | AR8: =AR42*(1-AR$41-AR$71)/SUM(AR$42:AR$70) -> 0.05277215564 | AS8: 0.05272598411 | AT8: 0.05274218011 | AU8: 0.05275850966 | AV8: 0.05277178905 | AW8: 0.05277663233 | AX8: 0.05277409246 | AY8: 0.05277002459 | AZ8: 0.0527694805 | BA8: 0.05276435068
A9: 0.008800029755 | C9: 2 | D9: 0.0332198083 | E9: =E43*(1-E$41-E$71)/SUM(E$42:E$70) -> 0.04052749083 | F9: 0.04657391521 | G9: 0.04420473132 | H9: 0.05015636303 | I9: 0.05318772118 | J9: 0.05976254255 | K9: 0.05905507233 | L9: 0.06332646742 | M9: 0.0639445574 | N9: 0.05986592535 | O9: 0.06655427341 | P9: 0.06817638389 | Q9: 0.06014477332 | R9: 0.06118728267 | S9: 0.06216511522 | T9: 0.06282735614 | U9: 0.06238483284 | V9: 0.06108111604 | W9: 0.05971832831 | X9: 0.05892475447 | Y9: 0.05767195991 | Z9: 0.05661954231 | AA9: 0.05561631379 | AB9: 0.05465480723 | AC9: 0.05400712101 | AD9: 0.05372529282 | AE9: 0.05348703091 | AF9: 0.05317626962 | AG9: 0.05304606164 | AH9: 0.05304937187 | AI9: 0.05312586582 | AJ9: 0.05292649442 | AK9: 0.05280229511 | AL9: 0.0526981803 | AM9: 0.0525204256 | AN9: 0.05264240272 | AO9: 0.05246652741 | AP9: 0.05238293307 | AQ9: 0.05212553894 | AR9: 0.05216382065 | AS9: 0.0521891651 | AT9: 0.05215952261 | AU9: 0.05219169929 | AV9: 0.05222099858 | AW9: 0.05223893507 | AX9: 0.05224121354 | AY9: 0.05223467164 | AZ9: 0.0522301061 | BA9: 0.05222448981
A10: 0.01419997215 | C10: 3 | D10: 0.05894556633 | E10: 0.03173304381 | F10: 0.03849381341 | G10: 0.04653958692 | H10: 0.04280647569 | I10: 0.0489397316 | J10: 0.05160437105 | K10: 0.0580248567 | L10: 0.05839020585 | M10: 0.06194315789 | N10: 0.06105520563 | O10: 0.05780493141 | P10: 0.06477856437 | Q10: 0.0662890382 | R10: 0.05840902093 | S10: 0.05939094975 | T10: 0.06048750659 | U10: 0.06118573866 | V10: 0.06085889526 | W10: 0.05969532512 | X10: 0.05844799896 | Y10: 0.05777876602 | Z10: 0.05663121852 | AA10: 0.0556930227 | AB10: 0.0547096961 | AC10: 0.05376442734 | AD10: 0.0531454204 | AE10: 0.0528569046 | AF10: 0.05250516467 | AG10: 0.05226012266 | AH10: 0.05220212942 | AI10: 0.05221059974 | AJ10: 0.05234028351 | AK10: 0.05218045468 | AL10: 0.05211089167 | AM10: 0.05203353261 | AN10: 0.05189344734 | AO10: 0.05204025958 | AP10: 0.05185918899 | AQ10: 0.05182651059 | AR10: 0.05159090204 | AS10: 0.05158361553 | AT10: 0.05162453462 | AU10: 0.05161118837 | AV10: 0.0516560242 | AW10: 0.05168976326 | AX10: 0.05170502554 | AY10: 0.0517032927 | AZ10: 0.05169628373 | BA10: 0.05168673934
A11: 0.0191000104 | C11: 4 | D11: 0.0644838512 | E11: 0.05630743627 | F11: 0.03014067345 | G11: 0.03821338989 | H11: 0.04489933216 | I11: 0.04158104782 | J11: 0.04728287905 | K11: 0.04988852019 | L11: 0.05702304009 | M11: 0.05677470452 | N11: 0.05894745692 | O11: 0.05874797757 | P11: 0.05600889992 | Q11: 0.06270421578 | R11: 0.06409063743 | S11: 0.05644491883 | T11: 0.05753690973 | U11: 0.05865335494 | V11: 0.05943490999 | W11: 0.05922699514 | X11: 0.05817965536 | Y11: 0.05707148093 | Z11: 0.05649911106 | AA11: 0.05547008059 | AB11: 0.05455397752 | AC11: 0.05359109369 | AD11: 0.0526823716 | AE11: 0.05206444834 | AF11: 0.05166682412 | AG11: 0.0513832994 | AH11: 0.05121320714 | AI11: 0.05116237224 | AJ11: 0.0512252076 | AK11: 0.05138979515 | AL11: 0.05128476998 | AM11: 0.05124110745 | AN11: 0.05120016844 | AO11: 0.05108834777 | AP11: 0.05122578637 | AQ11: 0.05109716694 | AR11: 0.05108379296 | AS11: 0.05080694797 | AT11: 0.05081547965 | AU11: 0.05087156559 | AV11: 0.05087118176 | AW11: 0.05091996318 | AX11: 0.05095067727 | AY11: 0.05096172673 | AZ11: 0.0509594546 | BA11: 0.05094756946
A12: 0.0243999958 | C12: 5 | D12: 0.06592346761 | E12: 0.06159785321 | F12: 0.0534819181 | G12: 0.02974201619 | H12: 0.03674130482 | I12: 0.04343593012 | J12: 0.04001915673 | K12: 0.04553164723 | L12: 0.04875524783 | M12: 0.05514404653 | N12: 0.05386529444 | O12: 0.056540024 | P12: 0.05668862022 | Q12: 0.05399485688 | R12: 0.06037979016 | S12: 0.06168722226 | T12: 0.05446612596 | U12: 0.05557326889 | V12: 0.05675385183 | W12: 0.05761862537 | X12: 0.05750189454 | Y12: 0.05659285433 | Z12: 0.05559507603 | AA12: 0.05512845308 | AB12: 0.05412665918 | AC12: 0.05323286287 | AD12: 0.05230971305 | AE12: 0.05141116395 | AF12: 0.05069576507 | AG12: 0.05036885406 | AH12: 0.05016169162 | AI12: 0.05000229806 | AJ12: 0.05000705695 | AK12: 0.0501060612 | AL12: 0.05031784452 | AM12: 0.05023896492 | AN12: 0.05023081321 | AO12: 0.05021644769 | AP12: 0.05009985611 | AQ12: 0.05028379762 | AR12: 0.05017599717 | AS12: 0.05011874965 | AT12: 0.04986263682 | AU12: 0.04988650715 | AV12: 0.04995407646 | AW12: 0.04995812826 | AX12: 0.05000345748 | AY12: 0.05002963995 | AZ12: 0.05003990207 | BA12: 0.05003276278
A13: 0.03009998798 | C13: 6 | D13: 0.07019140434 | E13: 0.06297303906 | F13: 0.05850686087 | G13: 0.05243082852 | H13: 0.02849080491 | I13: 0.03538619555 | J13: 0.04163017663 | K13: 0.03837302152 | L13: 0.04422890534 | M13: 0.04687003236 | N13: 0.05214625869 | O13: 0.05148765551 | P13: 0.05431445156 | Q13: 0.0544087234 | R13: 0.05176517678 | S13: 0.05786255781 | T13: 0.0592684692 | U13: 0.05238309445 | V13: 0.05354688754 | W13: 0.05478962336 | X13: 0.05570748609 | Y13: 0.05570202594 | Z13: 0.05490100595 | AA13: 0.0540204717 | AB13: 0.05356870781 | AC13: 0.05259515021 | AD13: 0.05174214675 | AE13: 0.05083307514 | AF13: 0.04984984135 | AG13: 0.04921628065 | AH13: 0.04896751983 | AI13: 0.04877345693 | AJ13: 0.0486726405 | AK13: 0.04871505666 | AL13: 0.04886068503 | AM13: 0.04909032574 | AN13: 0.04904734197 | AO13: 0.04906476073 | AP13: 0.04904397717 | AQ13: 0.04897834908 | AR13: 0.0491762207 | AS13: 0.0490275275 | AT13: 0.0489869158 | AU13: 0.04875175976 | AV13: 0.04878728405 | AW13: 0.04885761773 | AX13: 0.04885897798 | AY13: 0.04889935998 | AZ13: 0.04892435405 | BA13: 0.04892956743
A14: 0.03619998693 | C14: 7 | D14: 0.07394094015 | E14: 0.06704996275 | F14: 0.05981303963 | G14: 0.05695263571 | H14: 0.05002517102 | I14: 0.02730855959 | J14: 0.03376247503 | K14: 0.03973437208 | L14: 0.03703179039 | M14: 0.04224684307 | N14: 0.04416487179 | O14: 0.04965942051 | P14: 0.0492223712 | Q14: 0.05188128082 | R14: 0.0519147489 | S14: 0.04937383673 | T14: 0.05533533666 | U14: 0.05673940323 | V14: 0.05024329671 | W14: 0.05146039635 | X14: 0.05273415383 | Y14: 0.05372252657 | Z14: 0.05379564585 | AA14: 0.05310616655 | AB14: 0.05225538037 | AC14: 0.05181803055 | AD14: 0.05089075322 | AE14: 0.05005342711 | AF14: 0.04906619771 | AG14: 0.04817728934 | AH14: 0.04763280017 | AI14: 0.04740006284 | AJ14: 0.04726610338 | AK14: 0.04720631913 | AL14: 0.04729491779 | AM14: 0.04745835356 | AN14: 0.0477146279 | AO14: 0.04769773149 | AP14: 0.04770812654 | AQ14: 0.0477353103 | AR14: 0.04768889489 | AS14: 0.04783921895 | AT14: 0.04770959526 | AU14: 0.0476849462 | AV14: 0.04746786386 | AW14: 0.04750650604 | AX14: 0.04757236953 | AY14: 0.04756978711 | AZ14: 0.04760847195 | BA14: 0.04762808923
A15: 0.04240000248 | C15: 8 | D15: 0.06719520995 | E15: 0.07063168674 | F15: 0.06368538249 | G15: 0.05778169711 | H15: 0.05410706443 | I15: 0.0477023696 | J15: =J49*(1-J$41-J$71)/SUM(J$42:J$70) -> 0.02592944267 | K15: 0.03206578017 | L15: 0.03807593573 | M15: 0.03512865629 | N15: 0.03965690503 | O15: 0.04189091251 | P15: 0.04722830834 | Q15: 0.04677605786 | R15: 0.04925089581 | S15: 0.04926615842 | T15: 0.04698137636 | U15: 0.05271195252 | V15: 0.05415534507 | W15: 0.04805130926 | X15: 0.04929043398 | Y15: 0.0506107317 | Z15: 0.05163497866 | AA15: 0.05178538414 | AB15: 0.05112193239 | AC15: 0.05030234463 | AD15: 0.04989469024 | AE15: 0.04898972645 | AF15: 0.04807854289 | AG15: 0.0471905657 | AH15: 0.04640283157 | AI15: 0.04588709194 | AJ15: 0.0457163573 | AK15: 0.04562516259 | AL15: 0.04561307481 | AM15: 0.04571961605 | AN15: 0.04590975867 | AO15: 0.04618198512 | AP15: 0.04615932375 | AQ15: 0.0462156603 | AR15: 0.04625888926 | AS15: 0.04617292121 | AT15: 0.04633316586 | AU15: 0.04622206905 | AV15: 0.04620966472 | AW15: 0.04600313772 | AX15: 0.04603795462 | AY15: 0.04609792872 | AZ15: 0.04609477528 | BA15: 0.04612766794
A16: 0.04850000143 | C16: 9 | D16: 0.06351860557 | E16: 0.06418786412 | F16: 0.06708737487 | G16: 0.06104374419 | H16: 0.05465501049 | I16: 0.05132322491 | J16: 0.04506955605 | K16: 0.02450213467 | L16: 0.03050626207 | M16: 0.0358645643 | N16: 0.03284696539 | O16: 0.03746195374 | P16: 0.03962896746 | Q16: 0.04464581971 | R16: 0.04417333925 | S16: 0.04649682067 | T16: 0.04663957445 | U16: 0.04452782091 | V16: 0.05005985186 | W16: 0.05153608549 | X16: 0.04579790278 | Y16: 0.04707348568 | Z16: 0.04840575956 | AA16: 0.04946004351 | AB16: 0.04960369363 | AC16: 0.0489673656 | AD16: 0.04819439078 | AE16: 0.0477916169 | AF16: 0.04682292838 | AG16: 0.0460122248 | AH16: 0.0452290371 | AI16: 0.04448340144 | AJ16: 0.04404184278 | AK16: 0.04391589963 | AL16: 0.04387202633 | AM16: 0.04388018642 | AN16: 0.04401368273 | AO16: 0.04422023079 | AP16: 0.0444763853 | AQ16: 0.04449950738 | AR16: 0.04457005512 | AS16: 0.04457205412 | AT16: 0.04450344401 | AU16: 0.04467188744 | AV16: 0.04457581065 | AW16: 0.0445674821 | AX16: 0.04436566463 | AY16: 0.04439546458 | AZ16: 0.04445263203 | BA16: 0.04444514198
A17: 0.0544000268 | C17: 10 | D17: 0.0561321608 | E17: 0.0606758075 | F17: 0.06096690453 | G17: 0.06380839861 | H17: 0.0574914024 | I17: 0.05157314851 | J17: 0.04825368162 | K17: 0.04237617612 | L17: 0.02314421183 | M17: 0.02853384623 | N17: 0.03340636794 | O17: 0.03090417202 | P17: 0.03525337901 | Q17: 0.03726778191 | R17: 0.04194455025 | S17: 0.04149018691 | T17: 0.04379563809 | U17: 0.04398291503 | V17: 0.04207849535 | W17: 0.0474053058 | X17: 0.04887951438 | Y17: 0.04352577862 | Z17: 0.04480451368 | AA17: 0.04614048861 | AB17: 0.04714439792 | AC17: 0.04728028132 | AD17: 0.04668465844 | AE17: 0.04593561222 | AF17: 0.04545332863 | AG17: 0.04459168815 | AH17: 0.04388535423 | AI17: 0.04314833603 | AJ17: 0.04248926482 | AK17: 0.04210514206 | AL17: 0.04202648498 | AM17: 0.04200314423 | AN17: 0.04204074041 | AO17: 0.04219126971 | AP17: 0.04238351937 | AQ17: 0.0426725053 | AR17: 0.0427102092 | AS17: 0.04273974349 | AT17: 0.04275542446 | AU17: 0.0427030163 | AV17: 0.04287522851 | AW17: 0.04278642312 | AX17: 0.04277580439 | AY17: 0.04257841379 | AZ17: 0.04260633679 | BA17: 0.04265690737
A18: 0.06010001898 | C18: 11 | D18: 0.05219746934 | E18: 0.05361994572 | F18: 0.05763108359 | G18: 0.05755090333 | H18: 0.05984328702 | I18: 0.0539750745 | J18: 0.04825842212 | K18: 0.04514997435 | L18: 0.03974954092 | M18: 0.0215005419 | N18: 0.02647906332 | O18: 0.03130776041 | P18: 0.02893398068 | Q18: 0.03298577592 | R18: 0.03483764932 | S18: 0.03920114548 | T18: 0.03888804749 | U18: 0.04110029414 | V18: 0.0413638942 | W18: 0.03965745041 | X18: 0.04474836971 | Y18: 0.04623538934 | Z18: 0.04123274934 | AA18: 0.04250512589 | AB18: 0.0437709974 | AC18: 0.04472214313 | AD18: 0.04486077481 | AE18: 0.04428360795 | AF18: 0.04347944121 | AG18: 0.04308183595 | AH18: 0.04232958529 | AI18: 0.0416695509 | AJ18: 0.04102140691 | AK18: 0.04043216887 | AL18: 0.04010635089 | AM18: 0.04004893327 | AN18: 0.0400552267 | AO18: 0.04011278598 | AP18: 0.04025097615 | AQ18: 0.04047596038 | AR18: 0.04076671619 | AS18: 0.04076621265 | AT18: 0.0408076325 | AU18: 0.04083545152 | AV18: 0.04079543674 | AW18: 0.04096314201 | AX18: 0.04087570626 | AY18: 0.04086196442 | AZ18: 0.04067272485 | BA18: 0.04069528115
A19: 0.06540000439 | C19: 12 | D19: 0.04598294159 | E19: 0.0498613528 | F19: 0.05092928635 | G19: 0.05400366342 | H19: 0.05375515693 | I19: 0.05590704061 | J19: 0.05027318169 | K19: 0.04494180697 | L19: 0.04206512798 | M19: 0.03668225072 | N19: 0.01988014328 | O19: 0.02472165322 | P19: 0.02916676354 | Q19: 0.02694034379 | R19: 0.03068499182 | S19: 0.03240209868 | T19: 0.03656748277 | U19: 0.03632258409 | V19: 0.03847266611 | W19: 0.03880378042 | X19: 0.03726237335 | Y19: 0.04213392185 | Z19: 0.04359943499 | AA19: 0.03893649729 | AB19: 0.04013608563 | AC19: 0.04133008405 | AD19: 0.04223666609 | AE19: 0.04235576179 | AF19: 0.04172140459 | AG19: 0.04102100717 | AH19: 0.04070881425 | AI19: 0.04000883766 | AJ19: 0.039435784 | AK19: 0.03885940153 | AL19: 0.03833905308 | AM19: 0.0380464805 | AN19: 0.03801924426 | AO19: 0.03804598481 | AP19: 0.03809553136 | AQ19: 0.03826639382 | AR19: 0.0384942036 | AS19: 0.03873591751 | AT19: 0.03874808714 | AU19: 0.03879968854 | AV19: 0.03883566852 | AW19: 0.03880056073 | AX19: 0.03895751911 | AY19: 0.0388708872 | AZ19: 0.03885713695 | BA19: 0.03867324997
A20: 0.07090002298 | C20: 13 | D20: 0.03600784391 | E20: 0.04392495847 | F20: 0.04735930035 | G20: 0.04739638796 | H20: 0.05025037376 | I20: 0.04998878058 | J20: 0.05184844315 | K20: 0.04661216355 | L20: 0.04160622036 | M20: 0.03857873363 | N20: 0.03380329914 | O20: 0.01849509487 | P20: 0.02292453288 | Q20: 0.02703287902 | R20: 0.02494742072 | S20: 0.02841119773 | T20: 0.03009065598 | U20: 0.0340045904 | V20: 0.03385228174 | W20: 0.03593566853 | X20: 0.03630342115 | Y20: 0.03493524799 | Z20: 0.0395621807 | AA20: 0.0409942414 | AB20: 0.03660772561 | AC20: 0.03773418975 | AD20: 0.0388639454 | AE20: 0.03970505054 | AF20: 0.03973224438 | AG20: 0.03919291586 | AH20: 0.03859548622 | AI20: 0.03831284031 | AJ20: 0.03770363739 | AK20: 0.03720004684 | AL20: 0.03669243948 | AM20: 0.03621647334 | AN20: 0.0359659907 | AO20: 0.03596002901 | AP20: 0.03598049754 | AQ20: 0.03606497571 | AR20: 0.03623980407 | AS20: 0.03642273188 | AT20: 0.03666348244 | AU20: 0.0366865895 | AV20: 0.03674443751 | AW20: 0.03678124306 | AX20: 0.03674552276 | AY20: 0.03689081887 | AZ20: 0.03680810766 | BA20: 0.03679132867
A21: 0.08660000563 | C21: 14 | D21: 0.03481962108 | E21: 0.03439629989 | F21: 0.04172079545 | G21: 0.0437581997 | H21: 0.04392789463 | I21: 0.04650587765 | J21: 0.04615178917 | K21: 0.04785230536 | L21: 0.04286741981 | M21: 0.03791108761 | N21: 0.03542610995 | O21: 0.03133245922 | P21: 0.01706791197 | Q21: 0.02114602946 | R21: 0.02491459671 | S21: 0.02299031959 | T21: 0.02626200893 | U21: 0.02785316995 | V21: 0.03154803069 | W21: 0.03147767576 | X21: 0.03346939051 | Y21: 0.03388447783 | Z21: 0.03265694804 | AA21: 0.03703142047 | AB21: 0.03836907986 | AC21: 0.03426204966 | AD21: 0.03532232673 | AE21: 0.03636916719 | AF21: 0.0370775631 | AG21: 0.03715683706 | AH21: 0.03671088626 | AI21: 0.03616245576 | AJ21: 0.03594590266 | AK21: =AK55*(1-AK$41-AK$71)/SUM(AK$42:AK$70) -> 0.03541003309 | AL21: 0.03497137137 | AM21: 0.03450859159 | AN21: 0.03408562166 | AO21: 0.03386866651 | AP21: 0.03385853022 | AQ21: 0.03391345431 | AR21: 0.03400531677 | AS21: 0.03413931309 | AT21: 0.03432298802 | AU21: 0.03456079889 | AV21: 0.03459102136 | AW21: 0.03464807642 | AX21: 0.03468038391 | AY21: 0.03464351054 | AZ21: 0.03477982872 | BA21: 0.03469828844
A22: 0.09210002422 | C22: 15 | D22: 0.02423603862 | E22: 0.03326125639 | F22: 0.03267028682 | G22: 0.03775417999 | H22: 0.04009629852 | I22: 0.04009635406 | J22: 0.04238376206 | K22: 0.04203468421 | L22: 0.04317220773 | M22: 0.03833450267 | N22: 0.03446286029 | O22: 0.03249032879 | P22: 0.02851476396 | Q22: 0.01552845848 | R22: 0.01922440654 | S22: 0.02265085302 | T22: 0.02096837103 | U22: 0.02398899654 | V22: 0.0255045315 | W22: 0.02895653536 | X22: 0.02894046818 | Y22: 0.03084003641 | Z22: 0.03127062545 | AA22: 0.0301748689 | AB22: 0.03421311301 | AC22: 0.03544701037 | AD22: 0.03165666771 | AE22: 0.03262598881 | AF22: 0.03352275619 | AG22: 0.03422812195 | AH22: 0.03435829858 | AI22: 0.03395832789 | AJ22: 0.03349874195 | AK22: 0.03333449385 | AL22: 0.03286948487 | AM22: 0.03247524955 | AN22: 0.03206906311 | AO22: 0.03169400019 | AP22: 0.03148810786 | AQ22: 0.03151255283 | AR22: 0.03157495437 | AS22: 0.03163166425 | AT22: 0.03176701273 | AU22: 0.03194809674 | AV22: 0.03217723877 | AW22: 0.03220754492 | AX22: 0.03225825619 | AY22: 0.0322852288 | AZ22: 0.03225020772 | BA22: 0.03237373799
A23: 0.09719997644 | C23: 16 | D23: 0.02436330759 | E23: 0.02315134598 | F23: 0.03159220003 | G23: 0.02934626691 | H23: 0.03445579337 | I23: 0.03642047875 | J23: 0.0363754913 | K23: 0.03842262365 | L23: 0.03766639014 | M23: 0.03835100032 | N23: 0.03472372413 | O23: 0.03148887929 | P23: 0.02942323354 | Q23: 0.0258168381 | R23: 0.01404924857 | S23: 0.01739408933 | T23: 0.02056114295 | U23: 0.0190639634 | V23: 0.02186467416 | W23: 0.023302274 | X23: 0.02650108517 | Y23: 0.02654596794 | Z23: 0.02833219437 | AA23: 0.02876206819 | AB23: 0.02775081044 | AC23: 0.03146275289 | AD23: 0.03260094729 | AE23: 0.02910548751 | AF23: 0.02993436083 | AG23: 0.03080520775 | AH23: 0.03150641489 | AI23: 0.03163841987 | AJ23: 0.03131563651 | AK23: 0.03092645277 | AL23: 0.03080464059 | AM23: 0.03038683894 | AN23: 0.03004457286 | AO23: 0.02968579421 | AP23: 0.02933474456 | AQ23: 0.02917578035 | AR23: 0.02920884139 | AS23: 0.02923996397 | AT23: 0.02930242101 | AU23: 0.02943719556 | AV23: 0.02961214237 | AW23: 0.02982648301 | AX23: 0.02985228266 | AY23: 0.02989636581 | AZ23: 0.02992069409 | BA23: 0.02988511096
A24: 0.1017000079 | C24: 17 | D24: 0.0212264999 | E24: 0.02327291898 | F24: 0.0219896069 | G24: 0.02818250117 | H24: 0.02668230005 | I24: 0.03115484615 | J24: 0.03290018776 | K24: 0.03283249632 | L24: 0.03421172081 | M24: 0.03325288367 | N24: 0.03462360163 | O24: 0.0316169636 | P24: 0.02838576629 | Q24: 0.0265187815 | R24: 0.02325262783 | S24: 0.01265500686 | T24: 0.01571984545 | U24: 0.01861228214 | V24: 0.01730096398 | W24: 0.01989149208 | X24: 0.02123566321 | Y24: 0.02420572778 | Z24: 0.02428447738 | AA24: 0.02594859392 | AB24: 0.02633874887 | AC24: 0.02541104525 | AD24: 0.02881266098 | AE24: 0.02984507785 | AF24: 0.02659000044 | AG24: 0.02739071392 | AH24: 0.02823571519 | AI24: 0.02889009682 | AJ24: 0.02905416802 | AK24: 0.02879078584 | AL24: 0.02846044725 | AM24: 0.02835929093 | AN24: 0.02799543716 | AO24: 0.02769609607 | AP24: 0.02736177456 | AQ24: 0.02706773825 | AR24: =AR58*(1-AR$41-AR$71)/SUM(AR$42:AR$70) -> 0.02693063532 | AS24: 0.02693647275 | AT24: 0.02697438203 | AU24: 0.02704064465 | AV24: 0.02717155268 | AW24: 0.02733477726 | AX24: 0.02753046788 | AY24: 0.02755155364 | AZ24: 0.02759160014 | BA24: 0.02761115048
A25: 0.1055999994 | C25: 18 | D25: 0.01493312175 | E25: 0.02027650025 | F25: 0.02210507935 | G25: 0.01949631264 | H25: 0.02553932474 | I25: 0.02402889362 | J25: 0.02803743429 | K25: 0.02958126052 | L25: 0.0290698861 | M25: 0.03003698832 | N25: 0.02993294569 | O25: 0.03142878259 | P25: 0.02838556245 | Q25: 0.02548108872 | R25: 0.02378972977 | S25: 0.02086232875 | T25: 0.01139229426 | U25: 0.0141749215 | V25: 0.01682660864 | W25: 0.01568013619 | X25: 0.01805911021 | Y25: 0.01932375718 | Z25: 0.02206086885 | AA25: 0.02215763956 | AB25: 0.02367256079 | AC25: 0.02402683604 | AD25: 0.02318236899 | AE25: 0.02627674886 | AF25: 0.02716225432 | AG25: 0.02423883898 | AH25: 0.02501190791 | AI25: 0.02579436618 | AJ25: 0.0264319524 | AK25: 0.02661325134 | AL25: 0.02639740044 | AM25: 0.02610444963 | AN25: 0.02603107578 | AO25: 0.02571203863 | AP25: 0.0254337892 | AQ25: 0.02515439467 | AR25: 0.02489291257 | AS25: 0.02474409989 | AT25: 0.02475796113 | AU25: 0.02480074707 | AV25: 0.02486763723 | AW25: 0.02498958021 | AX25: 0.0251376777 | AY25: 0.02531510244 | AZ25: 0.02533388679 | BA25: 0.02536803229
A26: 0.1093000174 | C26: 19 | D26: 0.01137136504 | E26: 0.0142647845 | F26: 0.0192590215 | G26: 0.01949415673 | H26: 0.01761692226 | I26: 0.02291896803 | J26: 0.02155361028 | K26: 0.02512454209 | L26: 0.02606290886 | M26: 0.02540033368 | N26: 0.02696920564 | O26: 0.02709825751 | P26: 0.02811696819 | Q26: 0.02539195522 | R26: 0.02277961348 | S26: 0.0212708743 | T26: 0.01871693887 | U26: 0.01023817 | V26: 0.01277243506 | W26: 0.01520006922 | X26: 0.01418906399 | Y26: 0.01637968583 | Z26: 0.01755424472 | AA26: 0.02006281972 | AB26: 0.02014769643 | AC26: 0.02152363457 | AD26: 0.02184719085 | AE26: 0.02107207499 | AF26: 0.02383577768 | AG26: 0.02467931074 | AH26: 0.02206158101 | AI26: 0.0227751139 | AJ26: 0.02352350133 | AK26: 0.02413375325 | AL26: 0.02432263793 | AM26: 0.02413442504 | AN26: 0.02388446429 | AO26: 0.02383126456 | AP26: 0.02353612158 | AQ26: 0.02330715148 | AR26: 0.02305928585 | AS26: 0.02279859968 | AT26: 0.02267012526 | AU26: 0.02269010238 | AV26: 0.02273475799 | AW26: 0.02279746392 | AX26: 0.02290738165 | AY26: 0.02304080629 | AZ26: 0.02320286305 | BA26: 0.02321762071
A27: 0.1122000217 | C27: 20 | D27: 0.009839603489 | E27: 0.0108624355 | F27: 0.01354897483 | G27: 0.01689785214 | H27: 0.01756671507 | I27: 0.01575665572 | J27: 0.02049385685 | K27: 0.01925270418 | L27: 0.02203285603 | M27: 0.02266894095 | N27: 0.02275081854 | O27: 0.02435305333 | P27: 0.02416126234 | Q27: 0.0250680965 | R27: 0.0226250417 | S27: 0.02030108037 | T27: 0.01902180263 | U27: 0.01676698911 | V27: 0.009196043922 | W27: 0.01150167524 | X27: 0.01371175823 | Y27: 0.01282964949 | Z27: 0.01483373387 | AA27: 0.01591456898 | AB27: 0.01818583746 | AC27: 0.01826138447 | AD27: 0.01950956567 | AE27: 0.01979591921 | AF27: 0.01905455456 | AG27: 0.02158932555 | AH27: 0.02239276069 | AI27: 0.02002655261 | AJ27: 0.02070628853 | AK27: 0.02141268086 | AL27: 0.02198923269 | AM27: 0.0221695518 | AN27: 0.02201453647 | AO27: 0.02179934935 | AP27: 0.02174796802 | AQ27: 0.02150249056 | AR27: 0.02130083584 | AS27: 0.02105488994 | AT27: 0.02082407763 | AU27: 0.0207133833 | AV27: 0.02073659052 | AW27: 0.02077864001 | AX27: 0.02083421749 | AY27: 0.02093252905 | AZ27: 0.02105392338 | BA27: 0.02119975221
A28: 0.1151999831 | C28: 21 | D28: 0.00859718582 | E28: 0.009399228489 | F28: 0.01031735636 | G28: 0.01184021659 | H28: 0.0151943274 | I28: 0.01567051952 | J28: 0.0140548314 | K28: 0.01826014723 | L28: 0.0168214653 | M28: 0.0190947862 | N28: 0.02026566266 | O28: 0.02050278938 | P28: 0.02165617759 | Q28: 0.02148502913 | R28: 0.022278526 | S28: 0.0201114588 | T28: 0.01810841856 | U28: 0.01699725 | V28: 0.01502289226 | W28: 0.008260726933 | X28: 0.01035005464 | Y28: 0.01236786065 | Z28: =Z62*(1-Z$41-Z$71)/SUM(Z$42:Z$70) -> 0.01159049757 | AA28: 0.0134151937 | AB28: 0.01439020027 | AC28: 0.01644262111 | AD28: 0.01651167856 | AE28: 0.01763401963 | AF28: 0.01785637745 | AG28: 0.01721637127 | AH28: 0.01954125623 | AI28: 0.02027779597 | AJ28: 0.01816345074 | AK28: 0.01880307078 | AL28: 0.01946314026 | AM28: 0.01999453819 | AN28: 0.02017369722 | AO28: 0.02004447546 | AP28: 0.01984597207 | AQ28: 0.01982128422 | AR28: 0.01960447582 | AS28: 0.01940269958 | AT28: 0.01918534012 | AU28: 0.01898112639 | AV28: 0.01888473305 | AW28: 0.0189069994 | AX28: 0.01894374219 | AY28: 0.01899245482 | AZ28: 0.01908158845 | BA28: 0.0191902035
A29: 0.117200017 | C29: 22 | D29: 0.007464700965 | E29: 0.008212415671 | F29: 0.008927573363 | G29: 0.008978629499 | H29: 0.01062280227 | I29: 0.0135173217 | J29: 0.01394242765 | K29: 0.01249034919 | L29: 0.01589331194 | M29: 0.01452391216 | N29: 0.0170367263 | O29: 0.01822533804 | P29: 0.01818229155 | Q29: 0.0192052195 | R29: 0.01904280484 | S29: 0.01975060612 | T29: 0.01789200206 | U29: 0.01613888993 | V29: 0.01518996712 | W29: 0.01346049234 | X29: 0.007414711607 | Y29: 0.009312048339 | Z29: 0.01114512835 | AA29: 0.01045545081 | AB29: 0.01209929011 | AC29: 0.01297759872 | AD29: 0.01482908211 | AE29: 0.01488602278 | AF29: 0.01586555901 | AG29: 0.0160927293 | AH29: 0.01554370347 | AI29: 0.01765102831 | AJ29: 0.01834528756 | AK29: 0.01645294873 | AL29: 0.01704859933 | AM29: 0.01765349141 | AN29: 0.01814919336 | AO29: 0.01832268794 | AP29: 0.01820296795 | AQ29: 0.01804289458 | AR29: 0.0180268053 | AS29: 0.01781314499 | AT29: 0.01763595964 | AU29: 0.01744400829 | AV29: 0.0172624401 | AW29: 0.01717576345 | AX29: 0.01719454596 | AY29: 0.0172261718 | AZ29: 0.01727001867 | BA29: 0.01734921471
A30: 0.1198999882 | C30: 23 | D30: 0.00643343963 | E30: 0.007130615584 | F30: 0.007800315044 | G30: 0.007747526518 | H30: 0.008043429501 | I30: 0.00943316294 | J30: 0.01200622109 | K30: 0.01236890491 | L30: 0.01084359195 | M30: 0.01368825135 | N30: 0.01294141741 | O30: 0.01530027056 | P30: 0.01613296781 | Q30: 0.01609527422 | R30: 0.01699152592 | S30: 0.01685193086 | T30: 0.01754001993 | U30: 0.01591821992 | V30: 0.01439803865 | W30: 0.0135869737 | X30: 0.01206141679 | Y30: 0.00665982323 | Z30: 0.008377278441 | AA30: 0.01003660842 | AB30: 0.009413795604 | AC30: 0.01089295301 | AD30: 0.01168404115 | AE30: 0.01334614772 | AF30: 0.01337022479 | AG30: 0.01427422339 | AH30: 0.01450465267 | AI30: 0.01401651638 | AJ30: 0.01594214125 | AK30: 0.01659004756 | AL30: 0.01489295404 | AM30: 0.01543769558 | AN30: 0.01599754277 | AO30: 0.01645653956 | AP30: 0.01661170779 | AQ30: 0.01652171072 | AR30: 0.01638219216 | AS30: 0.01635243841 | AT30: 0.0161642775 | AU30: 0.01600865135 | AV30: 0.0158381786 | AW30: 0.01567421605 | AX30: 0.01559417002 | AY30: 0.01560959326 | AZ30: 0.01563789219 | BA30: 0.01567601801
A31: 0.1215000153 | C31: 24 | D31: 0.005689102424 | E31: 0.006145508721 | F31: 0.006772799898 | G31: 0.006743731672 | H31: 0.006926560627 | I31: 0.00712507565 | J31: 0.00835935888 | K31: 0.0106261613 | L31: 0.01070100987 | M31: 0.009307564253 | N31: 0.01217506579 | O31: 0.011600616 | P31: 0.0135101307 | Q31: 0.01424617852 | R31: 0.01420540973 | S31: 0.01500038525 | T31: 0.01493012675 | U31: 0.01556828759 | V31: 0.01416810226 | W31: 0.01284890851 | X31: 0.01214677567 | Y31: 0.01080870657 | Z31: 0.005977633221 | AA31: 0.00752671614 | AB31: 0.009015851065 | AC31: 0.008455652731 | AD31: 0.009784470166 | AE31: 0.01049121779 | AF31: 0.01195940352 | AG31: 0.01200150956 | AH31: 0.01283617328 | AI31: 0.01304977007 | AJ31: 0.01263086786 | AK31: 0.01438443487 | AL31: 0.01498328518 | AM31: 0.0134553631 | AN31: 0.01395811672 | AO31: 0.01447295516 | AP31: 0.0148862901 | AQ31: 0.01504360187 | AR31: 0.01496736519 | AS31: 0.01482721932 | AT31: 0.01480548583 | AU31: 0.01463984719 | AV31: 0.01450234161 | AW31: 0.01434871142 | AX31: 0.01419892991 | AY31: 0.01412493276 | AZ31: 0.01413852448 | BA31: 0.01416263641
A32: 0.1227999926 | C32: 25 | D32: 0.005051944255 | E32: 0.005434484595 | F32: 0.00583712589 | G32: 0.005842257246 | H32: 0.006021913446 | I32: 0.006126754966 | J32: 0.006305381755 | K32: 0.007388151435 | L32: 0.009174354784 | M32: 0.00916671529 | N32: 0.008269886156 | O32: 0.01090153271 | P32: 0.0102282481 | Q32: 0.01191271953 | R32: 0.01255526063 | S32: 0.01252279054 | T32: 0.01327092609 | U32: 0.01323322847 | V32: 0.01383747661 | W32: 0.0126263872 | X32: 0.01147126595 | Y32: 0.01087043336 | Z32: 0.00968839519 | AA32: 0.00536337988 | AB32: 0.006751966031 | AC32: 0.008087110986 | AD32: 0.007584744027 | AE32: 0.008773465789 | AF32: 0.009388192115 | AG32: 0.01072045015 | AH32: 0.01077775988 | AI32: 0.01153302708 | AJ32: 0.01174389221 | AK32: 0.01138149604 | AL32: 0.01297393718 | AM32: 0.01351886697 | AN32: 0.01214951591 | AO32: 0.01261103101 | AP32: 0.01307449963 | AQ32: 0.01346309911 | AR32: 0.01361015493 | AS32: 0.01352862297 | AT32: 0.01340666306 | AU32: 0.01339133394 | AV32: 0.01324465843 | AW32: 0.01312098338 | AX32: 0.01298084638 | AY32: 0.01284398738 | AZ32: 0.01277670621 | BA32: 0.01278762608
A33: 0.1248000264 | C33: 26 | D33: 0.004450236169 | E33: 0.00482584267 | F33: 0.005161781094 | G33: 0.005025938146 | H33: 0.005211847276 | I33: 0.005320231036 | J33: 0.005415884965 | K33: 0.005566474254 | L33: 0.006368056269 | M33: 0.007846088344 | N33: 0.008137729518 | O33: 0.007398147546 | P33: 0.009600346194 | Q33: 0.009008196478 | R33: 0.01048642217 | S33: 0.0110551978 | T33: 0.01106622801 | U33: 0.01174920743 | V33: 0.01174878216 | W33: 0.01231799169 | X33: 0.01126008552 | Y33: 0.01025457365 | Z33: 0.009732990385 | AA33: 0.008683174105 | AB33: 0.00480594966 | AC33: 0.006049679004 | AD33: 0.007246041474 | AE33: 0.006793405871 | AF33: 0.00784225885 | AG33: 0.008406254554 | AH33: 0.009616683695 | AI33: 0.009672931203 | AJ33: 0.01036758303 | AK33: 0.01057076501 | AL33: 0.01025430391 | AM33: 0.01169316712 | AN33: 0.01219358442 | AO33: 0.01096505464 | AP33: 0.01138011284 | AQ33: 0.01181170699 | AR33: 0.01216704757 | AS33: 0.01228853029 | AT33: 0.01221921926 | AU33: 0.01211297513 | AV33: 0.01210199402 | AW33: 0.01197009763 | AX33: 0.01185727664 | AY33: 0.01172939378 | AZ33: 0.01160541299 | BA33: 0.01154337762
A34: 0.1254000068 | C34: 27 | D34: 0.00399260788 | E34: 0.004251064246 | F34: 0.00458368094 | G34: 0.004431928 | H34: 0.004476887744 | I34: 0.004596118539 | J34: 0.004694888478 | K34: 0.004772842755 | L34: 0.004785516803 | M34: 0.005432352042 | N34: 0.006956114118 | O34: 0.007269787283 | P34: 0.006503089505 | Q34: 0.008439764247 | R34: 0.007915293492 | S34: 0.009216957942 | T34: 0.00975201002 | U34: 0.009780123202 | V34: 0.01041315136 | W34: 0.01044069777 | X34: 0.01096627341 | Y34: 0.01004868105 | Z34: 0.009165993702 | AA34: 0.008708219641 | AB34: 0.00776735924 | AC34: 0.004298675794 | AD34: 0.00541116004 | AE34: 0.006478832532 | AF34: 0.006061898269 | AG34: 0.007009994723 | AH34: 0.007527917153 | AI34: 0.008616249442 | AJ34: 0.008680815385 | AK34: 0.009316333226 | AL34: 0.009507926868 | AM34: 0.009226521675 | AN34: 0.01052919974 | AO34: 0.01098641811 | AP34: 0.009878244434 | AQ34: 0.01026380878 | AR34: 0.01065680633 | AS34: 0.01096720299 | AT34: 0.01108061808 | AU34: 0.01102168204 | AV34: 0.01092843786 | AW34: 0.01091912213 | AX34: 0.01079915522 | AY34: 0.01069623146 | AZ34: 0.01058057911 | BA34: 0.0104676128
A35: 0.1269999743 | C35: 28 | D35: 0.003426146529 | E35: 0.003813917276 | F35: 0.004037745009 | G35: 0.003932233938 | H35: 0.003945990164 | I35: 0.003945813357 | J35: 0.004053801994 | K35: 0.00413527494 | L35: 0.004100043634 | M35: 0.004079250175 | N35: 0.004814248118 | O35: =O69*(1-O$41-O$71)/SUM(O$42:O$70) -> 0.006211600184 | P35: 0.006386712875 | Q35: 0.005713798612 | R35: 0.007411788994 | S35: 0.006953330519 | T35: 0.008126128936 | U35: 0.00861409806 | V35: 0.008663465743 | W35: 0.009248998621 | X35: 0.00929020769 | Y35: 0.009781479335 | Z35: 0.008977378306 | AA35: 0.008196705321 | AB35: 0.007785746968 | AC35: 0.006943918967 | AD35: 0.003842976142 | AE35: 0.004835716891 | AF35: 0.005778204705 | AG35: 0.005415788665 | AH35: 0.006274335611 | AI35: 0.006741344644 | AJ35: 0.007728601557 | AK35: 0.00779668026 | AL35: 0.008375408057 | AM35: 0.008550644746 | AN35: 0.008303909757 | AO35: 0.009482039131 | AP35: 0.009892516032 | AQ35: 0.008904793349 | AR35: =AR69*(1-AR$41-AR$71)/SUM(AR$42:AR$70) -> 0.009255609186 | AS35: 0.009601070602 | AT35: 0.009884209706 | AU35: 0.009989654481 | AV35: 0.009938873524 | AW35: 0.009855321778 | AX35: 0.009846041129 | AY35: 0.009736825389 | AZ35: 0.009643759693 | BA35: 0.009538458141
A36: 0.1277999878 | C36: 29 | D36: 0.003272808107 | E36: 0.003272808107 | F36: 0.00362253416 | G36: 0.003456054581 | H36: 0.003496875543 | I36: 0.003472784195 | J36: 0.003475452361 | K36: 0.003565590644 | L36: 0.003544989977 | M36: 0.003487867848 | N36: 0.003611265205 | O36: 0.004294182218 | P36: 0.005448986208 | Q36: 0.00560333619 | R36: 0.005010562836 | S36: 0.006501643586 | T36: 0.006121685055 | U36: 0.007167835212 | V36: 0.007619968369 | W36: 0.007684328409 | X36: 0.008218540008 | Y36: 0.008275201893 | Z36: 0.008726776065 | AA36: 0.008017024762 | AB36: 0.007318336966 | AC36: 0.00695077193 | AD36: 0.006199218262 | AE36: 0.003429544125 | AF36: 0.00430681972 | AG36: 0.005155247784 | AH36: 0.004840815823 | AI36: 0.005611111956 | AJ36: 0.006038687974 | AK36: 0.006932142434 | AL36: 0.006999831735 | AM36: 0.007522029231 | AN36: 0.007685285688 | AO36: 0.007468032105 | AP36: 0.008526477087 | AQ36: 0.008905723601 | AR36: =AR70*(1-AR$41-AR$71)/SUM(AR$42:AR$70) -> 0.008019338639 | AS36: 0.008327516322 | AT36: 0.00864139643 | AU36: 0.008899112949 | AV36: 0.008996175975 | AW36: 0.008950923123 | AX36: 0.008874878225 | AY36: 0.008865571213 | AZ36: 0.008766986442 | BA36: 0.008682252564
A37: 0.6999999881 | C37: 30 | D37: 0.02933485649 | E37: =D37 -> 0.02933485649 | F37: =E37 -> 0.02933485649 | G37: 0.02933485649 | H37: 0.02933485649 | I37: 0.02933485649 | J37: 0.02933485649 | K37: 0.02933485649 | L37: 0.02933485649 | M37: 0.02933485649 | N37: 0.02933485649 | O37: 0.02933485649 | P37: 0.02933485649 | Q37: 0.02933485649 | R37: 0.02933485649 | S37: 0.02933485649 | T37: 0.02933485649 | U37: 0.02933485649 | V37: 0.02933485649 | W37: 0.02933485649 | X37: 0.02933485649 | Y37: 0.02933485649 | Z37: 0.02933485649 | AA37: 0.02933485649 | AB37: 0.02933485649 | AC37: 0.02933485649 | AD37: 0.02933485649 | AE37: 0.02933485649 | AF37: 0.02933485649 | AG37: 0.02933485649 | AH37: 0.02933485649 | AI37: 0.02933485649 | AJ37: 0.02933485649 | AK37: 0.02933485649 | AL37: 0.02933485649 | AM37: 0.02933485649 | AN37: 0.02933485649 | AO37: 0.02933485649 | AP37: 0.02933485649 | AQ37: 0.02933485649 | AR37: =AQ37 -> 0.02933485649 | AS37: =AR37 -> 0.02933485649 | AT37: =AS37 -> 0.02933485649 | AU37: =AT37 -> 0.02933485649 | AV37: =AU37 -> 0.02933485649 | AW37: =AV37 -> 0.02933485649 | AX37: =AW37 -> 0.02933485649 | AY37: =AX37 -> 0.02933485649 | AZ37: =AY37 -> 0.02933485649 | BA37: =AZ37 -> 0.02933485649
C39: Intermediate table
C40: age | D40: 2011 | E40: 2012 | F40: 2013 | G40: 2014 | H40: 2015 | I40: 2016 | J40: 2017 | K40: 2018 | L40: 2019 | M40: 2020 | N40: 2021 | O40: 2022 | P40: 2023 | Q40: 2024 | R40: 2025 | S40: 2026 | T40: 2027 | U40: 2028 | V40: 2029 | W40: 2030 | X40: 2031 | Y40: 2032 | Z40: 2033 | AA40: 2034 | AB40: 2035 | AC40: 2036 | AD40: 2037 | AE40: 2038 | AF40: 2039 | AG40: 2040 | AH40: 2041 | AI40: 2042 | AJ40: 2043 | AK40: 2044 | AL40: 2045 | AM40: 2046 | AN40: 2047 | AO40: 2048 | AP40: 2049 | AQ40: 2050 | AR40: 2051 | AS40: 2052 | AT40: 2053 | AU40: 2054 | AV40: 2055 | AW40: 2056 | AX40: 2057 | AY40: 2058 | AZ40: 2059 | BA40: 2060
C41: 0 | D41: =D7 -> 0.05133185021 | E41: =E2 -> 0.04656880063 | F41: =F2 -> 0.05181674492 | G41: 0.05627805417 | H41: 0.06311207928 | I41: 0.06267506153 | J41: 0.06594766683 | K41: 0.0660947696 | L41: 0.06408110321 | M41: 0.07217555129 | N41: 0.07252723189 | O41: 0.06353694313 | P41: 0.06478343052 | Q41: 0.06593240714 | R41: 0.06650664146 | S41: 0.06581942161 | T41: 0.06427720143 | U41: 0.06262197439 | V41: 0.06158864473 | W41: 0.06008013269 | X41: 0.05879004198 | Y41: 0.05756725556 | Z41: 0.0564716126 | AA41: 0.05579822849 | AB41: 0.0554875148 | AC41: 0.05523424378 | AD41: 0.05504768244 | AE41: 0.05497244391 | AF41: 0.05483920817 | AG41: 0.05483925484 | AH41: 0.05457128216 | AI41: 0.05434857281 | AJ41: 0.05414840825 | AK41: 0.05388467364 | AL41: 0.0539465997 | AM41: 0.05370252707 | AN41: 0.05359733173 | AO41: 0.05328998216 | AP41: 0.05325806177 | AQ41: 0.0533109048 | AR41: =AR2 -> 0.0533109048 | AS41: 0.0533109048 | AT41: 0.0533109048 | AU41: 0.0533109048 | AV41: 0.0533109048 | AW41: 0.0533109048 | AX41: 0.0533109048 | AY41: 0.0533109048 | AZ41: 0.0533109048 | BA41: 0.0533109048
C42: 1 | D42: =D8 -> 0.04242629495 | E42: =MAX(D7*(1-D$3*$A7),0) -> 0.05133185021 | F42: =MAX(E7*(1-E$3*$A7),0) -> 0.04656880063 | G42: 0.05128170813 | H42: 0.05594567408 | I42: 0.06266514083 | J42: 0.06225757481 | K42: 0.06549933154 | L42: 0.06546153559 | M42: 0.06347937223 | N42: 0.07179516412 | O42: 0.07212727369 | P42: 0.06308388034 | Q42: 0.06432634759 | R42: 0.06547034287 | S42: 0.06604413921 | T42: 0.06536679232 | U42: 0.06383944285 | V42: 0.062200134 | W42: 0.06117729728 | X42: 0.05968027599 | Y42: 0.0584009308 | Z42: 0.05718688931 | AA42: 0.05609569837 | AB42: 0.05542580669 | AC42: 0.05511679333 | AD42: 0.05486398349 | AE42: 0.0546780812 | AF42: 0.0546041432 | AG42: 0.05447395302 | AH42: 0.05447579107 | AI42: 0.0542110773 | AJ42: 0.05399198743 | AK42: 0.05379530006 | AL42: 0.05353304496 | AM42: 0.05359407355 | AN42: 0.05335188267 | AO42: 0.05324772025 | AP42: 0.05294241302 | AQ42: 0.05291130802 | AR42: =MAX(AQ7*(1-AQ$3*$A7),0) -> 0.05296374167 | AS42: 0.05296354886 | AT42: 0.05296371217 | AU42: 0.0529637607 | AV42: 0.05296370792 | AW42: 0.05296357447 | AX42: 0.05296342902 | AY42: 0.05296332463 | AZ42: 0.05296326343 | BA42: 0.05296322583
C43: 2 | D43: 0.0332198083 | E43: =MAX(D8*(1-D$3*$A8),0) -> 0.04242629495 | F43: 0.04903447476 | G43: 0.04376993776 | H43: 0.05148168325 | I43: 0.05411495689 | J43: 0.06117636185 | K43: 0.06040049228 | L43: 0.06341964844 | M43: 0.06474442591 | N43: 0.06236086727 | O43: 0.06853827222 | P43: 0.06953414491 | Q43: 0.06141059481 | R43: 0.06255377409 | S43: 0.06358960983 | T43: 0.06411549561 | U43: 0.06361220464 | V43: 0.06218103761 | W43: 0.06068704571 | X43: 0.05979543514 | Y43: 0.05841749352 | Z43: 0.05727022815 | AA43: 0.05615642294 | AB43: 0.05518105462 | AC43: 0.05452618194 | AD43: 0.0542218983 | AE43: 0.05399225842 | AF43: 0.05379931501 | AG43: 0.05360811885 | AH43: 0.05354140583 | AI43: 0.0536147568 | AJ43: 0.05336020997 | AK43: 0.05319984895 | AL43: 0.05304082226 | AM43: 0.05283561731 | AN43: 0.05292246311 | AO43: 0.05271935516 | AP43: 0.05264271104 | AQ43: 0.05233416949 | AR43: 0.05235319816 | AS43: 0.05242431114 | AT43: 0.05237860734 | AU43: 0.05239474521 | AV43: 0.05241091435 | AW43: 0.05242397261 | AX43: 0.0524286383 | AY43: 0.05242601064 | AZ43: 0.05242190831 | BA43: 0.05242133016
C44: 3 | D44: 0.05894556633 | E44: 0.0332198083 | F44: 0.04052749083 | G44: 0.04608182794 | H44: 0.04393758417 | I44: 0.04979291098 | J44: 0.05282519019 | K44: 0.05934680579 | L44: 0.05847612347 | M44: 0.06271799133 | N44: 0.06359971139 | O44: 0.05952811024 | P44: 0.06606865641 | Q44: 0.06768417338 | R44: 0.05971346562 | S44: 0.06075187522 | T44: 0.06172767249 | U44: 0.06238951924 | V44: 0.06195481518 | W44: 0.06066366938 | X44: 0.05931163502 | Y44: 0.05852568034 | Z44: 0.05728203855 | AA44: 0.0562338768 | AB44: 0.05523647199 | AC44: 0.05428115575 | AD44: 0.05363666588 | AE44: 0.05335618007 | AF44: 0.05312034699 | AG44: 0.05281385234 | AH44: 0.05268630518 | AI44: 0.05269106798 | AJ44: 0.05276919525 | AK44: 0.05257332663 | AL44: 0.0524497151 | AM44: 0.05234580233 | AN44: 0.05216952324 | AO44: 0.05229103321 | AP44: 0.0521163696 | AQ44: 0.05203394428 | AR44: 0.05177819961 | AS44: 0.05181603318 | AT44: 0.05184137225 | AU44: 0.05181197588 | AV44: 0.05184388529 | AW44: 0.05187285557 | AX44: 0.05189052663 | AY44: 0.05189268524 | AZ44: 0.05188612561 | BA44: 0.05188155285
C45: 4 | D45: 0.0644838512 | E45: 0.05894556633 | F45: 0.03173304381 | G45: 0.0378375266 | H45: 0.0460857418 | I45: 0.0423059413 | J45: 0.04840146344 | K45: 0.05102510351 | L45: 0.057106946 | M45: 0.0574848869 | N45: 0.06140412122 | O45: 0.06049926883 | P45: 0.05712434044 | Q45: 0.06402390392 | R45: 0.06552196927 | S45: 0.05773833689 | T45: 0.05871658001 | U45: 0.05980731289 | V45: 0.06050518742 | W45: 0.06018774241 | X45: 0.05903932633 | Y45: 0.05780925206 | Z45: 0.05714841288 | AA45: 0.05600876963 | AB45: 0.05507925406 | AC45: 0.05410615619 | AD45: 0.05316933692 | AE45: 0.05255623843 | AF45: 0.05227218393 | AG45: 0.05192773858 | AH45: 0.05168821063 | AI45: 0.05163319416 | AJ45: 0.05164498166 | AK45: 0.05177671414 | AL45: 0.05161822199 | AM45: 0.05154862158 | AN45: 0.05147255606 | AO45: 0.05133453429 | AP45: 0.0514798258 | AQ45: 0.05130168147 | AR45: 0.0512692495 | AS45: 0.05103586623 | AT45: 0.05102891902 | AU45: 0.05106947567 | AV45: 0.05105618856 | AW45: 0.05110032874 | AX45: 0.051133472 | AY45: 0.05114840286 | AZ45: 0.05114659065 | BA45: 0.05113959695
C46: 5 | D46: 0.06592346761 | E46: 0.0644838512 | F46: 0.05630743627 | G46: 0.02944947653 | H46: 0.03771214862 | I46: 0.04419316025 | J46: 0.04096590119 | K46: 0.04656897026 | L46: 0.04882698819 | M46: 0.05583383137 | N46: 0.05611015711 | O46: 0.05822549564 | P46: 0.05781759766 | Q46: 0.05513124573 | R46: 0.0617282479 | S46: 0.0631007661 | T46: 0.05558283644 | U46: 0.0566666286 | V46: 0.05777584996 | W46: 0.05855328256 | X46: 0.05835155082 | Y46: 0.05732443819 | Z46: 0.05623398845 | AA46: 0.05566382445 | AB46: 0.05464782126 | AC46: 0.05374448243 | AD46: 0.05279323373 | AE46: 0.05189678325 | AF46: 0.05128974737 | AG46: 0.05090254453 | AH46: 0.05062694228 | AI46: 0.0504624444 | AJ46: 0.05041684865 | AK46: 0.05048331482 | AL46: 0.05064500962 | AM46: 0.05054046487 | AN46: 0.05049804381 | AO46: 0.05045843266 | AP46: 0.05034831181 | AQ46: 0.05048505667 | AR46: 0.05035815801 | AS46: 0.05034456712 | AT46: 0.05007207399 | AU46: 0.05008058498 | AV46: 0.05013574796 | AW46: 0.05013508687 | AX46: 0.05018285389 | AY46: 0.05021290179 | AZ46: 0.0502236613 | BA46: 0.05022134225
C47: 6 | D47: 0.07019140434 | E47: 0.06592346761 | F47: 0.06159785321 | G47: 0.05191512384 | H47: 0.0292436394 | I47: 0.03600309252 | J47: 0.04261503344 | K47: 0.03924725343 | L47: 0.04429398546 | M47: 0.04745631937 | N47: 0.0543194797 | O47: 0.05302251483 | P47: 0.05539614644 | Q47: 0.0555538226 | R47: 0.05292124495 | S47: 0.05918846064 | T47: 0.06048364137 | U47: 0.05341369003 | V47: 0.05451113608 | W47: 0.05567839006 | X47: 0.05653062794 | Y47: 0.05642209393 | Z47: 0.05553194195 | AA47: 0.05454508308 | AB47: 0.05408449762 | AC47: 0.05310064073 | AD47: 0.05222042118 | AE47: 0.05131323394 | AF47: 0.0504339123 | AG47: 0.04973775886 | AH47: 0.04942169453 | AI47: 0.04922229485 | AJ47: 0.0490714971 | AK47: 0.04908183727 | AL47: 0.04917837571 | AM47: 0.04938493234 | AN47: 0.04930827644 | AO47: 0.04930119591 | AP47: 0.04928719655 | AQ47: 0.04917438311 | AR47: 0.04935475191 | AS47: 0.04924842831 | AT47: 0.04919267469 | AU47: 0.04894142298 | AV47: 0.04896471219 | AW47: 0.04903067818 | AX47: 0.04903426836 | AY47: 0.04907848153 | AZ47: 0.0491040167 | BA47: 0.04911398882
C48: 7 | D48: 0.07394094015 | E48: 0.07019140434 | F48: 0.06297303906 | G48: 0.05639245497 | H48: 0.05134702466 | I48: 0.02778463698 | J48: 0.03456120341 | K48: 0.04063961891 | L48: 0.0370862804 | M48: 0.0427752996 | N48: 0.04600546457 | O48: 0.05113977971 | P48: 0.05020265518 | Q48: 0.05297318684 | R48: 0.05307415745 | S48: 0.05050522311 | T48: 0.05646986843 | U48: 0.05785570571 | V48: 0.05114805565 | W48: 0.05229515818 | X48: 0.05351336129 | Y48: 0.0544170053 | Z48: 0.05441387877 | AA48: 0.0536218988 | AB48: 0.05275852473 | AC48: 0.0523160522 | AD48: 0.05136115786 | AE48: 0.05052622151 | AF48: 0.04964108701 | AG48: 0.04868775877 | AH48: 0.04807459531 | AI48: 0.04783626209 | AJ48: 0.04765343386 | AK48: 0.04756174031 | AL48: 0.04760242791 | AM48: 0.04774316618 | AN48: 0.04796847226 | AO48: 0.04792757917 | AP48: 0.04794472116 | AQ48: 0.04792636912 | AR48: 0.04786202646 | AS48: 0.04805476566 | AT48: 0.04790998904 | AU48: 0.04787045911 | AV48: 0.04764049357 | AW48: 0.04767478067 | AX48: 0.04774304397 | AY48: 0.04774403834 | AZ48: 0.04778330235 | BA48: 0.04780760519
C49: 8 | D49: 0.06719520995 | E49: 0.07394094015 | F49: 0.06704996275 | G49: 0.0572133618 | H49: 0.05553677708 | I49: 0.04853397772 | J49: =MAX(I14*(1-I$3*$A14),0) -> 0.0265428628 | K49: 0.03279631759 | L49: 0.03813196214 | M49: 0.03556807298 | N49: 0.04130962608 | O49: 0.04313969063 | P49: 0.04816887973 | Q49: 0.04776051812 | R49: 0.05035081271 | S49: 0.05039507739 | T49: 0.04794462818 | U49: 0.05374901812 | V49: 0.05513055045 | W49: 0.04883077079 | X49: 0.05001875654 | Y49: 0.05126498381 | Z49: 0.05222838066 | AA49: 0.05228828982 | AB49: 0.05161416327 | AC49: 0.05078579906 | AD49: 0.05035588785 | AE49: 0.04945247335 | AF49: 0.04864186023 | AG49: 0.04769058016 | AH49: 0.04683321873 | AI49: 0.04630936808 | AJ49: 0.0460909881 | AK49: 0.04596867908 | AL49: 0.04590964963 | AM49: 0.04599399395 | AN49: 0.04615400103 | AO49: 0.04640452867 | AP49: 0.04638823753 | AQ49: 0.04640063678 | AR49: 0.04642682929 | AS49: 0.04638096017 | AT49: 0.04652777825 | AU49: 0.04640189079 | AV49: 0.04637771865 | AW49: 0.0461660872 | AX49: 0.04620312407 | AY49: 0.04626678844 | AZ49: 0.046264047 | BA49: 0.04630152864
C50: 9 | D50: 0.06351860557 | E50: 0.06719520995 | F50: 0.07063168674 | G50: 0.0604433237 | H50: 0.05609920194 | I50: 0.05221795636 | J50: 0.04613577923 | K50: 0.02506035362 | L50: 0.03055115016 | M50: 0.03631318631 | N50: 0.03421587885 | O50: 0.03857870354 | P50: 0.04041819482 | Q50: 0.04558544646 | R50: 0.04515985942 | S50: 0.0475622811 | T50: 0.04759581836 | U50: 0.04540387025 | V50: 0.05096130741 | W50: 0.05237207512 | X50: 0.04647461919 | Y50: 0.04768201131 | Z50: 0.04896205057 | AA50: 0.04994036701 | AB50: 0.05008130604 | AC50: 0.04943798958 | AD50: 0.0486398718 | AE50: 0.0482430467 | AF50: 0.04737153418 | AG50: 0.04649975398 | AH50: 0.04564853729 | AI50: 0.04489276011 | AJ50: 0.04440275148 | AK50: 0.0442465469 | AL50: 0.04415728091 | AM50: 0.04414352533 | AN50: 0.04424783787 | AO50: 0.04443332096 | AP50: 0.04469695303 | AQ50: 0.04467761502 | AR50: 0.04473186393 | AS50: 0.04477288013 | AT50: 0.04469037105 | AU50: 0.04484567838 | AV50: 0.04473792263 | AW50: 0.0447253463 | AX50: 0.04452483444 | AY50: 0.04455808806 | AZ50: 0.04461587338 | BA50: 0.04461266104
C51: 10 | D51: 0.0561321608 | E51: 0.06351860557 | F51: 0.06418786412 | G51: 0.06318078523 | H51: 0.05901054201 | I51: 0.05247223694 | J51: 0.04939523256 | K51: 0.04334160974 | L51: 0.02317826712 | M51: 0.02889076988 | N51: 0.03479859478 | O51: 0.03182543278 | P51: 0.0359554647 | Q51: 0.03805212869 | R51: 0.04288129504 | S51: 0.04244092186 | T51: 0.04469357322 | U51: 0.04484824378 | V51: 0.04283622618 | W51: 0.04817428822 | X51: 0.04960176513 | Y51: 0.04408844254 | Z51: 0.04531941828 | AA51: 0.04658857477 | AB51: 0.04759833084 | AC51: 0.04773469078 | AD51: 0.04711618438 | AE51: 0.04636951059 | AF51: 0.04598588737 | AG51: 0.04506416582 | AH51: 0.04429239174 | AI51: 0.04354540876 | AJ51: 0.04283745064 | AK51: 0.04242215596 | AL51: 0.04229973991 | AM51: 0.04225521841 | AN51: 0.04226439938 | AO51: 0.04239458265 | AP51: 0.04259370814 | AQ51: 0.04284330043 | AR51: 0.04286526596 | AS51: 0.04293231375 | AT51: 0.04293500932 | AU51: 0.04286914757 | AV51: 0.04303115586 | AW51: 0.04293797856 | AX51: 0.04292927029 | AY51: 0.0427343813 | AZ51: 0.04276279808 | BA51: 0.04281768635
C52: 11 | D52: 0.05219746934 | E52: 0.0561321608 | F52: 0.0606758075 | G52: 0.05698483808 | H52: 0.06142457229 | I52: 0.05491603635 | J52: 0.04940008521 | K52: 0.04617860193 | L52: 0.03980802993 | M52: 0.02176948749 | N52: 0.02758259132 | O52: 0.03224105223 | P52: 0.02951021293 | Q52: 0.03368000256 | R52: 0.03561567617 | S52: 0.04009942774 | T52: 0.03968536306 | U52: 0.04190890962 | V52: 0.04210875681 | W52: 0.04030075144 | X52: 0.04540957807 | Y52: 0.04683308078 | Z52: 0.04170660634 | AA52: 0.04291790779 | AB52: 0.04419244931 | AC52: 0.0451519664 | AD52: 0.04527544182 | AE52: 0.04470190182 | AF52: 0.04398887269 | AG52: 0.04353831576 | AH52: 0.04272219302 | AI52: 0.0420530151 | AJ52: 0.04135756411 | AK52: 0.04073658678 | AL52: 0.04036712116 | AM52: 0.04028927961 | AN52: 0.04026832263 | AO52: 0.04030608304 | AP52: 0.0404505892 | AQ52: 0.04063796392 | AR52: 0.04091471722 | AS52: 0.04094989088 | AT52: 0.04097903609 | AU52: 0.04099431723 | AV52: 0.04094380037 | AW52: 0.04110823913 | AX52: 0.04102235522 | AY52: 0.04101164446 | AZ52: 0.04082208542 | BA52: 0.04084866653
C53: 12 | D53: 0.04598294159 | E53: 0.05219746934 | F53: 0.05361994572 | G53: 0.05347248849 | H53: 0.05517557086 | I53: 0.05688168294 | J53: 0.05146250851 | K53: 0.04596569199 | L53: 0.04212702424 | M53: 0.03714110098 | N53: 0.02070865804 | O53: 0.02545861161 | P53: 0.02974763176 | Q53: 0.0275073368 | R53: 0.03137027765 | S53: 0.03314458287 | T53: 0.03731722016 | U53: 0.03703720195 | V53: 0.03916546478 | W53: 0.0394332337 | X53: 0.03781296755 | Y53: 0.04267859304 | Z53: 0.04410049052 | AA53: 0.03931462301 | AB53: 0.04052253857 | AC53: 0.04172730633 | AD53: 0.04262707737 | AE53: 0.04275584562 | AF53: 0.04221023784 | AG53: 0.04145565118 | AH53: 0.04108638929 | AI53: 0.04037701914 | AJ53: 0.03975894753 | AK53: 0.03915197791 | AL53: 0.03858833244 | AM53: 0.03827480949 | AN53: 0.03822150867 | AO53: 0.03822932228 | AP53: 0.0382844551 | AQ53: 0.03841955365 | AR53: 0.03863395442 | AS53: 0.03891044795 | AT53: 0.03891084005 | AU53: 0.03895063435 | AV53: 0.03897690492 | AW53: 0.03893799769 | AX53: 0.03909728623 | AY53: 0.03901327379 | AZ53: 0.03899983023 | BA53: 0.03881901408
C54: 13 | D54: 0.03600784391 | E54: 0.04598294159 | F54: 0.0498613528 | G54: 0.04693020156 | H54: 0.05157817809 | I54: 0.0508602483 | J54: 0.05307503637 | K54: 0.0476741034 | L54: 0.04166744137 | M54: 0.03906130659 | N54: 0.03521206828 | O54: 0.01904643807 | P54: 0.02338108448 | Q54: 0.02760181955 | R54: 0.02550456977 | S54: 0.02906223165 | T54: 0.03070760001 | U54: 0.03467360357 | V54: 0.03446187858 | W54: 0.03651859689 | X54: 0.03683984573 | Y54: 0.0353868609 | Z54: 0.04001683911 | AA54: 0.04139235058 | AB54: 0.0369602055 | AC54: 0.03809685199 | AD54: 0.0392231812 | AE54: 0.0400800963 | AF54: 0.04019777143 | AG54: 0.03960819006 | AH54: 0.0389534601 | AI54: 0.03866541437 | AJ54: 0.03801260654 | AK54: 0.03748012977 | AL54: 0.0369310126 | AM54: 0.03643381988 | AN54: 0.03615733168 | AO54: 0.0361333146 | AP54: 0.03615893238 | AQ54: 0.03620932444 | AR54: 0.03637137043 | AS54: 0.03658683991 | AT54: 0.03681747943 | AU54: 0.03682931454 | AV54: 0.03687806859 | AW54: 0.03691152732 | AX54: 0.03687735394 | AY54: 0.03702595234 | AZ54: 0.03694327638 | BA54: 0.03692999959
C55: 14 | D55: 0.03481962108 | E55: 0.03600784391 | F55: 0.04392495847 | G55: 0.04332779819 | H55: 0.04508863522 | I55: 0.047316627 | J55: 0.04724361505 | K55: 0.0489424987 | L55: 0.04293049659 | M55: 0.03838530913 | N55: 0.03690251053 | O55: 0.03226648732 | P55: 0.01740782653 | Q55: 0.02159107392 | R55: 0.0254710127 | S55: 0.02351713574 | T55: 0.0268004548 | U55: 0.02840115884 | V55: 0.0321161336 | W55: 0.03198828905 | X55: 0.03396393905 | Y55: 0.03432250729 | Z55: 0.0330322498 | AA55: 0.03739104533 | AB55: 0.03873851906 | AC55: 0.03459134126 | AD55: 0.03564882586 | AE55: 0.03671270288 | AF55: 0.03751198629 | AG55: 0.03755053769 | AH55: 0.03705138044 | AI55: 0.03649524089 | AJ55: 0.03624046774 | AK55: =MAX(AJ20*(1-AJ$3*$A20),0) -> 0.03567663883 | AL55: 0.03519875416 | AM55: 0.03471568858 | AN55: 0.03426695898 | AO55: 0.03403187416 | AP55: 0.03402644178 | AQ55: 0.03404919166 | AR55: 0.03412877097 | AS55: 0.03429313283 | AT55: 0.03446715426 | AU55: 0.03469525378 | AV55: 0.03471682095 | AW55: 0.0347708047 | AX55: 0.03480480603 | AY55: 0.03477041198 | AZ55: 0.03490754908 | BA55: 0.03482907044
C56: 15 | D56: 0.02423603862 | E56: 0.03481962108 | F56: 0.03439629989 | G56: 0.03738283345 | H56: 0.0411557939 | I56: 0.04079536448 | J56: 0.04338644666 | K56: 0.04299233781 | L56: 0.04323573299 | M56: 0.03881402059 | N56: 0.03589911696 | O56: 0.03345887326 | P56: 0.02908264734 | Q56: 0.01585527419 | R56: 0.0196537439 | S56: 0.02316989039 | T56: 0.02139828227 | U56: 0.0244609609 | V56: 0.02596380576 | W56: 0.02942625212 | X56: 0.02936809671 | Y56: 0.03123870993 | Z56: 0.03162999524 | AA56: 0.03046790743 | AB56: 0.03454253621 | AC56: 0.0357876906 | AD56: 0.0319492836 | AE56: 0.03293416721 | AF56: 0.03391552912 | AG56: 0.03459079097 | AH56: 0.03467697246 | AI56: 0.03427082953 | AJ56: 0.03377325334 | AK56: 0.03358547265 | AL56: 0.03308320126 | AM56: 0.03267014381 | AN56: 0.03223967223 | AO56: 0.03184672848 | AP56: 0.03164426399 | AQ56: 0.03163868066 | AR56: 0.03168958528 | AS56: 0.03177418541 | AT56: 0.03190044316 | AU56: 0.0320723872 | AV56: 0.03229425999 | AW56: 0.03232162851 | AX56: 0.03237398849 | AY56: 0.0324034917 | AZ56: 0.03236863868 | BA56: 0.03249575848
C57: 16 | D57: 0.02436330759 | E57: 0.02423603862 | F57: 0.03326125639 | G57: 0.0290576198 | H57: 0.03536624534 | I57: 0.03705540665 | J57: 0.03723603654 | K57: 0.03929798562 | L57: 0.03772181393 | M57: 0.03883072461 | N57: 0.03617085244 | O57: 0.03242757032 | P57: 0.03000920946 | Q57: 0.02636018554 | R57: 0.01436300949 | S57: 0.01779266957 | T57: 0.02098270485 | U57: 0.01943903166 | V57: 0.02225840348 | W57: 0.02368027048 | X57: 0.02689266903 | Y57: 0.02688913144 | Z57: 0.02865779499 | AA57: 0.02904138653 | AB57: 0.02801801093 | AC57: 0.03176514053 | AD57: 0.03290229155 | AE57: 0.02938041198 | AF57: 0.03028508994 | AG57: 0.03113160878 | AH57: 0.0317986375 | AI57: 0.03192957254 | AJ57: 0.03157225805 | AK57: 0.03115930117 | AL57: 0.03100493142 | AM57: 0.03056919999 | AN57: 0.03020441158 | AO57: 0.02982884527 | AP57: 0.02948022172 | AQ57: 0.02929255534 | AR57: 0.02931488227 | AS57: 0.02937170897 | AT57: 0.02942549945 | AU57: 0.02955171765 | AV57: 0.02971983492 | AW57: 0.02993213255 | AX57: 0.0299593831 | AY57: 0.03000587815 | AZ57: 0.03003057047 | BA57: 0.02999775152
C58: 17 | D58: 0.0212264999 | E58: 0.02436330759 | F58: 0.02315134598 | G58: 0.02790530075 | H58: 0.02738734702 | I58: 0.03169797688 | J58: 0.03367851677 | K58: 0.03358050142 | L58: 0.03426206126 | M58: 0.03366883673 | N58: 0.03606655728 | O58: 0.03255947284 | P58: 0.02895108062 | Q58: 0.02707690221 | R58: 0.02377192719 | S58: 0.01294499247 | T58: 0.01604214699 | U58: 0.01897846394 | V58: 0.01761251204 | W58: 0.02021416076 | X58: 0.02154944443 | Y58: 0.02451863866 | Z58: 0.02456356062 | AA58: 0.02620058964 | AB58: 0.02659235324 | AC58: 0.0256552701 | AD58: 0.02907898852 | AE58: 0.03012698834 | AF58: 0.02690154499 | AG58: 0.02768093619 | AH58: 0.028497602 | AI58: 0.02915595805 | AJ58: 0.02929225755 | AK58: 0.02900755459 | AL58: 0.02864549621 | AM58: 0.02852948402 | AN58: 0.02814437438 | AO58: 0.0278295591 | AP58: 0.02749746734 | AQ58: 0.02717607588 | AR58: =MAX(AQ23*(1-AQ$3*$A23),0) -> 0.02702840532 | AS58: 0.02705783903 | AT58: 0.02708768205 | AU58: 0.02714584323 | AV58: 0.02727036937 | AW58: 0.02743160082 | AX58: 0.02762923839 | AY58: 0.02765247678 | AZ58: 0.0276929235 | BA58: 0.0277152202
C59: 18 | D59: 0.01493312175 | E59: 0.0212264999 | F59: 0.02327291898 | G59: 0.01930454875 | H59: 0.02621416999 | I59: 0.02444779572 | J59: 0.02870072377 | K59: 0.03025519447 | L59: 0.02911266065 | M59: 0.03041271445 | N59: 0.03118041594 | O59: 0.03236568211 | P59: 0.02895087273 | Q59: 0.0260173699 | R59: 0.02432102419 | S59: 0.02134038264 | T59: 0.01162586869 | U59: 0.01445380177 | V59: 0.01712961472 | W59: 0.01593449061 | X59: 0.01832595422 | Y59: 0.01957355813 | Z59: 0.02231439783 | AA59: 0.02237282002 | AB59: 0.02390049359 | AC59: 0.02425775729 | AD59: 0.02339665338 | AE59: 0.02652495364 | AF59: 0.02748050375 | AG59: 0.0244956651 | AH59: 0.02524389385 | AI59: 0.02603173893 | AJ59: 0.02664855372 | AK59: 0.02681362521 | AL59: 0.02656903553 | AM59: 0.02626111071 | AN59: 0.02616956249 | AO59: 0.02583594081 | AP59: 0.0255599207 | AQ59: 0.0252550742 | AR59: 0.02498328474 | AS59: 0.02485558811 | AT59: 0.02486195156 | AU59: 0.02489723158 | AV59: 0.02495807511 | AW59: 0.02507809676 | AX59: 0.02522786364 | AY59: 0.02540783331 | AZ59: 0.02542691926 | BA59: 0.02546364744
C60: 19 | D60: 0.01137136504 | E60: 0.01493312175 | F60: 0.02027650025 | G60: 0.01930241404 | H60: 0.01808242777 | I60: 0.0233185205 | J60: 0.02206351011 | K60: 0.02569694102 | L60: 0.02610125883 | M60: 0.02571806091 | N60: 0.02809316056 | O60: 0.02790606305 | P60: 0.0286769293 | Q60: 0.02592636047 | R60: 0.02328834903 | S60: 0.02175828988 | T60: 0.01910068934 | U60: 0.01043959782 | V60: 0.01300243539 | W60: 0.01544663626 | X60: 0.01439872364 | Y60: 0.01659142835 | Z60: 0.01775598246 | AA60: 0.02025765667 | AB60: 0.02034168984 | AC60: 0.02173049762 | AD60: 0.02204913362 | AE60: 0.02127111749 | AF60: 0.0241150521 | AG60: 0.02494080395 | AH60: 0.0222662026 | AI60: 0.02298470197 | AJ60: 0.02371626884 | AK60: 0.02431545873 | AL60: 0.02448078298 | AM60: 0.02427926338 | AN60: 0.02401153092 | AO60: 0.02394610359 | AP60: 0.02365284215 | AQ60: 0.02340043749 | AR60: 0.02314300115 | AS60: 0.02290132216 | AT60: 0.02276534619 | AU60: 0.02277837567 | AV60: 0.02281743908 | AW60: 0.02287821569 | AX60: 0.02298956601 | AY60: 0.02312520627 | AZ60: 0.02328806986 | BA60: 0.0233051307
C61: 20 | D61: 0.009839603489 | E61: 0.01137136504 | F61: 0.0142647845 | G61: 0.01673164646 | H61: 0.01803089391 | I61: 0.01603134569 | J61: 0.0209786858 | K61: 0.01969132818 | L61: 0.02206527603 | M61: 0.02295250179 | N61: 0.0236989701 | O61: 0.02507902368 | P61: 0.02464244392 | Q61: 0.02559568574 | R61: 0.02313032522 | S61: 0.02076627343 | T61: 0.01941180368 | U61: 0.01709686624 | V61: 0.009361642192 | W61: 0.011688249 | X61: 0.01391436514 | Y61: 0.01299550019 | Z61: 0.01500420682 | AA61: 0.01606912084 | AB61: 0.01836094099 | AC61: 0.01843689413 | AD61: 0.01968990079 | AE61: 0.0199829074 | AF61: 0.01927780927 | AG61: 0.02181807837 | AH61: 0.02260045398 | AI61: 0.02021084703 | AJ61: 0.02087596989 | AK61: 0.02157389911 | AL61: 0.02213220601 | AM61: 0.02230259831 | AN61: 0.02213165497 | AO61: 0.02190439691 | AP61: 0.02185582076 | AQ61: 0.02158855349 | AR61: 0.0213781672 | AS61: 0.02114975587 | AT61: 0.02091154464 | AU61: 0.02079396638 | AV61: 0.02081200473 | AW61: 0.02085224083 | AX61: 0.020908964 | AY61: 0.02100920627 | AZ61: 0.02113123873 | BA61: 0.02127965662
C62: 21 | D62: 0.00859718582 | E62: 0.009839603489 | F62: 0.0108624355 | G62: 0.01172375734 | H62: 0.01559581881 | I62: 0.01594370786 | J62: 0.0143873305 | K62: 0.01867615834 | L62: 0.01684621706 | M62: 0.01933363871 | N62: 0.02111024413 | O62: 0.02111398243 | P62: 0.02208746936 | Q62: 0.02193720826 | R62: 0.02277607081 | S62: 0.02057230673 | T62: 0.01847969264 | U62: 0.01733165732 | V62: 0.01529341782 | W62: 0.008394727835 | X62: 0.01050298854 | Y62: 0.01252774174 | Z62: =MAX(Y27*(1-Y$3*$A27),0) -> 0.01172369845 | AA62: 0.01354547326 | AB62: 0.01452875726 | AC62: 0.01660065068 | AD62: 0.01666430295 | AE62: 0.01780058696 | AF62: 0.01806559359 | AG62: 0.01739878982 | AH62: 0.01972250177 | AI62: 0.02046440247 | AJ62: 0.01831229436 | AK62: 0.01894464101 | AL62: 0.019589689 | AM62: 0.02011453175 | AN62: 0.02028102236 | AO62: 0.02014106656 | AP62: 0.01994439241 | AQ62: 0.01990061818 | AR62: 0.01967564866 | AS62: 0.01949012132 | AT62: 0.01926592396 | AU62: 0.01905497032 | AV62: 0.01895341249 | AW62: 0.01897397062 | AX62: 0.01901170627 | AY62: 0.01906202542 | AZ62: 0.01915166089 | BA62: 0.01926253367
C63: 22 | D63: 0.007464700965 | E63: 0.00859718582 | F63: 0.009399228489 | G63: 0.008890316548 | H63: 0.01090349676 | I63: 0.01375297277 | J63: 0.01427226759 | K63: 0.01277491009 | L63: 0.01591669798 | M63: 0.01470558861 | N63: 0.01774674026 | O63: 0.01876863973 | P63: 0.01854439945 | Q63: 0.01960941721 | R63: 0.0194680865 | S63: 0.02020318522 | T63: 0.01825883898 | U63: 0.01645640971 | V63: 0.0154635013 | W63: 0.01367884094 | X63: 0.007524272455 | Y63: 0.00943242651 | Z63: 0.01127321094 | AA63: 0.01055698729 | AB63: 0.01221578892 | AC63: 0.01310232605 | AD63: 0.01496615355 | AE63: 0.01502663309 | AF63: 0.01605144951 | AG63: 0.01626324214 | AH63: 0.01568787162 | AI63: 0.01781346197 | AJ63: 0.01849562127 | AK63: 0.01657682466 | AL63: 0.0171594488 | AM63: 0.0177594356 | AN63: 0.01824574804 | AO63: 0.01841098202 | AP63: 0.01829324029 | AQ63: 0.0181151106 | AR63: 0.0180922505 | AS63: 0.01789340476 | AT63: 0.01771003565 | AU63: 0.01751187224 | AV63: 0.01732521963 | AW63: 0.01723660238 | AX63: 0.01725623449 | AY63: 0.01728927239 | AZ63: 0.01733343856 | BA63: 0.01741460597
C64: 23 | D64: 0.00643343963 | E64: 0.007464700965 | F64: 0.008212415671 | G64: 0.007671322579 | H64: 0.008255967234 | I64: 0.009597613782 | J64: 0.01229025565 | K64: 0.01265069902 | L64: 0.01085954763 | M64: 0.0138594747 | N64: 0.01348075735 | O64: 0.01575637529 | P64: 0.01645426257 | Q64: 0.01643401927 | R64: 0.01737099651 | S64: 0.0172380877 | T64: 0.01789964022 | U64: 0.01623139819 | V64: 0.01465731212 | W64: 0.013807374 | X64: 0.01223963802 | Y64: 0.006745915711 | Z64: 0.008473552205 | AA64: 0.01013407738 | AB64: 0.009504436952 | AC64: 0.01099764488 | AD64: 0.01179204166 | AE64: 0.01347221269 | AF64: 0.01352687844 | AG64: 0.01442546799 | AH64: 0.01463918361 | AI64: 0.01414550342 | AJ64: 0.01607278195 | AK64: 0.01671495571 | AL64: 0.01498978758 | AM64: 0.01553034208 | AN64: 0.01608265054 | AO64: 0.01653584097 | AP64: 0.01669408873 | AQ64: 0.01658783826 | AR64: 0.01644166669 | AS64: 0.01642611675 | AT64: 0.01623217203 | AU64: 0.0160709312 | AV64: 0.01589577842 | AW64: 0.01572973629 | AX64: 0.01565011691 | AY64: 0.01566677222 | AZ64: 0.0156953185 | BA64: 0.0157351028
C65: 24 | D65: 0.005689102424 | E65: 0.00643343963 | F65: 0.007130615584 | G65: 0.006677400965 | H65: 0.007109586474 | I65: 0.007249288992 | J65: 0.008557118588 | K65: 0.01086825142 | L65: 0.01071675575 | M65: 0.009423990542 | N65: 0.01268246766 | O65: 0.01194643314 | P65: 0.01377919057 | Q65: 0.01454600705 | R65: 0.01452265818 | S65: 0.0153441145 | T65: 0.01523623681 | U65: 0.01587458122 | V65: 0.01442323514 | W65: 0.01305733633 | X65: 0.01232625817 | Y65: 0.01094843226 | Z65: 0.006046329667 | AA65: 0.00759981067 | AB65: 0.009102660778 | AC65: 0.008536919773 | AD65: 0.00987491214 | AE65: 0.01059031568 | AF65: 0.01209952713 | AG65: 0.01212867329 | AH65: 0.01295522903 | AI65: 0.01316986063 | AJ65: 0.01273437375 | AK65: 0.01449273674 | AL65: 0.01508070605 | AM65: 0.013536113 | AN65: 0.01403237464 | AO65: 0.014542698 | AP65: 0.01496011434 | AQ65: 0.01510381333 | AR65: 0.01502170328 | AS65: 0.01489402556 | AT65: 0.01486767305 | AU65: 0.01469680186 | AV65: 0.01455508329 | AW65: 0.01439953655 | AX65: 0.01424987113 | AY65: 0.01417667331 | AZ65: 0.01419044473 | BA65: 0.01421601708
C66: 25 | D66: 0.005051944255 | E66: 0.005689102424 | F66: 0.006145508721 | G66: 0.005784793355 | H66: 0.006181035104 | I66: 0.006233564317 | J66: 0.006454549947 | K66: 0.007556471715 | L66: 0.009187854285 | M66: 0.00928137973 | N66: 0.008614537735 | O66: 0.01122651001 | P66: 0.01043194791 | Q66: 0.01216343751 | R66: 0.01283565641 | S66: 0.01280974646 | T66: 0.01354301782 | U66: 0.01349358168 | V66: 0.01408665573 | W66: 0.01283120541 | X66: 0.01164076703 | Y66: 0.01101095699 | Z66: 0.009799736634 | AA66: 0.005415465507 | AB66: 0.006816977778 | AC66: 0.008164835984 | AD66: 0.007654853006 | AE66: 0.008856338146 | AF66: 0.009498189861 | AG66: 0.01083404023 | AH66: 0.01087772382 | AI66: 0.01163915981 | AJ66: 0.01184012962 | AK66: 0.01146718848 | AL66: 0.01305829332 | AM66: 0.01359999798 | AN66: 0.01221415198 | AO66: 0.01267180154 | AP66: 0.01313933882 | AQ66: 0.01351698467 | AR66: 0.01365956575 | AS66: 0.01358957819 | AT66: 0.01346297483 | AU66: 0.01344343141 | AV66: 0.01329282621 | AW66: 0.01316745973 | AX66: 0.0130274175 | AY66: 0.01289103574 | AZ66: 0.01282362552 | BA66: 0.01283582417
C67: 26 | D67: 0.004450236169 | E67: 0.005051944255 | F67: 0.005434484595 | G67: 0.004976503494 | H67: 0.005349563932 | I67: 0.005412980041 | J67: 0.005544010081 | K67: 0.005693292243 | L67: 0.006377426473 | M67: 0.00794423335 | N67: 0.008476873403 | O67: 0.007618688093 | P67: 0.009791541078 | Q67: 0.009197785166 | R67: 0.01072061472 | S67: 0.01130852428 | T67: 0.01129311716 | U67: 0.01198036371 | V67: 0.011960349 | W67: 0.01251780728 | X67: 0.01142646616 | Y67: 0.01038713598 | Z67: 0.009844844328 | AA67: 0.008767499395 | AB67: 0.004852224061 | AC67: 0.0061078223 | AD67: 0.007313019683 | AE67: 0.006857574988 | AF67: 0.007934143506 | AG67: 0.008495324239 | AH67: 0.009705878623 | AI67: 0.009761946389 | AJ67: 0.01045254203 | AK67: 0.01065035337 | AL67: 0.01032097709 | AM67: 0.01176334152 | AN67: 0.01225845494 | AO67: 0.01101789347 | AP67: 0.01143654921 | AQ67: 0.01185898291 | AR67: 0.01221121928 | AS67: 0.01234389809 | AT67: 0.01227054343 | AU67: 0.0121600993 | AV67: 0.01214600619 | AW67: 0.01201249737 | AX67: 0.01189981675 | AY67: 0.01177235932 | AZ67: 0.01164803101 | BA67: 0.01158688599
C68: 27 | D68: 0.00399260788 | E68: 0.004450236169 | F68: 0.00482584267 | G68: 0.004388335975 | H68: 0.004595183997 | I68: 0.004676243897 | J68: 0.004805956777 | K68: 0.004881579864 | L68: 0.004792558398 | M68: 0.005500304147 | N68: 0.0072460136 | O68: 0.007486501381 | P68: 0.006632601235 | Q68: 0.008617389572 | R68: 0.008092065203 | S68: 0.009428161717 | T68: 0.009951953959 | U68: 0.00997253932 | V68: 0.01060066676 | W68: 0.01061006094 | X68: 0.01112831265 | Y68: 0.01017858177 | Z68: 0.009271331578 | AA68: 0.008792788158 | AB68: 0.007842147767 | AC68: 0.004339990247 | AD68: 0.005461177668 | AE68: 0.006540030254 | AF68: 0.006132923142 | AG68: 0.007084270136 | AH68: 0.007597738731 | AI68: 0.00869554051 | AJ68: 0.008751951868 | AK68: 0.009386476845 | AL68: 0.009569747119 | AM68: 0.009281892955 | AN68: 0.01058521564 | AO68: 0.01103935989 | AP68: 0.009927232722 | AQ68: 0.01030488929 | AR68: 0.01069549521 | AS68: 0.01101661735 | AT68: 0.0111271598 | AU68: 0.01106456065 | AV68: 0.01096818208 | AW68: 0.01095779918 | AX68: 0.01083789914 | AY68: 0.01073541245 | AZ68: 0.01061943368 | BA68: 0.01050706648
C69: 28 | D69: 0.003426146529 | E69: 0.00399260788 | F69: 0.004251064246 | G69: 0.003893556857 | H69: 0.004050258102 | I69: 0.004014601772 | J69: 0.004149703929 | K69: 0.004229486684 | L69: 0.004106076597 | M69: 0.004130276625 | N69: 0.005014884279 | O69: =MAX(N34*(1-N$3*$A34),0) -> 0.00639676947 | P69: 0.006513906916 | Q69: 0.005834052604 | R69: 0.007577315973 | S69: 0.007112663962 | T69: 0.008292737689 | U69: 0.008783573565 | V69: 0.008819473582 | W69: 0.009399030716 | X69: 0.009427481138 | Y69: 0.009907925907 | Z69: 0.009080548567 | AA69: 0.008276306346 | AB69: 0.007860712543 | AC69: 0.007010656778 | AD69: 0.003878498387 | AE69: 0.004881394081 | AF69: 0.005845905652 | AG69: 0.005473172436 | AH69: 0.006332530195 | AI69: 0.006803381894 | AJ69: 0.007791934954 | AK69: 0.007855382258 | AL69: 0.008429864706 | AM69: 0.008601959875 | AN69: 0.008348086999 | AO69: 0.00952773155 | AP69: 0.009941575096 | AQ69: 0.008940434456 | AR69: 0.0092892111 | AS69: 0.009644329652 | AT69: 0.009925726179 | AU69: 0.01002851811 | AV69: 0.009975018923 | AW69: 0.009890230693 | AX69: 0.009881365575 | AY69: 0.009772492015 | AZ69: 0.009679174027 | BA69: 0.009574409731
C70: 29 | D70: 0.003272808107 | E70: =MAX(D35*(1-D$3*$A35),0) -> 0.003426146529 | F70: =MAX(E35*(1-E$3*$A35),0) -> 0.003813917276 | G70: 0.003422061154 | H70: 0.003589276179 | I70: 0.003533326166 | J70: 0.003557672117 | K70: 0.003646823578 | L70: 0.003550206213 | M70: 0.003531496825 | N70: 0.003761766461 | O70: 0.004422192817 | P70: 0.005557505034 | Q70: 0.005721265362 | R70: 0.005122463395 | S70: 0.006650626761 | T70: 0.006247197008 | U70: 0.007308856649 | V70: 0.007757185372 | W70: 0.007808979296 | X70: 0.00833997834 | Y70: 0.008382176603 | Z70: 0.008827066342 | AA70: 0.008094880847 | AB70: 0.007388802053 | AC70: 0.007017575605 | AD70: 0.006256520244 | AE70: 0.003461938895 | AF70: 0.004357281029 | AG70: 0.005209870957 | AH70: 0.004885714483 | AI70: 0.005662748235 | AJ70: 0.006088173075 | AK70: 0.006984335239 | AL70: 0.007045344428 | AM70: 0.007567171312 | AN70: 0.007726171817 | AO70: 0.007504019349 | AP70: 0.008568761678 | AQ70: 0.008941368432 | AR70: 0.00804845235 | AS70: 0.008365037184 | AT70: 0.008677692736 | AU70: 0.008933733944 | AV70: 0.009028892999 | AW70: 0.008982628533 | AX70: 0.008906718449 | AY70: 0.008898046378 | AZ70: 0.008799181042 | BA70: 0.008714977012
C71: 30 | D71: 0.02933485649 | E71: =E37 -> 0.02933485649 | F71: =F37 -> 0.02933485649 | G71: 0.02933485649 | H71: 0.02933485649 | I71: 0.02933485649 | J71: 0.02933485649 | K71: 0.02933485649 | L71: 0.02933485649 | M71: 0.02933485649 | N71: 0.02933485649 | O71: 0.02933485649 | P71: 0.02933485649 | Q71: 0.02933485649 | R71: 0.02933485649 | S71: 0.02933485649 | T71: 0.02933485649 | U71: 0.02933485649 | V71: 0.02933485649 | W71: 0.02933485649 | X71: 0.02933485649 | Y71: 0.02933485649 | Z71: 0.02933485649 | AA71: 0.02933485649 | AB71: 0.02933485649 | AC71: 0.02933485649 | AD71: 0.02933485649 | AE71: 0.02933485649 | AF71: 0.02933485649 | AG71: 0.02933485649 | AH71: 0.02933485649 | AI71: 0.02933485649 | AJ71: 0.02933485649 | AK71: 0.02933485649 | AL71: 0.02933485649 | AM71: 0.02933485649 | AN71: 0.02933485649 | AO71: 0.02933485649 | AP71: 0.02933485649 | AQ71: 0.02933485649 | AR71: =AR37 -> 0.02933485649 | AS71: 0.02933485649 | AT71: 0.02933485649 | AU71: 0.02933485649 | AV71: 0.02933485649 | AW71: 0.02933485649 | AX71: 0.02933485649 | AY71: 0.02933485649 | AZ71: 0.02933485649 | BA71: 0.02933485649

Sheet 32 (hidden)
D1: 2011 | E1: 2012 | F1: 2013 | G1: 2014 | H1: 2015 | I1: 2016 | J1: 2017 | K1: 2018 | L1: 2019 | M1: 2020 | N1: 2021 | O1: 2022 | P1: 2023 | Q1: 2024 | R1: 2025 | S1: 2026 | T1: 2027 | U1: 2028 | V1: 2029 | W1: 2030 | X1: 2031 | Y1: 2032 | Z1: 2033 | AA1: 2034 | AB1: 2035 | AC1: 2036 | AD1: 2037 | AE1: 2038 | AF1: 2039 | AG1: 2040 | AH1: 2041 | AI1: 2042 | AJ1: 2043 | AK1: 2044 | AL1: 2045 | AM1: 2046 | AN1: 2047 | AO1: 2048 | AP1: 2049 | AQ1: 2050 | AR1: 2051 | AS1: 2052 | AT1: 2053 | AU1: 2054 | AV1: 2055 | AW1: 2056 | AX1: 2057 | AY1: 2058 | AZ1: 2059 | BA1: 2060
C2: sales (age 0 pop) | D2: 0.06124484107 | E2: 0.0609828591 | F2: 0.06738592741 | G2: 0.07165142485 | H2: 0.08225319117 | I2: 0.08527547357 | J2: 0.09694111387 | K2: 0.1019506785 | L2: 0.143060297 | M2: 0.07217555227 | N2: 0.07252723403 | O2: 0.06353694313 | P2: 0.06478343052 | Q2: 0.06593240714 | R2: 0.06650664146 | S2: 0.06581942161 | T2: 0.06427720143 | U2: 0.06262197439 | V2: 0.06158864473 | W2: 0.06008013269 | X2: 0.05879004198 | Y2: 0.05756725556 | Z2: 0.0564716126 | AA2: 0.05579822849 | AB2: 0.0554875148 | AC2: 0.05523424378 | AD2: 0.05504768244 | AE2: 0.05497244391 | AF2: 0.05483920817 | AG2: 0.05483925484 | AH2: 0.05457128216 | AI2: 0.05434857281 | AJ2: 0.05414840825 | AK2: 0.05388467364 | AL2: 0.0539465997 | AM2: 0.05370252707 | AN2: 0.05359733173 | AO2: 0.05328998216 | AP2: 0.05325806177 | AQ2: 0.0533109048 | AR2: 0.0533109048 | AS2: 0.0533109048 | AT2: 0.0533109048 | AU2: 0.0533109048 | AV2: 0.0533109048 | AW2: 0.0533109048 | AX2: 0.0533109048 | AY2: 0.0533109048 | AZ2: 0.0533109048 | BA2: 0.0533109048
C3: scrappage k factor | D3: 0 | E3: 0 | F3: 1.240666454 | G3: 0.7208265393 | H3: 0.8761425724 | I3: 0.838123928 | J3: 0.8724352729 | K3: 1.262415999 | L3: 1.278357712 | M3: 0.7675836379 | N3: 0.7953988291 | O3: 1.009058341 | P3: 0.980542056 | Q3: 0.9549279454 | R3: 0.9282470086 | S3: 0.8989980925 | T3: 0.8724904148 | U3: 0.8471188128 | V3: 0.8257194051 | W3: 0.8100280408 | X3: 0.7939211893 | Y3: 0.7813394097 | Z3: 0.774239631 | AA3: 0.7703791231 | AB3: 0.7671964686 | AC3: 0.7677789879 | AD3: 0.7675554956 | AE3: 0.7658060189 | AF3: 0.7621274155 | AG3: 0.7587636734 | AH3: 0.7563134532 | AI3: 0.7527205564 | AJ3: 0.7491607796 | AK3: 0.7505488993 | AL3: 0.752462155 | AM3: 0.7531506926 | AN3: 0.7541985423 | AO3: 0.7564575626 | AP3: 0.7616428445 | AQ3: 0.7607822132 | AR3: 0.7602466157 | AS3: 0.7590594164 | AT3: 0.7582024755 | AU3: 0.7576413041 | AV3: 0.7573347399 | AW3: 0.7571331311 | AX3: 0.7569244374 | AY3: 0.7566971598 | AZ3: 0.7564885878
A5: default
A6: scrappage | C6: age | D6: 2011 | E6: 2012 | F6: 2013 | G6: 2014 | H6: 2015 | I6: 2016 | J6: 2017 | K6: 2018 | L6: 2019 | M6: 2020 | N6: 2021 | O6: 2022 | P6: 2023 | Q6: 2024 | R6: 2025 | S6: 2026 | T6: 2027 | U6: 2028 | V6: 2029 | W6: 2030 | X6: 2031 | Y6: 2032 | Z6: 2033 | AA6: 2034 | AB6: 2035 | AC6: 2036 | AD6: 2037 | AE6: 2038 | AF6: 2039 | AG6: 2040 | AH6: 2041 | AI6: 2042 | AJ6: 2043 | AK6: 2044 | AL6: 2045 | AM6: 2046 | AN6: 2047 | AO6: 2048 | AP6: 2049 | AQ6: 2050 | AR6: 2051 | AS6: 2052 | AT6: 2053 | AU6: 2054 | AV6: 2055 | AW6: 2056 | AX6: 2057 | AY6: 2058 | AZ6: 2059 | BA6: 2060
A7: 0.008599996567 | C7: 0 | D7: 0.06124484107 | E7: =E41 -> 0.0609828591 | F7: =F41 -> 0.06738592741 | G7: 0.07165142485 | H7: 0.08225319117 | I7: 0.08527547357 | J7: 0.09694111387 | K7: 0.1019506785 | L7: 0.143060297 | M7: 0.07217555227 | N7: 0.07252723403 | O7: 0.06353694313 | P7: 0.06478343052 | Q7: 0.06593240714 | R7: 0.06650664146 | S7: 0.06581942161 | T7: 0.06427720143 | U7: 0.06262197439 | V7: 0.06158864473 | W7: 0.06008013269 | X7: 0.05879004198 | Y7: 0.05756725556 | Z7: 0.0564716126 | AA7: 0.05579822849 | AB7: 0.0554875148 | AC7: 0.05523424378 | AD7: 0.05504768244 | AE7: 0.05497244391 | AF7: 0.05483920817 | AG7: 0.05483925484 | AH7: 0.05457128216 | AI7: 0.05434857281 | AJ7: 0.05414840825 | AK7: 0.05388467364 | AL7: 0.0539465997 | AM7: 0.05370252707 | AN7: 0.05359733173 | AO7: 0.05328998216 | AP7: 0.05325806177 | AQ7: 0.0533109048 | AR7: =AR41 -> 0.0533109048 | AS7: 0.0533109048 | AT7: 0.0533109048 | AU7: 0.0533109048 | AV7: 0.0533109048 | AW7: 0.0533109048 | AX7: 0.0533109048 | AY7: 0.0533109048 | AZ7: 0.0533109048 | BA7: 0.0533109048
A8: 0.008700013161 | C8: 1 | D8: 0.04564895696 | E8: =E42*(1-E$41-E$71)/SUM(E$42:E$70) -> 0.05754294528 | F8: =F42*(1-F$41-F$71)/SUM(F$42:F$70) -> 0.05689223338 | G8: 0.06604884512 | H8: 0.06779564821 | I8: 0.0780768576 | J8: 0.0796938106 | K8: 0.09010462961 | L8: 0.09157017098 | M8: 0.1389150373 | N8: 0.06873919267 | O8: 0.06983577445 | P8: 0.06161520085 | Q8: 0.06273363802 | R8: 0.06377637495 | S8: 0.06431541198 | T8: 0.0637791049 | U8: 0.0623452706 | V8: 0.060840966 | W8: 0.05993952527 | X8: 0.0585589145 | Y8: 0.05738226489 | Z8: 0.05628601716 | AA8: 0.05530684406 | AB8: 0.05469202015 | AC8: 0.05444932591 | AD8: 0.05421138489 | AE8: 0.0540730275 | AF8: 0.0539095394 | AG8: 0.05381846788 | AH8: 0.05389861833 | AI8: 0.05366923187 | AJ8: 0.05350559933 | AK8: 0.05334564805 | AL8: 0.05315308122 | AM8: 0.05326859977 | AN8: 0.05311656924 | AO8: 0.05308869171 | AP8: 0.05307376527 | AQ8: 0.05265216497 | AR8: =AR42*(1-AR$41-AR$71)/SUM(AR$42:AR$70) -> 0.05272551863 | AS8: 0.05268444516 | AT8: 0.05270227877 | AU8: 0.05272025584 | AV8: 0.05273513147 | AW8: 0.05274166551 | AX8: 0.05274112379 | AY8: 0.05273891566 | AZ8: 0.05274003691 | BA8: 0.05273667418
A9: 0.008800029755 | C9: 2 | D9: 0.03826708827 | E9: =E43*(1-E$41-E$71)/SUM(E$42:E$70) -> 0.042889742 | F9: 0.05368306309 | G9: 0.05575637449 | H9: 0.06249002636 | I9: 0.06434770167 | J9: 0.07296021548 | K9: 0.07406712882 | L9: 0.08091994336 | M9: 0.08890537419 | N9: 0.132290911 | O9: 0.06618300419 | P9: 0.06771662267 | Q9: 0.05965975212 | R9: 0.06067636398 | S9: 0.06166932901 | T9: 0.06231607032 | U9: 0.06185670586 | V9: 0.06056696214 | W9: 0.05920694162 | X9: 0.0584171009 | Y9: 0.05715210221 | Z9: 0.05610072962 | AA9: 0.05512077933 | AB9: 0.05420617268 | AC9: 0.05366456973 | AD9: 0.05343687152 | AE9: 0.05324742194 | AF9: 0.05302342493 | AG9: 0.05290204394 | AH9: 0.05289129999 | AI9: 0.05300365105 | AJ9: 0.05283279159 | AK9: 0.05270839362 | AL9: 0.05261739818 | AM9: 0.05248107854 | AN9: 0.05268338192 | AO9: 0.05260849707 | AP9: 0.05286926503 | AQ9: 0.05246594179 | AR9: 0.05207002372 | AS9: 0.05210194983 | AT9: 0.0520789911 | AU9: 0.05211439476 | AV9: 0.05214688395 | AW9: 0.05216806239 | AX9: 0.05217399135 | AY9: 0.0521712722 | AZ9: 0.05217019827 | BA9: 0.05216798206
A10: 0.01419997215 | C10: 3 | D10: 0.07206128039 | E10: 0.0359540645 | F10: 0.04001277158 | G10: 0.05260467597 | H10: 0.05274830358 | I10: 0.05930667543 | J10: 0.06012570028 | K10: 0.06780298863 | L10: 0.06650871032 | M10: 0.07855492232 | N10: 0.08465940167 | O10: 0.1273612361 | P10: 0.06416816091 | Q10: 0.06556105081 | R10: 0.05769772513 | S10: 0.05866624486 | T10: 0.05974682987 | U10: 0.06043245501 | V10: 0.06008720382 | W10: 0.05893539393 | X10: 0.05769841633 | Y10: 0.05700913685 | Z10: 0.05587131082 | AA10: 0.05493504445 | AB10: 0.0540196202 | AC10: 0.05318374079 | AD10: 0.05266263593 | AE10: 0.05248262423 | AF10: 0.05220981901 | AG10: 0.05202849707 | AH10: 0.05198669219 | AI10: 0.05200909834 | AJ10: 0.05217362985 | AK10: 0.05204168508 | AL10: 0.05198491493 | AM10: 0.0519482324 | AN10: 0.0519005769 | AO10: 0.05217549127 | AP10: 0.05238706506 | AQ10: 0.05225977573 | AR10: 0.05188188514 | AS10: 0.05145026877 | AT10: 0.05149925381 | AU10: 0.05149412856 | AV10: 0.05154368003 | AW10: 0.05158220703 | AX10: 0.05160262823 | AY10: 0.0516063344 | AZ10: 0.05160474432 | BA10: 0.05160039395
A11: 0.0191000104 | C11: 4 | D11: 0.06655527882 | E11: 0.06770559351 | F11: 0.03354232745 | G11: 0.03894341241 | H11: 0.04957169063 | I11: 0.04982252713 | J11: 0.0551627636 | K11: 0.05561041454 | L11: 0.06046410848 | M11: 0.06411411568 | N11: 0.07449110892 | O11: 0.08115212348 | P11: 0.122805038 | Q11: 0.06179373471 | R11: 0.06307522619 | S11: 0.05550435333 | T11: 0.05655924541 | U11: 0.0576657798 | V11: 0.05843314513 | W11: 0.05820594946 | X11: 0.05718076233 | Y11: 0.05606467687 | Z11: 0.05549477949 | AA11: 0.05448008756 | AB11: 0.05361210253 | AC11: 0.05277964235 | AD11: 0.05197293128 | AE11: 0.05150638075 | AF11: 0.051245678 | AG11: 0.05101789918 | AH11: 0.05091736512 | AI11: 0.05090940527 | AJ11: 0.05098517576 | AK11: 0.05118310968 | AL11: 0.05111794885 | AM11: 0.05111386119 | AN11: 0.05116329564 | AO11: 0.05118950014 | AP11: 0.05174222874 | AQ11: 0.05156872248 | AR11: 0.05146428062 | AS11: 0.05105249702 | AT11: 0.05064526056 | AU11: 0.05071101863 | AV11: 0.05072044128 | AW11: 0.05077562741 | AX11: 0.05081311678 | AY11: 0.05083116569 | AZ11: 0.05083596304 | BA11: 0.05083121589
A12: 0.0243999958 | C12: 5 | D12: 0.07353358873 | E12: 0.06253239783 | F12: 0.06316401829 | G12: 0.03244387003 | H12: 0.03656712256 | I12: 0.04661856469 | J12: 0.04614868887 | K12: 0.05079933615 | L12: 0.04927887254 | M12: 0.05791528401 | N12: 0.0605661657 | O12: 0.07112360436 | P12: 0.07785648137 | Q12: 0.1176846302 | R12: 0.05916874737 | S12: 0.06039775494 | T12: 0.05327214294 | U12: 0.05435291298 | V12: 0.0555237362 | W12: 0.05637193838 | X12: 0.05624627571 | Y12: 0.05534306725 | Z12: 0.0543641163 | AA12: 0.05390535608 | AB12: 0.05296517844 | AC12: 0.05218239277 | AD12: 0.05138184977 | AE12: 0.0506385314 | AF12: 0.05010164716 | AG12: 0.04988671737 | AH12: 0.04974069576 | AI12: 0.04967544338 | AJ12: 0.04972106854 | AK12: 0.0498316352 | AL12: 0.05008772542 | AM12: 0.05007410184 | AN12: 0.05015373961 | AO12: 0.05027381271 | AP12: 0.05057421503 | AQ12: 0.05074179128 | AR12: 0.05059236423 | AS12: 0.05045085768 | AT12: 0.05006476117 | AU12: 0.04968280145 | AV12: 0.0497616461 | AW12: 0.04977722276 | AX12: 0.04983097854 | AY12: 0.04986579421 | AZ12: 0.04988468875 | BA12: 0.04988632739
A13: 0.03009998798 | C13: 6 | D13: 0.06614887633 | E13: 0.06908890934 | F13: 0.05833783171 | G13: 0.06068401285 | H13: 0.0303461669 | I13: 0.03422631237 | J13: 0.04298604945 | K13: 0.04229844581 | L13: 0.04470692979 | M13: 0.04687374672 | N13: 0.05448448191 | O13: 0.05758062204 | P13: 0.06786313416 | Q13: 0.07421508353 | R13: 0.1121044993 | S13: 0.05637333494 | T13: 0.0576877195 | U13: 0.05095329518 | V13: 0.0520950998 | W13: 0.0533269842 | X13: 0.0542364725 | Y13: 0.05420602128 | Z13: 0.05343879898 | AA13: 0.05258713196 | AB13: 0.05218925746 | AC13: 0.05133998323 | AD13: 0.05059062299 | AE13: 0.04985593935 | AF13: 0.04905457472 | AG13: 0.0485731073 | AH13: 0.04843936216 | AI13: 0.04833010297 | AJ13: 0.04831953701 | AK13: 0.04840037446 | AL13: 0.04856837005 | AM13: 0.04886638996 | AN13: 0.04893452296 | AO13: 0.04908193754 | AP13: 0.04946747878 | AQ13: 0.04939320026 | AR13: 0.04957740567 | AS13: 0.04939332892 | AT13: 0.04927279676 | AU13: 0.04891307366 | AV13: 0.04855403811 | AW13: 0.0486373586 | AX13: 0.04865224254 | AY13: 0.04870290896 | AZ13: 0.04873815213 | BA13: 0.04875367541
A14: 0.03619998693 | C14: 7 | D14: 0.06468449563 | E14: 0.06215056002 | F14: 0.06445454366 | G14: 0.05563858865 | H14: 0.05652301736 | I14: 0.02825863906 | J14: 0.0314054842 | K14: 0.03919947821 | L14: 0.03694917872 | M14: 0.04220510426 | N14: 0.04390040968 | O14: 0.05155923692 | P14: 0.0546170168 | Q14: 0.06431871648 | R14: 0.07030211874 | S14: 0.1062299326 | T14: 0.05356177523 | U14: 0.05489629628 | V14: 0.04859591321 | W14: 0.04979366722 | X14: 0.05106519824 | Y14: 0.05202791246 | Z14: 0.05210323967 | AA14: 0.0514595423 | AB14: 0.05068514972 | AC14: 0.05036242915 | AD14: 0.04955192437 | AE14: 0.04886934718 | AF14: 0.04808162928 | AG14: 0.04734746751 | AH14: 0.04695603473 | AI14: 0.04685895987 | AJ14: 0.04680544385 | AK14: 0.04683147669 | AL14: 0.04696781431 | AM14: 0.04717704962 | AN14: 0.04754545113 | AO14: 0.04767904612 | AP14: 0.0480825668 | AQ14: 0.04809859595 | AR14: 0.04804652667 | AS14: 0.0481887134 | AT14: 0.04802730679 | AU14: 0.04792736009 | AV14: 0.04759147553 | AW14: 0.04724831509 | AX14: 0.0473291201 | AY14: 0.04734184034 | AZ14: 0.04739238819 | BA14: 0.04742387811
A15: 0.04240000248 | C15: 8 | D15: 0.05910273424 | E15: 0.06077469265 | F15: 0.05798160693 | G15: 0.06098901183 | H15: 0.05159062499 | I15: 0.05234584665 | J15: =J49*(1-J$41-J$71)/SUM(J$42:J$70) -> 0.02579365067 | K15: 0.02848250307 | L15: 0.03396801644 | M15: 0.03459859107 | N15: 0.03933845548 | O15: 0.04133690831 | P15: 0.04859508967 | Q15: 0.05144539446 | R15: 0.06056212465 | S15: 0.06623005081 | T15: 0.1003629355 | U15: 0.05069141201 | V15: 0.05207886203 | W15: 0.04620914426 | X15: 0.04744025012 | Y15: 0.04874273337 | Z15: 0.04976552986 | AA15: 0.0499308329 | AB15: 0.04935973187 | AC15: 0.04867666192 | AD15: 0.04837537561 | AE15: 0.04763657586 | AF15: 0.04690478945 | AG15: 0.04618756372 | AH15: 0.04555439681 | AI15: 0.04520958195 | AJ15: 0.04516751031 | AK15: 0.04515192124 | AL15: 0.04523247922 | AM15: 0.04540808423 | AN15: 0.04568600209 | AO15: 0.04610753595 | AP15: 0.04648768816 | AQ15: 0.0465297005 | AR15: 0.04656500148 | AS15: 0.04647906845 | AT15: 0.04663397773 | AU15: 0.04649477065 | AV15: 0.04641184891 | AW15: 0.04609269924 | AX15: 0.04576013931 | AY15: 0.04583675331 | AZ15: 0.04585034488 | BA15: 0.0458966471
A16: 0.04850000143 | C16: 9 | D16: 0.05350519759 | E16: 0.05553031639 | F16: 0.05669803039 | G16: 0.05442223769 | H16: 0.05629227104 | I16: 0.04750993282 | J16: 0.04752369162 | K16: 0.02326231407 | L16: 0.02447886978 | M16: 0.03154275069 | N16: 0.03209073238 | O16: 0.03685325845 | P16: 0.03870745963 | Q16: 0.04548464877 | R16: 0.04814361503 | S16: 0.05671444804 | T16: 0.06221171924 | U16: 0.09445393685 | V16: 0.04782921923 | W16: 0.04925969634 | X16: 0.04379736211 | Y16: 0.04505315785 | Z16: 0.04639077179 | AA16: 0.04745506185 | AB16: 0.04765808282 | AC16: 0.0471718428 | AD16: 0.04652718714 | AE16: 0.04627786663 | AF16: 0.04549829963 | AG16: 0.04483813853 | AH16: 0.04422346109 | AI16: 0.0436486196 | AJ16: 0.04336860082 | AK16: 0.04336382746 | AL16: 0.04340166549 | AM16: 0.04352064988 | AN16: 0.04376185665 | AO16: 0.04409133837 | AP16: 0.04473866591 | AQ16: 0.04476787225 | AR16: 0.04482763556 | AS16: 0.04482754184 | AT16: 0.04476182937 | AU16: 0.04492768808 | AV16: 0.04480709732 | AW16: 0.04473320935 | AX16: 0.04442546133 | AY16: 0.04410340752 | AZ16: 0.04417853988 | BA16: 0.04418914603
A17: 0.0544000268 | C17: 10 | D17: 0.05161041897 | E17: 0.0502711184 | F17: 0.0518054379 | G17: 0.05279234118 | H17: 0.0500033698 | I17: 0.0515519453 | J17: 0.04290462082 | K17: 0.04262295759 | L17: 0.01982979143 | M17: 0.02254369981 | N17: 0.02911479852 | O17: 0.02991245182 | P17: 0.03428710978 | Q17: 0.03600379702 | R17: 0.04230702275 | S17: 0.04481917648 | T17: 0.05296972751 | U17: 0.0582253443 | V17: 0.0886430954 | W17: 0.04500396133 | X17: 0.04644979556 | Y17: 0.04138512099 | Z17: 0.04266785555 | AA17: 0.04402096746 | AB17: 0.04507496099 | AC17: 0.04532530448 | AD17: 0.04487054113 | AE17: 0.0442944046 | AF17: 0.04398717045 | AG17: 0.04328466647 | AH17: 0.04272610807 | AI17: 0.04217139724 | AJ17: 0.0416726087 | AK17: 0.04144023694 | AL17: 0.04148577338 | AM17: 0.04156113158 | AN17: 0.04174379844 | AO17: 0.04203363245 | AP17: 0.04257837049 | AQ17: 0.0428767083 | AR17: 0.04292342596 | AS17: 0.04294820402 | AT17: 0.04296477901 | AU17: 0.0429179647 | AV17: 0.04309015409 | AW17: 0.04298036951 | AX17: 0.0429094138 | AY17: 0.04261279945 | AZ17: 0.04230518644 | BA17: 0.04237492192
A18: 0.06010001898 | C18: 11 | D18: 0.04888684867 | E18: 0.04849086817 | F18: 0.0468990179 | G18: 0.04786108075 | H18: 0.04829205105 | I18: 0.04554540803 | J18: 0.04631486043 | K18: 0.03827339016 | L18: 0.03604535855 | M18: 0.01811530923 | N18: 0.02071055468 | O18: 0.02700605297 | P18: 0.02765539378 | Q18: 0.03169848658 | R18: 0.03329067716 | S18: 0.03915974451 | T18: 0.04162772096 | U18: 0.04930907976 | V18: 0.05435848945 | W18: 0.08298368293 | X18: 0.04222571163 | Y18: 0.04367763761 | Z18: 0.03900622189 | AA18: 0.04029606332 | AB18: 0.0416156752 | AC18: 0.04266707874 | AD18: 0.04291123009 | AE18: 0.04251632987 | AF18: 0.04190432149 | AG18: 0.04165166787 | AH18: 0.04105410915 | AI18: 0.04055479318 | AJ18: 0.04007667889 | AK18: 0.03963701456 | AL18: 0.03946329954 | AM18: 0.03954343891 | AN18: 0.03968042577 | AO18: 0.03991008098 | AP18: 0.04040321014 | AQ18: 0.04061591584 | AR18: 0.04091858025 | AS18: 0.04093230815 | AT18: 0.04097213939 | AU18: 0.04100362257 | AV18: 0.04097160768 | AW18: 0.04114169148 | AX18: 0.04103684745 | AY18: 0.04096779609 | AZ18: 0.04068591286 | BA18: 0.04039003925
A19: 0.06540000439 | C19: 12 | D19: 0.04381375159 | E19: 0.04593192192 | F19: 0.04523818381 | G19: 0.04299964023 | H19: 0.04359393102 | I19: 0.04375599531 | J19: 0.04071369976 | K19: 0.04109982627 | L19: 0.03211693916 | M19: 0.03267100593 | N19: 0.016566273 | O19: 0.01911948209 | P19: 0.02481634941 | Q19: 0.02541650425 | R19: 0.02914152249 | S19: 0.03064242909 | T19: 0.03617532199 | U19: 0.03854858172 | V19: 0.04580135238 | W19: 0.05063720177 | X19: 0.07748474715 | Y19: 0.03951785774 | Z19: 0.04097547886 | AA19: 0.03666824986 | AB19: 0.03791970367 | AC19: 0.0392128193 | AD19: 0.04021009866 | AE19: 0.04047417692 | AF19: 0.04003898421 | AG19: 0.03949958022 | AH19: 0.03932704841 | AI19: 0.03879256671 | AJ19: 0.03836795636 | AK19: 0.03794934958 | AL19: 0.03757774479 | AM19: 0.03744743531 | AN19: 0.03758503633 | AO19: 0.0377672805 | AP19: 0.03818951966 | AQ19: 0.03836645688 | AR19: 0.03858569327 | AS19: 0.03884407642 | AT19: 0.03887276812 | AU19: 0.0389256796 | AV19: 0.03896776968 | AW19: 0.03894281718 | AX19: 0.03910450545 | AY19: 0.03900366195 | AZ19: 0.03893934022 | BA19: 0.03866938629
A20: 0.07090002298 | C20: 13 | D20: 0.03203342402 | E20: 0.04116546416 | F20: 0.04285088728 | G20: 0.04118218832 | H20: 0.03900951788 | I20: 0.03930555718 | J20: 0.0389311551 | K20: 0.03595305154 | L20: 0.0342390281 | M20: 0.02889669703 | N20: 0.0297498905 | O20: 0.01522587334 | P20: 0.0174692109 | Q20: 0.02268135102 | R20: 0.02324081796 | S20: 0.02668357702 | T20: 0.02816454613 | U20: 0.03333600817 | V20: 0.03563694591 | W20: 0.04246940283 | X20: 0.04706833963 | Y20: 0.07219538042 | Z20: 0.0369119606 | AA20: 0.03835369567 | AB20: 0.03435810448 | AC20: 0.03557794376 | AD20: 0.03679710093 | AE20: 0.03776470309 | AF20: 0.0379536569 | AG20: 0.03758152319 | AH20: 0.03713792495 | AI20: 0.03700459459 | AJ20: 0.03654740277 | AK20: 0.03618027228 | AL20: 0.03582788291 | AM20: 0.03550925661 | AN20: 0.03544402669 | AO20: 0.0356231356 | AP20: 0.0359873071 | AQ20: 0.03611094952 | AR20: 0.03629466785 | AS20: 0.03647480555 | AT20: 0.03673410645 | AU20: 0.03677567492 | AV20: 0.03683736625 | AW20: 0.03688244757 | AX20: 0.03685889879 | AY20: 0.03701084976 | AZ20: 0.03691669492 | BA20: 0.03685392724
A21: 0.08660000563 | C21: 14 | D21: 0.03351581215 | E21: 0.03009718913 | F21: 0.03840415534 | G21: 0.03871924347 | H21: 0.03720526832 | I21: 0.03499232756 | J21: 0.03480089664 | K21: 0.03420399341 | L21: 0.02972472816 | M21: 0.0305696549 | N21: 0.02619608497 | O21: 0.02721660592 | P21: 0.01382901085 | Q21: 0.01587429461 | R21: 0.02062361357 | S21: 0.02116490102 | T21: 0.02439698105 | U21: 0.02582189635 | V21: 0.03066607817 | W21: 0.03288579789 | X21: 0.03929048808 | Y21: 0.04365331281 | Z21: 0.0671292552 | AA21: 0.03439520511 | AB21: 0.03577701608 | AC21: 0.03209308422 | AD21: 0.03323771666 | AE21: 0.03440566335 | AF21: 0.03525589337 | AG21: 0.03546702663 | AH21: 0.03517938928 | AI21: 0.03479182442 | AJ21: 0.03471110689 | AK21: =AK55*(1-AK$41-AK$71)/SUM(AK$42:AK$70) -> 0.0343142046 | AL21: 0.0340094189 | AM21: 0.03370835107 | AN21: 0.033463104 | AO21: 0.03344730345 | AP21: 0.03379563946 | AQ21: 0.03387857825 | AR21: 0.03401053325 | AS21: 0.03415814896 | AT21: 0.03434200472 | AU21: 0.03459990596 | AV21: 0.03465012174 | AW21: 0.0347132531 | AX21: 0.0347558423 | AY21: 0.03473267743 | AZ21: 0.03487712977 | BA21: 0.03478666571
A22: 0.09210002422 | C22: 15 | D22: 0.02344531891 | E22: 0.0314899755 | F22: 0.02807832125 | G22: 0.03396014377 | H22: 0.03456297693 | I22: 0.03288440172 | J22: 0.03054855648 | K22: 0.03012883713 | L22: 0.0276630898 | M22: 0.02595341515 | N22: 0.0273595043 | O22: 0.02364825672 | P22: 0.02429789152 | Q22: 0.01235853228 | R22: 0.01420200219 | S22: 0.01848847686 | T22: 0.01905949493 | U22: 0.02204110906 | V22: 0.02341767647 | W22: 0.02790900724 | X22: 0.03001374104 | Y22: 0.03595848337 | Z22: 0.04006293417 | AA22: 0.061747685 | AB22: 0.03167398498 | AC22: 0.03299277682 | AD22: 0.02959986883 | AE22: 0.03068154555 | AF22: 0.03171164832 | AG22: 0.03252928419 | AH22: 0.03278206288 | AI22: 0.03254350603 | AJ22: 0.03222806137 | AK22: 0.03218529298 | AL22: 0.03185387074 | AM22: 0.03159815544 | AN22: 0.03136916824 | AO22: 0.03118293976 | AP22: 0.03133321786 | AQ22: 0.03141317712 | AR22: 0.0315051621 | AS22: 0.03160465721 | AT22: 0.03175574352 | AU22: 0.0319398587 | AV22: 0.03219031805 | AW22: 0.03224186149 | AX22: 0.03230082047 | AY22: 0.03233966293 | AZ22: 0.03231941269 | BA22: 0.03245232771
A23: 0.09719997644 | C23: 16 | D23: 0.02468788986 | E23: 0.02202818523 | F23: 0.02937768189 | G23: 0.02463936231 | H23: 0.03018655013 | I23: 0.03038967935 | J23: 0.0285656283 | K23: 0.02631010137 | L23: 0.02417727814 | M23: 0.02396238369 | N23: 0.02312297567 | O23: 0.02458248004 | P23: 0.02098382427 | Q23: 0.0215862552 | R23: 0.01099330528 | S23: 0.01266100492 | T23: 0.01656003875 | U23: 0.01712964961 | V23: 0.01988840516 | W23: 0.02120803858 | X23: 0.02534955345 | Y23: 0.02733964636 | Z23: 0.0328488755 | AA23: 0.03668299499 | AB23: 0.05660428429 | AC23: 0.02907703005 | AD23: 0.03029201631 | AE23: 0.02719990803 | AF23: 0.02815156397 | AG23: 0.02912783019 | AH23: 0.02993241712 | AI23: 0.03019081519 | AJ23: 0.03001191469 | AK23: 0.02975125846 | AL23: 0.0297456929 | AM23: 0.02946441532 | AN23: 0.0292751029 | AO23: 0.02910195484 | AP23: 0.0290819193 | AQ23: 0.02899372802 | AR23: 0.02908162296 | AS23: 0.02914547037 | AT23: 0.02925054839 | AU23: 0.02940268281 | AV23: 0.02958299965 | AW23: 0.02981949758 | AX23: 0.0298674821 | AY23: 0.02992141058 | AZ23: 0.02995864379 | BA23: 0.02993853961
A24: 0.1017000079 | C24: 17 | D24: 0.02131475507 | E24: 0.02319564996 | F24: 0.0205505723 | G24: 0.02559542149 | H24: 0.02181523907 | I24: 0.02641267742 | J24: 0.02627626636 | K24: 0.02448326522 | L24: 0.02095906986 | M24: 0.0207881367 | N24: 0.02125915139 | O24: 0.02068502492 | P24: 0.02168903655 | Q24: 0.01853955855 | R24: 0.01909912538 | S24: 0.0097497369 | T24: 0.01128371288 | U24: 0.01481126061 | V24: 0.01538420899 | W24: 0.01792968815 | X24: 0.01917711778 | Y24: 0.02299014748 | Z24: 0.02486813715 | AA24: 0.02994967294 | AB24: 0.03348520071 | AC24: 0.05174451704 | AD24: 0.02658431983 | AE24: 0.02771868364 | AF24: 0.02485215226 | AG24: 0.02574972457 | AH24: 0.02669099783 | AI24: 0.02745212962 | AJ24: 0.02772739851 | AK24: 0.02759172927 | AL24: 0.02738309036 | AM24: 0.02740092905 | AN24: 0.0271855637 | AO24: 0.02704697592 | AP24: 0.02702859639 | AQ24: 0.02679810701 | AR24: =AR58*(1-AR$41-AR$71)/SUM(AR$42:AR$70) -> 0.02672975885 | AS24: 0.02679128662 | AT24: 0.02686226509 | AU24: 0.02697053259 | AV24: 0.02711992323 | AW24: 0.02729042691 | AX24: 0.02750884848 | AY24: 0.02755251473 | AZ24: 0.02760345406 | BA24: 0.02763659553
A25: 0.1055999994 | C25: 18 | D25: 0.01568710344 | E25: 0.02002640162 | F25: 0.0216397255 | G25: 0.01779109648 | H25: 0.02258266917 | I25: 0.01900567085 | J25: 0.02274380076 | K25: 0.02242446989 | L25: 0.01937748468 | M25: 0.0179026749 | N25: 0.01837415489 | O25: 0.01894393717 | P25: 0.01815844258 | Q25: 0.01906916309 | R25: 0.01632576248 | S25: 0.01686085041 | T25: 0.008650621141 | U25: 0.01004883107 | V25: 0.01324679606 | W25: 0.0138130581 | X25: 0.01614855973 | Y25: 0.01732487773 | Z25: 0.02083226365 | AA25: 0.02258788017 | AB25: 0.02723639982 | AC25: 0.03049612997 | AD25: 0.04713193831 | AE25: 0.02423516271 | AF25: 0.02523185298 | AG25: 0.0226476143 | AH25: 0.02350852339 | AI25: 0.02438937943 | AJ25: 0.02512003388 | AK25: 0.02539875107 | AL25: 0.02530293452 | AM25: 0.02513241041 | AN25: 0.02518921981 | AO25: 0.02502448489 | AP25: 0.02502772668 | AQ25: 0.024813844 | AR25: 0.02461424778 | AS25: 0.02453367839 | AT25: 0.02460144086 | AU25: 0.02467717898 | AV25: 0.02478504278 | AW25: 0.02492619172 | AX25: 0.02508315914 | AY25: 0.02528339176 | AZ25: 0.02532464814 | BA25: 0.02537038807
A26: 0.1093000174 | C26: 19 | D26: 0.01329361801 | E26: 0.01473890893 | F26: 0.01868306491 | G26: 0.01863026613 | H26: 0.01564934702 | I26: 0.01960046223 | J26: 0.01630719245 | K26: 0.01933735093 | L26: 0.01764778193 | M26: 0.01645687571 | N26: 0.01577238125 | O26: 0.01631786899 | P26: 0.01655709239 | Q26: 0.01589722393 | R26: 0.01672286321 | S26: 0.01435489047 | T26: 0.01490234906 | U26: 0.007675136449 | V26: 0.008954914833 | W26: 0.0118521205 | X26: 0.01239804379 | Y26: 0.01453969705 | Z26: 0.01564677628 | AA26: 0.01886005261 | AB26: 0.02047458149 | AC26: 0.02472463166 | AD26: 0.02768744202 | AE26: 0.0428275544 | AF26: 0.02198940958 | AG26: 0.0229195472 | AH26: 0.0206101129 | AI26: 0.02141269477 | AJ26: 0.02224652217 | AK26: 0.02293758786 | AL26: 0.02321805609 | AM26: 0.02314942918 | AN26: 0.02303031673 | AO26: 0.02311297085 | AP26: 0.02308222039 | AQ26: 0.02290294653 | AR26: 0.02271839351 | AS26: 0.02251937762 | AT26: 0.02245609301 | AU26: 0.02252784716 | AV26: 0.02260492382 | AW26: 0.02270728161 | AX26: 0.02283685189 | AY26: 0.02298020893 | AZ26: 0.02316470536 | BA26: 0.02320153865
A27: 0.1122000217 | C27: 20 | D27: 0.01210401394 | E27: 0.01249009583 | F27: 0.01375024817 | G27: 0.01599982221 | H27: 0.0163401871 | I27: 0.01353421514 | J27: 0.01676031728 | K27: 0.01381548716 | L27: 0.0151362395 | M27: 0.01490592144 | N27: 0.01445381285 | O27: 0.01396226144 | P27: 0.01420229833 | Q27: 0.01443662172 | R27: 0.01388642244 | S27: 0.01464806277 | T27: 0.0126408441 | U27: 0.01317487512 | V27: 0.006816076783 | W27: 0.007985288953 | X27: 0.01060311962 | Y27: 0.01112704895 | Z27: 0.01308999409 | AA27: 0.01412128739 | AB27: 0.01704248095 | AC27: 0.01852898368 | AD27: 0.02237810249 | AE27: 0.02508109884 | AF27: 0.03873914165 | AG27: 0.01991299395 | AH27: 0.02079392432 | AI27: 0.01871559019 | AJ27: 0.0194722762 | AK27: 0.02025258379 | AL27: 0.02090496223 | AM27: 0.02117774724 | AN27: 0.02114897161 | AO27: 0.02106794482 | AP27: 0.02125421722 | AQ27: 0.02105787618 | AR27: 0.02090468358 | AS27: 0.02072130594 | AT27: 0.02054943406 | AU27: 0.02050061688 | AV27: 0.02057320153 | AW27: 0.02064684785 | AX27: 0.02074058829 | AY27: 0.02085854411 | AZ27: 0.02099045583 | BA27: 0.02115811605
A28: 0.1151999831 | C28: 21 | D28: 0.01021397226 | E28: 0.01137239642 | F28: 0.0116522816 | G28: 0.0117264377 | H28: 0.01400124033 | I28: 0.01409197415 | J28: 0.01154211537 | K28: 0.01415966325 | L28: 0.01076809376 | M28: 0.01272949316 | N28: 0.01305982358 | O28: 0.01276269485 | P28: 0.01211212091 | Q28: 0.01234396659 | R28: 0.01257157614 | S28: 0.0121270979 | T28: 0.01286171668 | U28: 0.01114426543 | V28: 0.01166856656 | W28: 0.00606204307 | X28: 0.007125371323 | Y28: 0.009492141201 | Z28: =Z62*(1-Z$41-Z$71)/SUM(Z$42:Z$70) -> 0.009992791071 | AA28: 0.01178480206 | AB28: 0.01272926848 | AC28: 0.01538556358 | AD28: 0.01672970093 | AE28: 0.02022229635 | AF28: 0.02263181559 | AG28: 0.03499650167 | AH28: 0.01802285902 | AI28: 0.01883735795 | AJ28: 0.01697910073 | AK28: 0.01768504335 | AL28: 0.01841412544 | AM28: 0.01902258102 | AN28: 0.0193016238 | AO28: 0.01930078901 | AP28: 0.01932732167 | AQ28: 0.01934347399 | AR28: 0.01917434222 | AS28: 0.01902118524 | AT28: 0.01886326471 | AU28: 0.01871501319 | AV28: 0.01867701648 | AW28: 0.01874612174 | AX28: 0.01881346663 | AY28: 0.01889854139 | AZ28: 0.01900691746 | BA28: 0.01912635431
A29: 0.117200017 | C29: 22 | D29: 0.007775085619 | E29: 0.009596596819 | F29: 0.01060955555 | G29: 0.009894290185 | H29: 0.01023751312 | I29: 0.01203964084 | J29: 0.01198442466 | K29: 0.009722865174 | L29: 0.01098765812 | M29: 0.009015361836 | N29: 0.01112484348 | O29: 0.0115015913 | P29: 0.01103371515 | Q29: 0.01049248819 | R29: 0.01071477879 | S29: 0.01094470742 | T29: 0.01061624665 | U29: 0.01130608864 | V29: 0.009842402709 | W29: 0.01034939071 | X29: 0.005394776601 | Y29: 0.006362107744 | Z29: 0.008502639456 | AA29: 0.008973534693 | AB29: 0.0105962303 | AC29: 0.01146275366 | AD29: 0.0138565144 | AE29: 0.01507994469 | AF29: 0.01820163501 | AG29: 0.02039420958 | AH29: 0.03159583603 | AI29: 0.01628655137 | AJ29: 0.01704742018 | AK29: 0.01538286235 | AL29: 0.01604012279 | AM29: 0.01671471872 | AN29: 0.01729459417 | AO29: 0.01757133948 | AP29: 0.01766225934 | AQ29: 0.01754585892 | AR29: 0.017569335 | AS29: 0.01740324486 | AT29: 0.01727248977 | AU29: 0.01713665687 | AV29: 0.01700789457 | AW29: 0.01697607862 | AX29: 0.0170391192 | AY29: 0.01710003528 | AZ29: 0.01717818599 | BA29: 0.01727601844
A30: 0.1198999882 | C30: 23 | D30: 0.006256577657 | E30: 0.007305126742 | F30: 0.008952873545 | G30: 0.008982799062 | H30: 0.008624415353 | I30: 0.008786060953 | J30: 0.01022003388 | K30: 0.01007587453 | L30: 0.00752248671 | M30: 0.009171605494 | N30: 0.00786563777 | O30: 0.009780324973 | P30: 0.009920748094 | Q30: 0.009537154879 | R30: 0.009088118486 | S30: 0.00930880376 | T30: 0.00956194654 | U30: 0.009314104304 | V30: 0.009966574569 | W30: 0.008713749322 | X30: 0.009193746601 | Y30: 0.004808474269 | Z30: 0.005689107603 | AA30: 0.007622396051 | AB30: 0.008054854456 | AC30: 0.009525884023 | AD30: 0.01030617057 | AE30: 0.01246905617 | AF30: 0.01355031911 | AG30: 0.01637463302 | AH30: 0.01838185362 | AI30: 0.02850460753 | AJ30: 0.01471469703 | AK30: 0.01541943151 | AL30: 0.01392914613 | AM30: 0.01453581708 | AN30: 0.01517130966 | AO30: 0.01571822033 | AP30: 0.01605298056 | AQ30: 0.01600749645 | AR30: 0.01591001471 | AS30: 0.01591991476 | AT30: 0.01577700263 | AU30: 0.01566541771 | AV30: 0.01554765512 | AW30: 0.01543331183 | AX30: 0.01540465572 | AY30: 0.01546160053 | AZ30: 0.0155176298 | BA30: 0.01558794463
A31: 0.1215000153 | C31: 24 | D31: 0.005261661979 | E31: 0.005878403788 | F31: 0.006815111355 | G31: 0.007550423102 | H31: 0.007813264012 | I31: 0.007382151927 | J31: 0.007439467069 | K31: 0.008569922257 | L31: 0.007764421395 | M31: 0.006253669545 | N31: 0.007983732719 | O31: 0.006898641 | P31: 0.008409996202 | Q31: 0.008549495539 | R31: 0.008236669707 | S31: 0.007873387235 | T31: 0.008110658778 | U31: 0.008367106808 | V31: 0.00818974582 | W31: 0.008801902713 | X31: 0.007722040653 | Y31: 0.008175205895 | Z31: 0.004289836221 | AA31: 0.005088412187 | AB31: 0.006826396914 | AC31: 0.007224736147 | AD31: 0.008545219486 | AE31: 0.009253090129 | AF31: 0.01117881376 | AG31: 0.01216265191 | AH31: 0.01472571348 | AI31: 0.01654627854 | AJ31: 0.02569615547 | AK31: 0.01327996546 | AL31: 0.01393123654 | AM31: 0.01259469094 | AN31: 0.01316417769 | AO31: 0.01375766956 | AP31: 0.01432780927 | AQ31: 0.01451613852 | AR31: 0.01448234366 | AS31: 0.01438388627 | AT31: 0.01439981564 | AU31: 0.01427692484 | AV31: 0.01418092992 | AW31: 0.01407660235 | AX31: 0.01397328133 | AY31: 0.01394711085 | AZ31: 0.01399935734 | BA31: 0.01404955297
A32: 0.1227999926 | C32: 25 | D32: 0.004502553416 | E32: 0.004943624998 | F32: 0.005484090532 | G32: 0.005734134004 | H32: 0.006559088352 | I32: 0.006677363232 | J32: 0.006241409066 | K32: 0.006228576161 | L32: 0.006588223161 | M32: 0.006439204477 | N32: 0.00543635375 | O32: 0.006992366523 | P32: 0.005921171492 | Q32: 0.00723467523 | R32: 0.007370947134 | S32: 0.007123818936 | T32: 0.006848936392 | U32: 0.0070861035 | V32: 0.007345966572 | W32: 0.007222104577 | X32: 0.007788964329 | Y32: 0.006856904527 | Z32: 0.007283374482 | AA32: 0.003831646032 | AB32: 0.004550845658 | AC32: 0.006114603683 | AD32: 0.006472199798 | AE32: 0.007661695179 | AF32: 0.008284429166 | AG32: 0.0100205425 | AH32: 0.0109232693 | AI32: 0.01323759314 | AJ32: 0.01489628915 | AK32: 0.02316015388 | AL32: 0.0119824259 | AM32: 0.01257991136 | AN32: 0.01139111187 | AO32: 0.01192172149 | AP32: 0.01252399333 | AQ32: 0.01293875183 | AR32: 0.01311548729 | AS32: 0.01307563689 | AT32: 0.01299307 | AU32: 0.01301329192 | AV32: 0.01290678103 | AW32: 0.01282207906 | AX32: 0.01272793883 | AY32: 0.0126343179 | AZ32: 0.01261128196 | BA32: 0.01265804765
A33: 0.1248000264 | C33: 26 | D33: 0.003842751855 | E33: 0.004230400149 | F33: 0.004612015103 | G33: 0.004605469803 | H33: 0.004976153619 | I33: 0.005598375887 | J33: 0.005638680924 | K33: 0.005218891837 | L33: 0.004779005489 | M33: 0.005453008073 | N33: 0.005591480365 | O33: 0.004755854058 | P33: 0.005992644335 | Q33: 0.005086299919 | R33: 0.006228615609 | S33: 0.006366392856 | T33: 0.00618876843 | U33: 0.005976172843 | V33: 0.006213662574 | W33: 0.006470291166 | X33: 0.006383507681 | Y33: 0.006908430158 | Z33: 0.006102030543 | AA33: 0.006498221911 | AB33: 0.003423064556 | AC33: 0.004071842373 | AD33: 0.005471670182 | AE33: 0.005796627459 | AF33: 0.006852100046 | AG33: 0.007417945842 | AH33: 0.008989664027 | AI33: 0.009808777132 | AJ33: 0.01190470933 | AK33: 0.01341176156 | AL33: 0.02087481994 | AM33: 0.01080848559 | AN33: 0.01136548291 | AO33: 0.01030486592 | AP33: 0.01084092574 | AQ33: 0.01129747287 | AR33: 0.01167756219 | AS33: 0.01182865268 | AT33: 0.01179847971 | AU33: 0.01172925064 | AV33: 0.01175165611 | AW33: 0.0116573685 | AX33: 0.01158104287 | AY33: 0.0114958371 | AZ33: 0.01141185023 | BA33: 0.01139061796
A34: 0.1254000068 | C34: 27 | D34: 0.003366522461 | E34: 0.00361047977 | F34: 0.003946632155 | G34: 0.003861773861 | H34: 0.003990363135 | I34: 0.004238954391 | J34: 0.004718699198 | K34: 0.004705693202 | L34: 0.003992338768 | M34: 0.003943539639 | N34: 0.004727091325 | O34: 0.004882938619 | P34: 0.004066504382 | Q34: 0.005136218043 | R34: 0.004369520647 | S34: 0.005368472139 | T34: 0.005519581233 | U34: 0.005389576364 | V34: 0.005230477105 | W34: 0.005462905069 | X34: 0.005708702643 | Y34: 0.005651897426 | Z34: 0.006137256765 | AA34: 0.005434911462 | AB34: 0.005795415046 | AC34: 0.003057578496 | AD34: 0.003637521863 | AE34: 0.004892227895 | AF34: 0.005175345697 | AG34: 0.006125108855 | AH34: 0.00664367673 | AI34: 0.008058994993 | AJ34: 0.008806505896 | AK34: 0.01070062835 | AL34: 0.01206836427 | AM34: 0.01879845266 | AN34: 0.009748857041 | AO34: 0.01026458879 | AP34: 0.009355021496 | AQ34: 0.009762800372 | AR34: 0.01017915164 | AS34: 0.01051414776 | AT34: 0.0106554249 | AU34: 0.01063304715 | AV34: 0.01057440557 | AW34: 0.01059633734 | AX34: 0.01051148502 | AY34: 0.01044250625 | AZ34: 0.01036620177 | BA34: 0.01029008891
A35: 0.1269999743 | C35: 28 | D35: 0.00281350592 | E35: 0.003163035684 | F35: 0.003368294972 | G35: 0.003301718903 | H35: 0.003344405114 | I35: 0.003397198995 | J35: 0.003570878013 | K35: 0.003935620399 | L35: 0.00359651653 | M35: 0.003291391604 | N35: 0.003416825573 | O35: =O69*(1-O$41-O$71)/SUM(O$42:O$70) -> 0.004125896186 | P35: 0.004172276452 | Q35: 0.003483012017 | R35: 0.004409534059 | S35: 0.003763737455 | T35: 0.004651568973 | U35: 0.004803981528 | V35: 0.004714394143 | W35: 0.004595971764 | X35: 0.004817285472 | Y35: 0.005051759018 | Z35: 0.005018380014 | AA35: 0.005463475648 | AB35: 0.004844626873 | AC35: 0.005173994222 | AD35: 0.00273005222 | AE35: 0.003250656921 | AF35: 0.004365660582 | AG35: 0.004623916315 | AH35: 0.005483024679 | AI35: 0.005952895401 | AJ35: 0.007231911871 | AK35: 0.007911862307 | AL35: 0.009624009265 | AM35: 0.01086253862 | AN35: 0.01694705724 | AO35: 0.008800156002 | AP35: 0.009313786727 | AQ35: 0.008420414456 | AR35: =AR69*(1-AR$41-AR$71)/SUM(AR$42:AR$70) -> 0.008791957882 | AS35: 0.00916040246 | AT35: 0.00946653467 | AU35: 0.009598076254 | AV35: 0.009581320076 | AW35: 0.009530038935 | AX35: 0.009549956659 | AY35: 0.00947334362 | AZ35: 0.009411655294 | BA35: 0.009342540739
A36: 0.1277999878 | C36: 29 | D36: 0.002643445788 | E36: 0.002643445788 | F36: 0.002950864669 | G36: 0.002811262771 | H36: 0.002855756289 | I36: 0.002842778161 | J36: 0.002857498402 | K36: 0.002973614751 | L36: 0.003000738971 | M36: 0.00295784277 | N36: 0.00284790558 | O36: 0.00297805528 | P36: 0.003518897692 | Q36: 0.00356721471 | R36: 0.002985037299 | S36: 0.003791819392 | T36: 0.003255843084 | U36: 0.00404215902 | V36: 0.00419578765 | W36: 0.004136389567 | X36: 0.004046962108 | Y36: 0.004256910289 | Z36: 0.004479294211 | AA36: 0.004461306068 | AB36: 0.004863444013 | AC36: 0.004319281312 | AD36: 0.004613478946 | AE36: 0.002436385089 | AF36: 0.002896845738 | AG36: 0.003895243793 | AH36: 0.004133646086 | AI36: 0.004906355099 | AJ36: 0.005334854236 | AK36: 0.006488634344 | AL36: 0.007106395615 | AM36: 0.008650899001 | AN36: 0.009779693154 | AO36: 0.01527748191 | AP36: 0.007974326235 | AQ36: 0.008372004544 | AR36: =AR70*(1-AR$41-AR$71)/SUM(AR$42:AR$70) -> 0.007572859127 | AS36: 0.007901403582 | AT36: 0.008236604122 | AU36: 0.008515729658 | AV36: 0.008637134734 | AW36: 0.00862347304 | AX36: 0.008577458405 | AY36: 0.008595261887 | AZ36: 0.008526744519 | BA36: 0.008470913047
A37: 0.6999999881 | C37: 30 | D37: 0.03217863039 | E37: =D37 -> 0.03217863039 | F37: =E37 -> 0.03217863039 | G37: 0.03217863039 | H37: 0.03217863039 | I37: 0.03217863039 | J37: 0.03217863039 | K37: 0.03217863039 | L37: 0.03217863039 | M37: 0.03217863039 | N37: 0.03217863039 | O37: 0.03217863039 | P37: 0.03217863039 | Q37: 0.03217863039 | R37: 0.03217863039 | S37: 0.03217863039 | T37: 0.03217863039 | U37: 0.03217863039 | V37: 0.03217863039 | W37: 0.03217863039 | X37: 0.03217863039 | Y37: 0.03217863039 | Z37: 0.03217863039 | AA37: 0.03217863039 | AB37: 0.03217863039 | AC37: 0.03217863039 | AD37: 0.03217863039 | AE37: 0.03217863039 | AF37: 0.03217863039 | AG37: 0.03217863039 | AH37: 0.03217863039 | AI37: 0.03217863039 | AJ37: 0.03217863039 | AK37: 0.03217863039 | AL37: 0.03217863039 | AM37: 0.03217863039 | AN37: 0.03217863039 | AO37: 0.03217863039 | AP37: 0.03217863039 | AQ37: 0.03217863039 | AR37: =AQ37 -> 0.03217863039 | AS37: =AR37 -> 0.03217863039 | AT37: =AS37 -> 0.03217863039 | AU37: =AT37 -> 0.03217863039 | AV37: =AU37 -> 0.03217863039 | AW37: =AV37 -> 0.03217863039 | AX37: =AW37 -> 0.03217863039 | AY37: =AX37 -> 0.03217863039 | AZ37: =AY37 -> 0.03217863039 | BA37: =AZ37 -> 0.03217863039
C39: Intermediate table
C40: age | D40: 2011 | E40: 2012 | F40: 2013 | G40: 2014 | H40: 2015 | I40: 2016 | J40: 2017 | K40: 2018 | L40: 2019 | M40: 2020 | N40: 2021 | O40: 2022 | P40: 2023 | Q40: 2024 | R40: 2025 | S40: 2026 | T40: 2027 | U40: 2028 | V40: 2029 | W40: 2030 | X40: 2031 | Y40: 2032 | Z40: 2033 | AA40: 2034 | AB40: 2035 | AC40: 2036 | AD40: 2037 | AE40: 2038 | AF40: 2039 | AG40: 2040 | AH40: 2041 | AI40: 2042 | AJ40: 2043 | AK40: 2044 | AL40: 2045 | AM40: 2046 | AN40: 2047 | AO40: 2048 | AP40: 2049 | AQ40: 2050 | AR40: 2051 | AS40: 2052 | AT40: 2053 | AU40: 2054 | AV40: 2055 | AW40: 2056 | AX40: 2057 | AY40: 2058 | AZ40: 2059 | BA40: 2060
C41: 0 | D41: =D7 -> 0.06124484107 | E41: =E2 -> 0.0609828591 | F41: =F2 -> 0.06738592741 | G41: 0.07165142485 | H41: 0.08225319117 | I41: 0.08527547357 | J41: 0.09694111387 | K41: 0.1019506785 | L41: 0.143060297 | M41: 0.07217555227 | N41: 0.07252723403 | O41: 0.06353694313 | P41: 0.06478343052 | Q41: 0.06593240714 | R41: 0.06650664146 | S41: 0.06581942161 | T41: 0.06427720143 | U41: 0.06262197439 | V41: 0.06158864473 | W41: 0.06008013269 | X41: 0.05879004198 | Y41: 0.05756725556 | Z41: 0.0564716126 | AA41: 0.05579822849 | AB41: 0.0554875148 | AC41: 0.05523424378 | AD41: 0.05504768244 | AE41: 0.05497244391 | AF41: 0.05483920817 | AG41: 0.05483925484 | AH41: 0.05457128216 | AI41: 0.05434857281 | AJ41: 0.05414840825 | AK41: 0.05388467364 | AL41: 0.0539465997 | AM41: 0.05370252707 | AN41: 0.05359733173 | AO41: 0.05328998216 | AP41: 0.05325806177 | AQ41: 0.0533109048 | AR41: =AR2 -> 0.0533109048 | AS41: 0.0533109048 | AT41: 0.0533109048 | AU41: 0.0533109048 | AV41: 0.0533109048 | AW41: 0.0533109048 | AX41: 0.0533109048 | AY41: 0.0533109048 | AZ41: 0.0533109048 | BA41: 0.0533109048
C42: 1 | D42: =D8 -> 0.04564895696 | E42: =MAX(D7*(1-D$3*$A7),0) -> 0.06124484107 | F42: =MAX(E7*(1-E$3*$A7),0) -> 0.0609828591 | G42: 0.06666693794 | H42: 0.07120725008 | I42: 0.08163342792 | J42: 0.08466081965 | K42: 0.09621377048 | L42: 0.1008438231 | M42: 0.1414875104 | N42: 0.07169910582 | O42: 0.07203111676 | P42: 0.062985576 | Q42: 0.06423713399 | R42: 0.06539094535 | S42: 0.06597572419 | T42: 0.06531054662 | U42: 0.06379490294 | V42: 0.0621657596 | W42: 0.06115129243 | X42: 0.05966160017 | Y42: 0.05838864007 | Z42: 0.05718043145 | AA42: 0.05609559873 | AB42: 0.05542855084 | AC42: 0.05512141445 | AD42: 0.05486953778 | AE42: 0.05468431409 | AF42: 0.05461039929 | AG42: 0.05447977592 | AH42: 0.05448140869 | AI42: 0.05421633455 | AJ42: 0.05399675308 | AK42: 0.05379954196 | AL42: 0.05353686326 | AM42: 0.05359750197 | AN42: 0.05335469079 | AO42: 0.05324969381 | AP42: 0.05294330245 | AQ42: 0.05290921476 | AR42: =MAX(AQ7*(1-AQ$3*$A7),0) -> 0.05296210624 | AS42: 0.0529623518 | AT42: 0.0529628961 | AU42: 0.05296328898 | AV42: 0.05296354626 | AW42: 0.05296368682 | AX42: 0.05296377925 | AY42: 0.05296387493 | AZ42: 0.05296397913 | BA42: 0.05296407475
C43: 2 | D43: 0.03826708827 | E43: =MAX(D8*(1-D$3*$A8),0) -> 0.04564895696 | F43: 0.05754294528 | G43: 0.05627814917 | H43: 0.06563463958 | I43: 0.06727887914 | J43: 0.07750754542 | K43: 0.07908891877 | L43: 0.08911500724 | M43: 0.09055175236 | N43: 0.1379873644 | O43: 0.06826351881 | P43: 0.0692226987 | Q43: 0.06108957828 | R43: 0.06221245413 | S43: 0.06326133218 | T43: 0.06381238216 | U43: 0.06329497825 | V43: 0.0618857894 | W43: 0.06040389851 | X43: 0.05951711617 | Y43: 0.05815444077 | Z43: 0.05699219959 | AA43: 0.05590688046 | AB43: 0.05493616053 | AC43: 0.05432697173 | AD43: 0.05408562143 | AE43: 0.0538493752 | AF43: 0.05371276474 | AG43: 0.0535520912 | AH43: 0.05346319851 | AI43: 0.05354396882 | AJ43: 0.05331776931 | AK43: 0.05315686542 | AL43: 0.05299731242 | AM43: 0.05280511826 | AN43: 0.05291956149 | AO43: 0.05276804289 | AP43: 0.0527393049 | AQ43: 0.05272208243 | AR43: 0.05230367002 | AS43: 0.05237678385 | AT43: 0.05233652621 | AU43: 0.05235463496 | AV43: 0.05237275084 | AW43: 0.05238766906 | AX43: 0.05239425256 | AY43: 0.05239381017 | AZ43: 0.05239172087 | BA43: 0.05239293043
C44: 3 | D44: 0.07206128039 | E44: 0.03826708827 | F44: 0.042889742 | G44: 0.05309695668 | H44: 0.05540269536 | I44: 0.06200822322 | J44: 0.06387310419 | K44: 0.07240006661 | L44: 0.07324429499 | M44: 0.0800096275 | N44: 0.08830483983 | O44: 0.1313649364 | P44: 0.0655953161 | Q44: 0.06713230953 | R44: 0.0591584077 | S44: 0.06018072295 | T44: 0.06118145 | U44: 0.06183761117 | V44: 0.06139558449 | W44: 0.06012686107 | X44: 0.05878489851 | Y44: 0.05800896807 | Z44: 0.05675913521 | AA44: 0.05571849673 | AB44: 0.05474709577 | AC44: 0.05384020774 | AD44: 0.05330198625 | AE44: 0.05307593157 | AF44: 0.0528885814 | AG44: 0.0526678104 | AH44: 0.05254880944 | AI44: 0.05253927767 | AJ44: 0.05265255681 | AK44: 0.05248448416 | AL44: 0.05236026245 | AM44: 0.05226898211 | AN44: 0.05213324715 | AO44: 0.05233372391 | AP44: 0.05225829025 | AQ44: 0.05251490985 | AR44: 0.05211468724 | AS44: 0.05172166522 | AT44: 0.05175392207 | AU44: 0.05173150942 | AV44: 0.05176693423 | AW44: 0.05179934749 | AX44: 0.05182047734 | AY44: 0.05182646261 | AZ44: 0.05182386592 | BA44: 0.05182289489
C45: 4 | D45: 0.06655527882 | E45: 0.07206128039 | F45: 0.0359540645 | G45: 0.03930784942 | H45: 0.0520662294 | I45: 0.05209205138 | J45: 0.05860084673 | K45: 0.05938082964 | L45: 0.06658753382 | M45: 0.06530140138 | N45: 0.07769869988 | O45: 0.0837032041 | P45: 0.1255363278 | Q45: 0.06327470462 | R45: 0.06467204623 | S45: 0.05693720671 | T45: 0.05791732637 | U45: 0.05900660611 | V45: 0.05970550917 | W45: 0.05938266979 | X45: 0.05825749689 | Y45: 0.05704794407 | Z45: 0.0563766206 | AA45: 0.05525705151 | AB45: 0.05433409011 | AC45: 0.05343112136 | AD45: 0.05260390824 | AE45: 0.05208865182 | AF45: 0.05191190591 | AG45: 0.05164479453 | AH45: 0.05146792004 | AI45: 0.05142837435 | AJ45: 0.05145319332 | AK45: 0.05161860353 | AL45: 0.05148703659 | AM45: 0.05142945915 | AN45: 0.05139266066 | AO45: 0.05134474257 | AP45: 0.05161503903 | AQ45: 0.05182048286 | AR45: 0.05169520886 | AS45: 0.05132179525 | AT45: 0.05089570575 | AU45: 0.05094478946 | AV45: 0.05094012973 | AW45: 0.05098937248 | AX45: 0.05102763283 | AY45: 0.05104798739 | AZ45: 0.05105182028 | BA45: 0.05105040013
C46: 5 | D46: 0.07353358873 | E46: 0.06655527882 | F46: 0.06770559351 | G46: 0.03274748356 | H46: 0.03840724751 | I46: 0.04874214149 | J46: 0.04902495936 | K46: 0.05424355763 | L46: 0.0542695274 | M46: 0.05898777777 | N46: 0.06317414789 | O46: 0.07335943062 | P46: 0.0795880766 | Q46: 0.1205051006 | R46: 0.06066667052 | S46: 0.06195693223 | T46: 0.05455129513 | U46: 0.05561670957 | V46: 0.05673274874 | W46: 0.05751158144 | X46: 0.05730541355 | Y46: 0.0563136788 | Z46: 0.05522799057 | AA46: 0.05467412353 | AB46: 0.05367845397 | AC46: 0.0528264997 | AD46: 0.05200565071 | AE46: 0.05121099158 | AF46: 0.05075300192 | AG46: 0.05049971303 | AH46: 0.05027852769 | AI46: 0.05018183349 | AJ46: 0.05017748225 | AK46: 0.05025562997 | AL46: 0.05044937463 | AM46: 0.0503832799 | AN46: 0.05037857879 | AO46: 0.05042627813 | AP46: 0.05044989647 | AQ46: 0.05098951455 | AR46: 0.05081938004 | AS46: 0.0507169823 | AT46: 0.05031233574 | AU46: 0.04991183234 | AV46: 0.04997718167 | AW46: 0.04998676495 | AX46: 0.05004134833 | AY46: 0.0500784981 | AZ46: 0.05009650673 | BA46: 0.05010143727
C47: 6 | D47: 0.06614887633 | E47: 0.07353358873 | F47: 0.06253239783 | G47: 0.06125190094 | H47: 0.0318732419 | I47: 0.03578539518 | J47: 0.04566520477 | K47: 0.04516630249 | L47: 0.04923456699 | M47: 0.04774176975 | N47: 0.05683058648 | O47: 0.05939071403 | P47: 0.06937246873 | Q47: 0.07599374777 | R47: 0.1149425504 | S47: 0.05782862121 | T47: 0.05907289699 | U47: 0.05213804494 | V47: 0.05322945482 | W47: 0.05440506895 | X47: 0.05525776502 | Y47: 0.05515669121 | Z47: 0.05428796948 | AA47: 0.05333709965 | AB47: 0.05289208376 | AC47: 0.05197369199 | AD47: 0.05120481805 | AE47: 0.05041955246 | AF47: 0.04969231683 | AG47: 0.04916996165 | AH47: 0.04896312314 | AI47: 0.04882277872 | AJ47: 0.04876308539 | AK47: 0.04881219128 | AL47: 0.04891904903 | AM47: 0.04916811111 | AN47: 0.04915389639 | AO47: 0.04923078836 | AP47: 0.04934588073 | AQ47: 0.04963433966 | AR47: 0.04979986721 | AS47: 0.04965387515 | AT47: 0.04951645499 | AU47: 0.04913855622 | AV47: 0.04876434309 | AW47: 0.04884210241 | AX47: 0.0488576361 | AY47: 0.04891065254 | AZ47: 0.04894510173 | BA47: 0.04896390129
C48: 7 | D48: 0.06468449563 | E48: 0.06614887633 | F48: 0.06908890934 | G48: 0.05615926108 | H48: 0.0593673597 | I48: 0.0295458814 | J48: 0.03336286738 | K48: 0.04185722327 | L48: 0.04069115959 | M48: 0.04298667188 | N48: 0.04579076357 | O48: 0.05318004195 | P48: 0.05583174631 | Q48: 0.06586020098 | R48: 0.07208189566 | S48: 0.1089722745 | T48: 0.05484788198 | U48: 0.05617272744 | V48: 0.0496540745 | W48: 0.05080032068 | X48: 0.05202677451 | Y48: 0.05294038253 | Z48: 0.05293118744 | AA48: 0.05219342895 | AB48: 0.05136772039 | AC48: 0.05098407158 | AD48: 0.05015350912 | AE48: 0.04942180702 | AF48: 0.04870672246 | AG48: 0.04792926149 | AH48: 0.04746375692 | AI48: 0.04733663883 | AJ48: 0.04723509364 | AK48: 0.04722994448 | AL48: 0.04730693677 | AM48: 0.04746834009 | AN48: 0.04775859736 | AO48: 0.04782364239 | AP48: 0.04796437306 | AQ48: 0.04833341504 | AR48: 0.04826211892 | AS48: 0.04844290537 | AT48: 0.04826480598 | AU48: 0.04814829863 | AV48: 0.0477976113 | AW48: 0.04744721159 | AX48: 0.04752892787 | AY48: 0.04754377823 | AZ48: 0.04759362349 | BA48: 0.04762836991
C49: 8 | D49: 0.05910273424 | E49: 0.06468449563 | F49: 0.06215056002 | G49: 0.06155975414 | H49: 0.05418676026 | I49: 0.05473031358 | J49: =MAX(I14*(1-I$3*$A14),0) -> 0.02740126982 | K49: 0.03041363163 | L49: 0.0374080839 | M49: 0.03523929885 | N49: 0.04103237138 | O49: 0.04263636643 | P49: 0.04967588633 | Q49: 0.05267835249 | R49: 0.0620953227 | S49: 0.06793978972 | T49: 0.1027728155 | U49: 0.05187007254 | V49: 0.05321286348 | W49: 0.04714333123 | X49: 0.04833356729 | Y49: 0.04959758768 | Z49: 0.05055633019 | AA49: 0.05064291797 | AB49: 0.05002445329 | AC49: 0.04927749629 | AD49: 0.04896267647 | AE49: 0.04817509943 | AF49: 0.04751458293 | AG49: 0.04675510509 | AH49: 0.04604696349 | AI49: 0.04567044719 | AJ49: 0.04558212471 | AK49: 0.04553609845 | AL49: 0.04555907201 | AM49: 0.04568845238 | AN49: 0.04589081241 | AO49: 0.0462473663 | AP49: 0.04637341486 | AQ49: 0.04675686019 | AR49: 0.04677394589 | AS49: 0.04672424218 | AT49: 0.04686458678 | AU49: 0.04670910516 | AV49: 0.0466128753 | AW49: 0.04628673106 | AX49: 0.04595332338 | AY49: 0.04603227122 | AZ49: 0.04604503242 | BA49: 0.04609455347
C50: 9 | D50: 0.05350519759 | E50: 0.05910273424 | F50: 0.06077469265 | G50: 0.05493152736 | H50: 0.05912500179 | I50: 0.04967411338 | J50: 0.05048566074 | K50: 0.02483951109 | L50: 0.02695793604 | M50: 0.03212686943 | N50: 0.03347256096 | O50: 0.03801176952 | P50: 0.03956834688 | Q50: 0.04657474952 | R50: 0.04936242459 | S50: 0.0581785402 | T50: 0.06370552544 | U50: 0.09665014964 | V50: 0.04887068599 | W50: 0.05025555478 | X50: 0.04462208238 | Y50: 0.04584330406 | Z50: 0.04712794545 | AA50: 0.04813183888 | AB50: 0.04829988835 | AC50: 0.04775410263 | AD50: 0.04709205009 | AE50: 0.04680103021 | AF50: 0.04608980781 | AG50: 0.0453890985 | AH50: 0.04470163674 | AI50: 0.04409357243 | AJ50: 0.04376670216 | AK50: 0.04373279059 | AL50: 0.04371503923 | AM50: 0.04378936423 | AN50: 0.04395804103 | AO50: 0.0442250542 | AP50: 0.04462869195 | AQ50: 0.04498643063 | AR50: 0.04502878414 | AS50: 0.04506400387 | AT50: 0.04498318048 | AU50: 0.04513479855 | AV50: 0.04500117296 | AW50: 0.04492151827 | AX50: 0.04461301083 | AY50: 0.04429153179 | AZ50: 0.04436612868 | BA50: 0.04437968966
C51: 10 | D51: 0.05161041897 | E51: 0.05350519759 | F51: 0.05553031639 | G51: 0.05328637809 | H51: 0.05251963146 | I51: 0.0539002483 | J51: 0.04557870101 | K51: 0.04551281633 | L51: 0.02183802823 | M51: 0.02296117126 | N51: 0.03036848323 | O51: 0.0308527732 | P51: 0.03504968464 | Q51: 0.03686667641 | R51: 0.04337807244 | S51: 0.04597619038 | T51: 0.05424161821 | U51: 0.05957918142 | V51: 0.09057327195 | W51: 0.04591378372 | X51: 0.04732446212 | Y51: 0.04211093685 | Z51: 0.04334587012 | AA51: 0.0446487694 | AB51: 0.04568197993 | AC51: 0.04588477179 | AD51: 0.04541529158 | AE51: 0.04479514548 | AF51: 0.04455903294 | AG51: 0.04381653776 | AH51: 0.04318809327 | AI51: 0.04260129131 | AJ51: 0.04205514171 | AK51: 0.04179283312 | AL51: 0.04178531377 | AM51: 0.04181774707 | AN51: 0.04193093586 | AO51: 0.04216110787 | AP51: 0.04247370684 | AQ51: 0.04308603395 | AR51: 0.04311603006 | AS51: 0.04317475269 | AT51: 0.04317724355 | AU51: 0.04311581062 | AV51: 0.04327679303 | AW51: 0.04316129966 | AX51: 0.04309056306 | AY51: 0.04279456549 | AZ51: 0.0424848207 | BA51: 0.04255764261
C52: 11 | D52: 0.04888684867 | E52: 0.05161041897 | F52: 0.0502711184 | G52: 0.04830897035 | H52: 0.050722196 | I52: 0.04762010022 | J52: 0.04920148775 | K52: 0.04086834597 | L52: 0.03969580619 | M52: 0.01845077432 | N52: 0.02160235222 | O52: 0.02785500941 | P52: 0.02827047357 | Q52: 0.03245818343 | R52: 0.03413346796 | S52: 0.04017065931 | T52: 0.04262727134 | U52: 0.05045559874 | V52: 0.0555421291 | W52: 0.08466132221 | X52: 0.04302083715 | Y52: 0.04444365983 | Z52: 0.03962605118 | AA52: 0.0408707428 | AB52: 0.04217610836 | AC52: 0.04319373457 | AD52: 0.04343219354 | AE52: 0.04299696992 | AF52: 0.04244910555 | AG52: 0.04216347328 | AH52: 0.0414980155 | AI52: 0.04096820764 | AJ52: 0.04044456209 | AK52: 0.03997426793 | AL52: 0.03974823703 | AM52: 0.03978759633 | AN52: 0.0398583131 | AO52: 0.04003111631 | AP52: 0.04030389334 | AQ52: 0.04081420422 | AR52: 0.04110218829 | AS52: 0.04114822311 | AT52: 0.04117475016 | AU52: 0.04119264363 | AV52: 0.04114907043 | AW52: 0.04131488153 | AX52: 0.04121009135 | AY52: 0.04114254533 | AZ52: 0.04085867143 | BA52: 0.04056420113
C53: 12 | D53: 0.04381375159 | E53: 0.04888684867 | F53: 0.04849086817 | G53: 0.0434020359 | H53: 0.04578765791 | I53: 0.04574917586 | J53: 0.04325122826 | K53: 0.04388641592 | L53: 0.03536954115 | M53: 0.03327601807 | N53: 0.01727961757 | O53: 0.019720518 | P53: 0.0253682864 | Q53: 0.02602564494 | R53: 0.02987927279 | S53: 0.03143346809 | T53: 0.03704395125 | U53: 0.03944490104 | V53: 0.04679866295 | W53: 0.05166090854 | X53: 0.07894381314 | Y53: 0.04021092538 | Z53: 0.04162660068 | AA53: 0.03719119153 | AB53: 0.03843036365 | AC53: 0.03969683791 | AD53: 0.04069826904 | AE53: 0.04093173076 | AF53: 0.04055951765 | AG53: 0.0399849413 | AH53: 0.03975228054 | AI53: 0.03918801708 | AJ53: 0.03872015437 | AK53: 0.03827224337 | AL53: 0.03784906799 | AM53: 0.03767865115 | AN53: 0.03775353002 | AO53: 0.03788181735 | AP53: 0.03809564443 | AQ53: 0.03855376332 | AR53: 0.03875883328 | AS53: 0.03904897611 | AT53: 0.03906499732 | AU53: 0.03910512164 | AV53: 0.03913655309 | AW53: 0.03910675086 | AX53: 0.03926959165 | AY53: 0.03917003313 | AZ53: 0.03910468258 | BA53: 0.03883612871
C54: 13 | D54: 0.03203342402 | E54: 0.04381375159 | F54: 0.04593192192 | G54: 0.04156757605 | H54: 0.04097254866 | I54: 0.04109601062 | J54: 0.04135758444 | K54: 0.03839068717 | L54: 0.03770654193 | M54: 0.02943181531 | N54: 0.0310309223 | O54: 0.01570451061 | P54: 0.0178577412 | Q54: 0.02322494009 | R54: 0.02382918531 | S54: 0.02737241764 | T54: 0.02884082343 | U54: 0.03411112639 | V54: 0.03641292961 | W54: 0.04332798533 | X54: 0.0479546536 | Y54: 0.0734615493 | Z54: 0.03749851098 | AA54: 0.03890067421 | AB54: 0.03482080083 | AC54: 0.03601709572 | AD54: 0.03724383584 | AE54: 0.03819162678 | AF54: 0.0384470797 | AG54: 0.03804331566 | AH54: 0.03753948672 | AI54: 0.03738181842 | AJ54: 0.03688288904 | AK54: 0.0364881138 | AL54: 0.03608657155 | AM54: 0.03572850533 | AN54: 0.03560292224 | AO54: 0.0357311699 | AP54: 0.03589884522 | AQ54: 0.03628724449 | AR54: 0.03645752768 | AS54: 0.03666720751 | AT54: 0.03691575978 | AU54: 0.03694520573 | AV54: 0.03699692212 | AW54: 0.03703770792 | AX54: 0.03701450478 | AY54: 0.03716872054 | AZ54: 0.03707344883 | BA54: 0.0370128414
C55: 14 | D55: 0.03351581215 | E55: 0.03203342402 | F55: 0.04116546416 | G55: 0.03908158268 | H55: 0.03907750594 | I55: 0.03658630403 | J55: 0.03696990283 | K55: 0.036523042 | L55: 0.03273506203 | M55: 0.03113575354 | N55: 0.02732408973 | O55: 0.02807218126 | P55: 0.01413657996 | Q55: 0.01625474342 | R55: 0.02114572346 | S55: 0.02171127618 | T55: 0.02498279289 | U55: 0.02642229884 | V55: 0.03133382274 | W55: 0.03355063348 | X55: 0.04003034227 | Y55: 0.04441890843 | Z55: 0.06819597422 | AA55: 0.03488572992 | AB55: 0.03625882075 | AC55: 0.03248922125 | AD55: 0.03364123889 | AE55: 0.03479461365 | AF55: 0.03571424345 | AG55: 0.03590283669 | AH55: 0.03555977397 | AI55: 0.03514649132 | AJ55: 0.03502973691 | AK55: =MAX(AJ20*(1-AJ$3*$A20),0) -> 0.0346061686 | AL55: 0.03425497766 | AM55: 0.03391648026 | AN55: 0.03361311907 | AO55: 0.0335487391 | AP55: 0.033712565 | AQ55: 0.0340439747 | AR55: 0.03416314381 | AS55: 0.03433833072 | AT55: 0.0345118289 | AU55: 0.03475940677 | AV55: 0.03480020387 | AW55: 0.03485938201 | AX55: 0.03490256989 | AY55: 0.0348808306 | AZ55: 0.03502522337 | BA55: 0.03493666584
C56: 15 | D56: 0.02344531891 | E56: 0.03351581215 | F56: 0.03009718913 | G56: 0.03427794677 | H56: 0.03630224959 | I56: 0.03438235759 | J56: 0.03245253065 | K56: 0.03217158799 | L56: 0.03046463387 | M56: 0.0264340288 | N56: 0.02853760595 | O56: 0.02439165821 | P56: 0.02483829756 | Q56: 0.01265472111 | R56: 0.01456154179 | S56: 0.01896575972 | T56: 0.01951714491 | U56: 0.02255360189 | V56: 0.02392758928 | W56: 0.02847322956 | X56: 0.0305789107 | Y56: 0.03658912639 | Z56: 0.04069955517 | AA56: 0.06262829527 | AB56: 0.03210053463 | AC56: 0.03340001909 | AD56: 0.02995922581 | AE56: 0.03102839532 | AF56: 0.03212392085 | AG56: 0.032928996 | AH56: 0.03313652596 | AI56: 0.03287525364 | AJ56: 0.03252389831 | AK56: 0.03245914303 | AL56: 0.03208386575 | AM56: 0.03179325543 | AN56: 0.0315097962 | AO56: 0.03127750827 | AP56: 0.03125619638 | AQ56: 0.03156653739 | AR56: 0.03164653067 | AS56: 0.03177136949 | AT56: 0.03191277842 | AU56: 0.03208709706 | AV56: 0.03232974588 | AW56: 0.03237758683 | AX56: 0.03243718378 | AY56: 0.03247760864 | AZ56: 0.03245664583 | BA56: 0.03259226217
C57: 16 | D57: 0.02468788986 | E57: 0.02344531891 | F57: 0.0314899755 | G57: 0.02486994035 | H57: 0.03170559293 | I57: 0.0317739952 | J57: 0.03034601417 | K57: 0.02809393996 | L57: 0.0266258011 | M57: 0.02440612678 | N57: 0.02411865218 | O57: 0.02535524957 | P57: 0.0214505226 | Q57: 0.02210359882 | R57: 0.01127161312 | S57: 0.0129878507 | T57: 0.01695767265 | U57: 0.01752794276 | V57: 0.02032146915 | W57: 0.02163679081 | X57: 0.02582689476 | Y57: 0.02781913147 | Z57: 0.03337086133 | AA57: 0.03720614694 | AB57: 0.05736656721 | AC57: 0.02943593879 | AD57: 0.03065977629 | AE57: 0.02750739847 | AF57: 0.02851755304 | AG57: 0.02948574578 | AH57: 0.03025606779 | AI57: 0.03049857953 | AJ57: 0.03028740855 | AK57: 0.03000439842 | AL57: 0.0299604662 | AM57: 0.02964634071 | AN57: 0.02940634317 | AO57: 0.02919021236 | AP57: 0.02901043183 | AQ57: 0.02913527646 | AR57: 0.02921211673 | AS57: 0.02929921061 | AT57: 0.02939519488 | AU57: 0.02953822514 | AV57: 0.02971113424 | AW57: 0.02994502573 | AX57: 0.02999357266 | AY57: 0.03004904116 | AZ57: 0.03008585275 | BA57: 0.03006763462
C58: 17 | D58: 0.02131475507 | E58: 0.02468788986 | F58: 0.02202818523 | G58: 0.02583494644 | H58: 0.02291302208 | I58: 0.02761583221 | J58: 0.0279139651 | K58: 0.02614324336 | L58: 0.02308167288 | M58: 0.02117309806 | N58: 0.02217457154 | O58: 0.02133527489 | P58: 0.02217141941 | Q58: 0.01898388399 | R58: 0.01958264114 | S58: 0.01000142785 | T58: 0.01155465347 | U58: 0.01515564731 | V58: 0.01571919548 | W58: 0.01829216361 | X58: 0.01953822989 | Y58: 0.02339335069 | Z58: 0.02526330487 | AA58: 0.0303767981 | AB58: 0.03393614178 | AC58: 0.05238321911 | AD58: 0.02690706656 | AE58: 0.02803203875 | AF58: 0.02517524678 | AG58: 0.02606613083 | AH58: 0.02697959996 | AI58: 0.02773197588 | AJ58: 0.02798192169 | AK58: 0.02782649477 | AL58: 0.02758080493 | AM58: 0.02757011363 | AN58: 0.02730743657 | AO58: 0.0271290013 | AP58: 0.02696215628 | AQ58: 0.02692893635 | AR58: =MAX(AQ23*(1-AQ$3*$A23),0) -> 0.02684969944 | AS58: 0.02693260871 | AT58: 0.02699510132 | AU58: 0.02709486304 | AV58: 0.02723738936 | AW58: 0.02740530869 | AX58: 0.02762498168 | AY58: 0.02767004072 | AZ58: 0.02772066252 | BA58: 0.02775576455
C59: 18 | D59: 0.01568710344 | E59: 0.02131475507 | F59: 0.02319564996 | G59: 0.01795758764 | H59: 0.02371907067 | I59: 0.01987142041 | J59: 0.02416133449 | K59: 0.02394486064 | L59: 0.02133991469 | M59: 0.01823420236 | N59: 0.01916534693 | O59: 0.01953945469 | P59: 0.01856230198 | Q59: 0.01952618121 | R59: 0.01673906745 | S59: 0.01729611584 | T59: 0.008858336852 | U59: 0.01028248329 | V59: 0.01353524103 | W59: 0.01409230973 | X59: 0.01645264298 | Y59: 0.01762872294 | Z59: 0.02116329923 | AA59: 0.02291001564 | AB59: 0.02760318905 | AC59: 0.03087255519 | AD59: 0.04770414323 | AE59: 0.02450913719 | AF59: 0.02555988386 | AG59: 0.02292590259 | AH59: 0.02376271433 | AI59: 0.0246380041 | AJ59: 0.0253506228 | AK59: 0.02561485752 | AL59: 0.0254856297 | AM59: 0.02528758822 | AN59: 0.02530214307 | AO59: 0.02510037666 | AP59: 0.024966205 | AQ59: 0.02493498609 | AR59: 0.02472469575 | AS59: 0.02466309176 | AT59: 0.02472309711 | AU59: 0.02479093738 | AV59: 0.0248923957 | AW59: 0.02503112101 | AX59: 0.02518905189 | AY59: 0.02539123875 | AZ59: 0.02543218045 | BA59: 0.02547978521
C60: 19 | D60: 0.01329361801 | E60: 0.01568710344 | F60: 0.02002640162 | G60: 0.01880461035 | H60: 0.01643685099 | I60: 0.02049330582 | J60: 0.01732355711 | K60: 0.02064843341 | L60: 0.01943503849 | M60: 0.0167616294 | N60: 0.0164515408 | O60: 0.01683083399 | P60: 0.01692533639 | Q60: 0.01627822227 | R60: 0.01714622123 | S60: 0.01472546417 | T60: 0.01526017909 | U60: 0.007853596272 | V60: 0.009149905391 | W60: 0.01209172885 | X60: 0.01263150347 | Y60: 0.01479469553 | Z60: 0.01589541175 | AA60: 0.01912902393 | AB60: 0.02075031015 | AC60: 0.0250298171 | AD60: 0.02802358119 | AE60: 0.04331171278 | AF60: 0.02227528654 | AG60: 0.02320117694 | AH60: 0.02083296416 | AI60: 0.0216309752 | AJ60: 0.02245073375 | AK60: 0.02313275338 | AL60: 0.02338569779 | AM60: 0.02329236326 | AN60: 0.02313356163 | AO60: 0.02318306557 | AP60: 0.02302548103 | AQ60: 0.02301475954 | AR60: 0.02282033448 | AS60: 0.0226381657 | AT60: 0.02256714033 | AU60: 0.02263169745 | AV60: 0.02270283386 | AW60: 0.02280287018 | AX60: 0.02293326147 | AY60: 0.02307823163 | AZ60: 0.02326306622 | BA60: 0.0233015837
C61: 20 | D61: 0.01210401394 | E61: 0.01329361801 | F61: 0.01473890893 | G61: 0.01614955042 | H61: 0.01716245541 | I61: 0.01415072802 | J61: 0.01780492347 | K61: 0.0147521844 | L61: 0.01666914282 | M61: 0.01518195406 | N61: 0.01507619477 | O61: 0.01440117607 | P61: 0.01451816968 | Q61: 0.01478261476 | R61: 0.01423797279 | S61: 0.01502620475 | T61: 0.01294437165 | U61: 0.01348121311 | V61: 0.00696449479 | W61: 0.008146723513 | X61: 0.01080278023 | Y61: 0.01132219611 | Z61: 0.01329800095 | AA61: 0.01432267714 | AB61: 0.01727198994 | AC61: 0.01875769391 | AD61: 0.02264978367 | AE61: 0.0253646365 | AF61: 0.03924277627 | AG61: 0.0201576799 | AH61: 0.02101876308 | AI61: 0.0189063764 | AJ61: 0.01965102163 | AK61: 0.02042490383 | AL61: 0.02105590266 | AM61: 0.02130850734 | AN61: 0.02124378244 | AO61: 0.02113183759 | AP61: 0.02120197136 | AQ61: 0.02116068149 | AR61: 0.02099848615 | AS61: 0.02083060933 | AT61: 0.02065105278 | AU61: 0.02059512191 | AV61: 0.02066231146 | AW61: 0.02073376281 | AX61: 0.02082814814 | AY61: 0.02094751679 | AZ61: 0.0210795845 | BA61: 0.02124934986
C62: 21 | D62: 0.01021397226 | E62: 0.01210401394 | F62: 0.01249009583 | G62: 0.01183617508 | H62: 0.01470580853 | I62: 0.01473389416 | J62: 0.01226149108 | K62: 0.0151196958 | L62: 0.0118586187 | M62: 0.01296522199 | N62: 0.01362218025 | O62: 0.01316390016 | P62: 0.01238150492 | Q62: 0.01263980635 | R62: 0.01288983968 | S62: 0.01244016078 | T62: 0.01317054775 | U62: 0.01140338834 | V62: 0.01192264607 | W62: 0.006184596338 | X62: 0.007259544658 | Y62: 0.009658615203 | Z62: =MAX(Y27*(1-Y$3*$A27),0) -> 0.01015158175 | AA62: 0.01195287018 | AB62: 0.01290069197 | AC62: 0.01557547339 | AD62: 0.01693280773 | AE62: 0.02045090605 | AF62: 0.02292604425 | AG62: 0.03542653004 | AH62: 0.01821773505 | AI62: 0.01902938547 | AJ62: 0.0171349601 | AK62: 0.01783551736 | AL62: 0.01854708125 | AM62: 0.01914003424 | AN62: 0.01938815297 | AO62: 0.01935932252 | AP62: 0.01927981238 | AQ62: 0.01943790953 | AR62: 0.01926038048 | AS62: 0.01912152062 | AT62: 0.01895654519 | AU62: 0.01880128683 | AV62: 0.01875791334 | AW62: 0.01882503541 | AX62: 0.01889289082 | AY62: 0.01897915362 | AZ62: 0.01908762372 | BA62: 0.01920882716
C63: 22 | D63: 0.007775085619 | E63: 0.01021397226 | F63: 0.01137239642 | G63: 0.009986882111 | H63: 0.01075268364 | I63: 0.01258807261 | J63: 0.0127313678 | K63: 0.0103820805 | L63: 0.01210041915 | M63: 0.009182311191 | N63: 0.01160387981 | O63: 0.01186315283 | P63: 0.01127911448 | Q63: 0.01074395477 | R63: 0.01098603543 | S63: 0.01122724672 | T63: 0.01087116028 | U63: 0.0115689742 | V63: 0.01005671805 | W63: 0.01055861912 | X63: 0.005496362208 | Y63: 0.006473686946 | Z63: 0.00863775085 | AA63: 0.009101510128 | AB63: 0.01073892843 | AC63: 0.01160424274 | AD63: 0.01402473931 | AE63: 0.01525042096 | AF63: 0.01843826837 | AG63: 0.02064480859 | AH63: 0.03193747277 | AI63: 0.01645257603 | AJ63: 0.01720390669 | AK63: 0.01551374815 | AL63: 0.01615593755 | AM63: 0.01681792225 | AN63: 0.01737212583 | AO63: 0.01762462809 | AP63: 0.01761884301 | AQ63: 0.01763151845 | AR63: 0.01764817134 | AS63: 0.01749504571 | AT63: 0.01735790372 | AU63: 0.01721565451 | AV63: 0.01708156187 | AW63: 0.01704754112 | AX63: 0.01711105268 | AY63: 0.01717297594 | AZ63: 0.01725112719 | BA63: 0.01735051264
C64: 23 | D64: 0.006256577657 | E64: 0.007775085619 | F64: 0.009596596819 | G64: 0.009066861147 | H64: 0.009058411817 | I64: 0.009186285099 | J64: 0.01085700933 | K64: 0.01075902408 | L64: 0.008284316941 | M64: 0.009341448219 | N64: 0.008204332534 | O64: 0.01008777716 | P64: 0.01014139408 | Q64: 0.009765725616 | R64: 0.00931819439 | S64: 0.009549111954 | T64: 0.00979154468 | U64: 0.009530672885 | V64: 0.01018359371 | W64: 0.008889910798 | X64: 0.009366868195 | Y64: 0.004892805711 | Z64: 0.005779510502 | AA64: 0.007731102317 | AB64: 0.008163328188 | AC64: 0.009643465599 | AD64: 0.01043129255 | AE64: 0.01261001677 | AF64: 0.01372648228 | AG64: 0.01657584047 | AH64: 0.01858061135 | AI64: 0.02879518272 | AJ64: 0.01484977034 | AK64: 0.01555062846 | AL64: 0.01402971896 | AM64: 0.01462556718 | AN64: 0.01523932263 | AO64: 0.01576588899 | AP64: 0.01601352006 | AQ64: 0.01608564563 | AR64: 0.01598140543 | AS64: 0.01600389115 | AT64: 0.01585502128 | AU64: 0.01573763313 | AV64: 0.0156149976 | AW64: 0.0154982799 | AX64: 0.01546968904 | AY64: 0.01552755241 | AZ64: 0.01558352002 | BA64: 0.01565515986
C65: 24 | D65: 0.005261661979 | E65: 0.006256577657 | F65: 0.007305126742 | G65: 0.007621080845 | H65: 0.008206441847 | I65: 0.00771842497 | J65: 0.007903140471 | K65: 0.009150967454 | L65: 0.008550753253 | M65: 0.006369476999 | N65: 0.008327512658 | O65: 0.007115505187 | P65: 0.008597041763 | Q65: 0.008754395692 | R65: 0.008445190231 | S65: 0.008076639932 | T65: 0.0083054091 | U65: 0.008561656105 | V65: 0.008368075055 | W65: 0.008979846342 | X65: 0.007867449488 | Y65: 0.00831858337 | Z65: 0.004358003965 | AA65: 0.00516098022 | AB65: 0.00691832716 | AC65: 0.007313913787 | AD65: 0.008648962656 | AE65: 0.009357694775 | AF65: 0.01132414577 | AG65: 0.01231210358 | AH65: 0.01488493841 | AI65: 0.01671495085 | AJ65: 0.02593203289 | AK65: 0.01339295866 | AL65: 0.01403182447 | AM65: 0.01267245573 | AN65: 0.01322319269 | AO65: 0.01379939246 | AP65: 0.01429258949 | AQ65: 0.01458700683 | AR65: 0.01454732819 | AS65: 0.01445976023 | AT65: 0.01447102397 | AU65: 0.0143427395 | AV65: 0.01424235262 | AW65: 0.01413585921 | AX65: 0.01403227187 | AY65: 0.01400660263 | AZ65: 0.01405880074 | BA65: 0.01411013465
C66: 25 | D66: 0.004502553416 | E66: 0.005261661979 | F66: 0.005878403788 | G66: 0.005787794702 | H66: 0.006889153758 | I66: 0.00698153162 | J66: 0.006630412115 | K66: 0.006650876872 | L66: 0.007255437045 | M66: 0.006558447726 | N66: 0.00567044342 | O66: 0.007212177046 | P66: 0.006052863448 | Q66: 0.007408063948 | R66: 0.007557550921 | S66: 0.007307721412 | T66: 0.007013390674 | U66: 0.007250867317 | V66: 0.007505922769 | W66: 0.007368110223 | X66: 0.007935633361 | Y66: 0.006977161518 | Z66: 0.007399111116 | AA66: 0.003886290783 | AB66: 0.004612131335 | AC66: 0.00619007854 | AD66: 0.006550775488 | AE66: 0.00774830937 | AF66: 0.008392132259 | AG66: 0.01014367245 | AH66: 0.01104137949 | AI66: 0.0133725368 | AJ66: 0.01503302938 | AK66: 0.02335721312 | AL66: 0.0120689428 | AM66: 0.01265758489 | AN66: 0.01144217822 | AO66: 0.0119578765 | AP66: 0.01249320758 | AQ66: 0.01300191928 | AR66: 0.01317433852 | AS66: 0.01314460993 | AT66: 0.01305732185 | AU66: 0.0130732814 | AV66: 0.01296268493 | AW66: 0.01287605489 | AX66: 0.01278167195 | AY66: 0.01268820992 | AZ66: 0.01266483138 | BA66: 0.01271262916
C67: 26 | D67: 0.003842751855 | E67: 0.004502553416 | F67: 0.004943624998 | G67: 0.004648568329 | H67: 0.005226562834 | I67: 0.00585339406 | J67: 0.005990118244 | K67: 0.005572735424 | L67: 0.005262993164 | M67: 0.005553988621 | N67: 0.005832249796 | O67: 0.004905358059 | P67: 0.006125925908 | Q67: 0.005208199934 | R67: 0.006386299993 | S67: 0.006530742263 | T67: 0.006337370988 | U67: 0.006115128906 | V67: 0.006348963194 | W67: 0.00660109778 | X67: 0.006503711454 | Y67: 0.007029590809 | Z67: 0.006198995004 | AA67: 0.006590895847 | AB67: 0.003469162544 | AC67: 0.004122102658 | AD67: 0.005538098951 | AE67: 0.005862157369 | AF67: 0.006941181907 | AG67: 0.007509095729 | AH67: 0.009086866696 | AI67: 0.009908767538 | AJ67: 0.01201398841 | AK67: 0.01352587616 | AL67: 0.02102554273 | AM67: 0.01087522162 | AN67: 0.01141643436 | AO67: 0.01033611749 | AP67: 0.01081427722 | AQ67: 0.01135262754 | AR67: 0.01172996123 | AS67: 0.01189104797 | AT67: 0.01185682421 | AU67: 0.01178332087 | AV67: 0.01180255675 | AW67: 0.01170644135 | AX67: 0.01162993417 | AY67: 0.01154487291 | AZ67: 0.01146030668 | BA67: 0.01143973431
C68: 27 | D68: 0.003366522461 | E68: 0.003842751855 | F68: 0.004230400149 | G68: 0.003897912793 | H68: 0.004191165557 | I68: 0.004432047964 | J68: 0.005012797591 | K68: 0.005024741654 | L68: 0.004396657776 | M68: 0.004016567368 | N68: 0.004930640119 | O68: 0.005036437622 | P68: 0.004156946943 | Q68: 0.005259314413 | R68: 0.004480139959 | S68: 0.00550706007 | T68: 0.005652115501 | U68: 0.005514893074 | V68: 0.005344369159 | W68: 0.005573345866 | X68: 0.005816199591 | Y68: 0.005751020896 | Z68: 0.006234780988 | AA68: 0.005512421071 | AB68: 0.005873461186 | AC68: 0.003095319339 | AD68: 0.003681683169 | AE68: 0.004947533719 | AF68: 0.005242628636 | AG68: 0.00620037268 | AH68: 0.006715512908 | AI68: 0.008141148168 | AJ68: 0.008887345068 | AK68: 0.01079167514 | AL68: 0.01215550167 | AM68: 0.01891452203 | AN68: 0.009792561161 | AO68: 0.01029571822 | AP68: 0.009332025531 | AQ68: 0.009810462718 | AR68: 0.01022482707 | AS68: 0.01056960913 | AT68: 0.0107081169 | AU68: 0.01068206403 | AV68: 0.01062020712 | AW68: 0.01064094368 | AX68: 0.01055586101 | AY68: 0.01048704904 | AZ68: 0.01041021824 | BA68: 0.01033445978
C69: 28 | D69: 0.00281350592 | E69: 0.003366522461 | F69: 0.00361047977 | G69: 0.003332616775 | H69: 0.003512701739 | I69: 0.003551948783 | J69: 0.003793437121 | K69: 0.004202457514 | L69: 0.003960749147 | M69: 0.003352342647 | N69: 0.003563954257 | O69: =MAX(N34*(1-N$3*$A34),0) -> 0.004255596967 | P69: 0.004265071475 | Q69: 0.003566487082 | R69: 0.004521166355 | S69: 0.003860898913 | T69: 0.004763260832 | U69: 0.004915682173 | V69: 0.004817048648 | W69: 0.004688886207 | X69: 0.00490799671 | Y69: 0.005140357209 | Z69: 0.005098124701 | AA69: 0.005541392623 | AB69: 0.004909868866 | AC69: 0.005237858782 | AD69: 0.002763196397 | AE69: 0.003287405057 | AF69: 0.004422417075 | AG69: 0.004680733856 | AH69: 0.005542311058 | AI69: 0.006013579054 | AJ69: 0.007298297084 | AK69: 0.007979180753 | AL69: 0.009693497653 | AM69: 0.01092960839 | AN69: 0.01702303089 | AO69: 0.00882684424 | AP69: 0.009290892124 | AQ69: 0.008461523226 | AR69: 0.008831408766 | AS69: 0.00920872292 | AT69: 0.009513347502 | AU69: 0.009642322067 | AV69: 0.009622820215 | AW69: 0.009570156585 | AX69: 0.009590273395 | AY69: 0.009513752422 | AZ69: 0.009451618614 | BA69: 0.009382825781
C70: 29 | D70: 0.002643445788 | E70: =MAX(D35*(1-D$3*$A35),0) -> 0.00281350592 | F70: =MAX(E35*(1-E$3*$A35),0) -> 0.003163035684 | G70: 0.002837570897 | H70: 0.002999463205 | I70: 0.002972272876 | J70: 0.0030355953 | K70: 0.003175227382 | L70: 0.003304634977 | M70: 0.003012617049 | N70: 0.00297053654 | O70: 0.003071672783 | P70: 0.003597161008 | Q70: 0.003652707806 | R70: 0.003060606863 | S70: 0.003889705791 | T70: 0.003334021257 | U70: 0.004136146011 | V70: 0.004287149655 | W70: 0.004220012869 | X70: 0.004123167877 | Y70: 0.004331568354 | Z70: 0.004550472542 | AA70: 0.004524930671 | AB70: 0.004928939414 | AC70: 0.004372595829 | AD70: 0.00466948885 | AE70: 0.002463928017 | AF70: 0.002934506661 | AG70: 0.003943107586 | AH70: 0.00417834202 | AI70: 0.004956370349 | AJ70: 0.00538382544 | AK70: 0.006543843189 | AL70: 0.007157706037 | AM70: 0.008704313202 | AN70: 0.009823535512 | AO70: 0.01532381394 | AP70: 0.007954724215 | AQ70: 0.008412876975 | AR70: 0.007606839725 | AS70: 0.007943082914 | AT70: 0.008277334841 | AU70: 0.008554986002 | AV70: 0.008674545267 | AW70: 0.008659774411 | AX70: 0.008613669577 | AY70: 0.008631925208 | AZ70: 0.008562950374 | BA70: 0.008507439629
C71: 30 | D71: 0.03217863039 | E71: =E37 -> 0.03217863039 | F71: =F37 -> 0.03217863039 | G71: 0.03217863039 | H71: 0.03217863039 | I71: 0.03217863039 | J71: 0.03217863039 | K71: 0.03217863039 | L71: 0.03217863039 | M71: 0.03217863039 | N71: 0.03217863039 | O71: 0.03217863039 | P71: 0.03217863039 | Q71: 0.03217863039 | R71: 0.03217863039 | S71: 0.03217863039 | T71: 0.03217863039 | U71: 0.03217863039 | V71: 0.03217863039 | W71: 0.03217863039 | X71: 0.03217863039 | Y71: 0.03217863039 | Z71: 0.03217863039 | AA71: 0.03217863039 | AB71: 0.03217863039 | AC71: 0.03217863039 | AD71: 0.03217863039 | AE71: 0.03217863039 | AF71: 0.03217863039 | AG71: 0.03217863039 | AH71: 0.03217863039 | AI71: 0.03217863039 | AJ71: 0.03217863039 | AK71: 0.03217863039 | AL71: 0.03217863039 | AM71: 0.03217863039 | AN71: 0.03217863039 | AO71: 0.03217863039 | AP71: 0.03217863039 | AQ71: 0.03217863039 | AR71: =AR37 -> 0.03217863039 | AS71: 0.03217863039 | AT71: 0.03217863039 | AU71: 0.03217863039 | AV71: 0.03217863039 | AW71: 0.03217863039 | AX71: 0.03217863039 | AY71: 0.03217863039 | AZ71: 0.03217863039 | BA71: 0.03217863039

Sheet 41 (hidden)
D1: 2011 | E1: 2012 | F1: 2013 | G1: 2014 | H1: 2015 | I1: 2016 | J1: 2017 | K1: 2018 | L1: 2019 | M1: 2020 | N1: 2021 | O1: 2022 | P1: 2023 | Q1: 2024 | R1: 2025 | S1: 2026 | T1: 2027 | U1: 2028 | V1: 2029 | W1: 2030 | X1: 2031 | Y1: 2032 | Z1: 2033 | AA1: 2034 | AB1: 2035 | AC1: 2036 | AD1: 2037 | AE1: 2038 | AF1: 2039 | AG1: 2040 | AH1: 2041 | AI1: 2042 | AJ1: 2043 | AK1: 2044 | AL1: 2045 | AM1: 2046 | AN1: 2047 | AO1: 2048 | AP1: 2049 | AQ1: 2050 | AR1: 2051 | AS1: 2052 | AT1: 2053 | AU1: 2054 | AV1: 2055 | AW1: 2056 | AX1: 2057 | AY1: 2058 | AZ1: 2059 | BA1: 2060
C2: sales (age 0 pop) | D2: 0.04441473563 | E2: 0.04161103946 | F2: 0.05524133628 | G2: 0.05337622414 | H2: 0.059772191 | I2: 0.06501524041 | J2: 0.06089878809 | K2: 0.05336219621 | L2: 0.05858244246 | M2: 0.06649501999 | N2: 0.06649501999 | O2: 0.05216943923 | P2: 0.05242484783 | Q2: 0.05225852914 | R2: 0.05168851899 | S2: 0.05119223356 | T2: 0.05098890893 | U2: 0.05031442776 | V2: 0.04917562931 | W2: 0.04762476689 | X2: 0.04640676321 | Y2: 0.04582827327 | Z2: 0.04550712149 | AA2: 0.04523855542 | AB2: 0.04515118011 | AC2: 0.04506958455 | AD2: 0.04494568487 | AE2: 0.04480814147 | AF2: 0.04466903491 | AG2: 0.04464750739 | AH2: 0.04455521323 | AI2: 0.04433558486 | AJ2: 0.04411588673 | AK2: 0.04366071075 | AL2: 0.0431469162 | AM2: 0.04273670665 | AN2: 0.04246704388 | AO2: 0.04226782061 | AP2: 0.0421469708 | AQ2: 0.04220058306 | AR2: 0.04220058306 | AS2: 0.04220058306 | AT2: 0.04220058306 | AU2: 0.04220058306 | AV2: 0.04220058306 | AW2: 0.04220058306 | AX2: 0.04220058306 | AY2: 0.04220058306 | AZ2: 0.04220058306 | BA2: 0.04220058306
C3: scrappage k factor | D3: 1.006624033 | E3: 1.167309604 | F3: 1.939697007 | G3: 2.605405421 | H3: 1.13239643 | I3: 0.8030025227 | J3: 1.486390473 | K3: 1.827360605 | L3: 2.027372339 | M3: 1.360234304 | N3: 0.7467123603 | O3: 0.8166309292 | P3: 0.7819510014 | Q3: 0.74443306 | R3: 0.7130445052 | S3: 0.698314343 | T3: 0.6960818969 | U3: 0.7071136502 | V3: 0.7064573247 | W3: 0.7124672997 | X3: 0.7070388089 | Y3: 0.7305996094 | Z3: 0.745852067 | AA3: 0.7355166174 | AB3: 0.7147133128 | AC3: 0.7069434187 | AD3: 0.7061908983 | AE3: 0.7157515958 | AF3: 0.7285915294 | AG3: 0.7331892757 | AH3: 0.7155214127 | AI3: 0.6816355463 | AJ3: 0.6529052363 | AK3: 0.6498570526 | AL3: 0.6612327604 | AM3: 0.6631402 | AN3: 0.6665727994 | AO3: 0.6852740642 | AP3: 0.7021991782 | AQ3: 0.7036822129 | AR3: 0.7053060576 | AS3: 0.7037683983 | AT3: 0.7026793216 | AU3: 0.7018478455 | AV3: 0.7013082713 | AW3: 0.7009120715 | AX3: 0.7008090366 | AY3: 0.700784113 | AZ3: 0.7006220283
A5: default
A6: scrappage | C6: age | D6: 2011 | E6: 2012 | F6: 2013 | G6: 2014 | H6: 2015 | I6: 2016 | J6: 2017 | K6: 2018 | L6: 2019 | M6: 2020 | N6: 2021 | O6: 2022 | P6: 2023 | Q6: 2024 | R6: 2025 | S6: 2026 | T6: 2027 | U6: 2028 | V6: 2029 | W6: 2030 | X6: 2031 | Y6: 2032 | Z6: 2033 | AA6: 2034 | AB6: 2035 | AC6: 2036 | AD6: 2037 | AE6: 2038 | AF6: 2039 | AG6: 2040 | AH6: 2041 | AI6: 2042 | AJ6: 2043 | AK6: 2044 | AL6: 2045 | AM6: 2046 | AN6: 2047 | AO6: 2048 | AP6: 2049 | AQ6: 2050 | AR6: 2051 | AS6: 2052 | AT6: 2053 | AU6: 2054 | AV6: 2055 | AW6: 2056 | AX6: 2057 | AY6: 2058 | AZ6: 2059 | BA6: 2060
A7: 0 | C7: 0 | D7: 0.04441473563 | E7: =E41 -> 0.04161103946 | F7: =F41 -> 0.05524133628 | G7: 0.05337622414 | H7: 0.059772191 | I7: 0.06501524041 | J7: 0.06089878809 | K7: 0.05336219621 | L7: 0.05858244246 | M7: 0.06649501999 | N7: 0.06649501999 | O7: 0.05216943923 | P7: 0.05242484783 | Q7: 0.05225852914 | R7: 0.05168851899 | S7: 0.05119223356 | T7: 0.05098890893 | U7: 0.05031442776 | V7: 0.04917562931 | W7: 0.04762476689 | X7: 0.04640676321 | Y7: 0.04582827327 | Z7: 0.04550712149 | AA7: 0.04523855542 | AB7: 0.04515118011 | AC7: 0.04506958455 | AD7: 0.04494568487 | AE7: 0.04480814147 | AF7: 0.04466903491 | AG7: 0.04464750739 | AH7: 0.04455521323 | AI7: 0.04433558486 | AJ7: 0.04411588673 | AK7: 0.04366071075 | AL7: 0.0431469162 | AM7: 0.04273670665 | AN7: 0.04246704388 | AO7: 0.04226782061 | AP7: 0.0421469708 | AQ7: 0.04220058306 | AR7: =AR41 -> 0.04220058306 | AS7: 0.04220058306 | AT7: 0.04220058306 | AU7: 0.04220058306 | AV7: 0.04220058306 | AW7: 0.04220058306 | AX7: 0.04220058306 | AY7: 0.04220058306 | AZ7: 0.04220058306 | BA7: 0.04220058306
A8: 0 | C8: 1 | D8: 0.04535428229 | E8: =E42*(1-E$41-E$71)/SUM(E$42:E$70) -> 0.04408952133 | F8: =F42*(1-F$41-F$71)/SUM(F$42:F$70) -> 0.04100904094 | G8: 0.05625163032 | H8: 0.0554154734 | I8: 0.05824413303 | J8: 0.06288755157 | K8: 0.06097183608 | L8: 0.05386688007 | M8: 0.05903713828 | N8: 0.06523709666 | O8: 0.06477458794 | P8: 0.05103652294 | Q8: 0.05126860323 | R8: 0.05112707686 | S8: 0.05063859291 | T8: 0.05016634512 | U8: 0.05018834203 | V8: 0.0496948936 | W8: 0.04869903463 | X8: 0.04718745884 | Y8: 0.04598455863 | Z8: 0.04548635476 | AA8: 0.04506929417 | AB8: 0.04487845913 | AC8: 0.04495252622 | AD8: 0.04485895163 | AE8: 0.04470450102 | AF8: 0.0446025296 | AG8: 0.04444257323 | AH8: 0.04445032648 | AI8: 0.04432428444 | AJ8: 0.04420781483 | AK8: 0.04394383677 | AL8: 0.04357208379 | AM8: 0.04319007476 | AN8: 0.04278426157 | AO8: 0.04245470789 | AP8: 0.042355797 | AQ8: 0.04234936836 | AR8: =AR42*(1-AR$41-AR$71)/SUM(AR$42:AR$70) -> 0.04242036693 | AS8: 0.04228310783 | AT8: 0.0423003266 | AU8: 0.04231375356 | AV8: 0.04232226596 | AW8: 0.04233102946 | AX8: 0.04234332506 | AY8: 0.04234719019 | AZ8: 0.04234280014 | BA8: 0.04233095524
A9: 0 | C9: 2 | D9: 0.05394251679 | E9: =E43*(1-E$41-E$71)/SUM(E$42:E$70) -> 0.04502218843 | F9: 0.04345166592 | G9: 0.04175904433 | H9: 0.05840073504 | I9: 0.05399879359 | J9: 0.05633803545 | K9: 0.06296298508 | L9: 0.06154848967 | M9: 0.05428497539 | N9: 0.05792029985 | O9: 0.06354921099 | P9: 0.06336793708 | Q9: 0.04991089822 | R9: 0.05015858388 | S9: 0.0500885551 | T9: 0.04962379938 | U9: 0.04937869313 | V9: 0.04957036039 | W9: 0.04921326637 | X9: 0.04825186226 | Y9: 0.04675815156 | Z9: 0.04564147409 | AA9: 0.04504872724 | AB9: 0.04471054519 | AC9: 0.04468100514 | AD9: 0.04474244037 | AE9: 0.04461823321 | AF9: 0.04449936472 | AG9: 0.04437640509 | AH9: 0.04424629738 | AI9: 0.04421994132 | AJ9: 0.04419654698 | AK9: 0.04403540635 | AL9: 0.0438546351 | AM9: 0.04361566763 | AN9: 0.04323813417 | AO9: 0.04277183343 | AP9: 0.04254307327 | AQ9: 0.04255919739 | AR9: 0.04256992712 | AS9: 0.04250332149 | AT9: 0.04238304641 | AU9: 0.04241376458 | AV9: 0.04243576277 | AW9: 0.04245308849 | AX9: 0.04247421269 | AY9: 0.04249042809 | AZ9: 0.04248990134 | BA9: 0.04247361167
